{"text_format":"1","workbook":"xlsx","n_sheets":14,"sheets":["Sign Off","A - Contractor Summary","A.1 SEE Members","B - Summary Expenses ","C.1 - Rate Sheets","C.2 - Timesheets - Labor","C.3 - Asset by Company","C.4 - Timesheets - Equipment","D - Lodging","E - Fuel","F - Meals","I - Other","G - Per Diem","H - Mileage"],"not_rendered":{"charts":0,"images":0,"macros":1,"external_links":3,"defined_names":9,"comments":0,"pivot_tables":0},"unopened":[],"bounds":{"document_bytes":16777216,"sheet_cells":100000,"rows_first":2000,"rows_last":500,"rows_between":2000,"halvings":0,"cell_chars":16384,"cell_head_chars":4096},"cells_cut":0,"cells_raw":0,"read":"whole","date_system":"1900"}

{"sheet":"Sign Off","index":0,"n_rows":19,"n_cols":5,"rows_kept":19,"cut":false,"hidden":false,"merged":[[1,1,1,4],[3,1,3,4],[10,1,10,4],[15,1,15,4]]}
[]
[null,"Sign Off's"]
[]
[null,"Accounting"]
[]
[null,null,"Name","Title","Date"]
[null,"Preparer","Belen Villalba","Temp Analyst","2019-12-13"]
[null,"Reviewer","William Adams","Financial Analysis Manager","2020-01-14"]
[null,"Approver","N/A","N/A","N/A"]
[]
[null,"Audit Services"]
[]
[null,null,"Name","Title","Date"]
[null,"Preparer"]
[]
[null,"Energy Delivery"]
[]
[null,null,"Name","Title","Date"]
[null,"Final Reviewer"]

{"sheet":"A - Contractor Summary","index":1,"n_rows":61,"n_cols":13,"rows_kept":61,"cut":false,"hidden":false,"merged":[[1,1,1,3],[3,1,12,3],[22,6,26,6],[22,9,26,9]]}
[]
[null,"Contractor Summary"]
[]
[null,"Test Plan: (A) Using the drop down list, select the vendor.  (B) Ensure address agrees to invoice(s). (C) Enter the distance between vendor address to Plant City, FL.  (D) Determine if vendor is part of the SEE (see tab A.1 for listing). (E) Determine if other agreements exist.  (F) Using the drop down list, select the Incident Base that the vendor was initially assigned.  (G) If the contractor includes multiple crews with different timelines, utilize the '+' symbol at the top of columns 'H' and 'K' (if necessary) to unhide the vendor summary.  (H) Click the button to populate the second (and third, if necessary) set of tabs for documentation of those expenses.  (I) Complete steps (A) through (F)."]
[]
[]
[]
[]
[]
[]
[]
[]
[]
[null,null,null,null,null,"G",null,null,"G",null,"G",null,"G"]
[null,null,"Vendor #3",null,null,"Vendor #3",null,null,"Vendor #3",null,"Vendor #3",null,"Vendor #3"]
[]
[null,null,null,null,null,null,"H",null,null,"H"]
[]
[null,"Contractor/Company","ASPLUNDH TREE EXPERT COMPANY","A"]
[null,"SAP Vendor#",50937]
[null,"Service Type","Distribution"]
[]
[null,"Address","708 Blair Mill Rd","B"]
[null,"City","Willow Grove"]
[null,"State/Providence","PA"]
[null,"Zip",19090]
[null,"Country","US"]
[]
[null,"Distance from FL (in miles)",345,"C"]
[null,"Travel Days (500 m/per day)",1]
[]
[null,"Member of the SEE",null,"D"]
[null,"Other Agreement/Contract (Y/N)",null,"E"]
[null,"Incident Base",null,"F"]
[]
[null,"Date Secured","2018-10-19",null,null,"2018-10-19",null,null,"2018-10-19",null,"2018-10-19",null,"2018-10-19"]
[null,"Start Travel","Titusville, FL",null,null,"New Smyrna Beach, FL",null,null,"New Smyrna Beach, FL",null,"Pompano Beach, FL",null,"Pompano Beach, FL"]
[null,"Date Arrived","2018-10-19",null,null,"2018-10-19",null,null,"2018-10-19",null,"2018-10-19",null,"2018-10-19"]
[null,"Date Released","2018-11-01",null,null,"2018-11-01",null,null,"2018-11-01",null,"2018-11-01",null,"2018-11-01"]
[null,"Time Released","06:00:00",null,null,"06:00:00",null,null,"06:00:00",null,"06:00:00",null,"06:00:00"]
[null,"Released To","home",null,null,"home",null,null,"home",null,"home",null,"home"]
[null,"Arrived Home/Utility*","13:00:00",null,null,"12:00:00",null,null,"12:00:00",null,"22:00:00",null,"22:00:00"]
[]
[]
[]
[]
[null,null,null,null,null,"C.1 - Rate Sheets (2)",null,null,"C.1 - Rate Sheets (3)",null,"C.1 - Rate Sheets (3)",null,"C.1 - Rate Sheets (3)"]
[null,null,null,null,null,"C.2 - Timesheets - Labor (2)",null,null,"C.2 - Timesheets - Labor (3)",null,"C.2 - Timesheets - Labor (3)",null,"C.2 - Timesheets - Labor (3)"]
[null,null,null,null,null,"C.4 - Timesheets - Equipmen (2)",null,null,"C.4 - Timesheets - Equipmen (3)",null,"C.4 - Timesheets - Equipmen (3)",null,"C.4 - Timesheets - Equipmen (3)"]
[null,null,null,null,null,"D - Lodging (2)",null,null,"D - Lodging (3)",null,"D - Lodging (3)",null,"D - Lodging (3)"]
[null,null,null,null,null,"E - Fuel (2)",null,null,"E - Fuel (3)",null,"E - Fuel (3)",null,"E - Fuel (3)"]
[null,null,null,null,null,"F - Meals (2)",null,null,"F - Meals (3)",null,"F - Meals (3)",null,"F - Meals (3)"]
[null,null,null,null,null,"G - Per Diem (2)",null,null,"G - Per Diem (3)",null,"G - Per Diem (3)",null,"G - Per Diem (3)"]
[null,null,null,null,null,"H - Mileage (2)",null,null,"H - Mileage (3)",null,"H - Mileage (3)",null,"H - Mileage (3)"]
[null,null,null,null,null,"I - Other (2)",null,null,"I - Other (3)",null,"I - Other (3)",null,"I - Other (3)"]
[]
[]
[]
[null,"*Estimates reasonable arrival time"]
[]
[null,"Tickmark Explanation: "]

{"sheet":"A.1 SEE Members","index":2,"n_rows":65,"n_cols":3,"rows_kept":65,"cut":false,"hidden":false,"merged":[]}
["RMAG","RESPONDING COMPANY","COMPANY NAME"]
["SEE"]
["SEE"]
["SEE"]
["SEE"]
["SEE"]
["SEE"]
["SEE"]
["SEE"]
["SEE"]
["SEE"]
["SEE"]
["SEE"]
["SEE"]
["SEE"]
["SEE"]
["SEE"]
["SEE"]
["SEE"]
[]
[]
[]
[]
["SEE"]
["SEE"]
["SEE"]
["SEE"]
["SEE"]
["SEE"]
[]
["SEE"]
["SEE"]
["SEE"]
["SEE"]
["SEE"]
[]
[]
[]
[]
["SEE"]
["SEE"]
["SEE"]
["SEE"]
[]
[]
[]
["SEE"]
[]
[]
[]
[]
[]
[]
[]
["SEE"]
["SEE"]
["SEE"]
[]
[]
[]
["SEE"]
[]
[]
["SEE"]
["SEE"]

{"sheet":"B - Summary Expenses ","index":3,"n_rows":65,"n_cols":8,"rows_kept":65,"cut":false,"hidden":false,"merged":[[1,1,1,7],[3,1,6,7],[30,1,30,4],[31,1,31,4]]}
[]
[null,"Summary of Expenses"]
[]
[null,"Test Plan: (A) Calculate Total Amount Invoiced for each expense category. (B) Using SAP t-code FBL1N, list Vendor Invoices Paid.  (C) Ensure there are no differences between the Total Expense Amount and the Total Paid Amount. (D) Ensure there are no difference between Total Invoiced Amount and Total Expense Amount.  (E) If applicable, identify difference due to Foreign currency exchange rates.  "]
[]
[]
[]
[]
[null,null,"A"]
[null,null,"Total Invoiced","Total Calculated","Allowable","Reviewed - Allowed","Reviewed - Not Allowable","Not Allowable"]
[null,"Labor Expense Total",423913.75,{"$f":"+'C.2 - Timesheets - Labor'!CP179","v":423913.75000000041},{"$f":"'C.2 - Timesheets - Labor'!CQ179","v":423913.75000000041},{"$f":"'C.2 - Timesheets - Labor'!CT179","v":0},{"$f":"'C.2 - Timesheets - Labor'!CU179","v":0},{"$f":"D11-(E11+F11+G11)","v":0}]
[null,"Equipment Expense Total",79286.22,{"$f":"+'C.4 - Timesheets - Equipment'!Q88","v":79286.219999999943},{"$f":"'C.4 - Timesheets - Equipment'!R88","v":79286.219999999943},{"$f":"'C.4 - Timesheets - Equipment'!T88","v":0},{"$f":"'C.4 - Timesheets - Equipment'!U88","v":0},{"$f":"D12-(E12+F12+G12)","v":0}]
[null,"Lodging Expense Total",null,null,{"$f":"'D - Lodging'!T93","v":0},{"$f":"'D - Lodging'!V93","v":0},{"$f":"'D - Lodging'!W93","v":0},{"$f":"D13-(E13+F13+G13)","v":0}]
[null,"Fuel/Transport Expense Total",null,null,{"$f":"'E - Fuel'!Q34","v":0},{"$f":"'E - Fuel'!S34","v":0},{"$f":"'E - Fuel'!T34","v":0},0]
[null,"Meal Expense Total",null,null,{"$f":"'F - Meals'!R141","v":0},{"$f":"'F - Meals'!T141","v":0},{"$f":"'F - Meals'!U141","v":0},0]
[null,"Per Diem Expense Total",null,null,{"$f":"'G - Per Diem'!N36","v":0},{"$f":"'G - Per Diem'!P36","v":0},{"$f":"'G - Per Diem'!Q36","v":0},0]
[null,"Mileage Expense Total",31629.52,{"$f":"+'H - Mileage'!L66","v":31629.520000000008},{"$f":"'H - Mileage'!R66","v":0},{"$f":"'H - Mileage'!T66","v":31629.520000000008},{"$f":"'H - Mileage'!U66","v":0},0]
[null,"Other Expense",null,null,{"$f":"'I - Other'!R16","v":0},{"$f":"'I - Other'!T16","v":0},{"$f":"'I - Other'!U16","v":0},{"$f":"D18-(E18+F18+G18)","v":0}]
[]
[null,"Total Expense per tabs",{"$f":"SUM(C11:C18)","v":534829.49},{"$f":"SUM(D11:D18)","v":534829.49000000034},{"$f":"SUM(E11:E18)","v":503199.97000000032},{"$f":"SUM(F11:F18)","v":31629.520000000008},{"$f":"SUM(G11:G18)","v":0},0]
[null,"Difference",{"$f":"IF(D21=0,\"\",\"1\")","v":""},{"$f":"C20-D20","v":0},"D"]
[]
[null,"Total Expense ",null,{"$f":"+D20","v":534829.49000000034}," (from Total SAP Summary)"]
[null,"Total Paid",null,{"$f":"-D60","v":-534829.49},"(from FBL1N in SAP)"]
[null,"Difference",{"$f":"IF(D25=0,\"\",SUM(C21,1))","v":""},{"$f":"+D23+D24","v":0},"C"," "]
[]
[null,"Exchange Rate"]
[null,"Fx Adjusted to USD",null,null," "]
[null,"Difference",{"$f":"IF(D29=0,\"\",\"3\")","v":""},null,"E"]
[]
[null,"B"]
[]
[null,"Document No ","Doc Date ","Amount","Reference"]
[null,"81N95018","2018-11-09",15637.83,678291,null,null," "]
[null,"81N95118","2018-11-09",2240.1799999999998,678292]
[null,"81N95218","2018-11-09",2126.69,678293]
[null,"81N95318","2018-11-09",20327.639999999996,678294]
[null,"81P63318","2018-11-09",2646.82,678289]
[null,"81P63418","2018-11-09",42377.489999999991,678290]
[null,"82G04418","2018-11-09",69447.12,678295]
[null,"82G04518","2018-11-09",7831.36,678296]
[null,"82G04618","2018-11-09",55740.119999999988,678297]
[null,"82G04718","2018-11-09",7831.36,678298]
[null,"82G04818","2018-11-09",123252.88000000005,678299]
[null,"82O61918","2018-11-09",93398.599999999948,678301]
[null,"82O62018","2018-11-09",46639.76999999999,678302]
[null,"82O62118","2018-11-09",5159.26,678303]
[null,"82R76918","2018-11-09",5046.9299999999994,678304]
[null,"82R77018","2018-11-09",35125.440000000002,678300]
[]
[]
[]
[]
[]
[]
[]
[]
[]
[]
[null,null,null,{"$f":"SUM(D34:D59)","v":534829.49}]
[]
[null,"Tickmark Explanation:"]
[null,{"$f":"IFERROR(C21,\"\")","v":""}]
[]
[null,{"$f":"IFERROR(C25,\"\")","v":""}]

{"sheet":"C.1 - Rate Sheets","index":4,"n_rows":55,"n_cols":19,"rows_kept":55,"cut":false,"hidden":false,"merged":[[12,1,12,5],[12,7,12,8],[3,1,3,8],[54,6,54,8],[1,1,1,8]]}
[]
[null,"Labor Charges - Rate Sheet"]
[]
[null,"Test Plan: (A) Using the vendor rate sheet, ensure that a rate was provided for all Positions and Equipment types.  "]
[]
[null,"Labor Types:"]
[null,"ST","Straight Time"]
[null,"OT","Over Time"]
[null,"DT","Double Time"]
[null,"MOB/DMOB","Mobilization/Demobilization Time"]
[]
[]
[null,"Labor per Man Hour",null,null,null,null," ","Labor per Equipment Hour"]
[null,"A",null,null,null,null,null,"A"]
[null,"POSITION","ST","OT","DT","MOB/DMOB",null,"Type","$/HOUR"]
[null,"Foreperson",39.43,53.62,null,null,null,"Crew Cab 4D Pickup",16.079999999999998]
[null,"General Foreman",45.03,61.99,null,null,null,"Pickup Truck",12.1]
[null,"Trimmer A",29.1,39.68,null,null,null,"Truck, 14TD Chipper",12.03]
[null,"Trimmer B",26.9,36.53,null,null,null,"Truck, 14Yd Dump, 55 Ft",18.86]
[null,"Trimmer C",25.62,34.65,null,null,null,"Truck, 14Yd Dump, 70 Ft",29]
[null,null,null,null,null,null,null,"Truck, Pickup AWD",13.99]
[null,null,null,null,null,null,null,"Pickup Mileage",0.97]
[null,null,null,null,null,null,null,"Split Dump Mileage",1.61]
[null,null,null,null,null,null,null,"Lift Mileage",1.98,null,null,null,null,null,null,null,null,null," "]
[]
[]
[]
[]
[]
[]
[]
[]
[]
[]
[]
[]
[]
[]
[]
[]
[]
[]
[]
[]
[]
[]
[]
[]
[]
[]
[]
[]
[]
[null,"Tickmark Explanation:"]
[null,1]

{"sheet":"C.2 - Timesheets - Labor","index":5,"n_rows":192,"n_cols":101,"rows_kept":192,"cut":false,"hidden":false,"merged":[[1,1,1,99],[14,97,17,97],[14,98,17,98],[14,99,17,99],[15,88,17,88],[15,87,17,87],[15,86,17,86],[15,85,17,85],[15,84,17,84],[14,94,17,94],[14,96,17,96],[14,89,14,93],[15,93,17,93],[15,92,17,92],[15,91,17,91],[15,90,17,90],[179,84,179,87],[179,24,179,27],[179,14,179,17],[179,19,179,22],[3,2,7,13],[14,10,16,13],[14,9,17,9],[16,14,16,18],[14,7,17,7],[14,29,14,33],[16,29,16,33],[179,29,179,32],[14,34,14,38],[16,34,16,38],[179,34,179,37],[14,39,14,43],[15,89,17,89],[14,95,17,95],[14,84,14,88],[178,1,178,5],[14,1,17,1],[14,2,17,2],[14,4,17,4],[14,5,17,5],[14,3,17,3],[14,6,17,6],[14,19,14,23],[16,19,16,23],[14,24,14,28],[14,14,14,18],[16,24,16,28],[14,8,17,8],[16,39,16,43],[179,39,179,42],[14,44,14,48],[16,44,16,48],[179,44,179,47],[14,49,14,53],[16,49,16,53],[179,49,179,52],[14,54,14,58],[16,54,16,58],[179,54,179,57],[14,59,14,63],[16,59,16,63],[179,59,179,62],[14,64,14,68],[16,64,16,68],[179,64,179,67],[14,79,14,83],[16,79,16,83],[179,79,179,82],[14,69,14,73],[16,69,16,73],[179,69,179,72],[14,74,14,78],[16,74,16,78],[179,74,179,77]]}
[]
[null,"Labor Charges - Time Card"]
[]
[null,"Test Plan:","Obtain the time cards.  (A) Using the Asset by Company tab (C.3), populate the crew members names and positions (if provided).  Find additional information regarding individual crew member from related invoice.  (B) Enter hours worked from time card(s). (C) Confirm that the dates per the time cards fall between dates provided per 'A - Contractor Summary' tab. (D) Confirm the labor type charged agrees to the rate sheet. (E) Identify any labor charges to be reviewed (manually enter amounts based on reasonability of time period labor was charged, discrepancies between timecards and invoice, etc.  (F) For charges which required further review, document review (include why it was determined to be allowed/disallowed via a tickmark)."]
[]
[]
[]
[]
[]
[null,"Rx","Recalculated."]
[null,"a","Provided from tab 'C.1 - Rate Sheets'."]
[null,"b","Check figure should equal $0.  Cell will appear yellow if discrepancies are noted."]
[]
[null,null,"A ",null,null,null,null,"Rx",null,"C","a",null,null,null,null,null,null,null,null,null,null,null,null,null,null,null,null,null,null,null,null,null,null,null,null,null,null,null,null,null,null,null,null,null,null,null,null,null,null,null,null,null,null,null,null,null,null,null,null,null,null,null,null,null,null,null,null,null,null,null,null,null,null,null,null,null,null,null,null,null,null,null,null,null,"Rx",null,null,null,null,"Rx",null,null,null,null,"Rx",null,"E","F"]
[null,"#","Name","Position","Company","Crew#","Invoice#","Start Date","End Date","Dates Worked Reasonable?","Rates",null,null,null,"2018-10-19",null,null,null,null,"2018-10-20",null,null,null,null,"2018-10-21",null,null,null,null,"2018-10-22",null,null,null,null,"2018-10-23",null,null,null,null,"2018-10-24",null,null,null,null,"2018-10-25",null,null,null,null,"2018-10-26",null,null,null,null,"2018-10-27",null,null,null,null,"2018-10-28",null,null,null,null,"2018-10-29",null,null,null,null,"2018-10-30",null,null,null,null,"2018-10-31",null,null,null,null,"2018-11-01",null,null,null,null,"Total Labor Hours",null,null,null,null,"Total Labor $",null,null,null,null,"Allowable Charges","Labor Type Appropriate?","To Be Reviewed","Reviewed - Allowable Charge","Reviewed - Unallowable Charge","Tickmarks"]
[null,null,null,null,null,null,null,null,null,null,null,null,null,null,null,null,null,null,null,null,null,null,null,null,null,null,null,null,null,null,null,null,null,null,null,null,null,null,null,null,null,null,null,null,null,null,null,null,null,null,null,null,null,null,null,null,null,null,null,null,null,null,null,null,null,null,null,null,null,null,null,null,null,null,null,null,null,null,null,null,null,null,null,null,"Total ST","OT","DT","MOB/DMOB","Total Hours","Total ST $","Total OT $","Total DT $","Total MOB/DMOB $","Total Labor $"]
[]
[null,null,null,null,null,null,null,null,null,null,"ST","OT","DT","MOB/DMOB","ST","OT","DT","MOB/DMOB","Total","ST","OT","DT","MOB/DMOB","Total","ST","OT","DT","MOB/DMOB","Total","ST","OT","DT","MOB/DMOB","Total","ST","OT","DT","MOB/DMOB","Total","ST","OT","DT","MOB/DMOB","Total","ST","OT","DT","MOB/DMOB","Total","ST","OT","DT","MOB/DMOB","Total","ST","OT","DT","MOB/DMOB","Total","ST","OT","DT","MOB/DMOB","Total","ST","OT","DT","MOB/DMOB","Total","ST","OT","DT","MOB/DMOB","Total","ST","OT","DT","MOB/DMOB","Total","ST","OT","DT","MOB/DMOB","Total"]
[null,1,"Angelo Perez","Foreperson","Vendor No 3",50937,"81N95018","2018-10-19","2018-10-20",{"$f":"IF(AND(H19>='A - Contractor Summary'!$C$36,I19<='A - Contractor Summary'!$C$42),\"Yes\",\"No\")","v":"No"},{"$f":"VLOOKUP($D19,'C.1 - Rate Sheets'!$B$15:$F$25,2,FALSE)","v":39.43},{"$f":"VLOOKUP($D19,'C.1 - Rate Sheets'!$B$15:$F$25,3,FALSE)","v":53.62},{"$f":"VLOOKUP($D19,'C.1 - Rate Sheets'!$B$15:$F$25,4,FALSE)","v":0},{"$f":"VLOOKUP($D19,'C.1 - Rate Sheets'!$B$15:$F$25,5,FALSE)","v":0},null,10,null,null,null,null,16,null,null,null,null,null,null,null,null,null,null,null,null,null,null,null,null,null,null,null,null,null,null,null,null,null,null,null,null,null,null,null,null,null,null,null,null,null,null,null,null,null,null,null,null,null,null,null,null,null,null,null,null,null,null,null,null,null,null,null,null,null,null,null,{"$f":"O19+T19+Y19+AD19+AI19+AN19+AS19+AX19+BC19+BH19+BM19+BR19+BW19+CB19","v":0},{"$f":"P19+U19+Z19+AE19+AJ19+AO19+AT19+AY19+BD19+BI19+BN19+BS19+BX19+CC19","v":26},0,0,{"$f":"SUM(CG19:CJ19)","v":26},{"$f":"CG19*K19","v":0},{"$f":"CH19*L19-0.01","v":1394.11},{"$f":"CI19*M19","v":0},{"$f":"CJ19*N19","v":0},{"$f":"SUM(CL19:CO19)","v":1394.11},{"$f":"CP19-CS19","v":1394.11},"Yes",0,0,0]
[null,2,"Gabriel Tovar","Trimmer B","Vendor No 3",50937,"81N95018","2018-10-19","2018-10-20",{"$f":"IF(AND(H20>='A - Contractor Summary'!$C$36,I20<='A - Contractor Summary'!$C$42),\"Yes\",\"No\")","v":"No"},{"$f":"VLOOKUP($D20,'C.1 - Rate Sheets'!$B$15:$F$25,2,FALSE)","v":26.9},{"$f":"VLOOKUP($D20,'C.1 - Rate Sheets'!$B$15:$F$25,3,FALSE)","v":36.53},{"$f":"VLOOKUP($D20,'C.1 - Rate Sheets'!$B$15:$F$25,4,FALSE)","v":0},{"$f":"VLOOKUP($D20,'C.1 - Rate Sheets'!$B$15:$F$25,5,FALSE)","v":0},null,10,null,null,null,null,16,null,null,null,null,null,null,null,null,null,null,null,null,null,null,null,null,null,null,null,null,null,null,null,null,null,null,null,null,null,null,null,null,null,null,null,null,null,null,null,null,null,null,null,null,null,null,null,null,null,null,null,null,null,null,null,null,null,null,null,null,null,null,null,{"$f":"O20+T20+Y20+AD20+AI20+AN20+AS20+AX20+BC20+BH20+BM20+BR20+BW20+CB20","v":0},{"$f":"P20+U20+Z20+AE20+AJ20+AO20+AT20+AY20+BD20+BI20+BN20+BS20+BX20+CC20","v":26},{"$f":"Q20+V20+AA20+AF20+AK20+AP20+AU20+AZ20+BE20+BJ20+BO20+BT20+BY20+CD20","v":0},{"$f":"R20+W20+AB20+AG20+AL20+AQ20+AV20+BA20+BF20+BK20+BP20+BU20+BZ20+CE20","v":0},{"$f":"SUM(CG20:CJ20)","v":26},{"$f":"CG20*K20","v":0},{"$f":"CH20*L20","v":949.78},{"$f":"CI20*M20","v":0},{"$f":"CJ20*N20","v":0},{"$f":"SUM(CL20:CO20)","v":949.78},{"$f":"CP20-CS20","v":949.78},"Yes",0,0,0]
[null,3,"Jaison Cruz","Trimmer A","Vendor No 3",50937,"81N95018","2018-10-19","2018-10-20",{"$f":"IF(AND(H21>='A - Contractor Summary'!$C$36,I21<='A - Contractor Summary'!$C$42),\"Yes\",\"No\")","v":"No"},{"$f":"VLOOKUP($D21,'C.1 - Rate Sheets'!$B$15:$F$25,2,FALSE)","v":29.1},{"$f":"VLOOKUP($D21,'C.1 - Rate Sheets'!$B$15:$F$25,3,FALSE)","v":39.68},{"$f":"VLOOKUP($D21,'C.1 - Rate Sheets'!$B$15:$F$25,4,FALSE)","v":0},{"$f":"VLOOKUP($D21,'C.1 - Rate Sheets'!$B$15:$F$25,5,FALSE)","v":0},null,10,null,null,null,null,16,null,null,null,null,null,null,null,null,null,null,null,null,null,null,null,null,null,null,null,null,null,null,null,null,null,null,null,null,null,null,null,null,null,null,null,null,null,null,null,null,null,null,null,null,null,null,null,null,null,null,null,null,null,null,null,null,null,null,null,null,null,null,null,{"$f":"O21+T21+Y21+AD21+AI21+AN21+AS21+AX21+BC21+BH21+BM21+BR21+BW21+CB21","v":0},{"$f":"P21+U21+Z21+AE21+AJ21+AO21+AT21+AY21+BD21+BI21+BN21+BS21+BX21+CC21","v":26},{"$f":"Q21+V21+AA21+AF21+AK21+AP21+AU21+AZ21+BE21+BJ21+BO21+BT21+BY21+CD21","v":0},{"$f":"R21+W21+AB21+AG21+AL21+AQ21+AV21+BA21+BF21+BK21+BP21+BU21+BZ21+CE21","v":0},{"$f":"SUM(CG21:CJ21)","v":26},{"$f":"CG21*K21","v":0},{"$f":"CH21*L21","v":1031.68},{"$f":"CI21*M21","v":0},{"$f":"CJ21*N21","v":0},{"$f":"SUM(CL21:CO21)","v":1031.68},{"$f":"CP21-CS21","v":1031.68},"Yes",0,0,0]
[null,4,"Dachel  Yasmany","Foreperson","Vendor No 3",50937,"81N95018","2018-10-19","2018-10-20",{"$f":"IF(AND(H22>='A - Contractor Summary'!$C$36,I22<='A - Contractor Summary'!$C$42),\"Yes\",\"No\")","v":"No"},{"$f":"VLOOKUP($D22,'C.1 - Rate Sheets'!$B$15:$F$25,2,FALSE)","v":39.43},{"$f":"VLOOKUP($D22,'C.1 - Rate Sheets'!$B$15:$F$25,3,FALSE)","v":53.62},{"$f":"VLOOKUP($D22,'C.1 - Rate Sheets'!$B$15:$F$25,4,FALSE)","v":0},{"$f":"VLOOKUP($D22,'C.1 - Rate Sheets'!$B$15:$F$25,5,FALSE)","v":0},null,10,null,null,null,null,16,null,null,null,null,null,null,null,null,null,null,null,null,null,null,null,null,null,null,null,null,null,null,null,null,null,null,null,null,null,null,null,null,null,null,null,null,null,null,null,null,null,null,null,null,null,null,null,null,null,null,null,null,null,null,null,null,null,null,null,null,null,null,null,0,26,0,0,26,0,1394.12,0,0,1394.12,1394.12,"Yes",0,0,0]
[null,5,"Oneiber Mejia","Trimmer A","Vendor No 3",50937,"81N95018","2018-10-19","2018-10-20",{"$f":"IF(AND(H23>='A - Contractor Summary'!$C$36,I23<='A - Contractor Summary'!$C$42),\"Yes\",\"No\")","v":"No"},{"$f":"VLOOKUP($D23,'C.1 - Rate Sheets'!$B$15:$F$25,2,FALSE)","v":29.1},{"$f":"VLOOKUP($D23,'C.1 - Rate Sheets'!$B$15:$F$25,3,FALSE)","v":39.68},{"$f":"VLOOKUP($D23,'C.1 - Rate Sheets'!$B$15:$F$25,4,FALSE)","v":0},{"$f":"VLOOKUP($D23,'C.1 - Rate Sheets'!$B$15:$F$25,5,FALSE)","v":0},null,10,null,null,null,null,16,null,null,null,null,null,null,null,null,null,null,null,null,null,null,null,null,null,null,null,null,null,null,null,null,null,null,null,null,null,null,null,null,null,null,null,null,null,null,null,null,null,null,null,null,null,null,null,null,null,null,null,null,null,null,null,null,null,null,null,null,null,null,null,0,26,0,0,26,0,1031.68,0,0,1031.68,1031.68,"Yes",0,0,0]
[null,6,"Angel Guevara","Trimmer B","Vendor No 3",50937,"81N95018","2018-10-19","2018-10-20",{"$f":"IF(AND(H24>='A - Contractor Summary'!$C$36,I24<='A - Contractor Summary'!$C$42),\"Yes\",\"No\")","v":"No"},{"$f":"VLOOKUP($D24,'C.1 - Rate Sheets'!$B$15:$F$25,2,FALSE)","v":26.9},{"$f":"VLOOKUP($D24,'C.1 - Rate Sheets'!$B$15:$F$25,3,FALSE)","v":36.53},{"$f":"VLOOKUP($D24,'C.1 - Rate Sheets'!$B$15:$F$25,4,FALSE)","v":0},{"$f":"VLOOKUP($D24,'C.1 - Rate Sheets'!$B$15:$F$25,5,FALSE)","v":0},null,10,null,null,null,null,16,null,null,null,null,null,null,null,null,null,null,null,null,null,null,null,null,null,null,null,null,null,null,null,null,null,null,null,null,null,null,null,null,null,null,null,null,null,null,null,null,null,null,null,null,null,null,null,null,null,null,null,null,null,null,null,null,null,null,null,null,null,null,null,0,26,0,0,26,0,949.78,0,0,949.78,949.78,"Yes",0,0,0]
[null,7,"Orlando Garcia","Trimmer A","Vendor No 3",50937,"81N95018","2018-10-19","2018-10-20",{"$f":"IF(AND(H25>='A - Contractor Summary'!$C$36,I25<='A - Contractor Summary'!$C$42),\"Yes\",\"No\")","v":"No"},{"$f":"VLOOKUP($D25,'C.1 - Rate Sheets'!$B$15:$F$25,2,FALSE)","v":29.1},{"$f":"VLOOKUP($D25,'C.1 - Rate Sheets'!$B$15:$F$25,3,FALSE)","v":39.68},{"$f":"VLOOKUP($D25,'C.1 - Rate Sheets'!$B$15:$F$25,4,FALSE)","v":0},{"$f":"VLOOKUP($D25,'C.1 - Rate Sheets'!$B$15:$F$25,5,FALSE)","v":0},null,10,null,null,null,null,16,null,null,null,null,null,null,null,null,null,null,null,null,null,null,null,null,null,null,null,null,null,null,null,null,null,null,null,null,null,null,null,null,null,null,null,null,null,null,null,null,null,null,null,null,null,null,null,null,null,null,null,null,null,null,null,null,null,null,null,null,null,null,null,0,26,0,0,26,0,1031.68,0,0,1031.68,1031.68,"Yes",0,0,0]
[null,8,"Victor Cruz","Foreperson","Vendor No 3",50937,"81N95018","2018-10-19","2018-10-20",{"$f":"IF(AND(H26>='A - Contractor Summary'!$C$36,I26<='A - Contractor Summary'!$C$42),\"Yes\",\"No\")","v":"No"},{"$f":"VLOOKUP($D26,'C.1 - Rate Sheets'!$B$15:$F$25,2,FALSE)","v":39.43},{"$f":"VLOOKUP($D26,'C.1 - Rate Sheets'!$B$15:$F$25,3,FALSE)","v":53.62},{"$f":"VLOOKUP($D26,'C.1 - Rate Sheets'!$B$15:$F$25,4,FALSE)","v":0},{"$f":"VLOOKUP($D26,'C.1 - Rate Sheets'!$B$15:$F$25,5,FALSE)","v":0},null,10,null,null,null,null,16,null,null,null,null,null,null,null,null,null,null,null,null,null,null,null,null,null,null,null,null,null,null,null,null,null,null,null,null,null,null,null,null,null,null,null,null,null,null,null,null,null,null,null,null,null,null,null,null,null,null,null,null,null,null,null,null,null,null,null,null,null,null,null,0,26,0,0,26,0,1394.12,0,0,1394.12,1394.12,"Yes",0,0,0]
[null,10,"Manuel Ortiz","Trimmer A","Vendor No 3",50937,"81N95018","2018-10-19","2018-10-20",{"$f":"IF(AND(H27>='A - Contractor Summary'!$C$36,I27<='A - Contractor Summary'!$C$42),\"Yes\",\"No\")","v":"No"},{"$f":"VLOOKUP($D27,'C.1 - Rate Sheets'!$B$15:$F$25,2,FALSE)","v":29.1},{"$f":"VLOOKUP($D27,'C.1 - Rate Sheets'!$B$15:$F$25,3,FALSE)","v":39.68},{"$f":"VLOOKUP($D27,'C.1 - Rate Sheets'!$B$15:$F$25,4,FALSE)","v":0},{"$f":"VLOOKUP($D27,'C.1 - Rate Sheets'!$B$15:$F$25,5,FALSE)","v":0},4,6,null,null,null,null,16,null,null,null,null,null,null,null,null,null,null,null,null,null,null,null,null,null,null,null,null,null,null,null,null,null,null,null,null,null,null,null,null,null,null,null,null,null,null,null,null,null,null,null,null,null,null,null,null,null,null,null,null,null,null,null,null,null,null,null,null,null,null,null,4,22,0,0,26,116.4,872.96,0,0,989.36,989.36,"Yes",0,0,0]
[null,11,"Tonny Rivas","Foreperson","Vendor No 3",50937,"81N95018","2018-10-19","2018-10-20",{"$f":"IF(AND(H28>='A - Contractor Summary'!$C$36,I28<='A - Contractor Summary'!$C$42),\"Yes\",\"No\")","v":"No"},{"$f":"VLOOKUP($D28,'C.1 - Rate Sheets'!$B$15:$F$25,2,FALSE)","v":39.43},{"$f":"VLOOKUP($D28,'C.1 - Rate Sheets'!$B$15:$F$25,3,FALSE)","v":53.62},{"$f":"VLOOKUP($D28,'C.1 - Rate Sheets'!$B$15:$F$25,4,FALSE)","v":0},{"$f":"VLOOKUP($D28,'C.1 - Rate Sheets'!$B$15:$F$25,5,FALSE)","v":0},null,10,null,null,null,null,16,null,null,null,null,null,null,null,null,null,null,null,null,null,null,null,null,null,null,null,null,null,null,null,null,null,null,null,null,null,null,null,null,null,null,null,null,null,null,null,null,null,null,null,null,null,null,null,null,null,null,null,null,null,null,null,null,null,null,null,null,null,null,null,0,26,0,0,26,0,1394.12,0,0,1394.12,1394.12,"Yes",0,0,0]
[null,12,"Carlos A Ruiz B","Trimmer A","Vendor No 3",50937,"81N95018","2018-10-19","2018-10-20",{"$f":"IF(AND(H29>='A - Contractor Summary'!$C$36,I29<='A - Contractor Summary'!$C$42),\"Yes\",\"No\")","v":"No"},{"$f":"VLOOKUP($D29,'C.1 - Rate Sheets'!$B$15:$F$25,2,FALSE)","v":29.1},{"$f":"VLOOKUP($D29,'C.1 - Rate Sheets'!$B$15:$F$25,3,FALSE)","v":39.68},{"$f":"VLOOKUP($D29,'C.1 - Rate Sheets'!$B$15:$F$25,4,FALSE)","v":0},{"$f":"VLOOKUP($D29,'C.1 - Rate Sheets'!$B$15:$F$25,5,FALSE)","v":0},null,10,null,null,null,null,16,null,null,null,null,null,null,null,null,null,null,null,null,null,null,null,null,null,null,null,null,null,null,null,null,null,null,null,null,null,null,null,null,null,null,null,null,null,null,null,null,null,null,null,null,null,null,null,null,null,null,null,null,null,null,null,null,null,null,null,null,null,null,null,0,26,0,0,26,0,1031.68,0,0,1031.68,1031.68,"Yes",0,0,0]
[null,null,null,null,null,null,null,null,null,null,null,null,null,null,null,null,null,null,null,null,null,null,null,null,null,null,null,null,null,null,null,null,null,null,null,null,null,null,null,null,null,null,null,null,null,null,null,null,null,null,null,null,null,null,null,null,null,null,null,null,null,null,null,null,null,null,null,null,null,null,null,null,null,null,null,null,null,null,null,null,null,null,null,null,0,0,0,0,0,0,0,0,0,0,0]
[null,13,"Carlos R Garcia","General Foreman","Vendor No 3",50937,"81N95118","2018-10-19","2018-10-20",{"$f":"IF(AND(H31>='A - Contractor Summary'!$C$36,I31<='A - Contractor Summary'!$C$42),\"Yes\",\"No\")","v":"No"},{"$f":"VLOOKUP($D31,'C.1 - Rate Sheets'!$B$15:$F$25,2,FALSE)","v":45.03},{"$f":"VLOOKUP($D31,'C.1 - Rate Sheets'!$B$15:$F$25,3,FALSE)","v":61.99},{"$f":"VLOOKUP($D31,'C.1 - Rate Sheets'!$B$15:$F$25,4,FALSE)","v":0},{"$f":"VLOOKUP($D31,'C.1 - Rate Sheets'!$B$15:$F$25,5,FALSE)","v":0},null,10,null,null,null,null,16,null,null,null,null,null,null,null,null,null,null,null,null,null,null,null,null,null,null,null,null,null,null,null,null,null,null,null,null,null,null,null,null,null,null,null,null,null,null,null,null,null,null,null,null,null,null,null,null,null,null,null,null,null,null,null,null,null,null,null,null,null,null,null,0,26,0,0,26,0,1611.74,0,0,1611.74,1611.74,"Yes",0,0,0]
[null,null,null,null,null,null,null,null,null,null,null,null,null,null,null,null,null,null,null,null,null,null,null,null,null,null,null,null,null,null,null,null,null,null,null,null,null,null,null,null,null,null,null,null,null,null,null,null,null,null,null,null,null,null,null,null,null,null,null,null,null,null,null,null,null,null,null,null,null,null,null,null,null,null,null,null,null,null,null,null,null,null,null,null,0,0,0,0,0,0,0,0,0,0,0]
[null,14,"Dave Busch","General Foreman","Vendor No 3",50399,"81N95218","2018-10-19","2018-10-20",{"$f":"IF(AND(H33>='A - Contractor Summary'!$C$36,I33<='A - Contractor Summary'!$C$42),\"Yes\",\"No\")","v":"No"},{"$f":"VLOOKUP($D33,'C.1 - Rate Sheets'!$B$15:$F$25,2,FALSE)","v":45.03},{"$f":"VLOOKUP($D33,'C.1 - Rate Sheets'!$B$15:$F$25,3,FALSE)","v":61.99},{"$f":"VLOOKUP($D33,'C.1 - Rate Sheets'!$B$15:$F$25,4,FALSE)","v":0},{"$f":"VLOOKUP($D33,'C.1 - Rate Sheets'!$B$15:$F$25,5,FALSE)","v":0},4,8,null,null,null,8,8,null,null,null,null,null,null,null,null,null,null,null,null,null,null,null,null,null,null,null,null,null,null,null,null,null,null,null,null,null,null,null,null,null,null,null,null,null,null,null,null,null,null,null,null,null,null,null,null,null,null,null,null,null,null,null,null,null,null,null,null,null,null,null,12,16,0,0,28,540.36,991.84,0,0,1532.2,1532.2,"Yes",0,0,0]
[null,null,null,null,null,null,null,null,null,null,null,null,null,null,null,null,null,null,null,null,null,null,null,null,null,null,null,null,null,null,null,null,null,null,null,null,null,null,null,null,null,null,null,null,null,null,null,null,null,null,null,null,null,null,null,null,null,null,null,null,null,null,null,null,null,null,null,null,null,null,null,null,null,null,null,null,null,null,null,null,null,null,null,null,0,0,0,0,0,0,0,0,0,0,0]
[null,16,"Daniel Stokes","Foreperson","Vendor No 3",50900,"81N95318","2018-10-19","2018-10-20",{"$f":"IF(AND(H35>='A - Contractor Summary'!$C$36,I35<='A - Contractor Summary'!$C$42),\"Yes\",\"No\")","v":"No"},{"$f":"VLOOKUP($D35,'C.1 - Rate Sheets'!$B$15:$F$25,2,FALSE)","v":39.43},{"$f":"VLOOKUP($D35,'C.1 - Rate Sheets'!$B$15:$F$25,3,FALSE)","v":53.62},{"$f":"VLOOKUP($D35,'C.1 - Rate Sheets'!$B$15:$F$25,4,FALSE)","v":0},{"$f":"VLOOKUP($D35,'C.1 - Rate Sheets'!$B$15:$F$25,5,FALSE)","v":0},4,8,null,null,null,8,8,null,null,null,null,null,null,null,null,null,null,null,null,null,null,null,null,null,null,null,null,null,null,null,null,null,null,null,null,null,null,null,null,null,null,null,null,null,null,null,null,null,null,null,null,null,null,null,null,null,null,null,null,null,null,null,null,null,null,null,null,null,null,null,12,16,0,0,28,473.15999999999997,857.92,0,0,1331.08,1331.08,"Yes",0,0,0]
[null,18,"Jeremy Fox ","Trimmer A","Vendor No 3",50900,"81N95318","2018-10-19","2018-10-20",{"$f":"IF(AND(H36>='A - Contractor Summary'!$C$36,I36<='A - Contractor Summary'!$C$42),\"Yes\",\"No\")","v":"No"},{"$f":"VLOOKUP($D36,'C.1 - Rate Sheets'!$B$15:$F$25,2,FALSE)","v":29.1},{"$f":"VLOOKUP($D36,'C.1 - Rate Sheets'!$B$15:$F$25,3,FALSE)","v":39.68},{"$f":"VLOOKUP($D36,'C.1 - Rate Sheets'!$B$15:$F$25,4,FALSE)","v":0},{"$f":"VLOOKUP($D36,'C.1 - Rate Sheets'!$B$15:$F$25,5,FALSE)","v":0},4,8,null,null,null,8,8,null,null,null,null,null,null,null,null,null,null,null,null,null,null,null,null,null,null,null,null,null,null,null,null,null,null,null,null,null,null,null,null,null,null,null,null,null,null,null,null,null,null,null,null,null,null,null,null,null,null,null,null,null,null,null,null,null,null,null,null,null,null,null,12,16,0,0,28,349.20000000000005,634.88,0,0,984.08,984.08,"Yes",0,0,0]
[null,20,"John McGowen","Foreperson","Vendor No 3",50900,"81N95318","2018-10-19","2018-10-20",{"$f":"IF(AND(H37>='A - Contractor Summary'!$C$36,I37<='A - Contractor Summary'!$C$42),\"Yes\",\"No\")","v":"No"},{"$f":"VLOOKUP($D37,'C.1 - Rate Sheets'!$B$15:$F$25,2,FALSE)","v":39.43},{"$f":"VLOOKUP($D37,'C.1 - Rate Sheets'!$B$15:$F$25,3,FALSE)","v":53.62},{"$f":"VLOOKUP($D37,'C.1 - Rate Sheets'!$B$15:$F$25,4,FALSE)","v":0},{"$f":"VLOOKUP($D37,'C.1 - Rate Sheets'!$B$15:$F$25,5,FALSE)","v":0},4,8,null,null,null,8,8,null,null,null,null,null,null,null,null,null,null,null,null,null,null,null,null,null,null,null,null,null,null,null,null,null,null,null,null,null,null,null,null,null,null,null,null,null,null,null,null,null,null,null,null,null,null,null,null,null,null,null,null,null,null,null,null,null,null,null,null,null,null,null,12,16,0,0,28,473.15999999999997,857.92,0,0,1331.08,1331.08,"Yes",0,0,0]
[null,22,"Edward Thoman","Trimmer A","Vendor No 3",50900,"81N95318","2018-10-19","2018-10-20",{"$f":"IF(AND(H38>='A - Contractor Summary'!$C$36,I38<='A - Contractor Summary'!$C$42),\"Yes\",\"No\")","v":"No"},{"$f":"VLOOKUP($D38,'C.1 - Rate Sheets'!$B$15:$F$25,2,FALSE)","v":29.1},{"$f":"VLOOKUP($D38,'C.1 - Rate Sheets'!$B$15:$F$25,3,FALSE)","v":39.68},{"$f":"VLOOKUP($D38,'C.1 - Rate Sheets'!$B$15:$F$25,4,FALSE)","v":0},{"$f":"VLOOKUP($D38,'C.1 - Rate Sheets'!$B$15:$F$25,5,FALSE)","v":0},4,8,null,null,null,8,8,null,null,null,null,null,null,null,null,null,null,null,null,null,null,null,null,null,null,null,null,null,null,null,null,null,null,null,null,null,null,null,null,null,null,null,null,null,null,null,null,null,null,null,null,null,null,null,null,null,null,null,null,null,null,null,null,null,null,null,null,null,null,null,12,16,0,0,28,349.20000000000005,634.88,0,0,984.08,984.08,"Yes",0,0,0]
[null,24,"William Tucker","Foreperson","Vendor No 3",50900,"81N95318","2018-10-19","2018-10-20",{"$f":"IF(AND(H39>='A - Contractor Summary'!$C$36,I39<='A - Contractor Summary'!$C$42),\"Yes\",\"No\")","v":"No"},{"$f":"VLOOKUP($D39,'C.1 - Rate Sheets'!$B$15:$F$25,2,FALSE)","v":39.43},{"$f":"VLOOKUP($D39,'C.1 - Rate Sheets'!$B$15:$F$25,3,FALSE)","v":53.62},{"$f":"VLOOKUP($D39,'C.1 - Rate Sheets'!$B$15:$F$25,4,FALSE)","v":0},{"$f":"VLOOKUP($D39,'C.1 - Rate Sheets'!$B$15:$F$25,5,FALSE)","v":0},4,8,null,null,null,8,8,null,null,null,null,null,null,null,null,null,null,null,null,null,null,null,null,null,null,null,null,null,null,null,null,null,null,null,null,null,null,null,null,null,null,null,null,null,null,null,null,null,null,null,null,null,null,null,null,null,null,null,null,null,null,null,null,null,null,null,null,null,null,null,12,16,0,0,28,473.15999999999997,857.92,0,0,1331.08,1331.08,"Yes",0,0,0]
[null,26,"Richie Busch Sr","Trimmer A","Vendor No 3",50900,"81N95318","2018-10-19","2018-10-20",{"$f":"IF(AND(H40>='A - Contractor Summary'!$C$36,I40<='A - Contractor Summary'!$C$42),\"Yes\",\"No\")","v":"No"},{"$f":"VLOOKUP($D40,'C.1 - Rate Sheets'!$B$15:$F$25,2,FALSE)","v":29.1},{"$f":"VLOOKUP($D40,'C.1 - Rate Sheets'!$B$15:$F$25,3,FALSE)","v":39.68},{"$f":"VLOOKUP($D40,'C.1 - Rate Sheets'!$B$15:$F$25,4,FALSE)","v":0},{"$f":"VLOOKUP($D40,'C.1 - Rate Sheets'!$B$15:$F$25,5,FALSE)","v":0},4,8,null,null,null,8,8,null,null,null,null,null,null,null,null,null,null,null,null,null,null,null,null,null,null,null,null,null,null,null,null,null,null,null,null,null,null,null,null,null,null,null,null,null,null,null,null,null,null,null,null,null,null,null,null,null,null,null,null,null,null,null,null,null,null,null,null,null,null,null,12,16,0,0,28,349.20000000000005,634.88,0,0,984.08,984.08,"Yes",0,0,0]
[null,28,"Garth Hightower","Foreperson","Vendor No 3",50900,"81N95318","2018-10-19","2018-10-20",{"$f":"IF(AND(H41>='A - Contractor Summary'!$C$36,I41<='A - Contractor Summary'!$C$42),\"Yes\",\"No\")","v":"No"},{"$f":"VLOOKUP($D41,'C.1 - Rate Sheets'!$B$15:$F$25,2,FALSE)","v":39.43},{"$f":"VLOOKUP($D41,'C.1 - Rate Sheets'!$B$15:$F$25,3,FALSE)","v":53.62},{"$f":"VLOOKUP($D41,'C.1 - Rate Sheets'!$B$15:$F$25,4,FALSE)","v":0},{"$f":"VLOOKUP($D41,'C.1 - Rate Sheets'!$B$15:$F$25,5,FALSE)","v":0},4,8,null,null,null,null,16,null,null,null,null,null,null,null,null,null,null,null,null,null,null,null,null,null,null,null,null,null,null,null,null,null,null,null,null,null,null,null,null,null,null,null,null,null,null,null,null,null,null,null,null,null,null,null,null,null,null,null,null,null,null,null,null,null,null,null,null,null,null,null,4,24,0,0,28,157.72,1286.8799999999999,0,0,1444.6,1444.6,"Yes",0,0,0]
[null,30,"Donny Roberts","Trimmer A","Vendor No 3",50900,"81N95318","2018-10-19","2018-10-20",{"$f":"IF(AND(H42>='A - Contractor Summary'!$C$36,I42<='A - Contractor Summary'!$C$42),\"Yes\",\"No\")","v":"No"},{"$f":"VLOOKUP($D42,'C.1 - Rate Sheets'!$B$15:$F$25,2,FALSE)","v":29.1},{"$f":"VLOOKUP($D42,'C.1 - Rate Sheets'!$B$15:$F$25,3,FALSE)","v":39.68},{"$f":"VLOOKUP($D42,'C.1 - Rate Sheets'!$B$15:$F$25,4,FALSE)","v":0},{"$f":"VLOOKUP($D42,'C.1 - Rate Sheets'!$B$15:$F$25,5,FALSE)","v":0},4,8,null,null,null,null,16,null,null,null,null,null,null,null,null,null,null,null,null,null,null,null,null,null,null,null,null,null,null,null,null,null,null,null,null,null,null,null,null,null,null,null,null,null,null,null,null,null,null,null,null,null,null,null,null,null,null,null,null,null,null,null,null,null,null,null,null,null,null,null,4,24,0,0,28,116.4,952.31999999999994,0,0,1068.72,1068.72,"Yes",0,0,0]
[null,32,"Jose Roman","Foreperson","Vendor No 3",50900,"81N95318","2018-10-19","2018-10-20",{"$f":"IF(AND(H43>='A - Contractor Summary'!$C$36,I43<='A - Contractor Summary'!$C$42),\"Yes\",\"No\")","v":"No"},{"$f":"VLOOKUP($D43,'C.1 - Rate Sheets'!$B$15:$F$25,2,FALSE)","v":39.43},{"$f":"VLOOKUP($D43,'C.1 - Rate Sheets'!$B$15:$F$25,3,FALSE)","v":53.62},{"$f":"VLOOKUP($D43,'C.1 - Rate Sheets'!$B$15:$F$25,4,FALSE)","v":0},{"$f":"VLOOKUP($D43,'C.1 - Rate Sheets'!$B$15:$F$25,5,FALSE)","v":0},4,8,null,null,null,null,16,null,null,null,null,null,null,null,null,null,null,null,null,null,null,null,null,null,null,null,null,null,null,null,null,null,null,null,null,null,null,null,null,null,null,null,null,null,null,null,null,null,null,null,null,null,null,null,null,null,null,null,null,null,null,null,null,null,null,null,null,null,null,null,4,24,0,0,28,157.72,1286.8799999999999,0,0,1444.6,1444.6,"Yes",0,0,0]
[null,34,"Eric Johnson","Trimmer A","Vendor No 3",50900,"81N95318","2018-10-19","2018-10-20",{"$f":"IF(AND(H44>='A - Contractor Summary'!$C$36,I44<='A - Contractor Summary'!$C$42),\"Yes\",\"No\")","v":"No"},{"$f":"VLOOKUP($D44,'C.1 - Rate Sheets'!$B$15:$F$25,2,FALSE)","v":29.1},{"$f":"VLOOKUP($D44,'C.1 - Rate Sheets'!$B$15:$F$25,3,FALSE)","v":39.68},{"$f":"VLOOKUP($D44,'C.1 - Rate Sheets'!$B$15:$F$25,4,FALSE)","v":0},{"$f":"VLOOKUP($D44,'C.1 - Rate Sheets'!$B$15:$F$25,5,FALSE)","v":0},4,8,null,null,null,null,16,null,null,null,null,null,null,null,null,null,null,null,null,null,null,null,null,null,null,null,null,null,null,null,null,null,null,null,null,null,null,null,null,null,null,null,null,null,null,null,null,null,null,null,null,null,null,null,null,null,null,null,null,null,null,null,null,null,null,null,null,null,null,null,4,24,0,0,28,116.4,952.31999999999994,0,0,1068.72,1068.72,"Yes",0,0,0]
[null,36,"Chad Jacobs","Foreperson","Vendor No 3",50900,"81N95318","2018-10-19","2018-10-20",{"$f":"IF(AND(H45>='A - Contractor Summary'!$C$36,I45<='A - Contractor Summary'!$C$42),\"Yes\",\"No\")","v":"No"},{"$f":"VLOOKUP($D45,'C.1 - Rate Sheets'!$B$15:$F$25,2,FALSE)","v":39.43},{"$f":"VLOOKUP($D45,'C.1 - Rate Sheets'!$B$15:$F$25,3,FALSE)","v":53.62},{"$f":"VLOOKUP($D45,'C.1 - Rate Sheets'!$B$15:$F$25,4,FALSE)","v":0},{"$f":"VLOOKUP($D45,'C.1 - Rate Sheets'!$B$15:$F$25,5,FALSE)","v":0},4,8,null,null,null,null,16,null,null,null,null,null,null,null,null,null,null,null,null,null,null,null,null,null,null,null,null,null,null,null,null,null,null,null,null,null,null,null,null,null,null,null,null,null,null,null,null,null,null,null,null,null,null,null,null,null,null,null,null,null,null,null,null,null,null,null,null,null,null,null,4,24,0,0,28,157.72,1286.8799999999999,0,0,1444.6,1444.6,"Yes",0,0,0]
[null,null,null,null,null,null,null,null,null,null,null,null,null,null,null,null,null,null,null,null,null,null,null,null,null,null,null,null,null,null,null,null,null,null,null,null,null,null,null,null,null,null,null,null,null,null,null,null,null,null,null,null,null,null,null,null,null,null,null,null,null,null,null,null,null,null,null,null,null,null,null,null,null,null,null,null,null,null,null,null,null,null,null,null,0,0,0,0,0,0,0,0,0,0,0]
[null,38,"Joel Joseph","General Foreman","Vendor No 3",55392,"81P63318","2018-10-19","2018-10-20",{"$f":"IF(AND(H47>='A - Contractor Summary'!$C$36,I47<='A - Contractor Summary'!$C$42),\"Yes\",\"No\")","v":"No"},{"$f":"VLOOKUP($D47,'C.1 - Rate Sheets'!$B$15:$F$25,2,FALSE)","v":45.03},{"$f":"VLOOKUP($D47,'C.1 - Rate Sheets'!$B$15:$F$25,3,FALSE)","v":61.99},{"$f":"VLOOKUP($D47,'C.1 - Rate Sheets'!$B$15:$F$25,4,FALSE)","v":0},{"$f":"VLOOKUP($D47,'C.1 - Rate Sheets'!$B$15:$F$25,5,FALSE)","v":0},null,18,null,null,null,null,14,null,null,null,null,null,null,null,null,null,null,null,null,null,null,null,null,null,null,null,null,null,null,null,null,null,null,null,null,null,null,null,null,null,null,null,null,null,null,null,null,null,null,null,null,null,null,null,null,null,null,null,null,null,null,null,null,null,null,null,null,null,null,null,0,32,0,0,32,0,1983.68,0,0,1983.68,1983.68,"Yes",0,0,0]
[null,null,null,null,null,null,null,null,null,null,null,null,null,null,null,null,null,null,null,null,null,null,null,null,null,null,null,null,null,null,null,null,null,null,null,null,null,null,null,null,null,null,null,null,null,null,null,null,null,null,null,null,null,null,null,null,null,null,null,null,null,null,null,null,null,null,null,null,null,null,null,null,null,null,null,null,null,null,null,null,null,null,null,null,0,0,0,0,0,0,0,0,0,0,0]
[null,39,"Antoine Jacquesson","Foreperson","Vendor No 3",55921,"81P63418","2018-10-19","2018-10-20",{"$f":"IF(AND(H49>='A - Contractor Summary'!$C$36,I49<='A - Contractor Summary'!$C$42),\"Yes\",\"No\")","v":"No"},{"$f":"VLOOKUP($D49,'C.1 - Rate Sheets'!$B$15:$F$25,2,FALSE)","v":39.43},{"$f":"VLOOKUP($D49,'C.1 - Rate Sheets'!$B$15:$F$25,3,FALSE)","v":53.62},{"$f":"VLOOKUP($D49,'C.1 - Rate Sheets'!$B$15:$F$25,4,FALSE)","v":0},{"$f":"VLOOKUP($D49,'C.1 - Rate Sheets'!$B$15:$F$25,5,FALSE)","v":0},null,18,null,null,null,null,14,null,null,null,null,null,null,null,null,null,null,null,null,null,null,null,null,null,null,null,null,null,null,null,null,null,null,null,null,null,null,null,null,null,null,null,null,null,null,null,null,null,null,null,null,null,null,null,null,null,null,null,null,null,null,null,null,null,null,null,null,null,null,null,0,32,0,0,32,0,1715.84,0,0,1715.84,1715.84,"Yes",0,0,0]
[null,40,"Edgar Fenelon","Trimmer A","Vendor No 3",55921,"81P63418","2018-10-19","2018-10-20",{"$f":"IF(AND(H50>='A - Contractor Summary'!$C$36,I50<='A - Contractor Summary'!$C$42),\"Yes\",\"No\")","v":"No"},{"$f":"VLOOKUP($D50,'C.1 - Rate Sheets'!$B$15:$F$25,2,FALSE)","v":29.1},{"$f":"VLOOKUP($D50,'C.1 - Rate Sheets'!$B$15:$F$25,3,FALSE)","v":39.68},{"$f":"VLOOKUP($D50,'C.1 - Rate Sheets'!$B$15:$F$25,4,FALSE)","v":0},{"$f":"VLOOKUP($D50,'C.1 - Rate Sheets'!$B$15:$F$25,5,FALSE)","v":0},null,18,null,null,null,null,14,null,null,null,null,null,null,null,null,null,null,null,null,null,null,null,null,null,null,null,null,null,null,null,null,null,null,null,null,null,null,null,null,null,null,null,null,null,null,null,null,null,null,null,null,null,null,null,null,null,null,null,null,null,null,null,null,null,null,null,null,null,null,null,0,32,0,0,32,0,1269.76,0,0,1269.76,1269.76,"Yes",0,0,0]
[null,41,"Peter Joseph","Foreperson","Vendor No 3",55921,"81P63418","2018-10-19","2018-10-20",{"$f":"IF(AND(H51>='A - Contractor Summary'!$C$36,I51<='A - Contractor Summary'!$C$42),\"Yes\",\"No\")","v":"No"},{"$f":"VLOOKUP($D51,'C.1 - Rate Sheets'!$B$15:$F$25,2,FALSE)","v":39.43},{"$f":"VLOOKUP($D51,'C.1 - Rate Sheets'!$B$15:$F$25,3,FALSE)","v":53.62},{"$f":"VLOOKUP($D51,'C.1 - Rate Sheets'!$B$15:$F$25,4,FALSE)","v":0},{"$f":"VLOOKUP($D51,'C.1 - Rate Sheets'!$B$15:$F$25,5,FALSE)","v":0},null,18,null,null,null,null,14,null,null,null,null,null,null,null,null,null,null,null,null,null,null,null,null,null,null,null,null,null,null,null,null,null,null,null,null,null,null,null,null,null,null,null,null,null,null,null,null,null,null,null,null,null,null,null,null,null,null,null,null,null,null,null,null,null,null,null,null,null,null,null,0,32,0,0,32,0,1715.84,0,0,1715.84,1715.84,"No",0,0,0]
[null,42,"Gilles Frederick","Trimmer A","Vendor No 3",55921,"81P63418","2018-10-19","2018-10-20",{"$f":"IF(AND(H52>='A - Contractor Summary'!$C$36,I52<='A - Contractor Summary'!$C$42),\"Yes\",\"No\")","v":"No"},{"$f":"VLOOKUP($D52,'C.1 - Rate Sheets'!$B$15:$F$25,2,FALSE)","v":29.1},{"$f":"VLOOKUP($D52,'C.1 - Rate Sheets'!$B$15:$F$25,3,FALSE)","v":39.68},{"$f":"VLOOKUP($D52,'C.1 - Rate Sheets'!$B$15:$F$25,4,FALSE)","v":0},{"$f":"VLOOKUP($D52,'C.1 - Rate Sheets'!$B$15:$F$25,5,FALSE)","v":0},null,18,null,null,null,null,14,null,null,null,null,null,null,null,null,null,null,null,null,null,null,null,null,null,null,null,null,null,null,null,null,null,null,null,null,null,null,null,null,null,null,null,null,null,null,null,null,null,null,null,null,null,null,null,null,null,null,null,null,null,null,null,null,null,null,null,null,null,null,null,0,32,0,0,32,0,1269.76,0,0,1269.76,1269.76,"Yes",0,0,0]
[null,43,"Ismith Saint Clous","Foreperson","Vendor No 3",55921,"81P63418","2018-10-19","2018-10-20",{"$f":"IF(AND(H53>='A - Contractor Summary'!$C$36,I53<='A - Contractor Summary'!$C$42),\"Yes\",\"No\")","v":"No"},{"$f":"VLOOKUP($D53,'C.1 - Rate Sheets'!$B$15:$F$25,2,FALSE)","v":39.43},{"$f":"VLOOKUP($D53,'C.1 - Rate Sheets'!$B$15:$F$25,3,FALSE)","v":53.62},{"$f":"VLOOKUP($D53,'C.1 - Rate Sheets'!$B$15:$F$25,4,FALSE)","v":0},{"$f":"VLOOKUP($D53,'C.1 - Rate Sheets'!$B$15:$F$25,5,FALSE)","v":0},null,18,null,null,null,null,14,null,null,null,null,null,null,null,null,null,null,null,null,null,null,null,null,null,null,null,null,null,null,null,null,null,null,null,null,null,null,null,null,null,null,null,null,null,null,null,null,null,null,null,null,null,null,null,null,null,null,null,null,null,null,null,null,null,null,null,null,null,null,null,0,32,0,0,32,0,1715.84,0,0,1715.84,1715.84,"Yes",0,0,0]
[null,44,"Luco Morency","Trimmer A","Vendor No 3",55921,"81P63418","2018-10-19","2018-10-20",{"$f":"IF(AND(H54>='A - Contractor Summary'!$C$36,I54<='A - Contractor Summary'!$C$42),\"Yes\",\"No\")","v":"No"},{"$f":"VLOOKUP($D54,'C.1 - Rate Sheets'!$B$15:$F$25,2,FALSE)","v":29.1},{"$f":"VLOOKUP($D54,'C.1 - Rate Sheets'!$B$15:$F$25,3,FALSE)","v":39.68},{"$f":"VLOOKUP($D54,'C.1 - Rate Sheets'!$B$15:$F$25,4,FALSE)","v":0},{"$f":"VLOOKUP($D54,'C.1 - Rate Sheets'!$B$15:$F$25,5,FALSE)","v":0},null,18,null,null,null,null,14,null,null,null,null,null,null,null,null,null,null,null,null,null,null,null,null,null,null,null,null,null,null,null,null,null,null,null,null,null,null,null,null,null,null,null,null,null,null,null,null,null,null,null,null,null,null,null,null,null,null,null,null,null,null,null,null,null,null,null,null,null,null,null,0,32,0,0,32,0,1269.76,0,0,1269.76,1269.76,"Yes",0,0,0]
[null,45,"Paulin Toussaint","Foreperson","Vendor No 3",55921,"81P63418","2018-10-19","2018-10-20",{"$f":"IF(AND(H55>='A - Contractor Summary'!$C$36,I55<='A - Contractor Summary'!$C$42),\"Yes\",\"No\")","v":"No"},{"$f":"VLOOKUP($D55,'C.1 - Rate Sheets'!$B$15:$F$25,2,FALSE)","v":39.43},{"$f":"VLOOKUP($D55,'C.1 - Rate Sheets'!$B$15:$F$25,3,FALSE)","v":53.62},{"$f":"VLOOKUP($D55,'C.1 - Rate Sheets'!$B$15:$F$25,4,FALSE)","v":0},{"$f":"VLOOKUP($D55,'C.1 - Rate Sheets'!$B$15:$F$25,5,FALSE)","v":0},null,18,null,null,null,null,14,null,null,null,null,null,null,null,null,null,null,null,null,null,null,null,null,null,null,null,null,null,null,null,null,null,null,null,null,null,null,null,null,null,null,null,null,null,null,null,null,null,null,null,null,null,null,null,null,null,null,null,null,null,null,null,null,null,null,null,null,null,null,null,0,32,0,0,32,0,1715.84,0,0,1715.84,1715.84,"Yes",0,0,0]
[null,46,"Claude Laguerre","Trimmer A","Vendor No 3",55921,"81P63418","2018-10-19","2018-10-20",{"$f":"IF(AND(H56>='A - Contractor Summary'!$C$36,I56<='A - Contractor Summary'!$C$42),\"Yes\",\"No\")","v":"No"},{"$f":"VLOOKUP($D56,'C.1 - Rate Sheets'!$B$15:$F$25,2,FALSE)","v":29.1},{"$f":"VLOOKUP($D56,'C.1 - Rate Sheets'!$B$15:$F$25,3,FALSE)","v":39.68},{"$f":"VLOOKUP($D56,'C.1 - Rate Sheets'!$B$15:$F$25,4,FALSE)","v":0},{"$f":"VLOOKUP($D56,'C.1 - Rate Sheets'!$B$15:$F$25,5,FALSE)","v":0},null,18,null,null,null,null,14,null,null,null,null,null,null,null,null,null,null,null,null,null,null,null,null,null,null,null,null,null,null,null,null,null,null,null,null,null,null,null,null,null,null,null,null,null,null,null,null,null,null,null,null,null,null,null,null,null,null,null,null,null,null,null,null,null,null,null,null,null,null,null,0,32,0,0,32,0,1269.76,0,0,1269.76,1269.76,"Yes",0,0,0]
[null,47,"Francois Andre","Foreperson","Vendor No 3",55921,"81P63418","2018-10-19","2018-10-20",{"$f":"IF(AND(H57>='A - Contractor Summary'!$C$36,I57<='A - Contractor Summary'!$C$42),\"Yes\",\"No\")","v":"No"},{"$f":"VLOOKUP($D57,'C.1 - Rate Sheets'!$B$15:$F$25,2,FALSE)","v":39.43},{"$f":"VLOOKUP($D57,'C.1 - Rate Sheets'!$B$15:$F$25,3,FALSE)","v":53.62},{"$f":"VLOOKUP($D57,'C.1 - Rate Sheets'!$B$15:$F$25,4,FALSE)","v":0},{"$f":"VLOOKUP($D57,'C.1 - Rate Sheets'!$B$15:$F$25,5,FALSE)","v":0},null,18,null,null,null,null,14,null,null,null,null,null,null,null,null,null,null,null,null,null,null,null,null,null,null,null,null,null,null,null,null,null,null,null,null,null,null,null,null,null,null,null,null,null,null,null,null,null,null,null,null,null,null,null,null,null,null,null,null,null,null,null,null,null,null,null,null,null,null,null,0,32,0,0,32,0,1715.84,0,0,1715.84,1715.84,"Yes",0,0,0]
[null,48,"Paul Donald","Trimmer A","Vendor No 3",55921,"81P63418","2018-10-19","2018-10-20",{"$f":"IF(AND(H58>='A - Contractor Summary'!$C$36,I58<='A - Contractor Summary'!$C$42),\"Yes\",\"No\")","v":"No"},{"$f":"VLOOKUP($D58,'C.1 - Rate Sheets'!$B$15:$F$25,2,FALSE)","v":29.1},{"$f":"VLOOKUP($D58,'C.1 - Rate Sheets'!$B$15:$F$25,3,FALSE)","v":39.68},{"$f":"VLOOKUP($D58,'C.1 - Rate Sheets'!$B$15:$F$25,4,FALSE)","v":0},{"$f":"VLOOKUP($D58,'C.1 - Rate Sheets'!$B$15:$F$25,5,FALSE)","v":0},null,18,null,null,null,null,14,null,null,null,null,null,null,null,null,null,null,null,null,null,null,null,null,null,null,null,null,null,null,null,null,null,null,null,null,null,null,null,null,null,null,null,null,null,null,null,null,null,null,null,null,null,null,null,null,null,null,null,null,null,null,null,null,null,null,null,null,null,null,null,0,32,0,0,32,0,1269.76,0,0,1269.76,1269.76,"Yes",0,0,0]
[null,49,"Elie Nerestan","Foreperson","Vendor No 3",55921,"81P63418","2018-10-19","2018-10-20",{"$f":"IF(AND(H59>='A - Contractor Summary'!$C$36,I59<='A - Contractor Summary'!$C$42),\"Yes\",\"No\")","v":"No"},{"$f":"VLOOKUP($D59,'C.1 - Rate Sheets'!$B$15:$F$25,2,FALSE)","v":39.43},{"$f":"VLOOKUP($D59,'C.1 - Rate Sheets'!$B$15:$F$25,3,FALSE)","v":53.62},{"$f":"VLOOKUP($D59,'C.1 - Rate Sheets'!$B$15:$F$25,4,FALSE)","v":0},{"$f":"VLOOKUP($D59,'C.1 - Rate Sheets'!$B$15:$F$25,5,FALSE)","v":0},null,18,null,null,null,null,14,null,null,null,null,null,null,null,null,null,null,null,null,null,null,null,null,null,null,null,null,null,null,null,null,null,null,null,null,null,null,null,null,null,null,null,null,null,null,null,null,null,null,null,null,null,null,null,null,null,null,null,null,null,null,null,null,null,null,null,null,null,null,null,0,32,0,0,32,0,1715.84,0,0,1715.84,1715.84,"Yes",0,0,0]
[null,50,"Bruce Bien Aime","Trimmer A","Vendor No 3",55921,"81P63418","2018-10-19","2018-10-20",{"$f":"IF(AND(H60>='A - Contractor Summary'!$C$36,I60<='A - Contractor Summary'!$C$42),\"Yes\",\"No\")","v":"No"},{"$f":"VLOOKUP($D60,'C.1 - Rate Sheets'!$B$15:$F$25,2,FALSE)","v":29.1},{"$f":"VLOOKUP($D60,'C.1 - Rate Sheets'!$B$15:$F$25,3,FALSE)","v":39.68},{"$f":"VLOOKUP($D60,'C.1 - Rate Sheets'!$B$15:$F$25,4,FALSE)","v":0},{"$f":"VLOOKUP($D60,'C.1 - Rate Sheets'!$B$15:$F$25,5,FALSE)","v":0},null,18,null,null,null,null,14,null,null,null,null,null,null,null,null,null,null,null,null,null,null,null,null,null,null,null,null,null,null,null,null,null,null,null,null,null,null,null,null,null,null,null,null,null,null,null,null,null,null,null,null,null,null,null,null,null,null,null,null,null,null,null,null,null,null,null,null,null,null,null,0,32,0,0,32,0,1269.76,0,0,1269.76,1269.76,"Yes",0,0,0]
[null,51,"Reginal Coissy","Trimmer B","Vendor No 3",55921,"81P63418","2018-10-19","2018-10-20",{"$f":"IF(AND(H61>='A - Contractor Summary'!$C$36,I61<='A - Contractor Summary'!$C$42),\"Yes\",\"No\")","v":"No"},{"$f":"VLOOKUP($D61,'C.1 - Rate Sheets'!$B$15:$F$25,2,FALSE)","v":26.9},{"$f":"VLOOKUP($D61,'C.1 - Rate Sheets'!$B$15:$F$25,3,FALSE)","v":36.53},{"$f":"VLOOKUP($D61,'C.1 - Rate Sheets'!$B$15:$F$25,4,FALSE)","v":0},{"$f":"VLOOKUP($D61,'C.1 - Rate Sheets'!$B$15:$F$25,5,FALSE)","v":0},null,18,null,null,null,null,14,null,null,null,null,null,null,null,null,null,null,null,null,null,null,null,null,null,null,null,null,null,null,null,null,null,null,null,null,null,null,null,null,null,null,null,null,null,null,null,null,null,null,null,null,null,null,null,null,null,null,null,null,null,null,null,null,null,null,null,null,null,null,null,0,32,0,0,32,0,1168.96,0,0,1168.96,1168.96,"Yes",0,0,0]
[null,52,"Ruben Romero","Trimmer A","Vendor No 3",55921,"81P63418","2018-10-19","2018-10-20",{"$f":"IF(AND(H62>='A - Contractor Summary'!$C$36,I62<='A - Contractor Summary'!$C$42),\"Yes\",\"No\")","v":"No"},{"$f":"VLOOKUP($D62,'C.1 - Rate Sheets'!$B$15:$F$25,2,FALSE)","v":29.1},{"$f":"VLOOKUP($D62,'C.1 - Rate Sheets'!$B$15:$F$25,3,FALSE)","v":39.68},{"$f":"VLOOKUP($D62,'C.1 - Rate Sheets'!$B$15:$F$25,4,FALSE)","v":0},{"$f":"VLOOKUP($D62,'C.1 - Rate Sheets'!$B$15:$F$25,5,FALSE)","v":0},null,18,null,null,null,null,14,null,null,null,null,null,null,null,null,null,null,null,null,null,null,null,null,null,null,null,null,null,null,null,null,null,null,null,null,null,null,null,null,null,null,null,null,null,null,null,null,null,null,null,null,null,null,null,null,null,null,null,null,null,null,null,null,null,null,null,null,null,null,null,0,32,0,0,32,0,1269.76,0,0,1269.76,1269.76,"Yes",0,0,0]
[null,53,"Anderson Jerome","Foreperson","Vendor No 3",55921,"81P63418","2018-10-19","2018-10-20",{"$f":"IF(AND(H63>='A - Contractor Summary'!$C$36,I63<='A - Contractor Summary'!$C$42),\"Yes\",\"No\")","v":"No"},{"$f":"VLOOKUP($D63,'C.1 - Rate Sheets'!$B$15:$F$25,2,FALSE)","v":39.43},{"$f":"VLOOKUP($D63,'C.1 - Rate Sheets'!$B$15:$F$25,3,FALSE)","v":53.62},{"$f":"VLOOKUP($D63,'C.1 - Rate Sheets'!$B$15:$F$25,4,FALSE)","v":0},{"$f":"VLOOKUP($D63,'C.1 - Rate Sheets'!$B$15:$F$25,5,FALSE)","v":0},null,18,null,null,null,null,14,null,null,null,null,null,null,null,null,null,null,null,null,null,null,null,null,null,null,null,null,null,null,null,null,null,null,null,null,null,null,null,null,null,null,null,null,null,null,null,null,null,null,null,null,null,null,null,null,null,null,null,null,null,null,null,null,null,null,null,null,null,null,null,0,32,0,0,32,0,1715.84,0,0,1715.84,1715.84,"Yes",0,0,0]
[null,54,"Philome Croissy","Trimmer B","Vendor No 3",55921,"81P63418","2018-10-19","2018-10-20",{"$f":"IF(AND(H64>='A - Contractor Summary'!$C$36,I64<='A - Contractor Summary'!$C$42),\"Yes\",\"No\")","v":"No"},{"$f":"VLOOKUP($D64,'C.1 - Rate Sheets'!$B$15:$F$25,2,FALSE)","v":26.9},{"$f":"VLOOKUP($D64,'C.1 - Rate Sheets'!$B$15:$F$25,3,FALSE)","v":36.53},{"$f":"VLOOKUP($D64,'C.1 - Rate Sheets'!$B$15:$F$25,4,FALSE)","v":0},{"$f":"VLOOKUP($D64,'C.1 - Rate Sheets'!$B$15:$F$25,5,FALSE)","v":0},null,18,null,null,null,null,14,null,null,null,null,null,null,null,null,null,null,null,null,null,null,null,null,null,null,null,null,null,null,null,null,null,null,null,null,null,null,null,null,null,null,null,null,null,null,null,null,null,null,null,null,null,null,null,null,null,null,null,null,null,null,null,null,null,null,null,null,null,null,null,0,32,0,0,32,0,1168.96,0,0,1168.96,1168.96,"Yes",0,0,0]
[null,55,"Claudain Duroque","Foreperson","Vendor No 3",55921,"81P63418","2018-10-19","2018-10-20",{"$f":"IF(AND(H65>='A - Contractor Summary'!$C$36,I65<='A - Contractor Summary'!$C$42),\"Yes\",\"No\")","v":"No"},{"$f":"VLOOKUP($D65,'C.1 - Rate Sheets'!$B$15:$F$25,2,FALSE)","v":39.43},{"$f":"VLOOKUP($D65,'C.1 - Rate Sheets'!$B$15:$F$25,3,FALSE)","v":53.62},{"$f":"VLOOKUP($D65,'C.1 - Rate Sheets'!$B$15:$F$25,4,FALSE)","v":0},{"$f":"VLOOKUP($D65,'C.1 - Rate Sheets'!$B$15:$F$25,5,FALSE)","v":0},null,18,null,null,null,null,14,null,null,null,null,null,null,null,null,null,null,null,null,null,null,null,null,null,null,null,null,null,null,null,null,null,null,null,null,null,null,null,null,null,null,null,null,null,null,null,null,null,null,null,null,null,null,null,null,null,null,null,null,null,null,null,null,null,null,null,null,null,null,null,0,32,0,0,32,0,1715.84,0,0,1715.84,1715.84,"Yes",0,0,0]
[null,56,"Lunis Isaac","Trimmer A","Vendor No 3",55921,"81P63418","2018-10-19","2018-10-20",{"$f":"IF(AND(H66>='A - Contractor Summary'!$C$36,I66<='A - Contractor Summary'!$C$42),\"Yes\",\"No\")","v":"No"},{"$f":"VLOOKUP($D66,'C.1 - Rate Sheets'!$B$15:$F$25,2,FALSE)","v":29.1},{"$f":"VLOOKUP($D66,'C.1 - Rate Sheets'!$B$15:$F$25,3,FALSE)","v":39.68},{"$f":"VLOOKUP($D66,'C.1 - Rate Sheets'!$B$15:$F$25,4,FALSE)","v":0},{"$f":"VLOOKUP($D66,'C.1 - Rate Sheets'!$B$15:$F$25,5,FALSE)","v":0},null,18,null,null,null,null,14,null,null,null,null,null,null,null,null,null,null,null,null,null,null,null,null,null,null,null,null,null,null,null,null,null,null,null,null,null,null,null,null,null,null,null,null,null,null,null,null,null,null,null,null,null,null,null,null,null,null,null,null,null,null,null,null,null,null,null,null,null,null,null,0,32,0,0,32,0,1269.76,0,0,1269.76,1269.76,"Yes",0,0,0]
[null,57,"Richard Louidor","Trimmer B","Vendor No 3",55921,"81P63418","2018-10-19","2018-10-20",{"$f":"IF(AND(H67>='A - Contractor Summary'!$C$36,I67<='A - Contractor Summary'!$C$42),\"Yes\",\"No\")","v":"No"},{"$f":"VLOOKUP($D67,'C.1 - Rate Sheets'!$B$15:$F$25,2,FALSE)","v":26.9},{"$f":"VLOOKUP($D67,'C.1 - Rate Sheets'!$B$15:$F$25,3,FALSE)","v":36.53},{"$f":"VLOOKUP($D67,'C.1 - Rate Sheets'!$B$15:$F$25,4,FALSE)","v":0},{"$f":"VLOOKUP($D67,'C.1 - Rate Sheets'!$B$15:$F$25,5,FALSE)","v":0},null,18,null,null,null,null,14,null,null,null,null,null,null,null,null,null,null,null,null,null,null,null,null,null,null,null,null,null,null,null,null,null,null,null,null,null,null,null,null,null,null,null,null,null,null,null,null,null,null,null,null,null,null,null,null,null,null,null,null,null,null,null,null,null,null,null,null,null,null,null,0,32,0,0,32,0,1168.96,0,0,1168.96,1168.96,"Yes",0,0,0]
[null,58,"Max Michaud","Foreperson","Vendor No 3",55921,"81P63418","2018-10-19","2018-10-20",{"$f":"IF(AND(H68>='A - Contractor Summary'!$C$36,I68<='A - Contractor Summary'!$C$42),\"Yes\",\"No\")","v":"No"},{"$f":"VLOOKUP($D68,'C.1 - Rate Sheets'!$B$15:$F$25,2,FALSE)","v":39.43},{"$f":"VLOOKUP($D68,'C.1 - Rate Sheets'!$B$15:$F$25,3,FALSE)","v":53.62},{"$f":"VLOOKUP($D68,'C.1 - Rate Sheets'!$B$15:$F$25,4,FALSE)","v":0},{"$f":"VLOOKUP($D68,'C.1 - Rate Sheets'!$B$15:$F$25,5,FALSE)","v":0},null,18,null,null,null,null,14,null,null,null,null,null,null,null,null,null,null,null,null,null,null,null,null,null,null,null,null,null,null,null,null,null,null,null,null,null,null,null,null,null,null,null,null,null,null,null,null,null,null,null,null,null,null,null,null,null,null,null,null,null,null,null,null,null,null,null,null,null,null,null,0,32,0,0,32,0,1715.84,0,0,1715.84,1715.84,"Yes",0,0,0]
[null,59,"Acmande Michel","Trimmer A","Vendor No 3",55921,"81P63418","2018-10-19","2018-10-20",{"$f":"IF(AND(H69>='A - Contractor Summary'!$C$36,I69<='A - Contractor Summary'!$C$42),\"Yes\",\"No\")","v":"No"},{"$f":"VLOOKUP($D69,'C.1 - Rate Sheets'!$B$15:$F$25,2,FALSE)","v":29.1},{"$f":"VLOOKUP($D69,'C.1 - Rate Sheets'!$B$15:$F$25,3,FALSE)","v":39.68},{"$f":"VLOOKUP($D69,'C.1 - Rate Sheets'!$B$15:$F$25,4,FALSE)","v":0},{"$f":"VLOOKUP($D69,'C.1 - Rate Sheets'!$B$15:$F$25,5,FALSE)","v":0},null,18,null,null,null,null,14,null,null,null,null,null,null,null,null,null,null,null,null,null,null,null,null,null,null,null,null,null,null,null,null,null,null,null,null,null,null,null,null,null,null,null,null,null,null,null,null,null,null,null,null,null,null,null,null,null,null,null,null,null,null,null,null,null,null,null,null,null,null,null,0,32,0,0,32,0,1269.76,0,0,1269.76,1269.76,"Yes",0,0,0]
[null,60,"Jasmine Martin","Trimmer B","Vendor No 3",55921,"81P63418","2018-10-19","2018-10-20",{"$f":"IF(AND(H70>='A - Contractor Summary'!$C$36,I70<='A - Contractor Summary'!$C$42),\"Yes\",\"No\")","v":"No"},{"$f":"VLOOKUP($D70,'C.1 - Rate Sheets'!$B$15:$F$25,2,FALSE)","v":26.9},{"$f":"VLOOKUP($D70,'C.1 - Rate Sheets'!$B$15:$F$25,3,FALSE)","v":36.53},{"$f":"VLOOKUP($D70,'C.1 - Rate Sheets'!$B$15:$F$25,4,FALSE)","v":0},{"$f":"VLOOKUP($D70,'C.1 - Rate Sheets'!$B$15:$F$25,5,FALSE)","v":0},null,18,null,null,null,null,14,null,null,null,null,null,null,null,null,null,null,null,null,null,null,null,null,null,null,null,null,null,null,null,null,null,null,null,null,null,null,null,null,null,null,null,null,null,null,null,null,null,null,null,null,null,null,null,null,null,null,null,null,null,null,null,null,null,null,null,null,null,null,null,0,32,0,0,32,0,1168.96,0,0,1168.96,1168.96,"Yes",0,0,0]
[null,null,null,null,null,null,null,null,null,null,null,null,null,null,null,null,null,null,null,null,null,null,null,null,null,null,null,null,null,null,null,null,null,null,null,null,null,null,null,null,null,null,null,null,null,null,null,null,null,null,null,null,null,null,null,null,null,null,null,null,null,null,null,null,null,null,null,null,null,null,null,null,null,null,null,null,null,null,null,null,null,null,null,null,0,0,0,0,0,0,0,0,0,0,0]
[null,61,"Daniel Stokes","Foreperson","Vendor No 3",50900,"82G04418","2018-10-21","2018-10-27",{"$f":"IF(AND(H72>='A - Contractor Summary'!$C$36,I72<='A - Contractor Summary'!$C$42),\"Yes\",\"No\")","v":"No"},{"$f":"VLOOKUP($D72,'C.1 - Rate Sheets'!$B$15:$F$25,2,FALSE)","v":39.43},{"$f":"VLOOKUP($D72,'C.1 - Rate Sheets'!$B$15:$F$25,3,FALSE)","v":53.62},{"$f":"VLOOKUP($D72,'C.1 - Rate Sheets'!$B$15:$F$25,4,FALSE)","v":0},{"$f":"VLOOKUP($D72,'C.1 - Rate Sheets'!$B$15:$F$25,5,FALSE)","v":0},null,null,null,null,null,null,null,null,null,null,null,16,null,null,null,8,8,null,null,null,8,8,null,null,null,8,8,null,null,null,8,8,null,null,null,8,8,null,null,null,null,16,null,null,null,null,null,null,null,null,null,null,null,null,null,null,null,null,null,null,null,null,null,null,null,null,null,null,null,null,40,72,0,0,112,1577.2,3860.64,0,0,5437.84,5437.84,"Yes",0,0,0]
[null,63,"Jeremy Fox ","Trimmer A","Vendor No 3",50900,"82G04418","2018-10-21","2018-10-27",{"$f":"IF(AND(H73>='A - Contractor Summary'!$C$36,I73<='A - Contractor Summary'!$C$42),\"Yes\",\"No\")","v":"No"},{"$f":"VLOOKUP($D73,'C.1 - Rate Sheets'!$B$15:$F$25,2,FALSE)","v":29.1},{"$f":"VLOOKUP($D73,'C.1 - Rate Sheets'!$B$15:$F$25,3,FALSE)","v":39.68},{"$f":"VLOOKUP($D73,'C.1 - Rate Sheets'!$B$15:$F$25,4,FALSE)","v":0},{"$f":"VLOOKUP($D73,'C.1 - Rate Sheets'!$B$15:$F$25,5,FALSE)","v":0},null,null,null,null,null,null,null,null,null,null,null,16,null,null,null,8,8,null,null,null,8,8,null,null,null,8,8,null,null,null,8,8,null,null,null,8,8,null,null,null,null,16,null,null,null,null,null,null,null,null,null,null,null,null,null,null,null,null,null,null,null,null,null,null,null,null,null,null,null,null,40,72,0,0,112,1164,2856.96,0,0,4020.96,4020.96,"Yes",0,0,0]
[null,65,"John McGowen","Foreperson","Vendor No 3",50900,"82G04418","2018-10-21","2018-10-21",{"$f":"IF(AND(H74>='A - Contractor Summary'!$C$36,I74<='A - Contractor Summary'!$C$42),\"Yes\",\"No\")","v":"No"},{"$f":"VLOOKUP($D74,'C.1 - Rate Sheets'!$B$15:$F$25,2,FALSE)","v":39.43},{"$f":"VLOOKUP($D74,'C.1 - Rate Sheets'!$B$15:$F$25,3,FALSE)","v":53.62},{"$f":"VLOOKUP($D74,'C.1 - Rate Sheets'!$B$15:$F$25,4,FALSE)","v":0},{"$f":"VLOOKUP($D74,'C.1 - Rate Sheets'!$B$15:$F$25,5,FALSE)","v":0},null,null,null,null,null,null,null,null,null,null,null,5,null,null,null,null,null,null,null,null,null,null,null,null,null,null,null,null,null,null,null,null,null,null,null,null,null,null,null,null,null,null,null,null,null,null,null,null,null,null,null,null,null,null,null,null,null,null,null,null,null,null,null,null,null,null,null,null,null,null,0,5,0,0,5,0,268.09999999999997,0,0,268.09999999999997,268.09999999999997,"Yes",0,0,0]
[null,66,"Edward Thoman","Trimmer C","Vendor No 3",50900,"82G04418","2018-10-21","2018-10-27",{"$f":"IF(AND(H75>='A - Contractor Summary'!$C$36,I75<='A - Contractor Summary'!$C$42),\"Yes\",\"No\")","v":"No"},{"$f":"VLOOKUP($D75,'C.1 - Rate Sheets'!$B$15:$F$25,2,FALSE)","v":25.62},{"$f":"VLOOKUP($D75,'C.1 - Rate Sheets'!$B$15:$F$25,3,FALSE)","v":34.65},{"$f":"VLOOKUP($D75,'C.1 - Rate Sheets'!$B$15:$F$25,4,FALSE)","v":0},{"$f":"VLOOKUP($D75,'C.1 - Rate Sheets'!$B$15:$F$25,5,FALSE)","v":0},null,null,null,null,null,null,null,null,null,null,null,16,null,null,null,8,8,null,null,null,8,8,null,null,null,8,8,null,null,null,8,8,null,null,null,8,8,null,null,null,null,16,null,null,null,null,null,null,null,null,null,null,null,null,null,null,null,null,null,null,null,null,null,null,null,null,null,null,null,null,40,72,0,0,112,1024.8,2494.7999999999997,0,0,3519.5999999999995,3519.5999999999995,"Yes",0,0,0]
[null,68,"Steve Ryan","Foreperson","Vendor No 3",50900,"82G04418","2018-10-21","2018-10-27",{"$f":"IF(AND(H76>='A - Contractor Summary'!$C$36,I76<='A - Contractor Summary'!$C$42),\"Yes\",\"No\")","v":"No"},{"$f":"VLOOKUP($D76,'C.1 - Rate Sheets'!$B$15:$F$25,2,FALSE)","v":39.43},{"$f":"VLOOKUP($D76,'C.1 - Rate Sheets'!$B$15:$F$25,3,FALSE)","v":53.62},{"$f":"VLOOKUP($D76,'C.1 - Rate Sheets'!$B$15:$F$25,4,FALSE)","v":0},{"$f":"VLOOKUP($D76,'C.1 - Rate Sheets'!$B$15:$F$25,5,FALSE)","v":0},null,null,null,null,null,null,null,null,null,null,null,11,null,null,null,8,8,null,null,null,8,8,null,null,null,8,8,null,null,null,8,8,null,null,null,8,8,null,null,null,null,16,null,null,null,null,null,null,null,null,null,null,null,null,null,null,null,null,null,null,null,null,null,null,null,null,null,null,null,null,40,67,0,0,107,1577.2,3592.54,0,0,5169.74,5169.74,"Yes",0,0,0]
[null,70,"William Tucker","Foreperson","Vendor No 3",50900,"82G04418","2018-10-21","2018-10-27",{"$f":"IF(AND(H77>='A - Contractor Summary'!$C$36,I77<='A - Contractor Summary'!$C$42),\"Yes\",\"No\")","v":"No"},{"$f":"VLOOKUP($D77,'C.1 - Rate Sheets'!$B$15:$F$25,2,FALSE)","v":39.43},{"$f":"VLOOKUP($D77,'C.1 - Rate Sheets'!$B$15:$F$25,3,FALSE)","v":53.62},{"$f":"VLOOKUP($D77,'C.1 - Rate Sheets'!$B$15:$F$25,4,FALSE)","v":0},{"$f":"VLOOKUP($D77,'C.1 - Rate Sheets'!$B$15:$F$25,5,FALSE)","v":0},null,null,null,null,null,null,null,null,null,null,null,16,null,null,null,8,8,null,null,null,8,8,null,null,null,8,8,null,null,null,8,8,null,null,null,8,8,null,null,null,null,16,null,null,null,null,null,null,null,null,null,null,null,null,null,null,null,null,null,null,null,null,null,null,null,null,null,null,null,null,40,72,0,0,112,1577.2,3860.64,0,0,5437.84,5437.84,"Yes",0,0,0]
[null,72,"Richie Busch Sr","Trimmer A","Vendor No 3",50900,"82G04418","2018-10-21","2018-10-27",{"$f":"IF(AND(H78>='A - Contractor Summary'!$C$36,I78<='A - Contractor Summary'!$C$42),\"Yes\",\"No\")","v":"No"},{"$f":"VLOOKUP($D78,'C.1 - Rate Sheets'!$B$15:$F$25,2,FALSE)","v":29.1},{"$f":"VLOOKUP($D78,'C.1 - Rate Sheets'!$B$15:$F$25,3,FALSE)","v":39.68},{"$f":"VLOOKUP($D78,'C.1 - Rate Sheets'!$B$15:$F$25,4,FALSE)","v":0},{"$f":"VLOOKUP($D78,'C.1 - Rate Sheets'!$B$15:$F$25,5,FALSE)","v":0},null,null,null,null,null,null,null,null,null,null,null,16,null,null,null,8,8,null,null,null,8,8,null,null,null,8,8,null,null,null,8,8,null,null,null,8,8,null,null,null,null,16,null,null,null,null,null,null,null,null,null,null,null,null,null,null,null,null,null,null,null,null,null,null,null,null,null,null,null,null,40,72,0,0,112,1164,2856.96,0,0,4020.96,4020.96,"Yes",0,0,0]
[null,74,"Garth Hightower","Foreperson","Vendor No 3",50900,"82G04418","2018-10-21","2018-10-27",{"$f":"IF(AND(H79>='A - Contractor Summary'!$C$36,I79<='A - Contractor Summary'!$C$42),\"Yes\",\"No\")","v":"No"},{"$f":"VLOOKUP($D79,'C.1 - Rate Sheets'!$B$15:$F$25,2,FALSE)","v":39.43},{"$f":"VLOOKUP($D79,'C.1 - Rate Sheets'!$B$15:$F$25,3,FALSE)","v":53.62},{"$f":"VLOOKUP($D79,'C.1 - Rate Sheets'!$B$15:$F$25,4,FALSE)","v":0},{"$f":"VLOOKUP($D79,'C.1 - Rate Sheets'!$B$15:$F$25,5,FALSE)","v":0},null,null,null,null,null,null,null,null,null,null,null,16,null,null,null,8,8,null,null,null,8,8,null,null,null,8,8,null,null,null,8,8,null,null,null,8,8,null,null,null,null,16,null,null,null,null,null,null,null,null,null,null,null,null,null,null,null,null,null,null,null,null,null,null,null,null,null,null,null,null,40,72,0,0,112,1577.2,3860.64,0,0,5437.84,5437.84,"Yes",0,0,0]
[null,76,"Donny Roberts","Trimmer A","Vendor No 3",50900,"82G04418","2018-10-21","2018-10-27",{"$f":"IF(AND(H80>='A - Contractor Summary'!$C$36,I80<='A - Contractor Summary'!$C$42),\"Yes\",\"No\")","v":"No"},{"$f":"VLOOKUP($D80,'C.1 - Rate Sheets'!$B$15:$F$25,2,FALSE)","v":29.1},{"$f":"VLOOKUP($D80,'C.1 - Rate Sheets'!$B$15:$F$25,3,FALSE)","v":39.68},{"$f":"VLOOKUP($D80,'C.1 - Rate Sheets'!$B$15:$F$25,4,FALSE)","v":0},{"$f":"VLOOKUP($D80,'C.1 - Rate Sheets'!$B$15:$F$25,5,FALSE)","v":0},null,null,null,null,null,null,null,null,null,null,null,16,null,null,null,8,8,null,null,null,8,8,null,null,null,8,8,null,null,null,8,8,null,null,null,8,8,null,null,null,null,16,null,null,null,null,null,null,null,null,null,null,null,null,null,null,null,null,null,null,null,null,null,null,null,null,null,null,null,null,40,72,0,0,112,1164,2856.96,0,0,4020.96,4020.96,"Yes",0,0,0]
[null,78,"Jose Roman","Foreperson","Vendor No 3",50900,"82G04418","2018-10-21","2018-10-27",{"$f":"IF(AND(H81>='A - Contractor Summary'!$C$36,I81<='A - Contractor Summary'!$C$42),\"Yes\",\"No\")","v":"No"},{"$f":"VLOOKUP($D81,'C.1 - Rate Sheets'!$B$15:$F$25,2,FALSE)","v":39.43},{"$f":"VLOOKUP($D81,'C.1 - Rate Sheets'!$B$15:$F$25,3,FALSE)","v":53.62},{"$f":"VLOOKUP($D81,'C.1 - Rate Sheets'!$B$15:$F$25,4,FALSE)","v":0},{"$f":"VLOOKUP($D81,'C.1 - Rate Sheets'!$B$15:$F$25,5,FALSE)","v":0},null,null,null,null,null,null,null,null,null,null,null,16,null,null,null,8,8,null,null,null,8,8,null,null,null,8,8,null,null,null,8,8,null,null,null,8,8,null,null,null,null,16,null,null,null,null,null,null,null,null,null,null,null,null,null,null,null,null,null,null,null,null,null,null,null,null,null,null,null,null,40,72,0,0,112,1577.2,3860.64,0,0,5437.84,5437.84,"Yes",0,0,0]
[null,80,"Eric Johnson","Trimmer A","Vendor No 3",50900,"82G04418","2018-10-21","2018-10-27",{"$f":"IF(AND(H82>='A - Contractor Summary'!$C$36,I82<='A - Contractor Summary'!$C$42),\"Yes\",\"No\")","v":"No"},{"$f":"VLOOKUP($D82,'C.1 - Rate Sheets'!$B$15:$F$25,2,FALSE)","v":29.1},{"$f":"VLOOKUP($D82,'C.1 - Rate Sheets'!$B$15:$F$25,3,FALSE)","v":39.68},{"$f":"VLOOKUP($D82,'C.1 - Rate Sheets'!$B$15:$F$25,4,FALSE)","v":0},{"$f":"VLOOKUP($D82,'C.1 - Rate Sheets'!$B$15:$F$25,5,FALSE)","v":0},null,null,null,null,null,null,null,null,null,null,null,16,null,null,null,8,8,null,null,null,8,8,null,null,null,8,8,null,null,null,8,8,null,null,null,8,8,null,null,null,null,16,null,null,null,null,null,null,null,null,null,null,null,null,null,null,null,null,null,null,null,null,null,null,null,null,null,null,null,null,40,72,0,0,112,1164,2856.96,0,0,4020.96,4020.96,"Yes",0,0,0]
[null,82,"Chad Jacobs","Foreperson","Vendor No 3",50900,"82G04418","2018-10-21","2018-10-27",{"$f":"IF(AND(H83>='A - Contractor Summary'!$C$36,I83<='A - Contractor Summary'!$C$42),\"Yes\",\"No\")","v":"No"},{"$f":"VLOOKUP($D83,'C.1 - Rate Sheets'!$B$15:$F$25,2,FALSE)","v":39.43},{"$f":"VLOOKUP($D83,'C.1 - Rate Sheets'!$B$15:$F$25,3,FALSE)","v":53.62},{"$f":"VLOOKUP($D83,'C.1 - Rate Sheets'!$B$15:$F$25,4,FALSE)","v":0},{"$f":"VLOOKUP($D83,'C.1 - Rate Sheets'!$B$15:$F$25,5,FALSE)","v":0},null,null,null,null,null,null,null,null,null,null,null,16,null,null,null,8,8,null,null,null,8,8,null,null,null,8,8,null,null,null,8,8,null,null,null,8,8,null,null,null,null,16,null,null,null,null,null,null,null,null,null,null,null,null,null,null,null,null,null,null,null,null,null,null,null,null,null,null,null,null,40,72,0,0,112,1577.2,3860.64,0,0,5437.84,5437.84,"Yes",0,0,0]
[null,null,null,null,null,null,null,null,null,null,null,null,null,null,null,null,null,null,null,null,null,null,null,null,null,null,null,null,null,null,null,null,null,null,null,null,null,null,null,null,null,null,null,null,null,null,null,null,null,null,null,null,null,null,null,null,null,null,null,null,null,null,null,null,null,null,null,null,null,null,null,null,null,null,null,null,null,null,null,null,null,null,null,null,0,0,0,0,0,0,0,0,0,0,0]
[null,84,"Carlos R Garcia","General Foreman","Vendor No 3",50937,"82G04518","2018-10-21","2018-10-27",{"$f":"IF(AND(H85>='A - Contractor Summary'!$C$36,I85<='A - Contractor Summary'!$C$42),\"Yes\",\"No\")","v":"No"},{"$f":"VLOOKUP($D85,'C.1 - Rate Sheets'!$B$15:$F$25,2,FALSE)","v":45.03},{"$f":"VLOOKUP($D85,'C.1 - Rate Sheets'!$B$15:$F$25,3,FALSE)","v":61.99},{"$f":"VLOOKUP($D85,'C.1 - Rate Sheets'!$B$15:$F$25,4,FALSE)","v":0},{"$f":"VLOOKUP($D85,'C.1 - Rate Sheets'!$B$15:$F$25,5,FALSE)","v":0},null,null,null,null,null,null,null,null,null,null,null,16,null,null,null,8,8,null,null,null,8,8,null,null,null,8,8,null,null,null,8,8,null,null,null,8,8,null,null,null,null,16,null,null,null,null,null,null,null,null,null,null,null,null,null,null,null,null,null,null,null,null,null,null,null,null,null,null,null,null,{"$f":"O85+T85+Y85+AD85+AI85+AN85+AS85+AX85+BC85+BH85+BM85+BR85+BW85+CB85","v":40},{"$f":"P85+U85+Z85+AE85+AJ85+AO85+AT85+AY85+BD85+BI85+BN85+BS85+BX85+CC85","v":72},{"$f":"Q85+V85+AA85+AF85+AK85+AP85+AU85+AZ85+BE85+BJ85+BO85+BT85+BY85+CD85","v":0},{"$f":"R85+W85+AB85+AG85+AL85+AQ85+AV85+BA85+BF85+BK85+BP85+BU85+BZ85+CE85","v":0},{"$f":"SUM(CG85:CJ85)","v":112},{"$f":"CG85*K85","v":1801.2},{"$f":"CH85*L85","v":4463.28},{"$f":"CI85*M85","v":0},{"$f":"CJ85*N85","v":0},{"$f":"SUM(CL85:CO85)","v":6264.48},{"$f":"CP85-CS85","v":6264.48},"Yes",0,0,0]
[null,null,null,null,null,null,null,null,null,null,null,null,null,null,null,null,null,null,null,null,null,null,null,null,null,null,null,null,null,null,null,null,null,null,null,null,null,null,null,null,null,null,null,null,null,null,null,null,null,null,null,null,null,null,null,null,null,null,null,null,null,null,null,null,null,null,null,null,null,null,null,null,null,null,null,null,null,null,null,null,null,null,null,null,0,0,0,0,0,0,0,0,0,0,0]
[null,86,"Dave Busch","General Foreman","Vendor No 3",50399,"82G04718","2018-10-21","2018-10-27",{"$f":"IF(AND(H87>='A - Contractor Summary'!$C$36,I87<='A - Contractor Summary'!$C$42),\"Yes\",\"No\")","v":"No"},{"$f":"VLOOKUP($D87,'C.1 - Rate Sheets'!$B$15:$F$25,2,FALSE)","v":45.03},{"$f":"VLOOKUP($D87,'C.1 - Rate Sheets'!$B$15:$F$25,3,FALSE)","v":61.99},{"$f":"VLOOKUP($D87,'C.1 - Rate Sheets'!$B$15:$F$25,4,FALSE)","v":0},{"$f":"VLOOKUP($D87,'C.1 - Rate Sheets'!$B$15:$F$25,5,FALSE)","v":0},null,null,null,null,null,null,null,null,null,null,null,16,null,null,null,8,8,null,null,null,8,8,null,null,null,8,8,null,null,null,8,8,null,null,null,8,8,null,null,null,null,16,null,null,null,null,null,null,null,null,null,null,null,null,null,null,null,null,null,null,null,null,null,null,null,null,null,null,null,null,40,72,0,0,112,1801.2,4463.28,0,0,6264.48,6264.48,"Yes",0,0,0]
[null,null,null,null,null,null,null,null,null,null,null,null,null,null,null,null,null,null,null,null,null,null,null,null,null,null,null,null,null,null,null,null,null,null,null,null,null,null,null,null,null,null,null,null,null,null,null,null,null,null,null,null,null,null,null,null,null,null,null,null,null,null,null,null,null,null,null,null,null,null,null,null,null,null,null,null,null,null,null,null,null,null,null,null,0,0,0,0,0,0,0,0,0,0,0]
[null,88,"Carlos R Garcia","General Foreman","Vendor No 3",50937,"82R76918","2018-10-28","2018-11-01",{"$f":"IF(AND(H89>='A - Contractor Summary'!$C$36,I89<='A - Contractor Summary'!$C$42),\"Yes\",\"No\")","v":"No"},{"$f":"VLOOKUP($D89,'C.1 - Rate Sheets'!$B$15:$F$25,2,FALSE)","v":45.03},{"$f":"VLOOKUP($D89,'C.1 - Rate Sheets'!$B$15:$F$25,3,FALSE)","v":61.99},{"$f":"VLOOKUP($D89,'C.1 - Rate Sheets'!$B$15:$F$25,4,FALSE)","v":0},{"$f":"VLOOKUP($D89,'C.1 - Rate Sheets'!$B$15:$F$25,5,FALSE)","v":0},null,null,null,null,null,null,null,null,null,null,null,null,null,null,null,null,null,null,null,null,null,null,null,null,null,null,null,null,null,null,null,null,null,null,null,null,null,null,null,null,null,null,null,null,null,null,16,null,null,null,8,8,null,null,null,8,8,null,null,null,8,8,null,null,null,6,null,null,null,null,30,40,0,0,70,1350.9,2479.6,0,0,3830.5,3830.5,"Yes",0,0,0]
[null,null,null,null,null,null,null,null,null,null,null,null,null,null,null,null,null,null,null,null,null,null,null,null,null,null,null,null,null,null,null,null,null,null,null,null,null,null,null,null,null,null,null,null,null,null,null,null,null,null,null,null,null,null,null,null,null,null,null,null,null,null,null,null,null,null,null,null,null,null,null,null,null,null,null,null,null,null,null,null,null,null,null,null,0,0,0,0,0,0,0,0,0,0,0]
[null,90,"Dave Busch","General Foreman","Vendor No 3",50399,"82O62118","2018-10-28","2018-11-01",{"$f":"IF(AND(H91>='A - Contractor Summary'!$C$36,I91<='A - Contractor Summary'!$C$42),\"Yes\",\"No\")","v":"No"},{"$f":"VLOOKUP($D91,'C.1 - Rate Sheets'!$B$15:$F$25,2,FALSE)","v":45.03},{"$f":"VLOOKUP($D91,'C.1 - Rate Sheets'!$B$15:$F$25,3,FALSE)","v":61.99},{"$f":"VLOOKUP($D91,'C.1 - Rate Sheets'!$B$15:$F$25,4,FALSE)","v":0},{"$f":"VLOOKUP($D91,'C.1 - Rate Sheets'!$B$15:$F$25,5,FALSE)","v":0},null,null,null,null,null,null,null,null,null,null,null,null,null,null,null,null,null,null,null,null,null,null,null,null,null,null,null,null,null,null,null,null,null,null,null,null,null,null,null,null,null,null,null,null,null,null,16,null,null,null,8,8,null,null,null,8,8,null,null,null,8,8,null,null,null,8,0.5,null,null,null,32,40.5,0,0,72.5,1440.96,2510.5950000000003,0,0,3951.5550000000003,3951.5550000000003,"Yes",0,0,0]
[null,null,null,null,null,null,null,null,null,null,null,null,null,null,null,null,null,null,null,null,null,null,null,null,null,null,null,null,null,null,null,null,null,null,null,null,null,null,null,null,null,null,null,null,null,null,null,null,null,null,null,null,null,null,null,null,null,null,null,null,null,null,null,null,null,null,null,null,null,null,null,null,null,null,null,null,null,null,null,null,null,null,null,null,0,0,0,0,0,0,0,0,0,0,0]
[null,92,"Angelo Perez","Foreperson","Vendor No 3",50937,"82G04618","2018-10-21","2018-10-27",{"$f":"IF(AND(H93>='A - Contractor Summary'!$C$36,I93<='A - Contractor Summary'!$C$42),\"Yes\",\"No\")","v":"No"},{"$f":"VLOOKUP($D93,'C.1 - Rate Sheets'!$B$15:$F$25,2,FALSE)","v":39.43},{"$f":"VLOOKUP($D93,'C.1 - Rate Sheets'!$B$15:$F$25,3,FALSE)","v":53.62},{"$f":"VLOOKUP($D93,'C.1 - Rate Sheets'!$B$15:$F$25,4,FALSE)","v":0},{"$f":"VLOOKUP($D93,'C.1 - Rate Sheets'!$B$15:$F$25,5,FALSE)","v":0},null,null,null,null,null,null,null,null,null,null,null,16,null,null,null,8,8,null,null,null,8,8,null,null,null,8,8,null,null,null,8,8,null,null,null,8,8,null,null,null,null,16,null,null,null,null,null,null,null,null,null,null,null,null,null,null,null,null,null,null,null,null,null,null,null,null,null,null,null,null,40,72,0,0,112,1577.2,3860.64,0,0,5437.84,5437.84,"Yes",0,0,0]
[null,94,"Gabriel Tovar","Trimmer B","Vendor No 3",50937,"82G04618","2018-10-21","2018-10-27",{"$f":"IF(AND(H94>='A - Contractor Summary'!$C$36,I94<='A - Contractor Summary'!$C$42),\"Yes\",\"No\")","v":"No"},{"$f":"VLOOKUP($D94,'C.1 - Rate Sheets'!$B$15:$F$25,2,FALSE)","v":26.9},{"$f":"VLOOKUP($D94,'C.1 - Rate Sheets'!$B$15:$F$25,3,FALSE)","v":36.53},{"$f":"VLOOKUP($D94,'C.1 - Rate Sheets'!$B$15:$F$25,4,FALSE)","v":0},{"$f":"VLOOKUP($D94,'C.1 - Rate Sheets'!$B$15:$F$25,5,FALSE)","v":0},null,null,null,null,null,null,null,null,null,null,null,16,null,null,null,8,8,null,null,null,8,8,null,null,null,8,8,null,null,null,8,8,null,null,null,8,8,null,null,null,null,16,null,null,null,null,null,null,null,null,null,null,null,null,null,null,null,null,null,null,null,null,null,null,null,null,null,null,null,null,40,72,0,0,112,1076,2630.16,0,0,3706.16,3706.16,"Yes",0,0,0]
[null,96,"Jaison Cruz","Trimmer A","Vendor No 3",50937,"82G04618","2018-10-21","2018-10-27",{"$f":"IF(AND(H95>='A - Contractor Summary'!$C$36,I95<='A - Contractor Summary'!$C$42),\"Yes\",\"No\")","v":"No"},{"$f":"VLOOKUP($D95,'C.1 - Rate Sheets'!$B$15:$F$25,2,FALSE)","v":29.1},{"$f":"VLOOKUP($D95,'C.1 - Rate Sheets'!$B$15:$F$25,3,FALSE)","v":39.68},{"$f":"VLOOKUP($D95,'C.1 - Rate Sheets'!$B$15:$F$25,4,FALSE)","v":0},{"$f":"VLOOKUP($D95,'C.1 - Rate Sheets'!$B$15:$F$25,5,FALSE)","v":0},null,null,null,null,null,null,null,null,null,null,null,16,null,null,null,8,8,null,null,null,8,8,null,null,null,8,8,null,null,null,8,8,null,null,null,8,8,null,null,null,null,16,null,null,null,null,null,null,null,null,null,null,null,null,null,null,null,null,null,null,null,null,null,null,null,null,null,null,null,null,40,72,0,0,112,1164,2856.96,0,0,4020.96,4020.96,"Yes",0,0,0]
[null,98,"Dachel Yasmany","Foreperson","Vendor No 3",50937,"82G04618","2018-10-21","2018-10-27",{"$f":"IF(AND(H96>='A - Contractor Summary'!$C$36,I96<='A - Contractor Summary'!$C$42),\"Yes\",\"No\")","v":"No"},{"$f":"VLOOKUP($D96,'C.1 - Rate Sheets'!$B$15:$F$25,2,FALSE)","v":39.43},{"$f":"VLOOKUP($D96,'C.1 - Rate Sheets'!$B$15:$F$25,3,FALSE)","v":53.62},{"$f":"VLOOKUP($D96,'C.1 - Rate Sheets'!$B$15:$F$25,4,FALSE)","v":0},{"$f":"VLOOKUP($D96,'C.1 - Rate Sheets'!$B$15:$F$25,5,FALSE)","v":0},null,null,null,null,null,null,null,null,null,null,null,16,null,null,null,8,8,null,null,null,8,8,null,null,null,8,8,null,null,null,8,8,null,null,null,8,8,null,null,null,null,16,null,null,null,null,null,null,null,null,null,null,null,null,null,null,null,null,null,null,null,null,null,null,null,null,null,null,null,null,40,72,0,0,112,1577.2,3860.64,0,0,5437.84,5437.84,"Yes",0,0,0]
[null,100,"Oneiber Mejia","Trimmer A","Vendor No 3",50937,"82G04618","2018-10-21","2018-10-27",{"$f":"IF(AND(H97>='A - Contractor Summary'!$C$36,I97<='A - Contractor Summary'!$C$42),\"Yes\",\"No\")","v":"No"},{"$f":"VLOOKUP($D97,'C.1 - Rate Sheets'!$B$15:$F$25,2,FALSE)","v":29.1},{"$f":"VLOOKUP($D97,'C.1 - Rate Sheets'!$B$15:$F$25,3,FALSE)","v":39.68},{"$f":"VLOOKUP($D97,'C.1 - Rate Sheets'!$B$15:$F$25,4,FALSE)","v":0},{"$f":"VLOOKUP($D97,'C.1 - Rate Sheets'!$B$15:$F$25,5,FALSE)","v":0},null,null,null,null,null,null,null,null,null,null,null,16,null,null,null,8,8,null,null,null,8,8,null,null,null,8,8,null,null,null,8,8,null,null,null,8,8,null,null,null,null,16,null,null,null,null,null,null,null,null,null,null,null,null,null,null,null,null,null,null,null,null,null,null,null,null,null,null,null,null,40,72,0,0,112,1164,2856.96,0,0,4020.96,4020.96,"Yes",0,0,0]
[null,102,"Angel Guevara","Trimmer B","Vendor No 3",50937,"82G04618","2018-10-21","2018-10-27",{"$f":"IF(AND(H98>='A - Contractor Summary'!$C$36,I98<='A - Contractor Summary'!$C$42),\"Yes\",\"No\")","v":"No"},{"$f":"VLOOKUP($D98,'C.1 - Rate Sheets'!$B$15:$F$25,2,FALSE)","v":26.9},{"$f":"VLOOKUP($D98,'C.1 - Rate Sheets'!$B$15:$F$25,3,FALSE)","v":36.53},{"$f":"VLOOKUP($D98,'C.1 - Rate Sheets'!$B$15:$F$25,4,FALSE)","v":0},{"$f":"VLOOKUP($D98,'C.1 - Rate Sheets'!$B$15:$F$25,5,FALSE)","v":0},null,null,null,null,null,null,null,null,null,null,null,16,null,null,null,8,8,null,null,null,8,8,null,null,null,8,8,null,null,null,8,8,null,null,null,8,8,null,null,null,null,16,null,null,null,null,null,null,null,null,null,null,null,null,null,null,null,null,null,null,null,null,null,null,null,null,null,null,null,null,40,72,0,0,112,1076,2630.16,0,0,3706.16,3706.16,"Yes",0,0,0]
[null,104,"Orlando Garcia","Trimmer A","Vendor No 3",50937,"82G04618","2018-10-21","2018-10-27",{"$f":"IF(AND(H99>='A - Contractor Summary'!$C$36,I99<='A - Contractor Summary'!$C$42),\"Yes\",\"No\")","v":"No"},{"$f":"VLOOKUP($D99,'C.1 - Rate Sheets'!$B$15:$F$25,2,FALSE)","v":29.1},{"$f":"VLOOKUP($D99,'C.1 - Rate Sheets'!$B$15:$F$25,3,FALSE)","v":39.68},{"$f":"VLOOKUP($D99,'C.1 - Rate Sheets'!$B$15:$F$25,4,FALSE)","v":0},{"$f":"VLOOKUP($D99,'C.1 - Rate Sheets'!$B$15:$F$25,5,FALSE)","v":0},null,null,null,null,null,null,null,null,null,null,null,16,null,null,null,8,8,null,null,null,8,8,null,null,null,8,8,null,null,null,8,8,null,null,null,8,8,null,null,null,null,16,null,null,null,null,null,null,null,null,null,null,null,null,null,null,null,null,null,null,null,null,null,null,null,null,null,null,null,null,40,72,0,0,112,1164,2856.96,0,0,4020.96,4020.96,"Yes",0,0,0]
[null,106,"Victor Cruz","Foreperson","Vendor No 3",50937,"82G04618","2018-10-21","2018-10-25",{"$f":"IF(AND(H100>='A - Contractor Summary'!$C$36,I100<='A - Contractor Summary'!$C$42),\"Yes\",\"No\")","v":"No"},{"$f":"VLOOKUP($D100,'C.1 - Rate Sheets'!$B$15:$F$25,2,FALSE)","v":39.43},{"$f":"VLOOKUP($D100,'C.1 - Rate Sheets'!$B$15:$F$25,3,FALSE)","v":53.62},{"$f":"VLOOKUP($D100,'C.1 - Rate Sheets'!$B$15:$F$25,4,FALSE)","v":0},{"$f":"VLOOKUP($D100,'C.1 - Rate Sheets'!$B$15:$F$25,5,FALSE)","v":0},null,null,null,null,null,null,null,null,null,null,null,16,null,null,null,8,8,null,null,null,8,8,null,null,null,8,8,null,null,null,5,null,null,null,null,null,null,null,null,null,null,null,null,null,null,null,null,null,null,null,null,null,null,null,null,null,null,null,null,null,null,null,null,null,null,null,null,null,null,null,29,40,0,0,69,1143.47,2144.7999999999997,0,0,3288.2699999999995,3288.2699999999995,"Yes",0,0,0]
[null,108,"Manuel Ortiz","Trimmer A","Vendor No 3",50937,"82G04618","2018-10-21","2018-10-27",{"$f":"IF(AND(H101>='A - Contractor Summary'!$C$36,I101<='A - Contractor Summary'!$C$42),\"Yes\",\"No\")","v":"No"},{"$f":"VLOOKUP($D101,'C.1 - Rate Sheets'!$B$15:$F$25,2,FALSE)","v":29.1},{"$f":"VLOOKUP($D101,'C.1 - Rate Sheets'!$B$15:$F$25,3,FALSE)","v":39.68},{"$f":"VLOOKUP($D101,'C.1 - Rate Sheets'!$B$15:$F$25,4,FALSE)","v":0},{"$f":"VLOOKUP($D101,'C.1 - Rate Sheets'!$B$15:$F$25,5,FALSE)","v":0},null,null,null,null,null,null,null,null,null,null,null,16,null,null,null,8,8,null,null,null,8,8,null,null,null,8,8,null,null,null,8,8,null,null,null,8,8,null,null,null,null,16,null,null,null,null,null,null,null,null,null,null,null,null,null,null,null,null,null,null,null,null,null,null,null,null,null,null,null,null,40,72,0,0,112,1164,2856.96,0,0,4020.96,4020.96,"Yes",0,0,0]
[null,110,"Tonny Rivas","Foreperson","Vendor No 3",50937,"82G04618","2018-10-21","2018-10-27",{"$f":"IF(AND(H102>='A - Contractor Summary'!$C$36,I102<='A - Contractor Summary'!$C$42),\"Yes\",\"No\")","v":"No"},{"$f":"VLOOKUP($D102,'C.1 - Rate Sheets'!$B$15:$F$25,2,FALSE)","v":39.43},{"$f":"VLOOKUP($D102,'C.1 - Rate Sheets'!$B$15:$F$25,3,FALSE)","v":53.62},{"$f":"VLOOKUP($D102,'C.1 - Rate Sheets'!$B$15:$F$25,4,FALSE)","v":0},{"$f":"VLOOKUP($D102,'C.1 - Rate Sheets'!$B$15:$F$25,5,FALSE)","v":0},null,null,null,null,null,null,null,null,null,null,null,16,null,null,null,8,8,null,null,null,8,8,null,null,null,8,8,null,null,null,8,8,null,null,null,8,8,null,null,null,null,16,null,null,null,null,null,null,null,null,null,null,null,null,null,null,null,null,null,null,null,null,null,null,null,null,null,null,null,null,40,72,0,0,112,1577.2,3860.64,0,0,5437.84,5437.84,"Yes",0,0,0]
[null,112,"Carlos A Ruiz B","Trimmer A","Vendor No 3",50937,"82G04618","2018-10-21","2018-10-27",{"$f":"IF(AND(H103>='A - Contractor Summary'!$C$36,I103<='A - Contractor Summary'!$C$42),\"Yes\",\"No\")","v":"No"},{"$f":"VLOOKUP($D103,'C.1 - Rate Sheets'!$B$15:$F$25,2,FALSE)","v":29.1},{"$f":"VLOOKUP($D103,'C.1 - Rate Sheets'!$B$15:$F$25,3,FALSE)","v":39.68},{"$f":"VLOOKUP($D103,'C.1 - Rate Sheets'!$B$15:$F$25,4,FALSE)","v":0},{"$f":"VLOOKUP($D103,'C.1 - Rate Sheets'!$B$15:$F$25,5,FALSE)","v":0},null,null,null,null,null,null,null,null,null,null,null,16,null,null,null,8,8,null,null,null,8,8,null,null,null,8,8,null,null,null,8,8,null,null,null,8,8,null,null,null,null,16,null,null,null,null,null,null,null,null,null,null,null,null,null,null,null,null,null,null,null,null,null,null,null,null,null,null,null,null,40,72,0,0,112,1164,2856.96,0,0,4020.96,4020.96,"Yes",0,0,0]
[null,114,"Juan C Colmenarez","Trimmer B","Vendor No 3",50937,"82G04618","2018-10-25","2018-10-27",{"$f":"IF(AND(H104>='A - Contractor Summary'!$C$36,I104<='A - Contractor Summary'!$C$42),\"Yes\",\"No\")","v":"No"},{"$f":"VLOOKUP($D104,'C.1 - Rate Sheets'!$B$15:$F$25,2,FALSE)","v":26.9},{"$f":"VLOOKUP($D104,'C.1 - Rate Sheets'!$B$15:$F$25,3,FALSE)","v":36.53},{"$f":"VLOOKUP($D104,'C.1 - Rate Sheets'!$B$15:$F$25,4,FALSE)","v":0},{"$f":"VLOOKUP($D104,'C.1 - Rate Sheets'!$B$15:$F$25,5,FALSE)","v":0},null,null,null,null,null,null,null,null,null,null,null,null,null,null,null,null,null,null,null,null,null,null,null,null,null,null,null,null,null,null,10,1,null,null,null,null,16,null,null,null,null,16,null,null,null,null,null,null,null,null,null,null,null,null,null,null,null,null,null,null,null,null,null,null,null,null,null,null,null,null,10,33,0,0,43,269,1205.49,0,0,1474.49,1474.49,"Yes",0,0,0]
[null,null,null,null,null,null,null,null,null,null,null,null,null,null,null,null,null,null,null,null,null,null,null,null,null,null,null,null,null,null,null,null,null,null,null,null,null,null,null,null,null,null,null,null,null,null,null,null,null,null,null,null,null,null,null,null,null,null,null,null,null,null,null,null,null,null,null,null,null,null,null,null,null,null,null,null,null,null,null,null,null,null,null,null,0,0,0,0,0,0,0,0,0,0,0]
[null,116,"Joel Joseph","General Foreman","Vendor No 3",55392,"82G04818","2018-10-21","2018-10-27",{"$f":"IF(AND(H106>='A - Contractor Summary'!$C$36,I106<='A - Contractor Summary'!$C$42),\"Yes\",\"No\")","v":"No"},{"$f":"VLOOKUP($D106,'C.1 - Rate Sheets'!$B$15:$F$25,2,FALSE)","v":45.03},{"$f":"VLOOKUP($D106,'C.1 - Rate Sheets'!$B$15:$F$25,3,FALSE)","v":61.99},{"$f":"VLOOKUP($D106,'C.1 - Rate Sheets'!$B$15:$F$25,4,FALSE)","v":0},{"$f":"VLOOKUP($D106,'C.1 - Rate Sheets'!$B$15:$F$25,5,FALSE)","v":0},null,null,null,null,null,null,null,null,null,null,null,16,null,null,null,8,8,null,null,null,8,8,null,null,null,8,8,null,null,null,8,8,null,null,null,8,8,null,null,null,null,16,null,null,null,null,null,null,null,null,null,null,null,null,null,null,null,null,null,null,null,null,null,null,null,null,null,null,null,null,40,72,0,0,112,1801.2,4463.28,0,0,6264.48,6264.48,"Yes",0,0,0]
[null,118,"Antoine Jacquesson","Foreperson","Vendor No 3",55392,"82G04818","2018-10-21","2018-10-27",{"$f":"IF(AND(H107>='A - Contractor Summary'!$C$36,I107<='A - Contractor Summary'!$C$42),\"Yes\",\"No\")","v":"No"},{"$f":"VLOOKUP($D107,'C.1 - Rate Sheets'!$B$15:$F$25,2,FALSE)","v":39.43},{"$f":"VLOOKUP($D107,'C.1 - Rate Sheets'!$B$15:$F$25,3,FALSE)","v":53.62},{"$f":"VLOOKUP($D107,'C.1 - Rate Sheets'!$B$15:$F$25,4,FALSE)","v":0},{"$f":"VLOOKUP($D107,'C.1 - Rate Sheets'!$B$15:$F$25,5,FALSE)","v":0},null,null,null,null,null,null,null,null,null,null,null,16,null,null,null,8,8,null,null,null,8,8,null,null,null,8,8,null,null,null,8,8,null,null,null,8,8,null,null,null,null,16,null,null,null,null,null,null,null,null,null,null,null,null,null,null,null,null,null,null,null,null,null,null,null,null,null,null,null,null,40,72,0,0,112,1577.2,3860.64,0,0,5437.84,5437.84,"Yes",0,0,0]
[null,120,"Edgar Fenelon","Trimmer B","Vendor No 3",55392,"82G04818","2018-10-21","2018-10-27",{"$f":"IF(AND(H108>='A - Contractor Summary'!$C$36,I108<='A - Contractor Summary'!$C$42),\"Yes\",\"No\")","v":"No"},{"$f":"VLOOKUP($D108,'C.1 - Rate Sheets'!$B$15:$F$25,2,FALSE)","v":26.9},{"$f":"VLOOKUP($D108,'C.1 - Rate Sheets'!$B$15:$F$25,3,FALSE)","v":36.53},{"$f":"VLOOKUP($D108,'C.1 - Rate Sheets'!$B$15:$F$25,4,FALSE)","v":0},{"$f":"VLOOKUP($D108,'C.1 - Rate Sheets'!$B$15:$F$25,5,FALSE)","v":0},null,null,null,null,null,null,null,null,null,null,null,16,null,null,null,8,8,null,null,null,8,8,null,null,null,8,8,null,null,null,8,8,null,null,null,8,8,null,null,null,null,16,null,null,null,null,null,null,null,null,null,null,null,null,null,null,null,null,null,null,null,null,null,null,null,null,null,null,null,null,40,72,0,0,112,1076,2630.16,0,0,3706.16,3706.16,"Yes",0,0,0]
[null,122,"Peter Joseph","Trimmer A","Vendor No 3",55392,"82G04818","2018-10-21","2018-10-27",{"$f":"IF(AND(H109>='A - Contractor Summary'!$C$36,I109<='A - Contractor Summary'!$C$42),\"Yes\",\"No\")","v":"No"},{"$f":"VLOOKUP($D109,'C.1 - Rate Sheets'!$B$15:$F$25,2,FALSE)","v":29.1},{"$f":"VLOOKUP($D109,'C.1 - Rate Sheets'!$B$15:$F$25,3,FALSE)","v":39.68},{"$f":"VLOOKUP($D109,'C.1 - Rate Sheets'!$B$15:$F$25,4,FALSE)","v":0},{"$f":"VLOOKUP($D109,'C.1 - Rate Sheets'!$B$15:$F$25,5,FALSE)","v":0},null,null,null,null,null,null,null,null,null,null,null,16,null,null,null,8,8,null,null,null,8,8,null,null,null,8,8,null,null,null,8,8,null,null,null,8,8,null,null,null,null,16,null,null,null,null,null,null,null,null,null,null,null,null,null,null,null,null,null,null,null,null,null,null,null,null,null,null,null,null,40,72,0,0,112,1164,2856.96,0,0,4020.96,4020.96,"Yes",0,0,0]
[null,124,"Giles Frederick","Foreperson","Vendor No 3",55392,"82G04818","2018-10-21","2018-10-27",{"$f":"IF(AND(H110>='A - Contractor Summary'!$C$36,I110<='A - Contractor Summary'!$C$42),\"Yes\",\"No\")","v":"No"},{"$f":"VLOOKUP($D110,'C.1 - Rate Sheets'!$B$15:$F$25,2,FALSE)","v":39.43},{"$f":"VLOOKUP($D110,'C.1 - Rate Sheets'!$B$15:$F$25,3,FALSE)","v":53.62},{"$f":"VLOOKUP($D110,'C.1 - Rate Sheets'!$B$15:$F$25,4,FALSE)","v":0},{"$f":"VLOOKUP($D110,'C.1 - Rate Sheets'!$B$15:$F$25,5,FALSE)","v":0},null,null,null,null,null,null,null,null,null,null,null,16,null,null,null,8,8,null,null,null,8,8,null,null,null,8,8,null,null,null,8,8,null,null,null,8,8,null,null,null,null,16,null,null,null,null,null,null,null,null,null,null,null,null,null,null,null,null,null,null,null,null,null,null,null,null,null,null,null,null,40,72,0,0,112,1577.2,3860.64,0,0,5437.84,5437.84,"Yes",0,0,0]
[null,126,"Ismith Saint Clous","Foreperson","Vendor No 3",55392,"82G04818","2018-10-21","2018-10-27",{"$f":"IF(AND(H111>='A - Contractor Summary'!$C$36,I111<='A - Contractor Summary'!$C$42),\"Yes\",\"No\")","v":"No"},{"$f":"VLOOKUP($D111,'C.1 - Rate Sheets'!$B$15:$F$25,2,FALSE)","v":39.43},{"$f":"VLOOKUP($D111,'C.1 - Rate Sheets'!$B$15:$F$25,3,FALSE)","v":53.62},{"$f":"VLOOKUP($D111,'C.1 - Rate Sheets'!$B$15:$F$25,4,FALSE)","v":0},{"$f":"VLOOKUP($D111,'C.1 - Rate Sheets'!$B$15:$F$25,5,FALSE)","v":0},null,null,null,null,null,null,null,null,null,null,null,16,null,null,null,8,8,null,null,null,8,8,null,null,null,8,8,null,null,null,8,8,null,null,null,8,8,null,null,null,null,16,null,null,null,null,null,null,null,null,null,null,null,null,null,null,null,null,null,null,null,null,null,null,null,null,null,null,null,null,40,72,0,0,112,1577.2,3860.64,0,0,5437.84,5437.84,"Yes",0,0,0]
[null,128,"Luco Morency","Trimmer A","Vendor No 3",55392,"82G04818","2018-10-21","2018-10-27",{"$f":"IF(AND(H112>='A - Contractor Summary'!$C$36,I112<='A - Contractor Summary'!$C$42),\"Yes\",\"No\")","v":"No"},{"$f":"VLOOKUP($D112,'C.1 - Rate Sheets'!$B$15:$F$25,2,FALSE)","v":29.1},{"$f":"VLOOKUP($D112,'C.1 - Rate Sheets'!$B$15:$F$25,3,FALSE)","v":39.68},{"$f":"VLOOKUP($D112,'C.1 - Rate Sheets'!$B$15:$F$25,4,FALSE)","v":0},{"$f":"VLOOKUP($D112,'C.1 - Rate Sheets'!$B$15:$F$25,5,FALSE)","v":0},null,null,null,null,null,null,null,null,null,null,null,16,null,null,null,8,8,null,null,null,8,8,null,null,null,8,8,null,null,null,8,8,null,null,null,8,8,null,null,null,null,16,null,null,null,null,null,null,null,null,null,null,null,null,null,null,null,null,null,null,null,null,null,null,null,null,null,null,null,null,40,72,0,0,112,1164,2856.96,0,0,4020.96,4020.96,"Yes",0,0,0]
[null,130,"Paulin Toussaint","Trimmer A","Vendor No 3",55392,"82G04818","2018-10-21","2018-10-27",{"$f":"IF(AND(H113>='A - Contractor Summary'!$C$36,I113<='A - Contractor Summary'!$C$42),\"Yes\",\"No\")","v":"No"},{"$f":"VLOOKUP($D113,'C.1 - Rate Sheets'!$B$15:$F$25,2,FALSE)","v":29.1},{"$f":"VLOOKUP($D113,'C.1 - Rate Sheets'!$B$15:$F$25,3,FALSE)","v":39.68},{"$f":"VLOOKUP($D113,'C.1 - Rate Sheets'!$B$15:$F$25,4,FALSE)","v":0},{"$f":"VLOOKUP($D113,'C.1 - Rate Sheets'!$B$15:$F$25,5,FALSE)","v":0},null,null,null,null,null,null,null,null,null,null,null,16,null,null,null,8,8,null,null,null,8,8,null,null,null,8,8,null,null,null,8,8,null,null,null,8,8,null,null,null,null,16,null,null,null,null,null,null,null,null,null,null,null,null,null,null,null,null,null,null,null,null,null,null,null,null,null,null,null,null,40,72,0,0,112,1164,2856.96,0,0,4020.96,4020.96,"Yes",0,0,0]
[null,132,"Claude Laguerre","Foreperson","Vendor No 3",55392,"82G04818","2018-10-21","2018-10-27",{"$f":"IF(AND(H114>='A - Contractor Summary'!$C$36,I114<='A - Contractor Summary'!$C$42),\"Yes\",\"No\")","v":"No"},{"$f":"VLOOKUP($D114,'C.1 - Rate Sheets'!$B$15:$F$25,2,FALSE)","v":39.43},{"$f":"VLOOKUP($D114,'C.1 - Rate Sheets'!$B$15:$F$25,3,FALSE)","v":53.62},{"$f":"VLOOKUP($D114,'C.1 - Rate Sheets'!$B$15:$F$25,4,FALSE)","v":0},{"$f":"VLOOKUP($D114,'C.1 - Rate Sheets'!$B$15:$F$25,5,FALSE)","v":0},null,null,null,null,null,null,null,null,null,null,null,16,null,null,null,8,8,null,null,null,8,8,null,null,null,8,8,null,null,null,8,8,null,null,null,8,8,null,null,null,null,16,null,null,null,null,null,null,null,null,null,null,null,null,null,null,null,null,null,null,null,null,null,null,null,null,null,null,null,null,40,72,0,0,112,1577.2,3860.64,0,0,5437.84,5437.84,"Yes",0,0,0]
[null,134,"Francois Andre","Trimmer A","Vendor No 3",55392,"82G04818","2018-10-21","2018-10-27",{"$f":"IF(AND(H115>='A - Contractor Summary'!$C$36,I115<='A - Contractor Summary'!$C$42),\"Yes\",\"No\")","v":"No"},{"$f":"VLOOKUP($D115,'C.1 - Rate Sheets'!$B$15:$F$25,2,FALSE)","v":29.1},{"$f":"VLOOKUP($D115,'C.1 - Rate Sheets'!$B$15:$F$25,3,FALSE)","v":39.68},{"$f":"VLOOKUP($D115,'C.1 - Rate Sheets'!$B$15:$F$25,4,FALSE)","v":0},{"$f":"VLOOKUP($D115,'C.1 - Rate Sheets'!$B$15:$F$25,5,FALSE)","v":0},null,null,null,null,null,null,null,null,null,null,null,16,null,null,null,8,8,null,null,null,8,8,null,null,null,8,8,null,null,null,8,8,null,null,null,8,8,null,null,null,null,16,null,null,null,null,null,null,null,null,null,null,null,null,null,null,null,null,null,null,null,null,null,null,null,null,null,null,null,null,40,72,0,0,112,1164,2856.96,0,0,4020.96,4020.96,"Yes",0,0,0]
[null,136,"Paul Donald","Trimmer A","Vendor No 3",55392,"82G04818","2018-10-21","2018-10-27",{"$f":"IF(AND(H116>='A - Contractor Summary'!$C$36,I116<='A - Contractor Summary'!$C$42),\"Yes\",\"No\")","v":"No"},{"$f":"VLOOKUP($D116,'C.1 - Rate Sheets'!$B$15:$F$25,2,FALSE)","v":29.1},{"$f":"VLOOKUP($D116,'C.1 - Rate Sheets'!$B$15:$F$25,3,FALSE)","v":39.68},{"$f":"VLOOKUP($D116,'C.1 - Rate Sheets'!$B$15:$F$25,4,FALSE)","v":0},{"$f":"VLOOKUP($D116,'C.1 - Rate Sheets'!$B$15:$F$25,5,FALSE)","v":0},null,null,null,null,null,null,null,null,null,null,null,16,null,null,null,8,8,null,null,null,8,8,null,null,null,8,8,null,null,null,8,8,null,null,null,8,8,null,null,null,null,16,null,null,null,null,null,null,null,null,null,null,null,null,null,null,null,null,null,null,null,null,null,null,null,null,null,null,null,null,40,72,0,0,112,1164,2856.96,0,0,4020.96,4020.96,"Yes",0,0,0]
[null,138,"Elie Nerestan","Trimmer A","Vendor No 3",55392,"82G04818","2018-10-21","2018-10-27",{"$f":"IF(AND(H117>='A - Contractor Summary'!$C$36,I117<='A - Contractor Summary'!$C$42),\"Yes\",\"No\")","v":"No"},{"$f":"VLOOKUP($D117,'C.1 - Rate Sheets'!$B$15:$F$25,2,FALSE)","v":29.1},{"$f":"VLOOKUP($D117,'C.1 - Rate Sheets'!$B$15:$F$25,3,FALSE)","v":39.68},{"$f":"VLOOKUP($D117,'C.1 - Rate Sheets'!$B$15:$F$25,4,FALSE)","v":0},{"$f":"VLOOKUP($D117,'C.1 - Rate Sheets'!$B$15:$F$25,5,FALSE)","v":0},null,null,null,null,null,null,null,null,null,null,null,16,null,null,null,8,8,null,null,null,8,8,null,null,null,8,8,null,null,null,8,8,null,null,null,8,8,null,null,null,null,16,null,null,null,null,null,null,null,null,null,null,null,null,null,null,null,null,null,null,null,null,null,null,null,null,null,null,null,null,40,72,0,0,112,1164,2856.96,0,0,4020.96,4020.96,"Yes",0,0,0]
[null,140,"Bruce Bien Aime","Trimmer B","Vendor No 3",55392,"82G04818","2018-10-21","2018-10-27",{"$f":"IF(AND(H118>='A - Contractor Summary'!$C$36,I118<='A - Contractor Summary'!$C$42),\"Yes\",\"No\")","v":"No"},{"$f":"VLOOKUP($D118,'C.1 - Rate Sheets'!$B$15:$F$25,2,FALSE)","v":26.9},{"$f":"VLOOKUP($D118,'C.1 - Rate Sheets'!$B$15:$F$25,3,FALSE)","v":36.53},{"$f":"VLOOKUP($D118,'C.1 - Rate Sheets'!$B$15:$F$25,4,FALSE)","v":0},{"$f":"VLOOKUP($D118,'C.1 - Rate Sheets'!$B$15:$F$25,5,FALSE)","v":0},null,null,null,null,null,null,null,null,null,null,null,16,null,null,null,8,8,null,null,null,8,8,null,null,null,8,8,null,null,null,8,8,null,null,null,8,8,null,null,null,null,16,null,null,null,null,null,null,null,null,null,null,null,null,null,null,null,null,null,null,null,null,null,null,null,null,null,null,null,null,40,72,0,0,112,1076,2630.16,0,0,3706.16,3706.16,"Yes",0,0,0]
[null,142,"Reginal Coissy","Trimmer A","Vendor No 3",55392,"82G04818","2018-10-21","2018-10-27",{"$f":"IF(AND(H119>='A - Contractor Summary'!$C$36,I119<='A - Contractor Summary'!$C$42),\"Yes\",\"No\")","v":"No"},{"$f":"VLOOKUP($D119,'C.1 - Rate Sheets'!$B$15:$F$25,2,FALSE)","v":29.1},{"$f":"VLOOKUP($D119,'C.1 - Rate Sheets'!$B$15:$F$25,3,FALSE)","v":39.68},{"$f":"VLOOKUP($D119,'C.1 - Rate Sheets'!$B$15:$F$25,4,FALSE)","v":0},{"$f":"VLOOKUP($D119,'C.1 - Rate Sheets'!$B$15:$F$25,5,FALSE)","v":0},null,null,null,null,null,null,null,null,null,null,null,16,null,null,null,8,8,null,null,null,8,8,null,null,null,8,8,null,null,null,8,8,null,null,null,8,8,null,null,null,null,16,null,null,null,null,null,null,null,null,null,null,null,null,null,null,null,null,null,null,null,null,null,null,null,null,null,null,null,null,40,72,0,0,112,1164,2856.96,0,0,4020.96,4020.96,"Yes",0,0,0]
[null,144,"Ruben Romero","Foreperson","Vendor No 3",55392,"82G04818","2018-10-21","2018-10-27",{"$f":"IF(AND(H120>='A - Contractor Summary'!$C$36,I120<='A - Contractor Summary'!$C$42),\"Yes\",\"No\")","v":"No"},{"$f":"VLOOKUP($D120,'C.1 - Rate Sheets'!$B$15:$F$25,2,FALSE)","v":39.43},{"$f":"VLOOKUP($D120,'C.1 - Rate Sheets'!$B$15:$F$25,3,FALSE)","v":53.62},{"$f":"VLOOKUP($D120,'C.1 - Rate Sheets'!$B$15:$F$25,4,FALSE)","v":0},{"$f":"VLOOKUP($D120,'C.1 - Rate Sheets'!$B$15:$F$25,5,FALSE)","v":0},null,null,null,null,null,null,null,null,null,null,null,16,null,null,null,8,8,null,null,null,8,8,null,null,null,8,8,null,null,null,8,8,null,null,null,8,8,null,null,null,null,16,null,null,null,null,null,null,null,null,null,null,null,null,null,null,null,null,null,null,null,null,null,null,null,null,null,null,null,null,40,72,0,0,112,1577.2,3860.64,0,0,5437.84,5437.84,"Yes",0,0,0]
[null,146,"Anderson Jerome","Foreperson","Vendor No 3",55392,"82G04818","2018-10-21","2018-10-26",{"$f":"IF(AND(H121>='A - Contractor Summary'!$C$36,I121<='A - Contractor Summary'!$C$42),\"Yes\",\"No\")","v":"No"},{"$f":"VLOOKUP($D121,'C.1 - Rate Sheets'!$B$15:$F$25,2,FALSE)","v":39.43},{"$f":"VLOOKUP($D121,'C.1 - Rate Sheets'!$B$15:$F$25,3,FALSE)","v":53.62},{"$f":"VLOOKUP($D121,'C.1 - Rate Sheets'!$B$15:$F$25,4,FALSE)","v":0},{"$f":"VLOOKUP($D121,'C.1 - Rate Sheets'!$B$15:$F$25,5,FALSE)","v":0},null,null,null,null,null,null,null,null,null,null,null,16,null,null,null,8,8,null,null,null,8,8,null,null,null,8,8,null,null,null,8,8,null,null,null,8,8,null,null,null,null,null,null,null,null,null,null,null,null,null,null,null,null,null,null,null,null,null,null,null,null,null,null,null,null,null,null,null,null,null,40,56,0,0,96,1577.2,3002.72,0,0,4579.92,4579.92,"Yes",0,0,0]
[null,148,"Philome Croissy","Trimmer A","Vendor No 3",55392,"82G04818","2018-10-21","2018-10-27",{"$f":"IF(AND(H122>='A - Contractor Summary'!$C$36,I122<='A - Contractor Summary'!$C$42),\"Yes\",\"No\")","v":"No"},{"$f":"VLOOKUP($D122,'C.1 - Rate Sheets'!$B$15:$F$25,2,FALSE)","v":29.1},{"$f":"VLOOKUP($D122,'C.1 - Rate Sheets'!$B$15:$F$25,3,FALSE)","v":39.68},{"$f":"VLOOKUP($D122,'C.1 - Rate Sheets'!$B$15:$F$25,4,FALSE)","v":0},{"$f":"VLOOKUP($D122,'C.1 - Rate Sheets'!$B$15:$F$25,5,FALSE)","v":0},null,null,null,null,null,null,null,null,null,null,null,16,null,null,null,8,8,null,null,null,8,8,null,null,null,8,8,null,null,null,8,8,null,null,null,8,8,null,null,null,null,16,null,null,null,null,null,null,null,null,null,null,null,null,null,null,null,null,null,null,null,null,null,null,null,null,null,null,null,null,40,72,0,0,112,1164,2856.96,0,0,4020.96,4020.96,"Yes",0,0,0]
[null,150,"Claudain Duroque","Foreperson","Vendor No 3",55392,"82G04818","2018-10-21","2018-10-27",{"$f":"IF(AND(H123>='A - Contractor Summary'!$C$36,I123<='A - Contractor Summary'!$C$42),\"Yes\",\"No\")","v":"No"},{"$f":"VLOOKUP($D123,'C.1 - Rate Sheets'!$B$15:$F$25,2,FALSE)","v":39.43},{"$f":"VLOOKUP($D123,'C.1 - Rate Sheets'!$B$15:$F$25,3,FALSE)","v":53.62},{"$f":"VLOOKUP($D123,'C.1 - Rate Sheets'!$B$15:$F$25,4,FALSE)","v":0},{"$f":"VLOOKUP($D123,'C.1 - Rate Sheets'!$B$15:$F$25,5,FALSE)","v":0},null,null,null,null,null,null,null,null,null,null,null,16,null,null,null,8,8,null,null,null,8,8,null,null,null,8,8,null,null,null,8,8,null,null,null,8,8,null,null,null,null,16,null,null,null,null,null,null,null,null,null,null,null,null,null,null,null,null,null,null,null,null,null,null,null,null,null,null,null,null,40,72,0,0,112,1577.2,3860.64,0,0,5437.84,5437.84,"Yes",0,0,0]
[null,152,"Lunis Isaac","Trimmer A","Vendor No 3",55392,"82G04818","2018-10-21","2018-10-27",{"$f":"IF(AND(H124>='A - Contractor Summary'!$C$36,I124<='A - Contractor Summary'!$C$42),\"Yes\",\"No\")","v":"No"},{"$f":"VLOOKUP($D124,'C.1 - Rate Sheets'!$B$15:$F$25,2,FALSE)","v":29.1},{"$f":"VLOOKUP($D124,'C.1 - Rate Sheets'!$B$15:$F$25,3,FALSE)","v":39.68},{"$f":"VLOOKUP($D124,'C.1 - Rate Sheets'!$B$15:$F$25,4,FALSE)","v":0},{"$f":"VLOOKUP($D124,'C.1 - Rate Sheets'!$B$15:$F$25,5,FALSE)","v":0},null,null,null,null,null,null,null,null,null,null,null,16,null,null,null,8,8,null,null,null,8,8,null,null,null,8,8,null,null,null,8,8,null,null,null,8,8,null,null,null,null,16,null,null,null,null,null,null,null,null,null,null,null,null,null,null,null,null,null,null,null,null,null,null,null,null,null,null,null,null,40,72,0,0,112,1164,2856.96,0,0,4020.96,4020.96,"Yes",0,0,0]
[null,154,"Richard Louidor","Foreperson","Vendor No 3",55392,"82G04818","2018-10-21","2018-10-27",{"$f":"IF(AND(H125>='A - Contractor Summary'!$C$36,I125<='A - Contractor Summary'!$C$42),\"Yes\",\"No\")","v":"No"},{"$f":"VLOOKUP($D125,'C.1 - Rate Sheets'!$B$15:$F$25,2,FALSE)","v":39.43},{"$f":"VLOOKUP($D125,'C.1 - Rate Sheets'!$B$15:$F$25,3,FALSE)","v":53.62},{"$f":"VLOOKUP($D125,'C.1 - Rate Sheets'!$B$15:$F$25,4,FALSE)","v":0},{"$f":"VLOOKUP($D125,'C.1 - Rate Sheets'!$B$15:$F$25,5,FALSE)","v":0},null,null,null,null,null,null,null,null,null,null,null,16,null,null,null,8,8,null,null,null,8,8,null,null,null,8,8,null,null,null,8,8,null,null,null,8,8,null,null,null,null,16,null,null,null,null,null,null,null,null,null,null,null,null,null,null,null,null,null,null,null,null,null,null,null,null,null,null,null,null,40,72,0,0,112,1577.2,3860.64,0,0,5437.84,5437.84,"Yes",0,0,0]
[null,156,"Max Michaud","Trimmer A","Vendor No 3",55392,"82G04818","2018-10-21","2018-10-27",{"$f":"IF(AND(H126>='A - Contractor Summary'!$C$36,I126<='A - Contractor Summary'!$C$42),\"Yes\",\"No\")","v":"No"},{"$f":"VLOOKUP($D126,'C.1 - Rate Sheets'!$B$15:$F$25,2,FALSE)","v":29.1},{"$f":"VLOOKUP($D126,'C.1 - Rate Sheets'!$B$15:$F$25,3,FALSE)","v":39.68},{"$f":"VLOOKUP($D126,'C.1 - Rate Sheets'!$B$15:$F$25,4,FALSE)","v":0},{"$f":"VLOOKUP($D126,'C.1 - Rate Sheets'!$B$15:$F$25,5,FALSE)","v":0},null,null,null,null,null,null,null,null,null,null,null,16,null,null,null,8,8,null,null,null,8,8,null,null,null,8,8,null,null,null,8,8,null,null,null,8,8,null,null,null,null,16,null,null,null,null,null,null,null,null,null,null,null,null,null,null,null,null,null,null,null,null,null,null,null,null,null,null,null,null,40,72,0,0,112,1164,2856.96,0,0,4020.96,4020.96,"Yes",0,0,0]
[null,158,"Acmande Michel","Trimmer B","Vendor No 3",55392,"82G04818","2018-10-21","2018-10-27",{"$f":"IF(AND(H127>='A - Contractor Summary'!$C$36,I127<='A - Contractor Summary'!$C$42),\"Yes\",\"No\")","v":"No"},{"$f":"VLOOKUP($D127,'C.1 - Rate Sheets'!$B$15:$F$25,2,FALSE)","v":26.9},{"$f":"VLOOKUP($D127,'C.1 - Rate Sheets'!$B$15:$F$25,3,FALSE)","v":36.53},{"$f":"VLOOKUP($D127,'C.1 - Rate Sheets'!$B$15:$F$25,4,FALSE)","v":0},{"$f":"VLOOKUP($D127,'C.1 - Rate Sheets'!$B$15:$F$25,5,FALSE)","v":0},null,null,null,null,null,null,null,null,null,null,null,16,null,null,null,8,8,null,null,null,8,8,null,null,null,8,8,null,null,null,8,8,null,null,null,8,8,null,null,null,null,16,null,null,null,null,null,null,null,null,null,null,null,null,null,null,null,null,null,null,null,null,null,null,null,null,null,null,null,null,40,72,0,0,112,1076,2630.16,0,0,3706.16,3706.16,"Yes",0,0,0]
[null,160,"Jasmine Martin","Trimmer A","Vendor No 3",55392,"82G04818","2018-10-21","2018-10-27",{"$f":"IF(AND(H128>='A - Contractor Summary'!$C$36,I128<='A - Contractor Summary'!$C$42),\"Yes\",\"No\")","v":"No"},{"$f":"VLOOKUP($D128,'C.1 - Rate Sheets'!$B$15:$F$25,2,FALSE)","v":29.1},{"$f":"VLOOKUP($D128,'C.1 - Rate Sheets'!$B$15:$F$25,3,FALSE)","v":39.68},{"$f":"VLOOKUP($D128,'C.1 - Rate Sheets'!$B$15:$F$25,4,FALSE)","v":0},{"$f":"VLOOKUP($D128,'C.1 - Rate Sheets'!$B$15:$F$25,5,FALSE)","v":0},null,null,null,null,null,null,null,null,null,null,null,16,null,null,null,8,8,null,null,null,8,8,null,null,null,8,8,null,null,null,8,8,null,null,null,8,8,null,null,null,null,16,null,null,null,null,null,null,null,null,null,null,null,null,null,null,null,null,null,null,null,null,null,null,null,null,null,null,null,null,40,72,0,0,112,1164,2856.96,0,0,4020.96,4020.96,"Yes",0,0,0]
[null,162,"Termitus Jacques","Trimmer A","Vendor No 3",55392,"82G04818","2018-10-27","2018-10-27",{"$f":"IF(AND(H129>='A - Contractor Summary'!$C$36,I129<='A - Contractor Summary'!$C$42),\"Yes\",\"No\")","v":"No"},{"$f":"VLOOKUP($D129,'C.1 - Rate Sheets'!$B$15:$F$25,2,FALSE)","v":29.1},{"$f":"VLOOKUP($D129,'C.1 - Rate Sheets'!$B$15:$F$25,3,FALSE)","v":39.68},{"$f":"VLOOKUP($D129,'C.1 - Rate Sheets'!$B$15:$F$25,4,FALSE)","v":0},{"$f":"VLOOKUP($D129,'C.1 - Rate Sheets'!$B$15:$F$25,5,FALSE)","v":0},null,null,null,null,null,null,null,null,null,null,null,null,null,null,null,null,null,null,null,null,null,null,null,null,null,null,null,null,null,null,null,null,null,null,null,null,null,null,null,null,null,16,null,null,null,null,null,null,null,null,null,null,null,null,null,null,null,null,null,null,null,null,null,null,null,null,null,null,null,null,0,16,0,0,16,0,634.88,0,0,634.88,634.88,"Yes",0,0,0]
[null,null,null,null,null,null,null,null,null,null,null,null,null,null,null,null,null,null,null,null,null,null,null,null,null,null,null,null,null,null,null,null,null,null,null,null,null,null,null,null,null,null,null,null,null,null,null,null,null,null,null,null,null,null,null,null,null,null,null,null,null,null,null,null,null,null,null,null,null,null,null,null,null,null,null,null,null,null,null,null,null,null,null,null,0,0,0,0,0,0,0,0,0,0,0]
[null,163,"Daniel Stokes","Foreperson","Vendor No 3",50900,"82O62018","2018-10-28","2018-11-01",{"$f":"IF(AND(H131>='A - Contractor Summary'!$C$36,I131<='A - Contractor Summary'!$C$42),\"Yes\",\"No\")","v":"No"},{"$f":"VLOOKUP($D131,'C.1 - Rate Sheets'!$B$15:$F$25,2,FALSE)","v":39.43},{"$f":"VLOOKUP($D131,'C.1 - Rate Sheets'!$B$15:$F$25,3,FALSE)","v":53.62},{"$f":"VLOOKUP($D131,'C.1 - Rate Sheets'!$B$15:$F$25,4,FALSE)","v":0},{"$f":"VLOOKUP($D131,'C.1 - Rate Sheets'!$B$15:$F$25,5,FALSE)","v":0},null,null,null,null,null,null,null,null,null,null,null,null,null,null,null,null,null,null,null,null,null,null,null,null,null,null,null,null,null,null,null,null,null,null,null,null,null,null,null,null,null,null,null,null,null,null,16,null,null,null,8,8,null,null,null,8,8,null,null,null,8,8,null,null,null,8,0.5,null,null,null,32,40.5,0,0,72.5,1261.76,2171.6099999999997,0,0,3433.37,3433.37,"Yes",0,0,0]
[null,165,"Jeremy Fox ","Trimmer A","Vendor No 3",50900,"82O62018","2018-10-28","2018-11-01",{"$f":"IF(AND(H132>='A - Contractor Summary'!$C$36,I132<='A - Contractor Summary'!$C$42),\"Yes\",\"No\")","v":"No"},{"$f":"VLOOKUP($D132,'C.1 - Rate Sheets'!$B$15:$F$25,2,FALSE)","v":29.1},{"$f":"VLOOKUP($D132,'C.1 - Rate Sheets'!$B$15:$F$25,3,FALSE)","v":39.68},{"$f":"VLOOKUP($D132,'C.1 - Rate Sheets'!$B$15:$F$25,4,FALSE)","v":0},{"$f":"VLOOKUP($D132,'C.1 - Rate Sheets'!$B$15:$F$25,5,FALSE)","v":0},null,null,null,null,null,null,null,null,null,null,null,null,null,null,null,null,null,null,null,null,null,null,null,null,null,null,null,null,null,null,null,null,null,null,null,null,null,null,null,null,null,null,null,null,null,null,16,null,null,null,8,8,null,null,null,8,8,null,null,null,8,8,null,null,null,8,0.5,null,null,null,32,40.5,0,0,72.5,931.2,1607.04,0,0,2538.2399999999998,2538.2399999999998,"Yes",0,0,0]
[null,167,"Steve Ryan","Foreperson","Vendor No 3",50900,"82O62018","2018-10-28","2018-11-01",{"$f":"IF(AND(H133>='A - Contractor Summary'!$C$36,I133<='A - Contractor Summary'!$C$42),\"Yes\",\"No\")","v":"No"},{"$f":"VLOOKUP($D133,'C.1 - Rate Sheets'!$B$15:$F$25,2,FALSE)","v":39.43},{"$f":"VLOOKUP($D133,'C.1 - Rate Sheets'!$B$15:$F$25,3,FALSE)","v":53.62},{"$f":"VLOOKUP($D133,'C.1 - Rate Sheets'!$B$15:$F$25,4,FALSE)","v":0},{"$f":"VLOOKUP($D133,'C.1 - Rate Sheets'!$B$15:$F$25,5,FALSE)","v":0},null,null,null,null,null,null,null,null,null,null,null,null,null,null,null,null,null,null,null,null,null,null,null,null,null,null,null,null,null,null,null,null,null,null,null,null,null,null,null,null,null,null,null,null,null,null,16,null,null,null,8,8,null,null,null,8,8,null,null,null,8,8,null,null,null,8,0.5,null,null,null,32,40.5,0,0,72.5,1261.76,2171.6099999999997,0,0,3433.37,3433.37,"Yes",0,0,0]
[null,169,"Edward Thoman","Trimmer C","Vendor No 3",50900,"82O62018","2018-10-28","2018-11-01",{"$f":"IF(AND(H134>='A - Contractor Summary'!$C$36,I134<='A - Contractor Summary'!$C$42),\"Yes\",\"No\")","v":"No"},{"$f":"VLOOKUP($D134,'C.1 - Rate Sheets'!$B$15:$F$25,2,FALSE)","v":25.62},{"$f":"VLOOKUP($D134,'C.1 - Rate Sheets'!$B$15:$F$25,3,FALSE)","v":34.65},{"$f":"VLOOKUP($D134,'C.1 - Rate Sheets'!$B$15:$F$25,4,FALSE)","v":0},{"$f":"VLOOKUP($D134,'C.1 - Rate Sheets'!$B$15:$F$25,5,FALSE)","v":0},null,null,null,null,null,null,null,null,null,null,null,null,null,null,null,null,null,null,null,null,null,null,null,null,null,null,null,null,null,null,null,null,null,null,null,null,null,null,null,null,null,null,null,null,null,null,16,null,null,null,8,8,null,null,null,8,8,null,null,null,8,8,null,null,null,8,0.5,null,null,null,32,40.5,0,0,72.5,819.84,1403.325,0,0,2223.165,2223.165,"Yes",0,0,0]
[null,171,"William Tucker","Foreperson","Vendor No 3",50900,"82O62018","2018-10-28","2018-11-01",{"$f":"IF(AND(H135>='A - Contractor Summary'!$C$36,I135<='A - Contractor Summary'!$C$42),\"Yes\",\"No\")","v":"No"},{"$f":"VLOOKUP($D135,'C.1 - Rate Sheets'!$B$15:$F$25,2,FALSE)","v":39.43},{"$f":"VLOOKUP($D135,'C.1 - Rate Sheets'!$B$15:$F$25,3,FALSE)","v":53.62},{"$f":"VLOOKUP($D135,'C.1 - Rate Sheets'!$B$15:$F$25,4,FALSE)","v":0},{"$f":"VLOOKUP($D135,'C.1 - Rate Sheets'!$B$15:$F$25,5,FALSE)","v":0},null,null,null,null,null,null,null,null,null,null,null,null,null,null,null,null,null,null,null,null,null,null,null,null,null,null,null,null,null,null,null,null,null,null,null,null,null,null,null,null,null,null,null,null,null,null,16,null,null,null,8,8,null,null,null,8,8,null,null,null,8,8,null,null,null,8,0.5,null,null,null,32,40.5,0,0,72.5,1261.76,2171.6099999999997,0,0,3433.37,3433.37,"Yes",0,0,0]
[null,173,"Ritchie Busch Sr","Foreperson","Vendor No 3",50900,"82O62018","2018-10-28","2018-11-01",{"$f":"IF(AND(H136>='A - Contractor Summary'!$C$36,I136<='A - Contractor Summary'!$C$42),\"Yes\",\"No\")","v":"No"},{"$f":"VLOOKUP($D136,'C.1 - Rate Sheets'!$B$15:$F$25,2,FALSE)","v":39.43},{"$f":"VLOOKUP($D136,'C.1 - Rate Sheets'!$B$15:$F$25,3,FALSE)","v":53.62},{"$f":"VLOOKUP($D136,'C.1 - Rate Sheets'!$B$15:$F$25,4,FALSE)","v":0},{"$f":"VLOOKUP($D136,'C.1 - Rate Sheets'!$B$15:$F$25,5,FALSE)","v":0},null,null,null,null,null,null,null,null,null,null,null,null,null,null,null,null,null,null,null,null,null,null,null,null,null,null,null,null,null,null,null,null,null,null,null,null,null,null,null,null,null,null,null,null,null,null,16,null,null,null,8,8,null,null,null,8,8,null,null,null,8,8,null,null,null,8,0.5,null,null,null,32,40.5,0,0,72.5,1261.76,2171.6099999999997,0,0,3433.37,3433.37,"Yes",0,0,0]
[null,175,"Garth Hightower","Trimmer A","Vendor No 3",50900,"82O62018","2018-10-28","2018-11-01",{"$f":"IF(AND(H137>='A - Contractor Summary'!$C$36,I137<='A - Contractor Summary'!$C$42),\"Yes\",\"No\")","v":"No"},{"$f":"VLOOKUP($D137,'C.1 - Rate Sheets'!$B$15:$F$25,2,FALSE)","v":29.1},{"$f":"VLOOKUP($D137,'C.1 - Rate Sheets'!$B$15:$F$25,3,FALSE)","v":39.68},{"$f":"VLOOKUP($D137,'C.1 - Rate Sheets'!$B$15:$F$25,4,FALSE)","v":0},{"$f":"VLOOKUP($D137,'C.1 - Rate Sheets'!$B$15:$F$25,5,FALSE)","v":0},null,null,null,null,null,null,null,null,null,null,null,null,null,null,null,null,null,null,null,null,null,null,null,null,null,null,null,null,null,null,null,null,null,null,null,null,null,null,null,null,null,null,null,null,null,null,16,null,null,null,8,8,null,null,null,8,8,null,null,null,8,8,null,null,null,8,0.5,null,null,null,32,40.5,0,0,72.5,931.2,1607.04,0,0,2538.2399999999998,2538.2399999999998,"Yes",0,0,0]
[null,177,"Donny Roberts","Foreperson","Vendor No 3",50900,"82O62018","2018-10-28","2018-11-01",{"$f":"IF(AND(H138>='A - Contractor Summary'!$C$36,I138<='A - Contractor Summary'!$C$42),\"Yes\",\"No\")","v":"No"},{"$f":"VLOOKUP($D138,'C.1 - Rate Sheets'!$B$15:$F$25,2,FALSE)","v":39.43},{"$f":"VLOOKUP($D138,'C.1 - Rate Sheets'!$B$15:$F$25,3,FALSE)","v":53.62},{"$f":"VLOOKUP($D138,'C.1 - Rate Sheets'!$B$15:$F$25,4,FALSE)","v":0},{"$f":"VLOOKUP($D138,'C.1 - Rate Sheets'!$B$15:$F$25,5,FALSE)","v":0},null,null,null,null,null,null,null,null,null,null,null,null,null,null,null,null,null,null,null,null,null,null,null,null,null,null,null,null,null,null,null,null,null,null,null,null,null,null,null,null,null,null,null,null,null,null,16,null,null,null,8,8,null,null,null,8,8,null,null,null,8,8,null,null,null,8,0.5,null,null,null,32,40.5,0,0,72.5,1261.76,2171.6099999999997,0,0,3433.37,3433.37,"Yes",0,0,0]
[null,179,"Jose Roman","Trimmer A","Vendor No 3",50900,"82O62018","2018-10-28","2018-11-01",{"$f":"IF(AND(H139>='A - Contractor Summary'!$C$36,I139<='A - Contractor Summary'!$C$42),\"Yes\",\"No\")","v":"No"},{"$f":"VLOOKUP($D139,'C.1 - Rate Sheets'!$B$15:$F$25,2,FALSE)","v":29.1},{"$f":"VLOOKUP($D139,'C.1 - Rate Sheets'!$B$15:$F$25,3,FALSE)","v":39.68},{"$f":"VLOOKUP($D139,'C.1 - Rate Sheets'!$B$15:$F$25,4,FALSE)","v":0},{"$f":"VLOOKUP($D139,'C.1 - Rate Sheets'!$B$15:$F$25,5,FALSE)","v":0},null,null,null,null,null,null,null,null,null,null,null,null,null,null,null,null,null,null,null,null,null,null,null,null,null,null,null,null,null,null,null,null,null,null,null,null,null,null,null,null,null,null,null,null,null,null,16,null,null,null,8,8,null,null,null,8,8,null,null,null,8,8,null,null,null,8,0.5,null,null,null,32,40.5,0,0,72.5,931.2,1607.04,0,0,2538.2399999999998,2538.2399999999998,"Yes",0,0,0]
[null,181,"Eric Johnson","Foreperson","Vendor No 3",50900,"82O62018","2018-10-28","2018-11-01",{"$f":"IF(AND(H140>='A - Contractor Summary'!$C$36,I140<='A - Contractor Summary'!$C$42),\"Yes\",\"No\")","v":"No"},{"$f":"VLOOKUP($D140,'C.1 - Rate Sheets'!$B$15:$F$25,2,FALSE)","v":39.43},{"$f":"VLOOKUP($D140,'C.1 - Rate Sheets'!$B$15:$F$25,3,FALSE)","v":53.62},{"$f":"VLOOKUP($D140,'C.1 - Rate Sheets'!$B$15:$F$25,4,FALSE)","v":0},{"$f":"VLOOKUP($D140,'C.1 - Rate Sheets'!$B$15:$F$25,5,FALSE)","v":0},null,null,null,null,null,null,null,null,null,null,null,null,null,null,null,null,null,null,null,null,null,null,null,null,null,null,null,null,null,null,null,null,null,null,null,null,null,null,null,null,null,null,null,null,null,null,16,null,null,null,8,8,null,null,null,8,8,null,null,null,8,8,null,null,null,8,0.5,null,null,null,32,40.5,0,0,72.5,1261.76,2171.6099999999997,0,0,3433.37,3433.37,"Yes",0,0,0]
[null,183,"Chad Jacobs","Trimmer A","Vendor No 3",50900,"82O62018","2018-10-28","2018-11-01",{"$f":"IF(AND(H141>='A - Contractor Summary'!$C$36,I141<='A - Contractor Summary'!$C$42),\"Yes\",\"No\")","v":"No"},{"$f":"VLOOKUP($D141,'C.1 - Rate Sheets'!$B$15:$F$25,2,FALSE)","v":29.1},{"$f":"VLOOKUP($D141,'C.1 - Rate Sheets'!$B$15:$F$25,3,FALSE)","v":39.68},{"$f":"VLOOKUP($D141,'C.1 - Rate Sheets'!$B$15:$F$25,4,FALSE)","v":0},{"$f":"VLOOKUP($D141,'C.1 - Rate Sheets'!$B$15:$F$25,5,FALSE)","v":0},null,null,null,null,null,null,null,null,null,null,null,null,null,null,null,null,null,null,null,null,null,null,null,null,null,null,null,null,null,null,null,null,null,null,null,null,null,null,null,null,null,null,null,null,null,null,16,null,null,null,8,8,null,null,null,8,8,null,null,null,8,8,null,null,null,8,0.5,null,null,null,32,40.5,0,0,72.5,931.2,1607.04,0,0,2538.2399999999998,2538.2399999999998,"Yes",0,0,0]
[null,null,null,null,null,null,null,null,null,null,null,null,null,null,null,null,null,null,null,null,null,null,null,null,null,null,null,null,null,null,null,null,null,null,null,null,null,null,null,null,null,null,null,null,null,null,null,null,null,null,null,null,null,null,null,null,null,null,null,null,null,null,null,null,null,null,null,null,null,null,null,null,null,null,null,null,null,null,null,null,null,null,null,null,0,0,0,0,0,0,0,0,0,0,0,"Yes",0,0,0]
[null,185,"Joel Joseph","General Foreman","Vendor No 3",55392,"82O61918","2018-10-28","2018-11-01",{"$f":"IF(AND(H143>='A - Contractor Summary'!$C$36,I143<='A - Contractor Summary'!$C$42),\"Yes\",\"No\")","v":"No"},{"$f":"VLOOKUP($D143,'C.1 - Rate Sheets'!$B$15:$F$25,2,FALSE)","v":45.03},{"$f":"VLOOKUP($D143,'C.1 - Rate Sheets'!$B$15:$F$25,3,FALSE)","v":61.99},{"$f":"VLOOKUP($D143,'C.1 - Rate Sheets'!$B$15:$F$25,4,FALSE)","v":0},{"$f":"VLOOKUP($D143,'C.1 - Rate Sheets'!$B$15:$F$25,5,FALSE)","v":0},null,null,null,null,null,null,null,null,null,null,null,null,null,null,null,null,null,null,null,null,null,null,null,null,null,null,null,null,null,null,null,null,null,null,null,null,null,null,null,null,null,null,null,null,null,null,16,null,null,null,8,8,null,null,null,8,8,null,null,null,8,8,null,null,null,8,8,null,null,null,32,48,0,0,80,1440.96,2975.52,0,0,4416.4799999999996,4416.4799999999996,"Yes",0,0,0]
[null,187,"Antoine Jacquesson","Foreperson","Vendor No 3",55392,"82O61918","2018-10-28","2018-11-01",{"$f":"IF(AND(H144>='A - Contractor Summary'!$C$36,I144<='A - Contractor Summary'!$C$42),\"Yes\",\"No\")","v":"No"},{"$f":"VLOOKUP($D144,'C.1 - Rate Sheets'!$B$15:$F$25,2,FALSE)","v":39.43},{"$f":"VLOOKUP($D144,'C.1 - Rate Sheets'!$B$15:$F$25,3,FALSE)","v":53.62},{"$f":"VLOOKUP($D144,'C.1 - Rate Sheets'!$B$15:$F$25,4,FALSE)","v":0},{"$f":"VLOOKUP($D144,'C.1 - Rate Sheets'!$B$15:$F$25,5,FALSE)","v":0},null,null,null,null,null,null,null,null,null,null,null,null,null,null,null,null,null,null,null,null,null,null,null,null,null,null,null,null,null,null,null,null,null,null,null,null,null,null,null,null,null,null,null,null,null,null,16,null,null,null,8,8,null,null,null,8,8,null,null,null,8,8,null,null,null,8,8,null,null,null,32,48,0,0,80,1261.76,2573.7599999999998,0,0,3835.5199999999995,3835.5199999999995,"Yes",0,0,0]
[null,189,"Edgar Fenelon","Trimmer B","Vendor No 3",55392,"82O61918","2018-10-28","2018-11-01",{"$f":"IF(AND(H145>='A - Contractor Summary'!$C$36,I145<='A - Contractor Summary'!$C$42),\"Yes\",\"No\")","v":"No"},{"$f":"VLOOKUP($D145,'C.1 - Rate Sheets'!$B$15:$F$25,2,FALSE)","v":26.9},{"$f":"VLOOKUP($D145,'C.1 - Rate Sheets'!$B$15:$F$25,3,FALSE)","v":36.53},{"$f":"VLOOKUP($D145,'C.1 - Rate Sheets'!$B$15:$F$25,4,FALSE)","v":0},{"$f":"VLOOKUP($D145,'C.1 - Rate Sheets'!$B$15:$F$25,5,FALSE)","v":0},null,null,null,null,null,null,null,null,null,null,null,null,null,null,null,null,null,null,null,null,null,null,null,null,null,null,null,null,null,null,null,null,null,null,null,null,null,null,null,null,null,null,null,null,null,null,16,null,null,null,8,8,null,null,null,8,8,null,null,null,8,8,null,null,null,8,8,null,null,null,32,48,0,0,80,860.8,1753.44,0,0,2614.2399999999998,2614.2399999999998,"Yes",0,0,0]
[null,191,"Peter Joseph","Trimmer A","Vendor No 3",55392,"82O61918","2018-10-28","2018-11-01",{"$f":"IF(AND(H146>='A - Contractor Summary'!$C$36,I146<='A - Contractor Summary'!$C$42),\"Yes\",\"No\")","v":"No"},{"$f":"VLOOKUP($D146,'C.1 - Rate Sheets'!$B$15:$F$25,2,FALSE)","v":29.1},{"$f":"VLOOKUP($D146,'C.1 - Rate Sheets'!$B$15:$F$25,3,FALSE)","v":39.68},{"$f":"VLOOKUP($D146,'C.1 - Rate Sheets'!$B$15:$F$25,4,FALSE)","v":0},{"$f":"VLOOKUP($D146,'C.1 - Rate Sheets'!$B$15:$F$25,5,FALSE)","v":0},null,null,null,null,null,null,null,null,null,null,null,null,null,null,null,null,null,null,null,null,null,null,null,null,null,null,null,null,null,null,null,null,null,null,null,null,null,null,null,null,null,null,null,null,null,null,16,null,null,null,8,8,null,null,null,8,8,null,null,null,8,8,null,null,null,8,8,null,null,null,32,48,0,0,80,931.2,1904.6399999999999,0,0,2835.84,2835.84,"Yes",0,0,0]
[null,193,"Giles Frederick","Foreperson","Vendor No 3",55392,"82O61918","2018-10-28","2018-11-01",{"$f":"IF(AND(H147>='A - Contractor Summary'!$C$36,I147<='A - Contractor Summary'!$C$42),\"Yes\",\"No\")","v":"No"},{"$f":"VLOOKUP($D147,'C.1 - Rate Sheets'!$B$15:$F$25,2,FALSE)","v":39.43},{"$f":"VLOOKUP($D147,'C.1 - Rate Sheets'!$B$15:$F$25,3,FALSE)","v":53.62},{"$f":"VLOOKUP($D147,'C.1 - Rate Sheets'!$B$15:$F$25,4,FALSE)","v":0},{"$f":"VLOOKUP($D147,'C.1 - Rate Sheets'!$B$15:$F$25,5,FALSE)","v":0},null,null,null,null,null,null,null,null,null,null,null,null,null,null,null,null,null,null,null,null,null,null,null,null,null,null,null,null,null,null,null,null,null,null,null,null,null,null,null,null,null,null,null,null,null,null,16,null,null,null,8,8,null,null,null,8,8,null,null,null,8,8,null,null,null,8,8,null,null,null,32,48,0,0,80,1261.76,2573.7599999999998,0,0,3835.5199999999995,3835.5199999999995,"Yes",0,0,0]
[null,195,"Ismith Saint Clous","Foreperson","Vendor No 3",55392,"82O61918","2018-10-28","2018-11-01",{"$f":"IF(AND(H148>='A - Contractor Summary'!$C$36,I148<='A - Contractor Summary'!$C$42),\"Yes\",\"No\")","v":"No"},{"$f":"VLOOKUP($D148,'C.1 - Rate Sheets'!$B$15:$F$25,2,FALSE)","v":39.43},{"$f":"VLOOKUP($D148,'C.1 - Rate Sheets'!$B$15:$F$25,3,FALSE)","v":53.62},{"$f":"VLOOKUP($D148,'C.1 - Rate Sheets'!$B$15:$F$25,4,FALSE)","v":0},{"$f":"VLOOKUP($D148,'C.1 - Rate Sheets'!$B$15:$F$25,5,FALSE)","v":0},null,null,null,null,null,null,null,null,null,null,null,null,null,null,null,null,null,null,null,null,null,null,null,null,null,null,null,null,null,null,null,null,null,null,null,null,null,null,null,null,null,null,null,null,null,null,16,null,null,null,8,8,null,null,null,8,8,null,null,null,8,8,null,null,null,8,8,null,null,null,32,48,0,0,80,1261.76,2573.7599999999998,0,0,3835.5199999999995,3835.5199999999995,"Yes",0,0,0]
[null,197,"Luco Morency","Trimmer A","Vendor No 3",55392,"82O61918","2018-10-28","2018-11-01",{"$f":"IF(AND(H149>='A - Contractor Summary'!$C$36,I149<='A - Contractor Summary'!$C$42),\"Yes\",\"No\")","v":"No"},{"$f":"VLOOKUP($D149,'C.1 - Rate Sheets'!$B$15:$F$25,2,FALSE)","v":29.1},{"$f":"VLOOKUP($D149,'C.1 - Rate Sheets'!$B$15:$F$25,3,FALSE)","v":39.68},{"$f":"VLOOKUP($D149,'C.1 - Rate Sheets'!$B$15:$F$25,4,FALSE)","v":0},{"$f":"VLOOKUP($D149,'C.1 - Rate Sheets'!$B$15:$F$25,5,FALSE)","v":0},null,null,null,null,null,null,null,null,null,null,null,null,null,null,null,null,null,null,null,null,null,null,null,null,null,null,null,null,null,null,null,null,null,null,null,null,null,null,null,null,null,null,null,null,null,null,16,null,null,null,8,8,null,null,null,8,8,null,null,null,8,8,null,null,null,8,8,null,null,null,{"$f":"O149+T149+Y149+AD149+AI149+AN149+AS149+AX149+BC149+BH149+BM149+BR149+BW149+CB149","v":32},{"$f":"P149+U149+Z149+AE149+AJ149+AO149+AT149+AY149+BD149+BI149+BN149+BS149+BX149+CC149","v":48},{"$f":"Q149+V149+AA149+AF149+AK149+AP149+AU149+AZ149+BE149+BJ149+BO149+BT149+BY149+CD149","v":0},{"$f":"R149+W149+AB149+AG149+AL149+AQ149+AV149+BA149+BF149+BK149+BP149+BU149+BZ149+CE149","v":0},{"$f":"SUM(CG149:CJ149)","v":80},{"$f":"CG149*K149","v":931.2},{"$f":"CH149*L149","v":1904.6399999999999},{"$f":"CI149*M149","v":0},{"$f":"CJ149*N149","v":0},{"$f":"SUM(CL149:CO149)","v":2835.84},{"$f":"CP149-CS149","v":2835.84},"Yes",0,0,0]
[null,199,"Paulin Toussaint","Trimmer A","Vendor No 3",55392,"82O61918","2018-10-28","2018-11-01",{"$f":"IF(AND(H150>='A - Contractor Summary'!$C$36,I150<='A - Contractor Summary'!$C$42),\"Yes\",\"No\")","v":"No"},{"$f":"VLOOKUP($D150,'C.1 - Rate Sheets'!$B$15:$F$25,2,FALSE)","v":29.1},{"$f":"VLOOKUP($D150,'C.1 - Rate Sheets'!$B$15:$F$25,3,FALSE)","v":39.68},{"$f":"VLOOKUP($D150,'C.1 - Rate Sheets'!$B$15:$F$25,4,FALSE)","v":0},{"$f":"VLOOKUP($D150,'C.1 - Rate Sheets'!$B$15:$F$25,5,FALSE)","v":0},null,null,null,null,null,null,null,null,null,null,null,null,null,null,null,null,null,null,null,null,null,null,null,null,null,null,null,null,null,null,null,null,null,null,null,null,null,null,null,null,null,null,null,null,null,null,16,null,null,null,8,8,null,null,null,8,8,null,null,null,8,8,null,null,null,8,8,null,null,null,32,48,0,0,80,931.2,1904.6399999999999,0,0,2835.84,2835.84,"Yes",0,0,0]
[null,201,"Claude Laguerre","Foreperson","Vendor No 3",55392,"82O61918","2018-10-28","2018-11-01",{"$f":"IF(AND(H151>='A - Contractor Summary'!$C$36,I151<='A - Contractor Summary'!$C$42),\"Yes\",\"No\")","v":"No"},{"$f":"VLOOKUP($D151,'C.1 - Rate Sheets'!$B$15:$F$25,2,FALSE)","v":39.43},{"$f":"VLOOKUP($D151,'C.1 - Rate Sheets'!$B$15:$F$25,3,FALSE)","v":53.62},{"$f":"VLOOKUP($D151,'C.1 - Rate Sheets'!$B$15:$F$25,4,FALSE)","v":0},{"$f":"VLOOKUP($D151,'C.1 - Rate Sheets'!$B$15:$F$25,5,FALSE)","v":0},null,null,null,null,null,null,null,null,null,null,null,null,null,null,null,null,null,null,null,null,null,null,null,null,null,null,null,null,null,null,null,null,null,null,null,null,null,null,null,null,null,null,null,null,null,null,16,null,null,null,8,8,null,null,null,8,8,null,null,null,8,8,null,null,null,8,8,null,null,null,32,48,0,0,80,1261.76,2573.7599999999998,0,0,3835.5199999999995,3835.5199999999995,"Yes",0,0,0]
[null,203,"Francois Andre","Trimmer A","Vendor No 3",55392,"82O61918","2018-10-28","2018-11-01",{"$f":"IF(AND(H152>='A - Contractor Summary'!$C$36,I152<='A - Contractor Summary'!$C$42),\"Yes\",\"No\")","v":"No"},{"$f":"VLOOKUP($D152,'C.1 - Rate Sheets'!$B$15:$F$25,2,FALSE)","v":29.1},{"$f":"VLOOKUP($D152,'C.1 - Rate Sheets'!$B$15:$F$25,3,FALSE)","v":39.68},{"$f":"VLOOKUP($D152,'C.1 - Rate Sheets'!$B$15:$F$25,4,FALSE)","v":0},{"$f":"VLOOKUP($D152,'C.1 - Rate Sheets'!$B$15:$F$25,5,FALSE)","v":0},null,null,null,null,null,null,null,null,null,null,null,null,null,null,null,null,null,null,null,null,null,null,null,null,null,null,null,null,null,null,null,null,null,null,null,null,null,null,null,null,null,null,null,null,null,null,16,null,null,null,8,8,null,null,null,8,8,null,null,null,8,8,null,null,null,8,8,null,null,null,32,48,0,0,80,931.2,1904.6399999999999,0,0,2835.84,2835.84,"Yes",0,0,0]
[null,205,"Paul Donald","Trimmer A","Vendor No 3",55392,"82O61918","2018-10-28","2018-11-01",{"$f":"IF(AND(H153>='A - Contractor Summary'!$C$36,I153<='A - Contractor Summary'!$C$42),\"Yes\",\"No\")","v":"No"},{"$f":"VLOOKUP($D153,'C.1 - Rate Sheets'!$B$15:$F$25,2,FALSE)","v":29.1},{"$f":"VLOOKUP($D153,'C.1 - Rate Sheets'!$B$15:$F$25,3,FALSE)","v":39.68},{"$f":"VLOOKUP($D153,'C.1 - Rate Sheets'!$B$15:$F$25,4,FALSE)","v":0},{"$f":"VLOOKUP($D153,'C.1 - Rate Sheets'!$B$15:$F$25,5,FALSE)","v":0},null,null,null,null,null,null,null,null,null,null,null,null,null,null,null,null,null,null,null,null,null,null,null,null,null,null,null,null,null,null,null,null,null,null,null,null,null,null,null,null,null,null,null,null,null,null,16,null,null,null,8,8,null,null,null,8,8,null,null,null,8,8,null,null,null,8,8,null,null,null,32,48,0,0,80,931.2,1904.6399999999999,0,0,2835.84,2835.84,"Yes",0,0,0]
[null,207,"Elie Nerestan","Trimmer A","Vendor No 3",55392,"82O61918","2018-10-28","2018-11-01",{"$f":"IF(AND(H154>='A - Contractor Summary'!$C$36,I154<='A - Contractor Summary'!$C$42),\"Yes\",\"No\")","v":"No"},{"$f":"VLOOKUP($D154,'C.1 - Rate Sheets'!$B$15:$F$25,2,FALSE)","v":29.1},{"$f":"VLOOKUP($D154,'C.1 - Rate Sheets'!$B$15:$F$25,3,FALSE)","v":39.68},{"$f":"VLOOKUP($D154,'C.1 - Rate Sheets'!$B$15:$F$25,4,FALSE)","v":0},{"$f":"VLOOKUP($D154,'C.1 - Rate Sheets'!$B$15:$F$25,5,FALSE)","v":0},null,null,null,null,null,null,null,null,null,null,null,null,null,null,null,null,null,null,null,null,null,null,null,null,null,null,null,null,null,null,null,null,null,null,null,null,null,null,null,null,null,null,null,null,null,null,16,null,null,null,8,8,null,null,null,8,8,null,null,null,8,8,null,null,null,8,8,null,null,null,32,48,0,0,80,931.2,1904.6399999999999,0,0,2835.84,2835.84,"Yes",0,0,0]
[null,209,"Bruce Bien Aime","Trimmer B","Vendor No 3",55392,"82O61918","2018-10-28","2018-11-01",{"$f":"IF(AND(H155>='A - Contractor Summary'!$C$36,I155<='A - Contractor Summary'!$C$42),\"Yes\",\"No\")","v":"No"},{"$f":"VLOOKUP($D155,'C.1 - Rate Sheets'!$B$15:$F$25,2,FALSE)","v":26.9},{"$f":"VLOOKUP($D155,'C.1 - Rate Sheets'!$B$15:$F$25,3,FALSE)","v":36.53},{"$f":"VLOOKUP($D155,'C.1 - Rate Sheets'!$B$15:$F$25,4,FALSE)","v":0},{"$f":"VLOOKUP($D155,'C.1 - Rate Sheets'!$B$15:$F$25,5,FALSE)","v":0},null,null,null,null,null,null,null,null,null,null,null,null,null,null,null,null,null,null,null,null,null,null,null,null,null,null,null,null,null,null,null,null,null,null,null,null,null,null,null,null,null,null,null,null,null,null,16,null,null,null,8,8,null,null,null,8,8,null,null,null,8,8,null,null,null,8,8,null,null,null,32,48,0,0,80,860.8,1753.44,0,0,2614.2399999999998,2614.2399999999998,"Yes",0,0,0]
[null,211,"Reginal Coissy","Trimmer A","Vendor No 3",55392,"82O61918","2018-10-28","2018-11-01",{"$f":"IF(AND(H156>='A - Contractor Summary'!$C$36,I156<='A - Contractor Summary'!$C$42),\"Yes\",\"No\")","v":"No"},{"$f":"VLOOKUP($D156,'C.1 - Rate Sheets'!$B$15:$F$25,2,FALSE)","v":29.1},{"$f":"VLOOKUP($D156,'C.1 - Rate Sheets'!$B$15:$F$25,3,FALSE)","v":39.68},{"$f":"VLOOKUP($D156,'C.1 - Rate Sheets'!$B$15:$F$25,4,FALSE)","v":0},{"$f":"VLOOKUP($D156,'C.1 - Rate Sheets'!$B$15:$F$25,5,FALSE)","v":0},null,null,null,null,null,null,null,null,null,null,null,null,null,null,null,null,null,null,null,null,null,null,null,null,null,null,null,null,null,null,null,null,null,null,null,null,null,null,null,null,null,null,null,null,null,null,16,null,null,null,8,8,null,null,null,8,8,null,null,null,8,8,null,null,null,8,8,null,null,null,32,48,0,0,80,931.2,1904.6399999999999,0,0,2835.84,2835.84,"Yes",0,0,0]
[null,213,"Ruben Romero","Foreperson","Vendor No 3",55392,"82O61918","2018-10-28","2018-11-01",{"$f":"IF(AND(H157>='A - Contractor Summary'!$C$36,I157<='A - Contractor Summary'!$C$42),\"Yes\",\"No\")","v":"No"},{"$f":"VLOOKUP($D157,'C.1 - Rate Sheets'!$B$15:$F$25,2,FALSE)","v":39.43},{"$f":"VLOOKUP($D157,'C.1 - Rate Sheets'!$B$15:$F$25,3,FALSE)","v":53.62},{"$f":"VLOOKUP($D157,'C.1 - Rate Sheets'!$B$15:$F$25,4,FALSE)","v":0},{"$f":"VLOOKUP($D157,'C.1 - Rate Sheets'!$B$15:$F$25,5,FALSE)","v":0},null,null,null,null,null,null,null,null,null,null,null,null,null,null,null,null,null,null,null,null,null,null,null,null,null,null,null,null,null,null,null,null,null,null,null,null,null,null,null,null,null,null,null,null,null,null,16,null,null,null,8,8,null,null,null,8,8,null,null,null,8,8,null,null,null,8,8,null,null,null,32,48,0,0,80,1261.76,2573.7599999999998,0,0,3835.5199999999995,3835.5199999999995,"Yes",0,0,0]
[null,215,"Termitus Jacques","Trimmer A","Vendor No 3",55392,"82O61918","2018-10-28","2018-11-01",{"$f":"IF(AND(H158>='A - Contractor Summary'!$C$36,I158<='A - Contractor Summary'!$C$42),\"Yes\",\"No\")","v":"No"},{"$f":"VLOOKUP($D158,'C.1 - Rate Sheets'!$B$15:$F$25,2,FALSE)","v":29.1},{"$f":"VLOOKUP($D158,'C.1 - Rate Sheets'!$B$15:$F$25,3,FALSE)","v":39.68},{"$f":"VLOOKUP($D158,'C.1 - Rate Sheets'!$B$15:$F$25,4,FALSE)","v":0},{"$f":"VLOOKUP($D158,'C.1 - Rate Sheets'!$B$15:$F$25,5,FALSE)","v":0},null,null,null,null,null,null,null,null,null,null,null,null,null,null,null,null,null,null,null,null,null,null,null,null,null,null,null,null,null,null,null,null,null,null,null,null,null,null,null,null,null,null,null,null,null,null,16,null,null,null,8,8,null,null,null,8,8,null,null,null,8,8,null,null,null,8,8,null,null,null,32,48,0,0,80,931.2,1904.6399999999999,0,0,2835.84,2835.84,"Yes",0,0,0]
[null,217,"Philome Croissy","Trimmer A","Vendor No 3",55392,"82O61918","2018-10-28","2018-11-01",{"$f":"IF(AND(H159>='A - Contractor Summary'!$C$36,I159<='A - Contractor Summary'!$C$42),\"Yes\",\"No\")","v":"No"},{"$f":"VLOOKUP($D159,'C.1 - Rate Sheets'!$B$15:$F$25,2,FALSE)","v":29.1},{"$f":"VLOOKUP($D159,'C.1 - Rate Sheets'!$B$15:$F$25,3,FALSE)","v":39.68},{"$f":"VLOOKUP($D159,'C.1 - Rate Sheets'!$B$15:$F$25,4,FALSE)","v":0},{"$f":"VLOOKUP($D159,'C.1 - Rate Sheets'!$B$15:$F$25,5,FALSE)","v":0},null,null,null,null,null,null,null,null,null,null,null,null,null,null,null,null,null,null,null,null,null,null,null,null,null,null,null,null,null,null,null,null,null,null,null,null,null,null,null,null,null,null,null,null,null,null,16,null,null,null,8,8,null,null,null,8,8,null,null,null,8,8,null,null,null,8,8,null,null,null,32,48,0,0,80,931.2,1904.6399999999999,0,0,2835.84,2835.84,"Yes",0,0,0]
[null,219,"Claudain Duroque","Foreperson","Vendor No 3",55392,"82O61918","2018-10-28","2018-11-01",{"$f":"IF(AND(H160>='A - Contractor Summary'!$C$36,I160<='A - Contractor Summary'!$C$42),\"Yes\",\"No\")","v":"No"},{"$f":"VLOOKUP($D160,'C.1 - Rate Sheets'!$B$15:$F$25,2,FALSE)","v":39.43},{"$f":"VLOOKUP($D160,'C.1 - Rate Sheets'!$B$15:$F$25,3,FALSE)","v":53.62},{"$f":"VLOOKUP($D160,'C.1 - Rate Sheets'!$B$15:$F$25,4,FALSE)","v":0},{"$f":"VLOOKUP($D160,'C.1 - Rate Sheets'!$B$15:$F$25,5,FALSE)","v":0},null,null,null,null,null,null,null,null,null,null,null,null,null,null,null,null,null,null,null,null,null,null,null,null,null,null,null,null,null,null,null,null,null,null,null,null,null,null,null,null,null,null,null,null,null,null,16,null,null,null,8,8,null,null,null,8,8,null,null,null,8,8,null,null,null,8,8,null,null,null,32,48,0,0,80,1261.76,2573.7599999999998,0,0,3835.5199999999995,3835.5199999999995,"Yes",0,0,0]
[null,221,"Lunis Isaac","Trimmer A","Vendor No 3",55392,"82O61918","2018-10-28","2018-11-01",{"$f":"IF(AND(H161>='A - Contractor Summary'!$C$36,I161<='A - Contractor Summary'!$C$42),\"Yes\",\"No\")","v":"No"},{"$f":"VLOOKUP($D161,'C.1 - Rate Sheets'!$B$15:$F$25,2,FALSE)","v":29.1},{"$f":"VLOOKUP($D161,'C.1 - Rate Sheets'!$B$15:$F$25,3,FALSE)","v":39.68},{"$f":"VLOOKUP($D161,'C.1 - Rate Sheets'!$B$15:$F$25,4,FALSE)","v":0},{"$f":"VLOOKUP($D161,'C.1 - Rate Sheets'!$B$15:$F$25,5,FALSE)","v":0},null,null,null,null,null,null,null,null,null,null,null,null,null,null,null,null,null,null,null,null,null,null,null,null,null,null,null,null,null,null,null,null,null,null,null,null,null,null,null,null,null,null,null,null,null,null,16,null,null,null,8,8,null,null,null,8,8,null,null,null,8,8,null,null,null,8,8,null,null,null,32,48,0,0,80,931.2,1904.6399999999999,0,0,2835.84,2835.84,"Yes",0,0,0]
[null,223,"Richard Louidor","Foreperson","Vendor No 3",55392,"82O61918","2018-10-28","2018-11-01",{"$f":"IF(AND(H162>='A - Contractor Summary'!$C$36,I162<='A - Contractor Summary'!$C$42),\"Yes\",\"No\")","v":"No"},{"$f":"VLOOKUP($D162,'C.1 - Rate Sheets'!$B$15:$F$25,2,FALSE)","v":39.43},{"$f":"VLOOKUP($D162,'C.1 - Rate Sheets'!$B$15:$F$25,3,FALSE)","v":53.62},{"$f":"VLOOKUP($D162,'C.1 - Rate Sheets'!$B$15:$F$25,4,FALSE)","v":0},{"$f":"VLOOKUP($D162,'C.1 - Rate Sheets'!$B$15:$F$25,5,FALSE)","v":0},null,null,null,null,null,null,null,null,null,null,null,null,null,null,null,null,null,null,null,null,null,null,null,null,null,null,null,null,null,null,null,null,null,null,null,null,null,null,null,null,null,null,null,null,null,null,16,null,null,null,8,8,null,null,null,8,8,null,null,null,8,8,null,null,null,8,8,null,null,null,32,48,0,0,80,1261.76,2573.7599999999998,0,0,3835.5199999999995,3835.5199999999995,"Yes",0,0,0]
[null,225,"Max Michaud","Trimmer A","Vendor No 3",55392,"82O61918","2018-10-28","2018-11-01",{"$f":"IF(AND(H163>='A - Contractor Summary'!$C$36,I163<='A - Contractor Summary'!$C$42),\"Yes\",\"No\")","v":"No"},{"$f":"VLOOKUP($D163,'C.1 - Rate Sheets'!$B$15:$F$25,2,FALSE)","v":29.1},{"$f":"VLOOKUP($D163,'C.1 - Rate Sheets'!$B$15:$F$25,3,FALSE)","v":39.68},{"$f":"VLOOKUP($D163,'C.1 - Rate Sheets'!$B$15:$F$25,4,FALSE)","v":0},{"$f":"VLOOKUP($D163,'C.1 - Rate Sheets'!$B$15:$F$25,5,FALSE)","v":0},null,null,null,null,null,null,null,null,null,null,null,null,null,null,null,null,null,null,null,null,null,null,null,null,null,null,null,null,null,null,null,null,null,null,null,null,null,null,null,null,null,null,null,null,null,null,16,null,null,null,8,8,null,null,null,8,8,null,null,null,8,8,null,null,null,8,8,null,null,null,32,48,0,0,80,931.2,1904.6399999999999,0,0,2835.84,2835.84,"Yes",0,0,0]
[null,227,"Acmande Michel","Trimmer B","Vendor No 3",55392,"82O61918","2018-10-28","2018-11-01",{"$f":"IF(AND(H164>='A - Contractor Summary'!$C$36,I164<='A - Contractor Summary'!$C$42),\"Yes\",\"No\")","v":"No"},{"$f":"VLOOKUP($D164,'C.1 - Rate Sheets'!$B$15:$F$25,2,FALSE)","v":26.9},{"$f":"VLOOKUP($D164,'C.1 - Rate Sheets'!$B$15:$F$25,3,FALSE)","v":36.53},{"$f":"VLOOKUP($D164,'C.1 - Rate Sheets'!$B$15:$F$25,4,FALSE)","v":0},{"$f":"VLOOKUP($D164,'C.1 - Rate Sheets'!$B$15:$F$25,5,FALSE)","v":0},null,null,null,null,null,null,null,null,null,null,null,null,null,null,null,null,null,null,null,null,null,null,null,null,null,null,null,null,null,null,null,null,null,null,null,null,null,null,null,null,null,null,null,null,null,null,16,null,null,null,8,8,null,null,null,8,8,null,null,null,8,8,null,null,null,8,8,null,null,null,32,48,0,0,80,860.8,1753.44,0,0,2614.2399999999998,2614.2399999999998,"Yes",0,0,0]
[null,229,"Jasmine Martin","Trimmer A","Vendor No 3",55392,"82O61918","2018-10-28","2018-11-01",{"$f":"IF(AND(H165>='A - Contractor Summary'!$C$36,I165<='A - Contractor Summary'!$C$42),\"Yes\",\"No\")","v":"No"},{"$f":"VLOOKUP($D165,'C.1 - Rate Sheets'!$B$15:$F$25,2,FALSE)","v":29.1},{"$f":"VLOOKUP($D165,'C.1 - Rate Sheets'!$B$15:$F$25,3,FALSE)","v":39.68},{"$f":"VLOOKUP($D165,'C.1 - Rate Sheets'!$B$15:$F$25,4,FALSE)","v":0},{"$f":"VLOOKUP($D165,'C.1 - Rate Sheets'!$B$15:$F$25,5,FALSE)","v":0},null,null,null,null,null,null,null,null,null,null,null,null,null,null,null,null,null,null,null,null,null,null,null,null,null,null,null,null,null,null,null,null,null,null,null,null,null,null,null,null,null,null,null,null,null,null,16,null,null,null,8,8,null,null,null,8,8,null,null,null,8,8,null,null,null,8,8,null,null,null,32,48,0,0,80,931.2,1904.6399999999999,0,0,2835.84,2835.84,"Yes",0,0,0]
[null,null,null,null,null,null,null,null,null,null,null,null,null,null,null,null,null,null,null,null,null,null,null,null,null,null,null,null,null,null,null,null,null,null,null,null,null,null,null,null,null,null,null,null,null,null,null,null,null,null,null,null,null,null,null,null,null,null,null,null,null,null,null,null,null,null,null,null,null,null,null,null,null,null,null,null,null,null,null,null,null,null,null,null,0,0,0,0,0,0,0,0,0,0,0,"Yes",0,0,0]
[null,231,"Angelo Perez","Foreperson","Vendor No 3",50937,"82R77018","2018-10-28","2018-11-01",{"$f":"IF(AND(H167>='A - Contractor Summary'!$C$36,I167<='A - Contractor Summary'!$C$42),\"Yes\",\"No\")","v":"No"},{"$f":"VLOOKUP($D167,'C.1 - Rate Sheets'!$B$15:$F$25,2,FALSE)","v":39.43},{"$f":"VLOOKUP($D167,'C.1 - Rate Sheets'!$B$15:$F$25,3,FALSE)","v":53.62},{"$f":"VLOOKUP($D167,'C.1 - Rate Sheets'!$B$15:$F$25,4,FALSE)","v":0},{"$f":"VLOOKUP($D167,'C.1 - Rate Sheets'!$B$15:$F$25,5,FALSE)","v":0},null,null,null,null,null,null,null,null,null,null,null,null,null,null,null,null,null,null,null,null,null,null,null,null,null,null,null,null,null,null,null,null,null,null,null,null,null,null,null,null,null,null,null,null,null,null,16,null,null,null,8,8,null,null,null,8,8,null,null,null,8,8,null,null,null,6,null,null,null,null,30,40,0,0,70,1182.9000000000001,2144.7999999999997,0,0,3327.7,3327.7,"Yes",0,0,0]
[null,233,"Gabriel Tovar","Trimmer B","Vendor No 3",50937,"82R77018","2018-10-28","2018-11-01",{"$f":"IF(AND(H168>='A - Contractor Summary'!$C$36,I168<='A - Contractor Summary'!$C$42),\"Yes\",\"No\")","v":"No"},{"$f":"VLOOKUP($D168,'C.1 - Rate Sheets'!$B$15:$F$25,2,FALSE)","v":26.9},{"$f":"VLOOKUP($D168,'C.1 - Rate Sheets'!$B$15:$F$25,3,FALSE)","v":36.53},{"$f":"VLOOKUP($D168,'C.1 - Rate Sheets'!$B$15:$F$25,4,FALSE)","v":0},{"$f":"VLOOKUP($D168,'C.1 - Rate Sheets'!$B$15:$F$25,5,FALSE)","v":0},null,null,null,null,null,null,null,null,null,null,null,null,null,null,null,null,null,null,null,null,null,null,null,null,null,null,null,null,null,null,null,null,null,null,null,null,null,null,null,null,null,null,null,null,null,null,16,null,null,null,8,8,null,null,null,8,8,null,null,null,8,8,null,null,null,6,null,null,null,null,30,40,0,0,70,807,1461.2,0,0,2268.1999999999998,2268.1999999999998,"Yes",0,0,0]
[null,235,"Jaison Cruz","Trimmer A","Vendor No 3",50937,"82R77018","2018-10-28","2018-11-01",{"$f":"IF(AND(H169>='A - Contractor Summary'!$C$36,I169<='A - Contractor Summary'!$C$42),\"Yes\",\"No\")","v":"No"},{"$f":"VLOOKUP($D169,'C.1 - Rate Sheets'!$B$15:$F$25,2,FALSE)","v":29.1},{"$f":"VLOOKUP($D169,'C.1 - Rate Sheets'!$B$15:$F$25,3,FALSE)","v":39.68},{"$f":"VLOOKUP($D169,'C.1 - Rate Sheets'!$B$15:$F$25,4,FALSE)","v":0},{"$f":"VLOOKUP($D169,'C.1 - Rate Sheets'!$B$15:$F$25,5,FALSE)","v":0},null,null,null,null,null,null,null,null,null,null,null,null,null,null,null,null,null,null,null,null,null,null,null,null,null,null,null,null,null,null,null,null,null,null,null,null,null,null,null,null,null,null,null,null,null,null,16,null,null,null,8,8,null,null,null,8,8,null,null,null,8,8,null,null,null,6,null,null,null,null,30,40,0,0,70,873,1587.2,0,0,2460.1999999999998,2460.1999999999998,"Yes",0,0,0]
[null,237,"Dachel  Yasmany","Foreperson","Vendor No 3",50937,"82R77018","2018-10-28","2018-11-01",{"$f":"IF(AND(H170>='A - Contractor Summary'!$C$36,I170<='A - Contractor Summary'!$C$42),\"Yes\",\"No\")","v":"No"},{"$f":"VLOOKUP($D170,'C.1 - Rate Sheets'!$B$15:$F$25,2,FALSE)","v":39.43},{"$f":"VLOOKUP($D170,'C.1 - Rate Sheets'!$B$15:$F$25,3,FALSE)","v":53.62},{"$f":"VLOOKUP($D170,'C.1 - Rate Sheets'!$B$15:$F$25,4,FALSE)","v":0},{"$f":"VLOOKUP($D170,'C.1 - Rate Sheets'!$B$15:$F$25,5,FALSE)","v":0},null,null,null,null,null,null,null,null,null,null,null,null,null,null,null,null,null,null,null,null,null,null,null,null,null,null,null,null,null,null,null,null,null,null,null,null,null,null,null,null,null,null,null,null,null,null,16,null,null,null,8,8,null,null,null,8,8,null,null,null,8,8,null,null,null,6,null,null,null,null,30,40,0,0,70,1182.9000000000001,2144.7999999999997,0,0,3327.7,3327.7,"Yes",0,0,0]
[null,239,"Oneiber Mejia","Trimmer A","Vendor No 3",50937,"82R77018","2018-10-28","2018-11-01",{"$f":"IF(AND(H171>='A - Contractor Summary'!$C$36,I171<='A - Contractor Summary'!$C$42),\"Yes\",\"No\")","v":"No"},{"$f":"VLOOKUP($D171,'C.1 - Rate Sheets'!$B$15:$F$25,2,FALSE)","v":29.1},{"$f":"VLOOKUP($D171,'C.1 - Rate Sheets'!$B$15:$F$25,3,FALSE)","v":39.68},{"$f":"VLOOKUP($D171,'C.1 - Rate Sheets'!$B$15:$F$25,4,FALSE)","v":0},{"$f":"VLOOKUP($D171,'C.1 - Rate Sheets'!$B$15:$F$25,5,FALSE)","v":0},null,null,null,null,null,null,null,null,null,null,null,null,null,null,null,null,null,null,null,null,null,null,null,null,null,null,null,null,null,null,null,null,null,null,null,null,null,null,null,null,null,null,null,null,null,null,16,null,null,null,8,8,null,null,null,8,8,null,null,null,8,8,null,null,null,6,null,null,null,null,30,40,0,0,70,873,1587.2,0,0,2460.1999999999998,2460.1999999999998,"Yes",0,0,0]
[null,241,"Angel Guevara","Trimmer B","Vendor No 3",50937,"82R77018","2018-10-28","2018-11-01",{"$f":"IF(AND(H172>='A - Contractor Summary'!$C$36,I172<='A - Contractor Summary'!$C$42),\"Yes\",\"No\")","v":"No"},{"$f":"VLOOKUP($D172,'C.1 - Rate Sheets'!$B$15:$F$25,2,FALSE)","v":26.9},{"$f":"VLOOKUP($D172,'C.1 - Rate Sheets'!$B$15:$F$25,3,FALSE)","v":36.53},{"$f":"VLOOKUP($D172,'C.1 - Rate Sheets'!$B$15:$F$25,4,FALSE)","v":0},{"$f":"VLOOKUP($D172,'C.1 - Rate Sheets'!$B$15:$F$25,5,FALSE)","v":0},null,null,null,null,null,null,null,null,null,null,null,null,null,null,null,null,null,null,null,null,null,null,null,null,null,null,null,null,null,null,null,null,null,null,null,null,null,null,null,null,null,null,null,null,null,null,16,null,null,null,8,8,null,null,null,8,8,null,null,null,8,8,null,null,null,6,null,null,null,null,30,40,0,0,70,807,1461.2,0,0,2268.1999999999998,2268.1999999999998,"Yes",0,0,0]
[null,243,"Orlando Garcia","Trimmer A","Vendor No 3",50937,"82R77018","2018-10-28","2018-11-01",{"$f":"IF(AND(H173>='A - Contractor Summary'!$C$36,I173<='A - Contractor Summary'!$C$42),\"Yes\",\"No\")","v":"No"},{"$f":"VLOOKUP($D173,'C.1 - Rate Sheets'!$B$15:$F$25,2,FALSE)","v":29.1},{"$f":"VLOOKUP($D173,'C.1 - Rate Sheets'!$B$15:$F$25,3,FALSE)","v":39.68},{"$f":"VLOOKUP($D173,'C.1 - Rate Sheets'!$B$15:$F$25,4,FALSE)","v":0},{"$f":"VLOOKUP($D173,'C.1 - Rate Sheets'!$B$15:$F$25,5,FALSE)","v":0},null,null,null,null,null,null,null,null,null,null,null,null,null,null,null,null,null,null,null,null,null,null,null,null,null,null,null,null,null,null,null,null,null,null,null,null,null,null,null,null,null,null,null,null,null,null,16,null,null,null,8,8,null,null,null,8,8,null,null,null,8,8,null,null,null,6,null,null,null,null,30,40,0,0,70,873,1587.2,0,0,2460.1999999999998,2460.1999999999998,"Yes",0,0,0]
[null,245,"Manuel Ortiz","Trimmer A","Vendor No 3",50937,"82R77018","2018-10-28","2018-11-01",{"$f":"IF(AND(H174>='A - Contractor Summary'!$C$36,I174<='A - Contractor Summary'!$C$42),\"Yes\",\"No\")","v":"No"},{"$f":"VLOOKUP($D174,'C.1 - Rate Sheets'!$B$15:$F$25,2,FALSE)","v":29.1},{"$f":"VLOOKUP($D174,'C.1 - Rate Sheets'!$B$15:$F$25,3,FALSE)","v":39.68},{"$f":"VLOOKUP($D174,'C.1 - Rate Sheets'!$B$15:$F$25,4,FALSE)","v":0},{"$f":"VLOOKUP($D174,'C.1 - Rate Sheets'!$B$15:$F$25,5,FALSE)","v":0},null,null,null,null,null,null,null,null,null,null,null,null,null,null,null,null,null,null,null,null,null,null,null,null,null,null,null,null,null,null,null,null,null,null,null,null,null,null,null,null,null,null,null,null,null,null,16,null,null,null,8,8,null,null,null,8,8,null,null,null,8,8,null,null,null,6,null,null,null,null,30,40,0,0,70,873,1587.2,0,0,2460.1999999999998,2460.1999999999998,"Yes",0,0,0]
[null,247,"Tonny Rivas","Foreperson","Vendor No 3",50937,"82R77018","2018-10-28","2018-11-01",{"$f":"IF(AND(H175>='A - Contractor Summary'!$C$36,I175<='A - Contractor Summary'!$C$42),\"Yes\",\"No\")","v":"No"},{"$f":"VLOOKUP($D175,'C.1 - Rate Sheets'!$B$15:$F$25,2,FALSE)","v":39.43},{"$f":"VLOOKUP($D175,'C.1 - Rate Sheets'!$B$15:$F$25,3,FALSE)","v":53.62},{"$f":"VLOOKUP($D175,'C.1 - Rate Sheets'!$B$15:$F$25,4,FALSE)","v":0},{"$f":"VLOOKUP($D175,'C.1 - Rate Sheets'!$B$15:$F$25,5,FALSE)","v":0},null,null,null,null,null,null,null,null,null,null,null,null,null,null,null,null,null,null,null,null,null,null,null,null,null,null,null,null,null,null,null,null,null,null,null,null,null,null,null,null,null,null,null,null,null,null,16,null,null,null,8,8,null,null,null,8,8,null,null,null,8,8,null,null,null,6,null,null,null,null,30,40,0,0,70,1182.9000000000001,2144.7999999999997,0,0,3327.7,3327.7,"Yes",0,0,0]
[null,249,"Carlos A Ruiz B","Trimmer A","Vendor No 3",50937,"82R77018","2018-10-28","2018-11-01",{"$f":"IF(AND(H176>='A - Contractor Summary'!$C$36,I176<='A - Contractor Summary'!$C$42),\"Yes\",\"No\")","v":"No"},{"$f":"VLOOKUP($D176,'C.1 - Rate Sheets'!$B$15:$F$25,2,FALSE)","v":29.1},{"$f":"VLOOKUP($D176,'C.1 - Rate Sheets'!$B$15:$F$25,3,FALSE)","v":39.68},{"$f":"VLOOKUP($D176,'C.1 - Rate Sheets'!$B$15:$F$25,4,FALSE)","v":0},{"$f":"VLOOKUP($D176,'C.1 - Rate Sheets'!$B$15:$F$25,5,FALSE)","v":0},null,null,null,null,null,null,null,null,null,null,null,null,null,null,null,null,null,null,null,null,null,null,null,null,null,null,null,null,null,null,null,null,null,null,null,null,null,null,null,null,null,null,null,null,null,null,16,null,null,null,8,8,null,null,null,8,8,null,null,null,8,8,null,null,null,6,null,null,null,null,30,40,0,0,70,873,1587.2,0,0,2460.1999999999998,2460.1999999999998,"Yes",0,0,0]
[null,251,"Juan C Colmenarez","Trimmer B","Vendor No 3",50937,"82R77018","2018-10-28","2018-11-01",{"$f":"IF(AND(H177>='A - Contractor Summary'!$C$36,I177<='A - Contractor Summary'!$C$42),\"Yes\",\"No\")","v":"No"},{"$f":"VLOOKUP($D177,'C.1 - Rate Sheets'!$B$15:$F$25,2,FALSE)","v":26.9},{"$f":"VLOOKUP($D177,'C.1 - Rate Sheets'!$B$15:$F$25,3,FALSE)","v":36.53},{"$f":"VLOOKUP($D177,'C.1 - Rate Sheets'!$B$15:$F$25,4,FALSE)","v":0},{"$f":"VLOOKUP($D177,'C.1 - Rate Sheets'!$B$15:$F$25,5,FALSE)","v":0},null,null,null,null,null,null,null,null,null,null,null,null,null,null,null,null,null,null,null,null,null,null,null,null,null,null,null,null,null,null,null,null,null,null,null,null,null,null,null,null,null,null,null,null,null,null,16,null,null,null,8,8,null,null,null,8,8,null,null,null,8,8,null,null,null,6,null,null,null,null,30,40,0,0,70,807,1461.2,0,0,2268.1999999999998,2268.1999999999998,"Yes",0,0,0]
[null,null,null,null,null,null,null,null,null,null,null,null,null,null,null,null,null,null,null,null,null,null,null,null,null,null,null,null,null,null,null,null,null,null,null,null,null,null,null,null,null,null,null,null,null,null,null,null,null,null,null,null,null,null,null,null,null,null,null,null,null,null,null,null,null,null,null,null,null,null,null,null,null,null,null,null,null,null,null,null,null,null,null,null,0,0,0,0,0,0,0,0,0,0,0,"Yes",0,0,0]
[null,null,null,null,null,null,null,null,null,null,null,null,null," ",{"$f":"SUM(O19:O178)","v":52},626,0,0,0,56,650,0,0,0,0,752,0,0,0,376,376,0,0,0,376,376,0,0,0,376,376,0,0,0,383,369,{"$f":"SUM(AU19:AU178)","v":0},0,0,368,384,0,0,0,0,752,0,0,0,0,752,0,0,0,376,376,0,0,0,376,376,0,0,0,376,376,0,0,{"$f":"SUM(CA19:CA178)","v":0},352,190,0,0,0,{"$f":"SUM(O179,T179,Y179)","v":108},{"$f":"SUM(P179,U179,Z179)","v":2028},{"$f":"SUM(Q179,V179,AA179)","v":0},{"$f":"SUM(R179,W179,AB179)","v":0},{"$f":"SUM(CG179:CJ179)","v":2136},{"$f":"CG179*K179","v":0},{"$f":"CH179*L179","v":0},0,0,{"$f":"IFERROR(SUM(CP19:CP178),0)","v":423913.75000000041},{"$f":"CP179-CS179","v":423913.75000000041},null,null,null,null,{"$f":"CS179-CT179-CU179","v":0},"check (b)"]
[null,null,null,null,null,null,null,null,null,null,null,null,null," ","Total # of Crew",null,null,null,{"$f":"COUNTIF(S19:S178,\">0\")","v":0},"Total # of Crew",null,null,null,{"$f":"COUNTIF(X19:X178,\">0\")","v":0},"Total # of Crew",null,null,null,{"$f":"COUNTIF(AC19:AC178,\">0\")","v":0},"Total # of Crew",null,null,null,{"$f":"COUNTIF(AH19:AH178,\">0\")","v":0},"Total # of Crew",null,null,null,{"$f":"COUNTIF(AM19:AM178,\">0\")","v":0},"Total # of Crew",null,null,null,{"$f":"COUNTIF(AR19:AR178,\">0\")","v":0},"Total # of Crew",null,null,null,{"$f":"COUNTIF(AW19:AW178,\">0\")","v":0},"Total # of Crew",null,null,null,{"$f":"COUNTIF(BB19:BB178,\">0\")","v":0},"Total # of Crew",null,null,null,{"$f":"COUNTIF(BG19:BG178,\">0\")","v":0},"Total # of Crew",null,null,null,{"$f":"COUNTIF(BL19:BL178,\">0\")","v":0},"Total # of Crew",null,null,null,{"$f":"COUNTIF(BQ19:BQ178,\">0\")","v":0},"Total # of Crew",null,null,null,{"$f":"COUNTIF(BV19:BV178,\">0\")","v":0},"Total # of Crew",null,null,null,{"$f":"COUNTIF(CA19:CA178,\">0\")","v":0},"Total # of Crew",null,null,null,{"$f":"COUNTIF(CF19:CF178,\">0\")","v":0},"# of time charges",null,null,null,{"$f":"SUM(S180,X180,AC180)","v":0}]
[]
[]
[]
[]
[]
[]
[]
[null,"Tickmark Explanation:"]
[]
[null,1]
[null,2]
[null,3]

{"sheet":"C.3 - Asset by Company","index":6,"n_rows":1,"n_cols":3,"rows_kept":1,"cut":false,"hidden":false,"merged":[]}
["Asset Tag","Position","Name"]

{"sheet":"C.4 - Timesheets - Equipment","index":7,"n_rows":92,"n_cols":23,"rows_kept":92,"cut":false,"hidden":false,"merged":[[87,1,87,5],[14,15,16,15],[14,10,16,10],[14,1,16,1],[14,2,16,2],[14,4,16,4],[14,5,16,5],[14,6,16,6],[14,9,16,9],[14,7,16,7],[14,8,16,8],[14,3,16,3],[1,1,1,21],[14,19,16,19],[14,20,16,20],[14,21,16,21],[14,16,16,16],[14,18,16,18],[14,17,16,17],[3,2,8,9]]}
[]
[null,"Equipment Charges - Time Card"]
[]
[null,"Test Plan:","Obtain the time cards.  (A) Populate the equipment names and types (if provided). Find additional information regarding individual equipment charge from related invoice. (B) Enter hours worked from time card(s).   (C) Confirm that the dates per the time cards fall between dates provided per 'A - Contractor Summary' tab. (D) Identify any equipment charges to be reviewed.  (E) For charges which required further review, document review (include why it was determined to be allowed/disallowed via a tickmark)."]
[]
[]
[]
[]
[]
[null,"Rx","Recalculated."]
[null,"a","Provided from tab 'C.1 - Rate Sheets'."]
[null,"b","Check figure should equal $0.  Cell will appear yellow if discrepancies are noted."]
[]
[null,null,"A ",null,null,null,null,"Rx",null,"C","a","B",null,null,null,"Rx",null,null,"D","E"]
[null,"#","Equipment Name","Equipment ID","Company","Crew#","Invoice","Start Date","End Date","Dates Worked Reasonable?","Rates","Week Ending","Week Ending","Week Ending",null,"Total Hours","Total Equipment $","Allowable Charges","To Be Reviewed","Reviewed - Allowable Charge","Reviewed - Unallowable Charge","Tickmarks"]
[null,null,null,null,null,null,null,null,null,null,null,"2018-10-20","2018-10-27","2018-11-03"]
[null,null,null,null,null,null,null,null,null,null,null,"Hours","Hours","Hours","Hours"]
[null,1,"Truck, Pickup AWD","614-3521","Vendor No. 3",50937,"81N95018","2018-10-14","2018-10-20",{"$f":"IF(AND(H18>='A - Contractor Summary'!$C$36,I18<='A - Contractor Summary'!$C$42),\"Yes\",\"No\")","v":"No"},{"$f":"VLOOKUP($C18,'C.1 - Rate Sheets'!H:I,2,FALSE)","v":13.99},21,null,null,null,{"$f":"SUM(L18:O18)","v":21},{"$f":"P18*K18","v":293.79000000000002},{"$f":"Q18-S18","v":293.79000000000002},0,0,0]
[null,2,"Pickup Truck","602-0501","Vendor No. 3",50937,"81N95018","2018-10-14","2018-10-20",{"$f":"IF(AND(H19>='A - Contractor Summary'!$C$36,I19<='A - Contractor Summary'!$C$42),\"Yes\",\"No\")","v":"No"},{"$f":"VLOOKUP($C19,'C.1 - Rate Sheets'!H:I,2,FALSE)","v":12.1},21,null,null,null,21,254.1,254.1,0,0,0]
[null,3,"Truck, 14Yd Dump, 55 Ft","896-8383","Vendor No. 3",50937,"81N95018","2018-10-14","2018-10-20",{"$f":"IF(AND(H20>='A - Contractor Summary'!$C$36,I20<='A - Contractor Summary'!$C$42),\"Yes\",\"No\")","v":"No"},{"$f":"VLOOKUP($C20,'C.1 - Rate Sheets'!H:I,2,FALSE)","v":18.86},21,null,null,null,21,396.06,396.06,0,0,0]
[null,4,"Truck, 14Yd Dump, 55 Ft","895-0743","Vendor No. 3",50937,"81N95018","2018-10-14","2018-10-20",{"$f":"IF(AND(H21>='A - Contractor Summary'!$C$36,I21<='A - Contractor Summary'!$C$42),\"Yes\",\"No\")","v":"No"},{"$f":"VLOOKUP($C21,'C.1 - Rate Sheets'!H:I,2,FALSE)","v":18.86},21,null,null,null,21,396.06,396.06,0,0,0]
[null,5,"Truck, Pickup AWD","632-8575","Vendor No. 3",50937,"81N95118","2018-10-14","2018-10-20",{"$f":"IF(AND(H22>='A - Contractor Summary'!$C$36,I22<='A - Contractor Summary'!$C$42),\"Yes\",\"No\")","v":"No"},{"$f":"VLOOKUP($C22,'C.1 - Rate Sheets'!H:I,2,FALSE)","v":13.99},21,null,null,null,21,293.79000000000002,293.79000000000002,0,0,0]
[null,6,"Truck, Pickup AWD","632-5524","Vendor No. 3",50399,"81N95218","2018-10-14","2018-10-20",{"$f":"IF(AND(H23>='A - Contractor Summary'!$C$36,I23<='A - Contractor Summary'!$C$42),\"Yes\",\"No\")","v":"No"},{"$f":"VLOOKUP($C23,'C.1 - Rate Sheets'!H:I,2,FALSE)","v":13.99},21,null,null,null,21,293.79000000000002,293.79000000000002,0,0,0]
[null,7,"Truck, 14Yd Dump, 70 Ft","897-3887","Vendor No. 3",50900,"81N95318","2018-10-14","2018-10-20",{"$f":"IF(AND(H24>='A - Contractor Summary'!$C$36,I24<='A - Contractor Summary'!$C$42),\"Yes\",\"No\")","v":"No"},{"$f":"VLOOKUP($C24,'C.1 - Rate Sheets'!H:I,2,FALSE)","v":29},21,null,null,null,21,609,609,0,0,0]
[null,8,"Truck, 14Yd Dump, 70 Ft","869-2522","Vendor No. 3",50900,"81N95318","2018-10-14","2018-10-20",{"$f":"IF(AND(H25>='A - Contractor Summary'!$C$36,I25<='A - Contractor Summary'!$C$42),\"Yes\",\"No\")","v":"No"},{"$f":"VLOOKUP($C25,'C.1 - Rate Sheets'!H:I,2,FALSE)","v":29},21,null,null,null,21,609,609,0,0,0]
[null,9,"Truck, 14Yd Dump, 70 Ft","865-2550","Vendor No. 3",50900,"81N95318","2018-10-14","2018-10-20",{"$f":"IF(AND(H26>='A - Contractor Summary'!$C$36,I26<='A - Contractor Summary'!$C$42),\"Yes\",\"No\")","v":"No"},{"$f":"VLOOKUP($C26,'C.1 - Rate Sheets'!H:I,2,FALSE)","v":29},21,null,null,null,21,609,609,0,0,0]
[null,10,"Truck, 14Yd Dump, 70 Ft","865-8219","Vendor No. 3",50900,"81N95318","2018-10-14","2018-10-20",{"$f":"IF(AND(H27>='A - Contractor Summary'!$C$36,I27<='A - Contractor Summary'!$C$42),\"Yes\",\"No\")","v":"No"},{"$f":"VLOOKUP($C27,'C.1 - Rate Sheets'!H:I,2,FALSE)","v":29},21,null,null,null,21,609,609,0,0,0]
[null,11,"Truck, 14Yd Dump, 55 Ft","865-9076","Vendor No. 3",50900,"81N95318","2018-10-14","2018-10-20",{"$f":"IF(AND(H28>='A - Contractor Summary'!$C$36,I28<='A - Contractor Summary'!$C$42),\"Yes\",\"No\")","v":"No"},{"$f":"VLOOKUP($C28,'C.1 - Rate Sheets'!H:I,2,FALSE)","v":18.86},21,null,null,null,21,396.06,396.06,0,0,0]
[null,12,"Truck, 14Yd Dump, 55 Ft","897-3204","Vendor No. 3",50900,"81N95318","2018-10-14","2018-10-20",{"$f":"IF(AND(H29>='A - Contractor Summary'!$C$36,I29<='A - Contractor Summary'!$C$42),\"Yes\",\"No\")","v":"No"},{"$f":"VLOOKUP($C29,'C.1 - Rate Sheets'!H:I,2,FALSE)","v":18.86},21,null,null,null,21,396.06,396.06,0,0,0]
[null,13,"Truck, Pickup AWD","614-7588","Vendor No. 3",55392,"81P63318","2018-10-14","2018-10-20",{"$f":"IF(AND(H30>='A - Contractor Summary'!$C$36,I30<='A - Contractor Summary'!$C$42),\"Yes\",\"No\")","v":"No"},{"$f":"VLOOKUP($C30,'C.1 - Rate Sheets'!H:I,2,FALSE)","v":13.99},11,null,null,null,11,153.89000000000001,153.89000000000001,0,0,0]
[null,14,"Truck, 14Yd Dump, 55 Ft","895-8778","Vendor No. 3",55921,"81P63418","2018-10-14","2018-10-20",{"$f":"IF(AND(H31>='A - Contractor Summary'!$C$36,I31<='A - Contractor Summary'!$C$42),\"Yes\",\"No\")","v":"No"},{"$f":"VLOOKUP($C31,'C.1 - Rate Sheets'!H:I,2,FALSE)","v":18.86},11,null,null,null,11,207.45999999999998,207.45999999999998,0,0,0]
[null,15,"Truck, 14Yd Dump, 55 Ft","895-0736","Vendor No. 3",55921,"81P63418","2018-10-14","2018-10-20",{"$f":"IF(AND(H32>='A - Contractor Summary'!$C$36,I32<='A - Contractor Summary'!$C$42),\"Yes\",\"No\")","v":"No"},{"$f":"VLOOKUP($C32,'C.1 - Rate Sheets'!H:I,2,FALSE)","v":18.86},11,null,null,null,11,207.45999999999998,207.45999999999998,0,0,0]
[null,16,"Truck, 14Yd Dump, 55 Ft","897-2576","Vendor No. 3",55921,"81P63418","2018-10-14","2018-10-20",{"$f":"IF(AND(H33>='A - Contractor Summary'!$C$36,I33<='A - Contractor Summary'!$C$42),\"Yes\",\"No\")","v":"No"},{"$f":"VLOOKUP($C33,'C.1 - Rate Sheets'!H:I,2,FALSE)","v":18.86},11,null,null,null,11,207.45999999999998,207.45999999999998,0,0,0]
[null,17,"Truck, 14TD Chipper","770-1708","Vendor No. 3",55921,"81P63418","2018-10-14","2018-10-20",{"$f":"IF(AND(H34>='A - Contractor Summary'!$C$36,I34<='A - Contractor Summary'!$C$42),\"Yes\",\"No\")","v":"No"},{"$f":"VLOOKUP($C34,'C.1 - Rate Sheets'!H:I,2,FALSE)","v":12.03},11,null,null,null,11,132.32999999999998,132.32999999999998,0,0,0]
[null,18,"Truck, 14TD Chipper","770-8429","Vendor No. 3",55921,"81P63418","2018-10-14","2018-10-20",{"$f":"IF(AND(H35>='A - Contractor Summary'!$C$36,I35<='A - Contractor Summary'!$C$42),\"Yes\",\"No\")","v":"No"},{"$f":"VLOOKUP($C35,'C.1 - Rate Sheets'!H:I,2,FALSE)","v":12.03},11,null,null,null,11,132.32999999999998,132.32999999999998,0,0,0]
[null,19,"Truck, 14TD Chipper","770-9359","Vendor No. 3",55921,"81P63418","2018-10-14","2018-10-20",{"$f":"IF(AND(H36>='A - Contractor Summary'!$C$36,I36<='A - Contractor Summary'!$C$42),\"Yes\",\"No\")","v":"No"},{"$f":"VLOOKUP($C36,'C.1 - Rate Sheets'!H:I,2,FALSE)","v":12.03},11,null,null,null,11,132.32999999999998,132.32999999999998,0,0,0]
[null,20,"Truck, 14TD Chipper","770-1909","Vendor No. 3",55921,"81P63418","2018-10-14","2018-10-20",{"$f":"IF(AND(H37>='A - Contractor Summary'!$C$36,I37<='A - Contractor Summary'!$C$42),\"Yes\",\"No\")","v":"No"},{"$f":"VLOOKUP($C37,'C.1 - Rate Sheets'!H:I,2,FALSE)","v":12.03},11,null,null,null,11,132.32999999999998,132.32999999999998,0,0,0]
[null,21,"Crew Cab 4D Pickup","622-2513","Vendor No. 3",55921,"81P63418","2018-10-14","2018-10-20",{"$f":"IF(AND(H38>='A - Contractor Summary'!$C$36,I38<='A - Contractor Summary'!$C$42),\"Yes\",\"No\")","v":"No"},{"$f":"VLOOKUP($C38,'C.1 - Rate Sheets'!H:I,2,FALSE)","v":16.079999999999998},11,null,null,null,11,176.88,176.88,0,0,0]
[null,22,"Truck, 14Yd Dump, 55 Ft","897-3692","Vendor No. 3",55921,"81P63418","2018-10-14","2018-10-20",{"$f":"IF(AND(H39>='A - Contractor Summary'!$C$36,I39<='A - Contractor Summary'!$C$42),\"Yes\",\"No\")","v":"No"},{"$f":"VLOOKUP($C39,'C.1 - Rate Sheets'!H:I,2,FALSE)","v":18.86},11,null,null,null,11,207.45999999999998,207.45999999999998,0,0,0]
[null,23,"Truck, 14Yd Dump, 55 Ft","895-8562","Vendor No. 3",55921,"81P63418","2018-10-14","2018-10-20",{"$f":"IF(AND(H40>='A - Contractor Summary'!$C$36,I40<='A - Contractor Summary'!$C$42),\"Yes\",\"No\")","v":"No"},{"$f":"VLOOKUP($C40,'C.1 - Rate Sheets'!H:I,2,FALSE)","v":18.86},11,null,null,null,11,207.45999999999998,207.45999999999998,0,0,0]
[null,24,"Truck, 14Yd Dump, 55 Ft","897-3887","Vendor No. 3",50900,"82G04418","2018-10-21","2018-10-27",{"$f":"IF(AND(H41>='A - Contractor Summary'!$C$36,I41<='A - Contractor Summary'!$C$42),\"Yes\",\"No\")","v":"No"},{"$f":"VLOOKUP($C41,'C.1 - Rate Sheets'!H:I,2,FALSE)","v":18.86},null,112,null,null,112,2112.3199999999997,2112.3199999999997,0,0,0]
[null,25,"Truck, 14Yd Dump, 70 Ft","869-2522","Vendor No. 3",50900,"82G04418","2018-10-21","2018-10-27",{"$f":"IF(AND(H42>='A - Contractor Summary'!$C$36,I42<='A - Contractor Summary'!$C$42),\"Yes\",\"No\")","v":"No"},{"$f":"VLOOKUP($C42,'C.1 - Rate Sheets'!H:I,2,FALSE)","v":29},null,112,null,null,112,3248,{"$f":"Q42-S42","v":3248},0,0,0]
[null,26,"Truck, 14Yd Dump, 70 Ft","865-2550","Vendor No. 3",50900,"82G04418","2018-10-21","2018-10-27",{"$f":"IF(AND(H43>='A - Contractor Summary'!$C$36,I43<='A - Contractor Summary'!$C$42),\"Yes\",\"No\")","v":"No"},{"$f":"VLOOKUP($C43,'C.1 - Rate Sheets'!H:I,2,FALSE)","v":29},null,112,null,null,112,3248,3248,0,0,0]
[null,27,"Truck, 14Yd Dump, 70 Ft","865-8219","Vendor No. 3",50900,"82G04418","2018-10-21","2018-10-27",{"$f":"IF(AND(H44>='A - Contractor Summary'!$C$36,I44<='A - Contractor Summary'!$C$42),\"Yes\",\"No\")","v":"No"},{"$f":"VLOOKUP($C44,'C.1 - Rate Sheets'!H:I,2,FALSE)","v":29},null,112,null,null,112,3248,3248,0,0,0]
[null,28,"Truck, 14Yd Dump, 70 Ft","865-9076","Vendor No. 3",50900,"82G04418","2018-10-21","2018-10-27",{"$f":"IF(AND(H45>='A - Contractor Summary'!$C$36,I45<='A - Contractor Summary'!$C$42),\"Yes\",\"No\")","v":"No"},{"$f":"VLOOKUP($C45,'C.1 - Rate Sheets'!H:I,2,FALSE)","v":29},null,112,null,null,112,3248,3248,0,0,0]
[null,29,"Truck, 14Yd Dump, 55 Ft","897-3204","Vendor No. 3",50900,"82G04418","2018-10-21","2018-10-27",{"$f":"IF(AND(H46>='A - Contractor Summary'!$C$36,I46<='A - Contractor Summary'!$C$42),\"Yes\",\"No\")","v":"No"},{"$f":"VLOOKUP($C46,'C.1 - Rate Sheets'!H:I,2,FALSE)","v":18.86},null,112,null,null,112,2112.3199999999997,2112.3199999999997,0,0,0]
[null,30,"Truck, Pickup AWD",null,"Vendor No. 3",50937,"82G04518","2018-10-21","2018-10-27",{"$f":"IF(AND(H47>='A - Contractor Summary'!$C$36,I47<='A - Contractor Summary'!$C$42),\"Yes\",\"No\")","v":"No"},{"$f":"VLOOKUP($C47,'C.1 - Rate Sheets'!H:I,2,FALSE)","v":13.99},null,112,null,null,112,1566.88,{"$f":"Q47-S47","v":1566.88}]
[null,31,"Truck, Pickup AWD","632-5524","Vendor No. 3",50399,"82G04718","2018-10-21","2018-10-27",{"$f":"IF(AND(H48>='A - Contractor Summary'!$C$36,I48<='A - Contractor Summary'!$C$42),\"Yes\",\"No\")","v":"No"},{"$f":"VLOOKUP($C48,'C.1 - Rate Sheets'!H:I,2,FALSE)","v":13.99},null,112,null,null,112,1566.88,1566.88,0,0,0]
[null,32,"Truck, Pickup AWD","632-8575","Vendor No. 3",50937,"82R76918","2018-10-28","2018-11-03",{"$f":"IF(AND(H49>='A - Contractor Summary'!$C$36,I49<='A - Contractor Summary'!$C$42),\"Yes\",\"No\")","v":"No"},{"$f":"VLOOKUP($C49,'C.1 - Rate Sheets'!H:I,2,FALSE)","v":13.99},null,0,64,null,64,895.36,895.36,0,0,0]
[null,33,"Truck, Pickup AWD","632-5524","Vendor No. 3",50399,"82O62118","2018-10-28","2018-11-03",{"$f":"IF(AND(H50>='A - Contractor Summary'!$C$36,I50<='A - Contractor Summary'!$C$42),\"Yes\",\"No\")","v":"No"},{"$f":"VLOOKUP($C50,'C.1 - Rate Sheets'!H:I,2,FALSE)","v":13.99},null,0,64,null,64,{"$f":"P50*K50","v":895.36},895.36,0,0,0]
[null,34,"Truck, Pickup AWD","614-3521","Vendor No. 3",50937,"82G04618","2018-10-21","2018-10-27",{"$f":"IF(AND(H51>='A - Contractor Summary'!$C$36,I51<='A - Contractor Summary'!$C$42),\"Yes\",\"No\")","v":"No"},{"$f":"VLOOKUP($C51,'C.1 - Rate Sheets'!H:I,2,FALSE)","v":13.99},null,112,null,null,{"$f":"SUM(M51:O51)","v":112},1566.88,1566.88,0,0,0]
[null,35,"Pickup Truck","602-0501","Vendor No. 3",50937,"82G04618","2018-10-21","2018-10-27",{"$f":"IF(AND(H52>='A - Contractor Summary'!$C$36,I52<='A - Contractor Summary'!$C$42),\"Yes\",\"No\")","v":"No"},{"$f":"VLOOKUP($C52,'C.1 - Rate Sheets'!H:I,2,FALSE)","v":12.1},null,112,null,null,{"$f":"SUM(M52:O52)","v":112},1355.2,1355.2,0,0,0]
[null,36,"Truck, 14Yd Dump, 55 Ft","896-8383","Vendor No. 3",50937,"82G04618","2018-10-21","2018-10-27",{"$f":"IF(AND(H53>='A - Contractor Summary'!$C$36,I53<='A - Contractor Summary'!$C$42),\"Yes\",\"No\")","v":"No"},{"$f":"VLOOKUP($C53,'C.1 - Rate Sheets'!H:I,2,FALSE)","v":18.86},null,112,null,null,{"$f":"SUM(M53:O53)","v":112},2112.3199999999997,2112.3199999999997,0,0,0]
[null,37,"Truck, 14Yd Dump, 55 Ft","895-0743","Vendor No. 3",50937,"82G04618","2018-10-21","2018-10-27",{"$f":"IF(AND(H54>='A - Contractor Summary'!$C$36,I54<='A - Contractor Summary'!$C$42),\"Yes\",\"No\")","v":"No"},{"$f":"VLOOKUP($C54,'C.1 - Rate Sheets'!H:I,2,FALSE)","v":18.86},null,112,null,null,{"$f":"SUM(M54:O54)","v":112},2112.3199999999997,2112.3199999999997,0,0,0]
[null,38,"Pickup Truck","614-7558","Vendor No. 3",55392,"82G04818","2018-10-21","2018-10-27",{"$f":"IF(AND(H55>='A - Contractor Summary'!$C$36,I55<='A - Contractor Summary'!$C$42),\"Yes\",\"No\")","v":"No"},{"$f":"VLOOKUP($C55,'C.1 - Rate Sheets'!H:I,2,FALSE)","v":12.1},null,112,null,null,{"$f":"SUM(L55:O55)","v":112},1355.2,1355.2,0,0,0]
[null,39,"Truck, 14Yd Dump, 55 Ft","869-2526","Vendor No. 3",55392,"82G04818","2018-10-21","2018-10-27",{"$f":"IF(AND(H56>='A - Contractor Summary'!$C$36,I56<='A - Contractor Summary'!$C$42),\"Yes\",\"No\")","v":"No"},{"$f":"VLOOKUP($C56,'C.1 - Rate Sheets'!H:I,2,FALSE)","v":18.86},null,112,null,null,112,2112.3199999999997,2112.3199999999997,0,0,0]
[null,40,"Truck, 14Yd Dump, 55 Ft","895-0736","Vendor No. 3",55392,"82G04818","2018-10-21","2018-10-27",{"$f":"IF(AND(H57>='A - Contractor Summary'!$C$36,I57<='A - Contractor Summary'!$C$42),\"Yes\",\"No\")","v":"No"},{"$f":"VLOOKUP($C57,'C.1 - Rate Sheets'!H:I,2,FALSE)","v":18.86},null,112,null,null,112,2112.3199999999997,2112.3199999999997,0,0,0]
[null,41,"Truck, 14Yd Dump, 55 Ft","897-2576","Vendor No. 3",55392,"82G04818","2018-10-21","2018-10-27",{"$f":"IF(AND(H58>='A - Contractor Summary'!$C$36,I58<='A - Contractor Summary'!$C$42),\"Yes\",\"No\")","v":"No"},{"$f":"VLOOKUP($C58,'C.1 - Rate Sheets'!H:I,2,FALSE)","v":18.86},null,112,null,null,112,2112.3199999999997,2112.3199999999997,0,0,0]
[null,42,"Truck, 14Yd Dump, 55 Ft","897-3692","Vendor No. 3",55392,"82G04818","2018-10-21","2018-10-27",{"$f":"IF(AND(H59>='A - Contractor Summary'!$C$36,I59<='A - Contractor Summary'!$C$42),\"Yes\",\"No\")","v":"No"},{"$f":"VLOOKUP($C59,'C.1 - Rate Sheets'!H:I,2,FALSE)","v":18.86},null,96,null,null,96,1810.56,1810.56,0,0,0]
[null,43,"Truck, 14Yd Dump, 55 Ft","895-8562","Vendor No. 3",55392,"82G04818","2018-10-21","2018-10-27",{"$f":"IF(AND(H60>='A - Contractor Summary'!$C$36,I60<='A - Contractor Summary'!$C$42),\"Yes\",\"No\")","v":"No"},{"$f":"VLOOKUP($C60,'C.1 - Rate Sheets'!H:I,2,FALSE)","v":18.86},null,112,null,null,112,2112.3199999999997,2112.3199999999997,0,0,0]
[null,44,"Pickup Truck","622-2513","Vendor No. 3",55392,"82G04818","2018-10-21","2018-10-27",{"$f":"IF(AND(H61>='A - Contractor Summary'!$C$36,I61<='A - Contractor Summary'!$C$42),\"Yes\",\"No\")","v":"No"},{"$f":"VLOOKUP($C61,'C.1 - Rate Sheets'!H:I,2,FALSE)","v":12.1},null,112,null,null,112,1355.2,1355.2,0,0,0]
[null,45,"Truck, 14TD Chipper","770-1708","Vendor No. 3",55392,"82G04818","2018-10-21","2018-10-27",{"$f":"IF(AND(H62>='A - Contractor Summary'!$C$36,I62<='A - Contractor Summary'!$C$42),\"Yes\",\"No\")","v":"No"},{"$f":"VLOOKUP($C62,'C.1 - Rate Sheets'!H:I,2,FALSE)","v":12.03},null,112,null,null,112,1347.36,1347.36,0,0,0]
[null,46,"Truck, 14TD Chipper","770-8429","Vendor No. 3",55392,"82G04818","2018-10-21","2018-10-27",{"$f":"IF(AND(H63>='A - Contractor Summary'!$C$36,I63<='A - Contractor Summary'!$C$42),\"Yes\",\"No\")","v":"No"},{"$f":"VLOOKUP($C63,'C.1 - Rate Sheets'!H:I,2,FALSE)","v":12.03},null,112,null,null,112,1347.36,1347.36,0,0,0]
[null,47,"Truck, 14TD Chipper","770-9359","Vendor No. 3",55392,"82G04818","2018-10-21","2018-10-27",{"$f":"IF(AND(H64>='A - Contractor Summary'!$C$36,I64<='A - Contractor Summary'!$C$42),\"Yes\",\"No\")","v":"No"},{"$f":"VLOOKUP($C64,'C.1 - Rate Sheets'!H:I,2,FALSE)","v":12.03},null,112,null,null,112,1347.36,1347.36,0,0,0]
[null,48,"Truck, 14TD Chipper","770-1909","Vendor No. 3",55392,"82G04818","2018-10-21","2018-10-27",{"$f":"IF(AND(H65>='A - Contractor Summary'!$C$36,I65<='A - Contractor Summary'!$C$42),\"Yes\",\"No\")","v":"No"},{"$f":"VLOOKUP($C65,'C.1 - Rate Sheets'!H:I,2,FALSE)","v":12.03},null,112,null,null,112,1347.36,1347.36,0,0,0]
[null,49,"Truck, 14Yd Dump, 55 Ft","897-3887","Vendor No. 3",50900,"82O62018","2018-10-28","2018-11-03",{"$f":"IF(AND(H66>='A - Contractor Summary'!$C$36,I66<='A - Contractor Summary'!$C$42),\"Yes\",\"No\")","v":"No"},{"$f":"VLOOKUP($C66,'C.1 - Rate Sheets'!H:I,2,FALSE)","v":18.86},null,null,64,null,64,1207.04,1207.04,0,0,0]
[null,50,"Truck, 14Yd Dump, 70 Ft","869-2522","Vendor No. 3",50900,"82O62018","2018-10-28","2018-11-03",{"$f":"IF(AND(H67>='A - Contractor Summary'!$C$36,I67<='A - Contractor Summary'!$C$42),\"Yes\",\"No\")","v":"No"},{"$f":"VLOOKUP($C67,'C.1 - Rate Sheets'!H:I,2,FALSE)","v":29},null,null,64,null,64,1856,1856,0,0,0]
[null,51,"Truck, 14Yd Dump, 70 Ft","865-2550","Vendor No. 3",50900,"82O62018","2018-10-28","2018-11-03",{"$f":"IF(AND(H68>='A - Contractor Summary'!$C$36,I68<='A - Contractor Summary'!$C$42),\"Yes\",\"No\")","v":"No"},{"$f":"VLOOKUP($C68,'C.1 - Rate Sheets'!H:I,2,FALSE)","v":29},null,null,64,null,64,1856,1856,0,0,0]
[null,52,"Truck, 14Yd Dump, 70 Ft","865-8219","Vendor No. 3",50900,"82O62018","2018-10-28","2018-11-03",{"$f":"IF(AND(H69>='A - Contractor Summary'!$C$36,I69<='A - Contractor Summary'!$C$42),\"Yes\",\"No\")","v":"No"},{"$f":"VLOOKUP($C69,'C.1 - Rate Sheets'!H:I,2,FALSE)","v":29},null,null,64,null,64,1856,1856,0,0,0]
[null,53,"Truck, 14Yd Dump, 70 Ft","865-9076","Vendor No. 3",50900,"82O62018","2018-10-28","2018-11-03",{"$f":"IF(AND(H70>='A - Contractor Summary'!$C$36,I70<='A - Contractor Summary'!$C$42),\"Yes\",\"No\")","v":"No"},{"$f":"VLOOKUP($C70,'C.1 - Rate Sheets'!H:I,2,FALSE)","v":29},null,null,64,null,64,1856,1856,0,0,0]
[null,54,"Truck, 14Yd Dump, 55 Ft","897-3204","Vendor No. 3",50900,"82O62018","2018-10-28","2018-11-03",{"$f":"IF(AND(H71>='A - Contractor Summary'!$C$36,I71<='A - Contractor Summary'!$C$42),\"Yes\",\"No\")","v":"No"},{"$f":"VLOOKUP($C71,'C.1 - Rate Sheets'!H:I,2,FALSE)","v":18.86},null,null,64,null,64,1207.04,1207.04,0,0,0]
[null,55,"Pickup Truck","614-7588","Vendor No. 3",55392,"82O61918","2018-10-28","2018-11-03",{"$f":"IF(AND(H72>='A - Contractor Summary'!$C$36,I72<='A - Contractor Summary'!$C$42),\"Yes\",\"No\")","v":"No"},{"$f":"VLOOKUP($C72,'C.1 - Rate Sheets'!H:I,2,FALSE)","v":12.1},null,null,64,null,64,774.4,774.4,0,0,0]
[null,56,"Truck, 14Yd Dump, 55 Ft","869-2526","Vendor No. 3",55392,"82O61918","2018-10-28","2018-11-03",{"$f":"IF(AND(H73>='A - Contractor Summary'!$C$36,I73<='A - Contractor Summary'!$C$42),\"Yes\",\"No\")","v":"No"},{"$f":"VLOOKUP($C73,'C.1 - Rate Sheets'!H:I,2,FALSE)","v":18.86},null,null,64,null,64,1207.04,1207.04,0,0,0]
[null,57,"Truck, 14Yd Dump, 55 Ft","895-0736","Vendor No. 3",55392,"82O61918","2018-10-28","2018-11-03",{"$f":"IF(AND(H74>='A - Contractor Summary'!$C$36,I74<='A - Contractor Summary'!$C$42),\"Yes\",\"No\")","v":"No"},{"$f":"VLOOKUP($C74,'C.1 - Rate Sheets'!H:I,2,FALSE)","v":18.86},null,null,64,null,64,1207.04,1207.04,0,0,0]
[null,58,"Truck, 14Yd Dump, 55 Ft",897.25760000000002,"Vendor No. 3",55392,"82O61918","2018-10-28","2018-11-03",{"$f":"IF(AND(H75>='A - Contractor Summary'!$C$36,I75<='A - Contractor Summary'!$C$42),\"Yes\",\"No\")","v":"No"},{"$f":"VLOOKUP($C75,'C.1 - Rate Sheets'!H:I,2,FALSE)","v":18.86},null,null,64,null,64,1207.04,1207.04,0,0,0]
[null,59,"Truck, 14Yd Dump, 55 Ft","897-3692","Vendor No. 3",55392,"82O61918","2018-10-28","2018-11-03",{"$f":"IF(AND(H76>='A - Contractor Summary'!$C$36,I76<='A - Contractor Summary'!$C$42),\"Yes\",\"No\")","v":"No"},{"$f":"VLOOKUP($C76,'C.1 - Rate Sheets'!H:I,2,FALSE)","v":18.86},null,null,64,null,64,1207.04,1207.04,0,0,0]
[null,60,"Truck, 14Yd Dump, 55 Ft","895-8562","Vendor No. 3",55392,"82O61918","2018-10-28","2018-11-03",{"$f":"IF(AND(H77>='A - Contractor Summary'!$C$36,I77<='A - Contractor Summary'!$C$42),\"Yes\",\"No\")","v":"No"},{"$f":"VLOOKUP($C77,'C.1 - Rate Sheets'!H:I,2,FALSE)","v":18.86},null,null,64,null,64,1207.04,1207.04,0,0,0]
[null,61,"Pickup Truck","622-2513","Vendor No. 3",55392,"82O61918","2018-10-28","2018-11-03",{"$f":"IF(AND(H78>='A - Contractor Summary'!$C$36,I78<='A - Contractor Summary'!$C$42),\"Yes\",\"No\")","v":"No"},{"$f":"VLOOKUP($C78,'C.1 - Rate Sheets'!H:I,2,FALSE)","v":12.1},null,null,64,null,64,774.4,774.4,0,0,0]
[null,62,"Truck, 14TD Chipper","770-1708","Vendor No. 3",55392,"82O61918","2018-10-28","2018-11-03",{"$f":"IF(AND(H79>='A - Contractor Summary'!$C$36,I79<='A - Contractor Summary'!$C$42),\"Yes\",\"No\")","v":"No"},{"$f":"VLOOKUP($C79,'C.1 - Rate Sheets'!H:I,2,FALSE)","v":12.03},null,null,64,null,64,769.92,769.92,0,0,0]
[null,63,"Truck, 14TD Chipper","770-8429","Vendor No. 3",55392,"82O61918","2018-10-28","2018-11-03",{"$f":"IF(AND(H80>='A - Contractor Summary'!$C$36,I80<='A - Contractor Summary'!$C$42),\"Yes\",\"No\")","v":"No"},{"$f":"VLOOKUP($C80,'C.1 - Rate Sheets'!H:I,2,FALSE)","v":12.03},null,null,64,null,64,769.92,{"$f":"Q80-S80","v":769.92},0,0,0]
[null,64,"Truck, 14TD Chipper","770-9359","Vendor No. 3",55392,"82O61918","2018-10-28","2018-11-03",{"$f":"IF(AND(H81>='A - Contractor Summary'!$C$36,I81<='A - Contractor Summary'!$C$42),\"Yes\",\"No\")","v":"No"},{"$f":"VLOOKUP($C81,'C.1 - Rate Sheets'!H:I,2,FALSE)","v":12.03},null,null,64,null,64,769.92,769.92,0,0,0]
[null,65,"Truck, 14TD Chipper","770-1909","Vendor No. 3",55392,"82O61918","2018-10-28","2018-11-03",{"$f":"IF(AND(H82>='A - Contractor Summary'!$C$36,I82<='A - Contractor Summary'!$C$42),\"Yes\",\"No\")","v":"No"},{"$f":"VLOOKUP($C82,'C.1 - Rate Sheets'!H:I,2,FALSE)","v":12.03},null,null,64,null,64,{"$f":"P82*K82","v":769.92},769.92,0,0,0]
[null,66,"Truck, Pickup AWD","614-3521","Vendor No. 3",50937,"82R77018","2018-10-28","2018-11-03",{"$f":"IF(AND(H83>='A - Contractor Summary'!$C$36,I83<='A - Contractor Summary'!$C$42),\"Yes\",\"No\")","v":"No"},{"$f":"VLOOKUP($C83,'C.1 - Rate Sheets'!H:I,2,FALSE)","v":13.99},null,null,64,null,64,895.36,895.36,0,0,0]
[null,67,"Pickup Truck","602-0501","Vendor No. 3",50937,"82R77018","2018-10-28","2018-11-03",{"$f":"IF(AND(H84>='A - Contractor Summary'!$C$36,I84<='A - Contractor Summary'!$C$42),\"Yes\",\"No\")","v":"No"},{"$f":"VLOOKUP($C84,'C.1 - Rate Sheets'!H:I,2,FALSE)","v":12.1},null,null,64,null,64,774.4,774.4,0,0,0]
[null,68,"Truck, 14Yd Dump, 55 Ft","896-8383","Vendor No. 3",50937,"82R77018","2018-10-28","2018-11-03",{"$f":"IF(AND(H85>='A - Contractor Summary'!$C$36,I85<='A - Contractor Summary'!$C$42),\"Yes\",\"No\")","v":"No"},{"$f":"VLOOKUP($C85,'C.1 - Rate Sheets'!H:I,2,FALSE)","v":18.86},null,null,64,null,64,1207.04,1207.04,0,0,0]
[null,69,"Truck, 14Yd Dump, 55 Ft","895-0743","Vendor No. 3",50937,"82R77018","2018-10-28","2018-11-03",{"$f":"IF(AND(H86>='A - Contractor Summary'!$C$36,I86<='A - Contractor Summary'!$C$42),\"Yes\",\"No\")","v":"No"},{"$f":"VLOOKUP($C86,'C.1 - Rate Sheets'!H:I,2,FALSE)","v":18.86},null,null,64,null,64,1207.04,1207.04,0,0,0]
[null,null,null,null,null,null,null,null,null,{"$f":"IF(AND(H87>='A - Contractor Summary'!$C$36,I87<='A - Contractor Summary'!$C$42),\"Yes\",\"No\")","v":"No"},null,null,null,null,null,0,0,0,0,0,0]
[null,null,null,null,null,null,null,null,null,null,null,{"$f":"SUM(L18:L87)","v":373},{"$f":"SUM(M18:M87)","v":2560},{"$f":"SUM(N18:N87)","v":1472},{"$f":"SUM(O18:O87)","v":0},{"$f":"SUM(P18:P87)","v":4405},{"$f":"IFERROR(SUM(Q18:Q87),0)","v":79286.219999999943},{"$f":"IFERROR(SUM(R18:R87),0)","v":79286.219999999943},{"$f":"SUM(S18:S87)","v":0},{"$f":"SUM(T18:T87)","v":0},{"$f":"SUM(U18:U87)","v":0},{"$f":"S88-T88-U88","v":0},"check (b)"]
[]
[]
[null,null,null,null,null,null,null,null,null,null,null,null,null,null,null," "]
[null,"Tickmark Explanation:"]

{"sheet":"D - Lodging","index":8,"n_rows":100,"n_cols":25,"rows_kept":100,"cut":false,"hidden":false,"merged":[[1,1,1,23],[11,15,11,23],[11,1,11,14],[3,1,6,14]]}
[]
[null,"Lodging Charges"]
[]
[null,"Test Plan:  (A) Obtain support of individual charges. (B) Enter Yes/No if receipt is itemized (C) Enter Yes/No if proof of payment has been provided. (D) Ensure charges fall between the dates the vendor was mobilized and the date they arrived.  (E) Ensure charges are prior to the date the vendor arrived home or was released to another utility.  (F) Ensure the location of stay was reasonable (G) Determine the amount(s) to be reviewed, allowed and/or disallowed.  (H) For charges which required further review, document review (include why it was determined to be allowed/disallowed via a tickmark)."]
[]
[]
[]
[null,"Rx","Recalculated."]
[null,"a","Check figure should equal $0.  Cell will appear yellow if discrepancies are noted."]
[]
[null,null,"A",null,null,null,null,null,null,null,null,null,"Rx","B","C","D","E","F","G",null,null,"H"]
[null,"Support Reviewed",null,null,null,null,null,null,null,null,null,null,null,null,null,"Conclusion"]
[null,"#","Type of Support","Support Identifier","Crew","Company","Check In Date","Person","Hotel Name","Location","# of Nights","Total Invoice","$ / Night","Itemized Receipt","Proof of Payment","Reasonable based on Mobilization date(s)","Reasonable based on Demobilization date(s)","Location Reasonable","Conclusion","$ Allowable Charge","$ To Be Reviewed","Reviewed - Allowable $","Reviewed - Unallowable $","Tickmark"]
[null,1,null,null,null,null,null,null,null,null,null,null,{"$f":"L14/K14","v":{"$error":"#DIV/0!"}},null,null,{"$f":"IF(AND(G14>='A - Contractor Summary'!$C$36,G14<='A - Contractor Summary'!$C$38),\"Yes\",IF(G14<'A - Contractor Summary'!$C$36,\"No\",IF(G14>'A - Contractor Summary'!$C$39,\"\",\"\")))","v":"No"},{"$f":"IF(OR(P14=\"Yes\",P14=\"No\")*AND(G14<'A - Contractor Summary'!$C$39),\"\",IF(AND(G14>'A - Contractor Summary'!$C$39,G14<'A - Contractor Summary'!$C$42),\"Yes\",IF(G14>'A - Contractor Summary'!$C$42,\"No\",\"Needs Review\")))","v":""},null,{"$f":"IF(AND(R14=\"YES\",O14=\"Yes\",N14=\"Yes\")*OR(P14=\"Yes\",Q14=\"Yes\"),\"Yes\",IF(OR(N14=\"No\",O14=\"No\",P14=\"No\",Q14=\"No\",R14=\"No\"),\"No\",\"Needs Review\"))","v":"No"},{"$f":"IF(S14=\"Yes\",L14,0)","v":0},{"$f":"IF(S14=\"Needs Review\",L14,0)","v":0}]
[null,2,null,null,null,null,null,null,null,null,null,null,{"$error":"#DIV/0!"},null,null,{"$f":"IF(AND(G15>='A - Contractor Summary'!$C$36,G15<='A - Contractor Summary'!$C$38),\"Yes\",IF(G15<'A - Contractor Summary'!$C$36,\"No\",IF(G15>'A - Contractor Summary'!$C$39,\"\",\"\")))","v":"No"},{"$f":"IF(OR(P15=\"Yes\",P15=\"No\")*AND(G15<'A - Contractor Summary'!$C$39),\"\",IF(AND(G15>'A - Contractor Summary'!$C$39,G15<'A - Contractor Summary'!$C$42),\"Yes\",IF(G15>'A - Contractor Summary'!$C$42,\"No\",\"Needs Review\")))","v":""},null,"No",0,0]
[null,3,null,null,null,null,null,null,null,null,null,null,{"$error":"#DIV/0!"},null,null,{"$f":"IF(AND(G16>='A - Contractor Summary'!$C$36,G16<='A - Contractor Summary'!$C$38),\"Yes\",IF(G16<'A - Contractor Summary'!$C$36,\"No\",IF(G16>'A - Contractor Summary'!$C$39,\"\",\"\")))","v":"No"},{"$f":"IF(OR(P16=\"Yes\",P16=\"No\")*AND(G16<'A - Contractor Summary'!$C$39),\"\",IF(AND(G16>'A - Contractor Summary'!$C$39,G16<'A - Contractor Summary'!$C$42),\"Yes\",IF(G16>'A - Contractor Summary'!$C$42,\"No\",\"Needs Review\")))","v":""},null,"No",0,0]
[null,4,null,null,null,null,null,null,null,null,null,null,{"$error":"#DIV/0!"},null,null,{"$f":"IF(AND(G17>='A - Contractor Summary'!$C$36,G17<='A - Contractor Summary'!$C$38),\"Yes\",IF(G17<'A - Contractor Summary'!$C$36,\"No\",IF(G17>'A - Contractor Summary'!$C$39,\"\",\"\")))","v":"No"},{"$f":"IF(OR(P17=\"Yes\",P17=\"No\")*AND(G17<'A - Contractor Summary'!$C$39),\"\",IF(AND(G17>'A - Contractor Summary'!$C$39,G17<'A - Contractor Summary'!$C$42),\"Yes\",IF(G17>'A - Contractor Summary'!$C$42,\"No\",\"Needs Review\")))","v":""},null,"No",0,0]
[null,5,null,null,null,null,null,null,null,null,null,null,{"$error":"#DIV/0!"},null,null,{"$f":"IF(AND(G18>='A - Contractor Summary'!$C$36,G18<='A - Contractor Summary'!$C$38),\"Yes\",IF(G18<'A - Contractor Summary'!$C$36,\"No\",IF(G18>'A - Contractor Summary'!$C$39,\"\",\"\")))","v":"No"},{"$f":"IF(OR(P18=\"Yes\",P18=\"No\")*AND(G18<'A - Contractor Summary'!$C$39),\"\",IF(AND(G18>'A - Contractor Summary'!$C$39,G18<'A - Contractor Summary'!$C$42),\"Yes\",IF(G18>'A - Contractor Summary'!$C$42,\"No\",\"Needs Review\")))","v":""},null,"No",0,0]
[null,6,null,null,null,null,null,null,null,null,null,null,{"$error":"#DIV/0!"},null,null,{"$f":"IF(AND(G19>='A - Contractor Summary'!$C$36,G19<='A - Contractor Summary'!$C$38),\"Yes\",IF(G19<'A - Contractor Summary'!$C$36,\"No\",IF(G19>'A - Contractor Summary'!$C$39,\"\",\"\")))","v":"No"},{"$f":"IF(OR(P19=\"Yes\",P19=\"No\")*AND(G19<'A - Contractor Summary'!$C$39),\"\",IF(AND(G19>'A - Contractor Summary'!$C$39,G19<'A - Contractor Summary'!$C$42),\"Yes\",IF(G19>'A - Contractor Summary'!$C$42,\"No\",\"Needs Review\")))","v":""},null,"No",0,0]
[null,7,null,null,null,null,null,null,null,null,null,null,{"$error":"#DIV/0!"},null,null,{"$f":"IF(AND(G20>='A - Contractor Summary'!$C$36,G20<='A - Contractor Summary'!$C$38),\"Yes\",IF(G20<'A - Contractor Summary'!$C$36,\"No\",IF(G20>'A - Contractor Summary'!$C$39,\"\",\"\")))","v":"No"},{"$f":"IF(OR(P20=\"Yes\",P20=\"No\")*AND(G20<'A - Contractor Summary'!$C$39),\"\",IF(AND(G20>'A - Contractor Summary'!$C$39,G20<'A - Contractor Summary'!$C$42),\"Yes\",IF(G20>'A - Contractor Summary'!$C$42,\"No\",\"Needs Review\")))","v":""},null,"No",0,0]
[null,8,null,null,null,null,null,null,null,null,null,null,{"$error":"#DIV/0!"},null,null,{"$f":"IF(AND(G21>='A - Contractor Summary'!$C$36,G21<='A - Contractor Summary'!$C$38),\"Yes\",IF(G21<'A - Contractor Summary'!$C$36,\"No\",IF(G21>'A - Contractor Summary'!$C$39,\"\",\"\")))","v":"No"},{"$f":"IF(OR(P21=\"Yes\",P21=\"No\")*AND(G21<'A - Contractor Summary'!$C$39),\"\",IF(AND(G21>'A - Contractor Summary'!$C$39,G21<'A - Contractor Summary'!$C$42),\"Yes\",IF(G21>'A - Contractor Summary'!$C$42,\"No\",\"Needs Review\")))","v":""},null,"No",0,0]
[null,9,null,null,null,null,null,null,null,null,null,null,{"$error":"#DIV/0!"},null,null,{"$f":"IF(AND(G22>='A - Contractor Summary'!$C$36,G22<='A - Contractor Summary'!$C$38),\"Yes\",IF(G22<'A - Contractor Summary'!$C$36,\"No\",IF(G22>'A - Contractor Summary'!$C$39,\"\",\"\")))","v":"No"},{"$f":"IF(OR(P22=\"Yes\",P22=\"No\")*AND(G22<'A - Contractor Summary'!$C$39),\"\",IF(AND(G22>'A - Contractor Summary'!$C$39,G22<'A - Contractor Summary'!$C$42),\"Yes\",IF(G22>'A - Contractor Summary'!$C$42,\"No\",\"Needs Review\")))","v":""},null,"No",0,0]
[null,10,null,null,null,null,null,null,null,null,null,null,{"$error":"#DIV/0!"},null,null,{"$f":"IF(AND(G23>='A - Contractor Summary'!$C$36,G23<='A - Contractor Summary'!$C$38),\"Yes\",IF(G23<'A - Contractor Summary'!$C$36,\"No\",IF(G23>'A - Contractor Summary'!$C$39,\"\",\"\")))","v":"No"},{"$f":"IF(OR(P23=\"Yes\",P23=\"No\")*AND(G23<'A - Contractor Summary'!$C$39),\"\",IF(AND(G23>'A - Contractor Summary'!$C$39,G23<'A - Contractor Summary'!$C$42),\"Yes\",IF(G23>'A - Contractor Summary'!$C$42,\"No\",\"Needs Review\")))","v":""},null,"No",0,0]
[null,11,null,null,null,null,null,null,null,null,null,null,{"$error":"#DIV/0!"},null,null,{"$f":"IF(AND(G24>='A - Contractor Summary'!$C$36,G24<='A - Contractor Summary'!$C$38),\"Yes\",IF(G24<'A - Contractor Summary'!$C$36,\"No\",IF(G24>'A - Contractor Summary'!$C$39,\"\",\"\")))","v":"No"},{"$f":"IF(OR(P24=\"Yes\",P24=\"No\")*AND(G24<'A - Contractor Summary'!$C$39),\"\",IF(AND(G24>'A - Contractor Summary'!$C$39,G24<'A - Contractor Summary'!$C$42),\"Yes\",IF(G24>'A - Contractor Summary'!$C$42,\"No\",\"Needs Review\")))","v":""},null,"No",0,0]
[null,12,null,null,null,null,null,null,null,null,null,null,{"$error":"#DIV/0!"},null,null,{"$f":"IF(AND(G25>='A - Contractor Summary'!$C$36,G25<='A - Contractor Summary'!$C$38),\"Yes\",IF(G25<'A - Contractor Summary'!$C$36,\"No\",IF(G25>'A - Contractor Summary'!$C$39,\"\",\"\")))","v":"No"},{"$f":"IF(OR(P25=\"Yes\",P25=\"No\")*AND(G25<'A - Contractor Summary'!$C$39),\"\",IF(AND(G25>'A - Contractor Summary'!$C$39,G25<'A - Contractor Summary'!$C$42),\"Yes\",IF(G25>'A - Contractor Summary'!$C$42,\"No\",\"Needs Review\")))","v":""},null,"No",0,0]
[null,13,null,null,null,null,null,null,null,null,null,null,{"$error":"#DIV/0!"},null,null,{"$f":"IF(AND(G26>='A - Contractor Summary'!$C$36,G26<='A - Contractor Summary'!$C$38),\"Yes\",IF(G26<'A - Contractor Summary'!$C$36,\"No\",IF(G26>'A - Contractor Summary'!$C$39,\"\",\"\")))","v":"No"},{"$f":"IF(OR(P26=\"Yes\",P26=\"No\")*AND(G26<'A - Contractor Summary'!$C$39),\"\",IF(AND(G26>'A - Contractor Summary'!$C$39,G26<'A - Contractor Summary'!$C$42),\"Yes\",IF(G26>'A - Contractor Summary'!$C$42,\"No\",\"Needs Review\")))","v":""},null,"No",0,0]
[null,14,null,null,null,null,null,null,null,null,null,null,{"$error":"#DIV/0!"},null,null,{"$f":"IF(AND(G27>='A - Contractor Summary'!$C$36,G27<='A - Contractor Summary'!$C$38),\"Yes\",IF(G27<'A - Contractor Summary'!$C$36,\"No\",IF(G27>'A - Contractor Summary'!$C$39,\"\",\"\")))","v":"No"},{"$f":"IF(OR(P27=\"Yes\",P27=\"No\")*AND(G27<'A - Contractor Summary'!$C$39),\"\",IF(AND(G27>'A - Contractor Summary'!$C$39,G27<'A - Contractor Summary'!$C$42),\"Yes\",IF(G27>'A - Contractor Summary'!$C$42,\"No\",\"Needs Review\")))","v":""},null,"No",0,0]
[null,15,null,null,null,null,null,null,null,null,null,null,{"$error":"#DIV/0!"},null,null,{"$f":"IF(AND(G28>='A - Contractor Summary'!$C$36,G28<='A - Contractor Summary'!$C$38),\"Yes\",IF(G28<'A - Contractor Summary'!$C$36,\"No\",IF(G28>'A - Contractor Summary'!$C$39,\"\",\"\")))","v":"No"},{"$f":"IF(OR(P28=\"Yes\",P28=\"No\")*AND(G28<'A - Contractor Summary'!$C$39),\"\",IF(AND(G28>'A - Contractor Summary'!$C$39,G28<'A - Contractor Summary'!$C$42),\"Yes\",IF(G28>'A - Contractor Summary'!$C$42,\"No\",\"Needs Review\")))","v":""},null,"No",0,0]
[null,16,null,null,null,null,null,null,null,null,null,null,{"$error":"#DIV/0!"},null,null,{"$f":"IF(AND(G29>='A - Contractor Summary'!$C$36,G29<='A - Contractor Summary'!$C$38),\"Yes\",IF(G29<'A - Contractor Summary'!$C$36,\"No\",IF(G29>'A - Contractor Summary'!$C$39,\"\",\"\")))","v":"No"},{"$f":"IF(OR(P29=\"Yes\",P29=\"No\")*AND(G29<'A - Contractor Summary'!$C$39),\"\",IF(AND(G29>'A - Contractor Summary'!$C$39,G29<'A - Contractor Summary'!$C$42),\"Yes\",IF(G29>'A - Contractor Summary'!$C$42,\"No\",\"Needs Review\")))","v":""},null,"No",0,0]
[null,17,null,null,null,null,null,null,null,null,null,null,{"$error":"#DIV/0!"},null,null,{"$f":"IF(AND(G30>='A - Contractor Summary'!$C$36,G30<='A - Contractor Summary'!$C$38),\"Yes\",IF(G30<'A - Contractor Summary'!$C$36,\"No\",IF(G30>'A - Contractor Summary'!$C$39,\"\",\"\")))","v":"No"},{"$f":"IF(OR(P30=\"Yes\",P30=\"No\")*AND(G30<'A - Contractor Summary'!$C$39),\"\",IF(AND(G30>'A - Contractor Summary'!$C$39,G30<'A - Contractor Summary'!$C$42),\"Yes\",IF(G30>'A - Contractor Summary'!$C$42,\"No\",\"Needs Review\")))","v":""},null,"No",0,0]
[null,18,null,null,null,null,null,null,null,null,null,null,{"$error":"#DIV/0!"},null,null,{"$f":"IF(AND(G31>='A - Contractor Summary'!$C$36,G31<='A - Contractor Summary'!$C$38),\"Yes\",IF(G31<'A - Contractor Summary'!$C$36,\"No\",IF(G31>'A - Contractor Summary'!$C$39,\"\",\"\")))","v":"No"},{"$f":"IF(OR(P31=\"Yes\",P31=\"No\")*AND(G31<'A - Contractor Summary'!$C$39),\"\",IF(AND(G31>'A - Contractor Summary'!$C$39,G31<'A - Contractor Summary'!$C$42),\"Yes\",IF(G31>'A - Contractor Summary'!$C$42,\"No\",\"Needs Review\")))","v":""},null,"No",0,0]
[null,19,null,null,null,null,null,null,null,null,null,null,{"$error":"#DIV/0!"},null,null,{"$f":"IF(AND(G32>='A - Contractor Summary'!$C$36,G32<='A - Contractor Summary'!$C$38),\"Yes\",IF(G32<'A - Contractor Summary'!$C$36,\"No\",IF(G32>'A - Contractor Summary'!$C$39,\"\",\"\")))","v":"No"},{"$f":"IF(OR(P32=\"Yes\",P32=\"No\")*AND(G32<'A - Contractor Summary'!$C$39),\"\",IF(AND(G32>'A - Contractor Summary'!$C$39,G32<'A - Contractor Summary'!$C$42),\"Yes\",IF(G32>'A - Contractor Summary'!$C$42,\"No\",\"Needs Review\")))","v":""},null,"No",0,0]
[null,20,null,null,null,null,null,null,null,null,null,null,{"$error":"#DIV/0!"},null,null,{"$f":"IF(AND(G33>='A - Contractor Summary'!$C$36,G33<='A - Contractor Summary'!$C$38),\"Yes\",IF(G33<'A - Contractor Summary'!$C$36,\"No\",IF(G33>'A - Contractor Summary'!$C$39,\"\",\"\")))","v":"No"},{"$f":"IF(OR(P33=\"Yes\",P33=\"No\")*AND(G33<'A - Contractor Summary'!$C$39),\"\",IF(AND(G33>'A - Contractor Summary'!$C$39,G33<'A - Contractor Summary'!$C$42),\"Yes\",IF(G33>'A - Contractor Summary'!$C$42,\"No\",\"Needs Review\")))","v":""},null,"No",0,0]
[null,21,null,null,null,null,null,null,null,null,null,null,{"$error":"#DIV/0!"},null,null,{"$f":"IF(AND(G34>='A - Contractor Summary'!$C$36,G34<='A - Contractor Summary'!$C$38),\"Yes\",IF(G34<'A - Contractor Summary'!$C$36,\"No\",IF(G34>'A - Contractor Summary'!$C$39,\"\",\"\")))","v":"No"},{"$f":"IF(OR(P34=\"Yes\",P34=\"No\")*AND(G34<'A - Contractor Summary'!$C$39),\"\",IF(AND(G34>'A - Contractor Summary'!$C$39,G34<'A - Contractor Summary'!$C$42),\"Yes\",IF(G34>'A - Contractor Summary'!$C$42,\"No\",\"Needs Review\")))","v":""},null,"No",0,0]
[null,22,null,null,null,null,null,null,null,null,null,null,{"$error":"#DIV/0!"},null,null,{"$f":"IF(AND(G35>='A - Contractor Summary'!$C$36,G35<='A - Contractor Summary'!$C$38),\"Yes\",IF(G35<'A - Contractor Summary'!$C$36,\"No\",IF(G35>'A - Contractor Summary'!$C$39,\"\",\"\")))","v":"No"},{"$f":"IF(OR(P35=\"Yes\",P35=\"No\")*AND(G35<'A - Contractor Summary'!$C$39),\"\",IF(AND(G35>'A - Contractor Summary'!$C$39,G35<'A - Contractor Summary'!$C$42),\"Yes\",IF(G35>'A - Contractor Summary'!$C$42,\"No\",\"Needs Review\")))","v":""},null,"No",0,0]
[null,23,null,null,null,null,null,null,null,null,null,null,{"$error":"#DIV/0!"},null,null,{"$f":"IF(AND(G36>='A - Contractor Summary'!$C$36,G36<='A - Contractor Summary'!$C$38),\"Yes\",IF(G36<'A - Contractor Summary'!$C$36,\"No\",IF(G36>'A - Contractor Summary'!$C$39,\"\",\"\")))","v":"No"},{"$f":"IF(OR(P36=\"Yes\",P36=\"No\")*AND(G36<'A - Contractor Summary'!$C$39),\"\",IF(AND(G36>'A - Contractor Summary'!$C$39,G36<'A - Contractor Summary'!$C$42),\"Yes\",IF(G36>'A - Contractor Summary'!$C$42,\"No\",\"Needs Review\")))","v":""},null,"No",0,0]
[null,24,null,null,null,null,null,null,null,null,null,null,{"$error":"#DIV/0!"},null,null,{"$f":"IF(AND(G37>='A - Contractor Summary'!$C$36,G37<='A - Contractor Summary'!$C$38),\"Yes\",IF(G37<'A - Contractor Summary'!$C$36,\"No\",IF(G37>'A - Contractor Summary'!$C$39,\"\",\"\")))","v":"No"},{"$f":"IF(OR(P37=\"Yes\",P37=\"No\")*AND(G37<'A - Contractor Summary'!$C$39),\"\",IF(AND(G37>'A - Contractor Summary'!$C$39,G37<'A - Contractor Summary'!$C$42),\"Yes\",IF(G37>'A - Contractor Summary'!$C$42,\"No\",\"Needs Review\")))","v":""},null,"No",0,0]
[null,25,null,null,null,null,null,null,null,null,null,null,{"$error":"#DIV/0!"},null,null,{"$f":"IF(AND(G38>='A - Contractor Summary'!$C$36,G38<='A - Contractor Summary'!$C$38),\"Yes\",IF(G38<'A - Contractor Summary'!$C$36,\"No\",IF(G38>'A - Contractor Summary'!$C$39,\"\",\"\")))","v":"No"},{"$f":"IF(OR(P38=\"Yes\",P38=\"No\")*AND(G38<'A - Contractor Summary'!$C$39),\"\",IF(AND(G38>'A - Contractor Summary'!$C$39,G38<'A - Contractor Summary'!$C$42),\"Yes\",IF(G38>'A - Contractor Summary'!$C$42,\"No\",\"Needs Review\")))","v":""},null,"No",0,0]
[null,26,null,null,null,null,null,null,null,null,null,null,{"$error":"#DIV/0!"},null,null,{"$f":"IF(AND(G39>='A - Contractor Summary'!$C$36,G39<='A - Contractor Summary'!$C$38),\"Yes\",IF(G39<'A - Contractor Summary'!$C$36,\"No\",IF(G39>'A - Contractor Summary'!$C$39,\"\",\"\")))","v":"No"},{"$f":"IF(OR(P39=\"Yes\",P39=\"No\")*AND(G39<'A - Contractor Summary'!$C$39),\"\",IF(AND(G39>'A - Contractor Summary'!$C$39,G39<'A - Contractor Summary'!$C$42),\"Yes\",IF(G39>'A - Contractor Summary'!$C$42,\"No\",\"Needs Review\")))","v":""},null,"No",0,0]
[null,27,null,null,null,null,null,null,null,null,null,null,{"$error":"#DIV/0!"},null,null,{"$f":"IF(AND(G40>='A - Contractor Summary'!$C$36,G40<='A - Contractor Summary'!$C$38),\"Yes\",IF(G40<'A - Contractor Summary'!$C$36,\"No\",IF(G40>'A - Contractor Summary'!$C$39,\"\",\"\")))","v":"No"},{"$f":"IF(OR(P40=\"Yes\",P40=\"No\")*AND(G40<'A - Contractor Summary'!$C$39),\"\",IF(AND(G40>'A - Contractor Summary'!$C$39,G40<'A - Contractor Summary'!$C$42),\"Yes\",IF(G40>'A - Contractor Summary'!$C$42,\"No\",\"Needs Review\")))","v":""},null,"No",0,0]
[null,28,null,null,null,null,null,null,null,null,null,null,{"$error":"#DIV/0!"},null,null,{"$f":"IF(AND(G41>='A - Contractor Summary'!$C$36,G41<='A - Contractor Summary'!$C$38),\"Yes\",IF(G41<'A - Contractor Summary'!$C$36,\"No\",IF(G41>'A - Contractor Summary'!$C$39,\"\",\"\")))","v":"No"},{"$f":"IF(OR(P41=\"Yes\",P41=\"No\")*AND(G41<'A - Contractor Summary'!$C$39),\"\",IF(AND(G41>'A - Contractor Summary'!$C$39,G41<'A - Contractor Summary'!$C$42),\"Yes\",IF(G41>'A - Contractor Summary'!$C$42,\"No\",\"Needs Review\")))","v":""},null,"No",0,0]
[null,29,null,null,null,null,null,null,null,null,null,null,{"$error":"#DIV/0!"},null,null,{"$f":"IF(AND(G42>='A - Contractor Summary'!$C$36,G42<='A - Contractor Summary'!$C$38),\"Yes\",IF(G42<'A - Contractor Summary'!$C$36,\"No\",IF(G42>'A - Contractor Summary'!$C$39,\"\",\"\")))","v":"No"},{"$f":"IF(OR(P42=\"Yes\",P42=\"No\")*AND(G42<'A - Contractor Summary'!$C$39),\"\",IF(AND(G42>'A - Contractor Summary'!$C$39,G42<'A - Contractor Summary'!$C$42),\"Yes\",IF(G42>'A - Contractor Summary'!$C$42,\"No\",\"Needs Review\")))","v":""},null,"No",0,0]
[null,30,null,null,null,null,null,null,null,null,null,null,{"$error":"#DIV/0!"},null,null,{"$f":"IF(AND(G43>='A - Contractor Summary'!$C$36,G43<='A - Contractor Summary'!$C$38),\"Yes\",IF(G43<'A - Contractor Summary'!$C$36,\"No\",IF(G43>'A - Contractor Summary'!$C$39,\"\",\"\")))","v":"No"},{"$f":"IF(OR(P43=\"Yes\",P43=\"No\")*AND(G43<'A - Contractor Summary'!$C$39),\"\",IF(AND(G43>'A - Contractor Summary'!$C$39,G43<'A - Contractor Summary'!$C$42),\"Yes\",IF(G43>'A - Contractor Summary'!$C$42,\"No\",\"Needs Review\")))","v":""},null,"No",0,0]
[null,31,null,null,null,null,null,null,null,null,null,null,{"$error":"#DIV/0!"},null,null,{"$f":"IF(AND(G44>='A - Contractor Summary'!$C$36,G44<='A - Contractor Summary'!$C$38),\"Yes\",IF(G44<'A - Contractor Summary'!$C$36,\"No\",IF(G44>'A - Contractor Summary'!$C$39,\"\",\"\")))","v":"No"},{"$f":"IF(OR(P44=\"Yes\",P44=\"No\")*AND(G44<'A - Contractor Summary'!$C$39),\"\",IF(AND(G44>'A - Contractor Summary'!$C$39,G44<'A - Contractor Summary'!$C$42),\"Yes\",IF(G44>'A - Contractor Summary'!$C$42,\"No\",\"Needs Review\")))","v":""},null,"No",0,0]
[null,32,null,null,null,null,null,null,null,null,null,null,{"$error":"#DIV/0!"},null,null,{"$f":"IF(AND(G45>='A - Contractor Summary'!$C$36,G45<='A - Contractor Summary'!$C$38),\"Yes\",IF(G45<'A - Contractor Summary'!$C$36,\"No\",IF(G45>'A - Contractor Summary'!$C$39,\"\",\"\")))","v":"No"},{"$f":"IF(OR(P45=\"Yes\",P45=\"No\")*AND(G45<'A - Contractor Summary'!$C$39),\"\",IF(AND(G45>'A - Contractor Summary'!$C$39,G45<'A - Contractor Summary'!$C$42),\"Yes\",IF(G45>'A - Contractor Summary'!$C$42,\"No\",\"Needs Review\")))","v":""},null,"No",0,0]
[null,33,null,null,null,null,null,null,null,null,null,null,{"$f":"L46/K46","v":{"$error":"#DIV/0!"}},null,null,{"$f":"IF(AND(G46>='A - Contractor Summary'!$C$36,G46<='A - Contractor Summary'!$C$38),\"Yes\",IF(G46<'A - Contractor Summary'!$C$36,\"No\",IF(G46>'A - Contractor Summary'!$C$39,\"\",\"\")))","v":"No"},{"$f":"IF(OR(P46=\"Yes\",P46=\"No\")*AND(G46<'A - Contractor Summary'!$C$39),\"\",IF(AND(G46>'A - Contractor Summary'!$C$39,G46<'A - Contractor Summary'!$C$42),\"Yes\",IF(G46>'A - Contractor Summary'!$C$42,\"No\",\"Needs Review\")))","v":""},null,{"$f":"IF(AND(R46=\"YES\",O46=\"Yes\",N46=\"Yes\")*OR(P46=\"Yes\",Q46=\"Yes\"),\"Yes\",IF(OR(N46=\"No\",O46=\"No\",P46=\"No\",Q46=\"No\",R46=\"No\"),\"No\",\"Needs Review\"))","v":"No"},{"$f":"IF(S46=\"Yes\",L46,0)","v":0},{"$f":"IF(S46=\"Needs Review\",L46,0)","v":0}]
[null,34,null,null,null,null,null,null,null,null,null,null,{"$error":"#DIV/0!"},null,null,{"$f":"IF(AND(G47>='A - Contractor Summary'!$C$36,G47<='A - Contractor Summary'!$C$38),\"Yes\",IF(G47<'A - Contractor Summary'!$C$36,\"No\",IF(G47>'A - Contractor Summary'!$C$39,\"\",\"\")))","v":"No"},{"$f":"IF(OR(P47=\"Yes\",P47=\"No\")*AND(G47<'A - Contractor Summary'!$C$39),\"\",IF(AND(G47>'A - Contractor Summary'!$C$39,G47<'A - Contractor Summary'!$C$42),\"Yes\",IF(G47>'A - Contractor Summary'!$C$42,\"No\",\"Needs Review\")))","v":""},null,"No",0,0]
[null,35,null,null,null,null,null,null,null,null,null,null,{"$error":"#DIV/0!"},null,null,{"$f":"IF(AND(G48>='A - Contractor Summary'!$C$36,G48<='A - Contractor Summary'!$C$38),\"Yes\",IF(G48<'A - Contractor Summary'!$C$36,\"No\",IF(G48>'A - Contractor Summary'!$C$39,\"\",\"\")))","v":"No"},{"$f":"IF(OR(P48=\"Yes\",P48=\"No\")*AND(G48<'A - Contractor Summary'!$C$39),\"\",IF(AND(G48>'A - Contractor Summary'!$C$39,G48<'A - Contractor Summary'!$C$42),\"Yes\",IF(G48>'A - Contractor Summary'!$C$42,\"No\",\"Needs Review\")))","v":""},null,"No",0,0]
[null,36,null,null,null,null,null,null,null,null,null,null,{"$error":"#DIV/0!"},null,null,{"$f":"IF(AND(G49>='A - Contractor Summary'!$C$36,G49<='A - Contractor Summary'!$C$38),\"Yes\",IF(G49<'A - Contractor Summary'!$C$36,\"No\",IF(G49>'A - Contractor Summary'!$C$39,\"\",\"\")))","v":"No"},{"$f":"IF(OR(P49=\"Yes\",P49=\"No\")*AND(G49<'A - Contractor Summary'!$C$39),\"\",IF(AND(G49>'A - Contractor Summary'!$C$39,G49<'A - Contractor Summary'!$C$42),\"Yes\",IF(G49>'A - Contractor Summary'!$C$42,\"No\",\"Needs Review\")))","v":""},null,"No",0,0]
[null,37,null,null,null,null,null,null,null,null,null,null,{"$error":"#DIV/0!"},null,null,{"$f":"IF(AND(G50>='A - Contractor Summary'!$C$36,G50<='A - Contractor Summary'!$C$38),\"Yes\",IF(G50<'A - Contractor Summary'!$C$36,\"No\",IF(G50>'A - Contractor Summary'!$C$39,\"\",\"\")))","v":"No"},{"$f":"IF(OR(P50=\"Yes\",P50=\"No\")*AND(G50<'A - Contractor Summary'!$C$39),\"\",IF(AND(G50>'A - Contractor Summary'!$C$39,G50<'A - Contractor Summary'!$C$42),\"Yes\",IF(G50>'A - Contractor Summary'!$C$42,\"No\",\"Needs Review\")))","v":""},null,"No",0,0]
[null,38,null,null,null,null,null,null,null,null,null,null,{"$error":"#DIV/0!"},null,null,{"$f":"IF(AND(G51>='A - Contractor Summary'!$C$36,G51<='A - Contractor Summary'!$C$38),\"Yes\",IF(G51<'A - Contractor Summary'!$C$36,\"No\",IF(G51>'A - Contractor Summary'!$C$39,\"\",\"\")))","v":"No"},{"$f":"IF(OR(P51=\"Yes\",P51=\"No\")*AND(G51<'A - Contractor Summary'!$C$39),\"\",IF(AND(G51>'A - Contractor Summary'!$C$39,G51<'A - Contractor Summary'!$C$42),\"Yes\",IF(G51>'A - Contractor Summary'!$C$42,\"No\",\"Needs Review\")))","v":""},null,"No",0,0]
[null,39,null,null,null,null,null,null,null,null,null,null,{"$error":"#DIV/0!"},null,null,{"$f":"IF(AND(G52>='A - Contractor Summary'!$C$36,G52<='A - Contractor Summary'!$C$38),\"Yes\",IF(G52<'A - Contractor Summary'!$C$36,\"No\",IF(G52>'A - Contractor Summary'!$C$39,\"\",\"\")))","v":"No"},{"$f":"IF(OR(P52=\"Yes\",P52=\"No\")*AND(G52<'A - Contractor Summary'!$C$39),\"\",IF(AND(G52>'A - Contractor Summary'!$C$39,G52<'A - Contractor Summary'!$C$42),\"Yes\",IF(G52>'A - Contractor Summary'!$C$42,\"No\",\"Needs Review\")))","v":""},null,"No",0,0]
[null,40,null,null,null,null,null,null,null,null,null,null,{"$error":"#DIV/0!"},null,null,{"$f":"IF(AND(G53>='A - Contractor Summary'!$C$36,G53<='A - Contractor Summary'!$C$38),\"Yes\",IF(G53<'A - Contractor Summary'!$C$36,\"No\",IF(G53>'A - Contractor Summary'!$C$39,\"\",\"\")))","v":"No"},{"$f":"IF(OR(P53=\"Yes\",P53=\"No\")*AND(G53<'A - Contractor Summary'!$C$39),\"\",IF(AND(G53>'A - Contractor Summary'!$C$39,G53<'A - Contractor Summary'!$C$42),\"Yes\",IF(G53>'A - Contractor Summary'!$C$42,\"No\",\"Needs Review\")))","v":""},null,"No",0,0]
[null,41,null,null,null,null,null,null,null,null,null,null,{"$error":"#DIV/0!"},null,null,{"$f":"IF(AND(G54>='A - Contractor Summary'!$C$36,G54<='A - Contractor Summary'!$C$38),\"Yes\",IF(G54<'A - Contractor Summary'!$C$36,\"No\",IF(G54>'A - Contractor Summary'!$C$39,\"\",\"\")))","v":"No"},{"$f":"IF(OR(P54=\"Yes\",P54=\"No\")*AND(G54<'A - Contractor Summary'!$C$39),\"\",IF(AND(G54>'A - Contractor Summary'!$C$39,G54<'A - Contractor Summary'!$C$42),\"Yes\",IF(G54>'A - Contractor Summary'!$C$42,\"No\",\"Needs Review\")))","v":""},null,"No",0,0]
[null,42,null,null,null,null,null,null,null,null,null,null,{"$error":"#DIV/0!"},null,null,{"$f":"IF(AND(G55>='A - Contractor Summary'!$C$36,G55<='A - Contractor Summary'!$C$38),\"Yes\",IF(G55<'A - Contractor Summary'!$C$36,\"No\",IF(G55>'A - Contractor Summary'!$C$39,\"\",\"\")))","v":"No"},{"$f":"IF(OR(P55=\"Yes\",P55=\"No\")*AND(G55<'A - Contractor Summary'!$C$39),\"\",IF(AND(G55>'A - Contractor Summary'!$C$39,G55<'A - Contractor Summary'!$C$42),\"Yes\",IF(G55>'A - Contractor Summary'!$C$42,\"No\",\"Needs Review\")))","v":""},null,"No",0,0]
[null,43,null,null,null,null,null,null,null,null,null,null,{"$error":"#DIV/0!"},null,null,{"$f":"IF(AND(G56>='A - Contractor Summary'!$C$36,G56<='A - Contractor Summary'!$C$38),\"Yes\",IF(G56<'A - Contractor Summary'!$C$36,\"No\",IF(G56>'A - Contractor Summary'!$C$39,\"\",\"\")))","v":"No"},{"$f":"IF(OR(P56=\"Yes\",P56=\"No\")*AND(G56<'A - Contractor Summary'!$C$39),\"\",IF(AND(G56>'A - Contractor Summary'!$C$39,G56<'A - Contractor Summary'!$C$42),\"Yes\",IF(G56>'A - Contractor Summary'!$C$42,\"No\",\"Needs Review\")))","v":""},null,"No",0,0]
[null,44,null,null,null,null,null,null,null,null,null,null,{"$error":"#DIV/0!"},null,null,{"$f":"IF(AND(G57>='A - Contractor Summary'!$C$36,G57<='A - Contractor Summary'!$C$38),\"Yes\",IF(G57<'A - Contractor Summary'!$C$36,\"No\",IF(G57>'A - Contractor Summary'!$C$39,\"\",\"\")))","v":"No"},{"$f":"IF(OR(P57=\"Yes\",P57=\"No\")*AND(G57<'A - Contractor Summary'!$C$39),\"\",IF(AND(G57>'A - Contractor Summary'!$C$39,G57<'A - Contractor Summary'!$C$42),\"Yes\",IF(G57>'A - Contractor Summary'!$C$42,\"No\",\"Needs Review\")))","v":""},null,"No",0,0]
[null,45,null,null,null,null,null,null,null,null,null,null,{"$error":"#DIV/0!"},null,null,{"$f":"IF(AND(G58>='A - Contractor Summary'!$C$36,G58<='A - Contractor Summary'!$C$38),\"Yes\",IF(G58<'A - Contractor Summary'!$C$36,\"No\",IF(G58>'A - Contractor Summary'!$C$39,\"\",\"\")))","v":"No"},{"$f":"IF(OR(P58=\"Yes\",P58=\"No\")*AND(G58<'A - Contractor Summary'!$C$39),\"\",IF(AND(G58>'A - Contractor Summary'!$C$39,G58<'A - Contractor Summary'!$C$42),\"Yes\",IF(G58>'A - Contractor Summary'!$C$42,\"No\",\"Needs Review\")))","v":""},null,"No",0,0]
[null,46,null,null,null,null,null,null,null,null,null,null,{"$error":"#DIV/0!"},null,null,{"$f":"IF(AND(G59>='A - Contractor Summary'!$C$36,G59<='A - Contractor Summary'!$C$38),\"Yes\",IF(G59<'A - Contractor Summary'!$C$36,\"No\",IF(G59>'A - Contractor Summary'!$C$39,\"\",\"\")))","v":"No"},{"$f":"IF(OR(P59=\"Yes\",P59=\"No\")*AND(G59<'A - Contractor Summary'!$C$39),\"\",IF(AND(G59>'A - Contractor Summary'!$C$39,G59<'A - Contractor Summary'!$C$42),\"Yes\",IF(G59>'A - Contractor Summary'!$C$42,\"No\",\"Needs Review\")))","v":""},null,"No",0,0]
[null,47,null,null,null,null,null,null,null,null,null,null,{"$error":"#DIV/0!"},null,null,{"$f":"IF(AND(G60>='A - Contractor Summary'!$C$36,G60<='A - Contractor Summary'!$C$38),\"Yes\",IF(G60<'A - Contractor Summary'!$C$36,\"No\",IF(G60>'A - Contractor Summary'!$C$39,\"\",\"\")))","v":"No"},{"$f":"IF(OR(P60=\"Yes\",P60=\"No\")*AND(G60<'A - Contractor Summary'!$C$39),\"\",IF(AND(G60>'A - Contractor Summary'!$C$39,G60<'A - Contractor Summary'!$C$42),\"Yes\",IF(G60>'A - Contractor Summary'!$C$42,\"No\",\"Needs Review\")))","v":""},null,"No",0,0]
[null,48,null,null,null,null,null,null,null,null,null,null,{"$error":"#DIV/0!"},null,null,{"$f":"IF(AND(G61>='A - Contractor Summary'!$C$36,G61<='A - Contractor Summary'!$C$38),\"Yes\",IF(G61<'A - Contractor Summary'!$C$36,\"No\",IF(G61>'A - Contractor Summary'!$C$39,\"\",\"\")))","v":"No"},{"$f":"IF(OR(P61=\"Yes\",P61=\"No\")*AND(G61<'A - Contractor Summary'!$C$39),\"\",IF(AND(G61>'A - Contractor Summary'!$C$39,G61<'A - Contractor Summary'!$C$42),\"Yes\",IF(G61>'A - Contractor Summary'!$C$42,\"No\",\"Needs Review\")))","v":""},null,"No",0,0]
[null,49,null,null,null,null,null,null,null,null,null,null,{"$error":"#DIV/0!"},null,null,{"$f":"IF(AND(G62>='A - Contractor Summary'!$C$36,G62<='A - Contractor Summary'!$C$38),\"Yes\",IF(G62<'A - Contractor Summary'!$C$36,\"No\",IF(G62>'A - Contractor Summary'!$C$39,\"\",\"\")))","v":"No"},{"$f":"IF(OR(P62=\"Yes\",P62=\"No\")*AND(G62<'A - Contractor Summary'!$C$39),\"\",IF(AND(G62>'A - Contractor Summary'!$C$39,G62<'A - Contractor Summary'!$C$42),\"Yes\",IF(G62>'A - Contractor Summary'!$C$42,\"No\",\"Needs Review\")))","v":""},null,"No",0,0]
[null,50,null,null,null,null,null,null,null,null,null,null,{"$error":"#DIV/0!"},null,null,{"$f":"IF(AND(G63>='A - Contractor Summary'!$C$36,G63<='A - Contractor Summary'!$C$38),\"Yes\",IF(G63<'A - Contractor Summary'!$C$36,\"No\",IF(G63>'A - Contractor Summary'!$C$39,\"\",\"\")))","v":"No"},{"$f":"IF(OR(P63=\"Yes\",P63=\"No\")*AND(G63<'A - Contractor Summary'!$C$39),\"\",IF(AND(G63>'A - Contractor Summary'!$C$39,G63<'A - Contractor Summary'!$C$42),\"Yes\",IF(G63>'A - Contractor Summary'!$C$42,\"No\",\"Needs Review\")))","v":""},null,"No",0,0]
[null,51,null,null,null,null,null,null,null,null,null,null,{"$error":"#DIV/0!"},null,null,{"$f":"IF(AND(G64>='A - Contractor Summary'!$C$36,G64<='A - Contractor Summary'!$C$38),\"Yes\",IF(G64<'A - Contractor Summary'!$C$36,\"No\",IF(G64>'A - Contractor Summary'!$C$39,\"\",\"\")))","v":"No"},{"$f":"IF(OR(P64=\"Yes\",P64=\"No\")*AND(G64<'A - Contractor Summary'!$C$39),\"\",IF(AND(G64>'A - Contractor Summary'!$C$39,G64<'A - Contractor Summary'!$C$42),\"Yes\",IF(G64>'A - Contractor Summary'!$C$42,\"No\",\"Needs Review\")))","v":""},null,"No",0,0]
[null,52,null,null,null,null,null,null,null,null,null,null,{"$error":"#DIV/0!"},null,null,{"$f":"IF(AND(G65>='A - Contractor Summary'!$C$36,G65<='A - Contractor Summary'!$C$38),\"Yes\",IF(G65<'A - Contractor Summary'!$C$36,\"No\",IF(G65>'A - Contractor Summary'!$C$39,\"\",\"\")))","v":"No"},{"$f":"IF(OR(P65=\"Yes\",P65=\"No\")*AND(G65<'A - Contractor Summary'!$C$39),\"\",IF(AND(G65>'A - Contractor Summary'!$C$39,G65<'A - Contractor Summary'!$C$42),\"Yes\",IF(G65>'A - Contractor Summary'!$C$42,\"No\",\"Needs Review\")))","v":""},null,"No",0,0]
[null,53,null,null,null,null,null,null,null,null,null,null,{"$error":"#DIV/0!"},null,null,{"$f":"IF(AND(G66>='A - Contractor Summary'!$C$36,G66<='A - Contractor Summary'!$C$38),\"Yes\",IF(G66<'A - Contractor Summary'!$C$36,\"No\",IF(G66>'A - Contractor Summary'!$C$39,\"\",\"\")))","v":"No"},{"$f":"IF(OR(P66=\"Yes\",P66=\"No\")*AND(G66<'A - Contractor Summary'!$C$39),\"\",IF(AND(G66>'A - Contractor Summary'!$C$39,G66<'A - Contractor Summary'!$C$42),\"Yes\",IF(G66>'A - Contractor Summary'!$C$42,\"No\",\"Needs Review\")))","v":""},null,"No",0,0]
[null,54,null,null,null,null,null,null,null,null,null,null,{"$error":"#DIV/0!"},null,null,{"$f":"IF(AND(G67>='A - Contractor Summary'!$C$36,G67<='A - Contractor Summary'!$C$38),\"Yes\",IF(G67<'A - Contractor Summary'!$C$36,\"No\",IF(G67>'A - Contractor Summary'!$C$39,\"\",\"\")))","v":"No"},{"$f":"IF(OR(P67=\"Yes\",P67=\"No\")*AND(G67<'A - Contractor Summary'!$C$39),\"\",IF(AND(G67>'A - Contractor Summary'!$C$39,G67<'A - Contractor Summary'!$C$42),\"Yes\",IF(G67>'A - Contractor Summary'!$C$42,\"No\",\"Needs Review\")))","v":""},null,"No",0,0]
[null,55,null,null,null,null,null,null,null,null,null,null,{"$error":"#DIV/0!"},null,null,{"$f":"IF(AND(G68>='A - Contractor Summary'!$C$36,G68<='A - Contractor Summary'!$C$38),\"Yes\",IF(G68<'A - Contractor Summary'!$C$36,\"No\",IF(G68>'A - Contractor Summary'!$C$39,\"\",\"\")))","v":"No"},{"$f":"IF(OR(P68=\"Yes\",P68=\"No\")*AND(G68<'A - Contractor Summary'!$C$39),\"\",IF(AND(G68>'A - Contractor Summary'!$C$39,G68<'A - Contractor Summary'!$C$42),\"Yes\",IF(G68>'A - Contractor Summary'!$C$42,\"No\",\"Needs Review\")))","v":""},null,"No",0,0]
[null,56,null,null,null,null,null,null,null,null,null,null,{"$error":"#DIV/0!"},null,null,{"$f":"IF(AND(G69>='A - Contractor Summary'!$C$36,G69<='A - Contractor Summary'!$C$38),\"Yes\",IF(G69<'A - Contractor Summary'!$C$36,\"No\",IF(G69>'A - Contractor Summary'!$C$39,\"\",\"\")))","v":"No"},{"$f":"IF(OR(P69=\"Yes\",P69=\"No\")*AND(G69<'A - Contractor Summary'!$C$39),\"\",IF(AND(G69>'A - Contractor Summary'!$C$39,G69<'A - Contractor Summary'!$C$42),\"Yes\",IF(G69>'A - Contractor Summary'!$C$42,\"No\",\"Needs Review\")))","v":""},null,"No",0,0]
[null,57,null,null,null,null,null,null,null,null,null,null,{"$error":"#DIV/0!"},null,null,{"$f":"IF(AND(G70>='A - Contractor Summary'!$C$36,G70<='A - Contractor Summary'!$C$38),\"Yes\",IF(G70<'A - Contractor Summary'!$C$36,\"No\",IF(G70>'A - Contractor Summary'!$C$39,\"\",\"\")))","v":"No"},{"$f":"IF(OR(P70=\"Yes\",P70=\"No\")*AND(G70<'A - Contractor Summary'!$C$39),\"\",IF(AND(G70>'A - Contractor Summary'!$C$39,G70<'A - Contractor Summary'!$C$42),\"Yes\",IF(G70>'A - Contractor Summary'!$C$42,\"No\",\"Needs Review\")))","v":""},null,"No",0,0]
[null,58,null,null,null,null,null,null,null,null,null,null,{"$error":"#DIV/0!"},null,null,{"$f":"IF(AND(G71>='A - Contractor Summary'!$C$36,G71<='A - Contractor Summary'!$C$38),\"Yes\",IF(G71<'A - Contractor Summary'!$C$36,\"No\",IF(G71>'A - Contractor Summary'!$C$39,\"\",\"\")))","v":"No"},{"$f":"IF(OR(P71=\"Yes\",P71=\"No\")*AND(G71<'A - Contractor Summary'!$C$39),\"\",IF(AND(G71>'A - Contractor Summary'!$C$39,G71<'A - Contractor Summary'!$C$42),\"Yes\",IF(G71>'A - Contractor Summary'!$C$42,\"No\",\"Needs Review\")))","v":""},null,"No",0,0]
[null,59,null,null,null,null,null,null,null,null,null,null,{"$error":"#DIV/0!"},null,null,{"$f":"IF(AND(G72>='A - Contractor Summary'!$C$36,G72<='A - Contractor Summary'!$C$38),\"Yes\",IF(G72<'A - Contractor Summary'!$C$36,\"No\",IF(G72>'A - Contractor Summary'!$C$39,\"\",\"\")))","v":"No"},{"$f":"IF(OR(P72=\"Yes\",P72=\"No\")*AND(G72<'A - Contractor Summary'!$C$39),\"\",IF(AND(G72>'A - Contractor Summary'!$C$39,G72<'A - Contractor Summary'!$C$42),\"Yes\",IF(G72>'A - Contractor Summary'!$C$42,\"No\",\"Needs Review\")))","v":""},null,"No",0,0]
[null,60,null,null,null,null,null,null,null,null,null,null,{"$error":"#DIV/0!"},null,null,{"$f":"IF(AND(G73>='A - Contractor Summary'!$C$36,G73<='A - Contractor Summary'!$C$38),\"Yes\",IF(G73<'A - Contractor Summary'!$C$36,\"No\",IF(G73>'A - Contractor Summary'!$C$39,\"\",\"\")))","v":"No"},{"$f":"IF(OR(P73=\"Yes\",P73=\"No\")*AND(G73<'A - Contractor Summary'!$C$39),\"\",IF(AND(G73>'A - Contractor Summary'!$C$39,G73<'A - Contractor Summary'!$C$42),\"Yes\",IF(G73>'A - Contractor Summary'!$C$42,\"No\",\"Needs Review\")))","v":""},null,"No",0,0]
[null,61,null,null,null,null,null,null,null,null,null,null,{"$error":"#DIV/0!"},null,null,{"$f":"IF(AND(G74>='A - Contractor Summary'!$C$36,G74<='A - Contractor Summary'!$C$38),\"Yes\",IF(G74<'A - Contractor Summary'!$C$36,\"No\",IF(G74>'A - Contractor Summary'!$C$39,\"\",\"\")))","v":"No"},{"$f":"IF(OR(P74=\"Yes\",P74=\"No\")*AND(G74<'A - Contractor Summary'!$C$39),\"\",IF(AND(G74>'A - Contractor Summary'!$C$39,G74<'A - Contractor Summary'!$C$42),\"Yes\",IF(G74>'A - Contractor Summary'!$C$42,\"No\",\"Needs Review\")))","v":""},null,"No",0,0]
[null,62,null,null,null,null,null,null,null,null,null,null,{"$error":"#DIV/0!"},null,null,{"$f":"IF(AND(G75>='A - Contractor Summary'!$C$36,G75<='A - Contractor Summary'!$C$38),\"Yes\",IF(G75<'A - Contractor Summary'!$C$36,\"No\",IF(G75>'A - Contractor Summary'!$C$39,\"\",\"\")))","v":"No"},{"$f":"IF(OR(P75=\"Yes\",P75=\"No\")*AND(G75<'A - Contractor Summary'!$C$39),\"\",IF(AND(G75>'A - Contractor Summary'!$C$39,G75<'A - Contractor Summary'!$C$42),\"Yes\",IF(G75>'A - Contractor Summary'!$C$42,\"No\",\"Needs Review\")))","v":""},null,"No",0,0]
[null,63,null,null,null,null,null,null,null,null,null,null,{"$error":"#DIV/0!"},null,null,{"$f":"IF(AND(G76>='A - Contractor Summary'!$C$36,G76<='A - Contractor Summary'!$C$38),\"Yes\",IF(G76<'A - Contractor Summary'!$C$36,\"No\",IF(G76>'A - Contractor Summary'!$C$39,\"\",\"\")))","v":"No"},{"$f":"IF(OR(P76=\"Yes\",P76=\"No\")*AND(G76<'A - Contractor Summary'!$C$39),\"\",IF(AND(G76>'A - Contractor Summary'!$C$39,G76<'A - Contractor Summary'!$C$42),\"Yes\",IF(G76>'A - Contractor Summary'!$C$42,\"No\",\"Needs Review\")))","v":""},null,"No",0,0,null,null,3]
[null,64,null,null,null,null,null,null,null,null,null,null,{"$error":"#DIV/0!"},null,null,{"$f":"IF(AND(G77>='A - Contractor Summary'!$C$36,G77<='A - Contractor Summary'!$C$38),\"Yes\",IF(G77<'A - Contractor Summary'!$C$36,\"No\",IF(G77>'A - Contractor Summary'!$C$39,\"\",\"\")))","v":"No"},{"$f":"IF(OR(P77=\"Yes\",P77=\"No\")*AND(G77<'A - Contractor Summary'!$C$39),\"\",IF(AND(G77>'A - Contractor Summary'!$C$39,G77<'A - Contractor Summary'!$C$42),\"Yes\",IF(G77>'A - Contractor Summary'!$C$42,\"No\",\"Needs Review\")))","v":""},null,"No",0,0,null,null,3]
[null,65,null,null,null,null,null,null,null,null,null,null,{"$f":"L78/K78","v":{"$error":"#DIV/0!"}},null,null,{"$f":"IF(AND(G78>='A - Contractor Summary'!$C$36,G78<='A - Contractor Summary'!$C$38),\"Yes\",IF(G78<'A - Contractor Summary'!$C$36,\"No\",IF(G78>'A - Contractor Summary'!$C$39,\"\",\"\")))","v":"No"},{"$f":"IF(OR(P78=\"Yes\",P78=\"No\")*AND(G78<'A - Contractor Summary'!$C$39),\"\",IF(AND(G78>'A - Contractor Summary'!$C$39,G78<'A - Contractor Summary'!$C$42),\"Yes\",IF(G78>'A - Contractor Summary'!$C$42,\"No\",\"Needs Review\")))","v":""},null,{"$f":"IF(AND(R78=\"YES\",O78=\"Yes\",N78=\"Yes\")*OR(P78=\"Yes\",Q78=\"Yes\"),\"Yes\",IF(OR(N78=\"No\",O78=\"No\",P78=\"No\",Q78=\"No\",R78=\"No\"),\"No\",\"Needs Review\"))","v":"No"},{"$f":"IF(S78=\"Yes\",L78,0)","v":0},{"$f":"IF(S78=\"Needs Review\",L78,0)","v":0}]
[null,66,null,null,null,null,null,null,null,null,null,null,{"$error":"#DIV/0!"},null,null,{"$f":"IF(AND(G79>='A - Contractor Summary'!$C$36,G79<='A - Contractor Summary'!$C$38),\"Yes\",IF(G79<'A - Contractor Summary'!$C$36,\"No\",IF(G79>'A - Contractor Summary'!$C$39,\"\",\"\")))","v":"No"},{"$f":"IF(OR(P79=\"Yes\",P79=\"No\")*AND(G79<'A - Contractor Summary'!$C$39),\"\",IF(AND(G79>'A - Contractor Summary'!$C$39,G79<'A - Contractor Summary'!$C$42),\"Yes\",IF(G79>'A - Contractor Summary'!$C$42,\"No\",\"Needs Review\")))","v":""},null,"No",0,0]
[null,67,null,null,null,null,null,null,null,null,null,null,{"$error":"#DIV/0!"},null,null,{"$f":"IF(AND(G80>='A - Contractor Summary'!$C$36,G80<='A - Contractor Summary'!$C$38),\"Yes\",IF(G80<'A - Contractor Summary'!$C$36,\"No\",IF(G80>'A - Contractor Summary'!$C$39,\"\",\"\")))","v":"No"},{"$f":"IF(OR(P80=\"Yes\",P80=\"No\")*AND(G80<'A - Contractor Summary'!$C$39),\"\",IF(AND(G80>'A - Contractor Summary'!$C$39,G80<'A - Contractor Summary'!$C$42),\"Yes\",IF(G80>'A - Contractor Summary'!$C$42,\"No\",\"Needs Review\")))","v":""},null,"No",0,0]
[null,68,null,null,null,null,null,null,null,null,null,null,{"$error":"#DIV/0!"},null,null,{"$f":"IF(AND(G81>='A - Contractor Summary'!$C$36,G81<='A - Contractor Summary'!$C$38),\"Yes\",IF(G81<'A - Contractor Summary'!$C$36,\"No\",IF(G81>'A - Contractor Summary'!$C$39,\"\",\"\")))","v":"No"},{"$f":"IF(OR(P81=\"Yes\",P81=\"No\")*AND(G81<'A - Contractor Summary'!$C$39),\"\",IF(AND(G81>'A - Contractor Summary'!$C$39,G81<'A - Contractor Summary'!$C$42),\"Yes\",IF(G81>'A - Contractor Summary'!$C$42,\"No\",\"Needs Review\")))","v":""},null,"No",0,0,null,null,3]
[null,69,null,null,null,null,null,null,null,null,null,null,{"$error":"#DIV/0!"},null,null,{"$f":"IF(AND(G82>='A - Contractor Summary'!$C$36,G82<='A - Contractor Summary'!$C$38),\"Yes\",IF(G82<'A - Contractor Summary'!$C$36,\"No\",IF(G82>'A - Contractor Summary'!$C$39,\"\",\"\")))","v":"No"},{"$f":"IF(OR(P82=\"Yes\",P82=\"No\")*AND(G82<'A - Contractor Summary'!$C$39),\"\",IF(AND(G82>'A - Contractor Summary'!$C$39,G82<'A - Contractor Summary'!$C$42),\"Yes\",IF(G82>'A - Contractor Summary'!$C$42,\"No\",\"Needs Review\")))","v":""},null,"No",0,0,null,null,3]
[null,70,null,null,null,null,null,null,null,null,null,null,{"$error":"#DIV/0!"},null,null,{"$f":"IF(AND(G83>='A - Contractor Summary'!$C$36,G83<='A - Contractor Summary'!$C$38),\"Yes\",IF(G83<'A - Contractor Summary'!$C$36,\"No\",IF(G83>'A - Contractor Summary'!$C$39,\"\",\"\")))","v":"No"},{"$f":"IF(OR(P83=\"Yes\",P83=\"No\")*AND(G83<'A - Contractor Summary'!$C$39),\"\",IF(AND(G83>'A - Contractor Summary'!$C$39,G83<'A - Contractor Summary'!$C$42),\"Yes\",IF(G83>'A - Contractor Summary'!$C$42,\"No\",\"Needs Review\")))","v":""},null,"No",0,0]
[null,71,null,null,null,null,null,null,null,null,null,null,{"$error":"#DIV/0!"},null,null,{"$f":"IF(AND(G84>='A - Contractor Summary'!$C$36,G84<='A - Contractor Summary'!$C$38),\"Yes\",IF(G84<'A - Contractor Summary'!$C$36,\"No\",IF(G84>'A - Contractor Summary'!$C$39,\"\",\"\")))","v":"No"},{"$f":"IF(OR(P84=\"Yes\",P84=\"No\")*AND(G84<'A - Contractor Summary'!$C$39),\"\",IF(AND(G84>'A - Contractor Summary'!$C$39,G84<'A - Contractor Summary'!$C$42),\"Yes\",IF(G84>'A - Contractor Summary'!$C$42,\"No\",\"Needs Review\")))","v":""},null,"No",0,0]
[null,72,null,null,null,null,null,null,null,null,null,null,{"$error":"#DIV/0!"},null,null,{"$f":"IF(AND(G85>='A - Contractor Summary'!$C$36,G85<='A - Contractor Summary'!$C$38),\"Yes\",IF(G85<'A - Contractor Summary'!$C$36,\"No\",IF(G85>'A - Contractor Summary'!$C$39,\"\",\"\")))","v":"No"},{"$f":"IF(OR(P85=\"Yes\",P85=\"No\")*AND(G85<'A - Contractor Summary'!$C$39),\"\",IF(AND(G85>'A - Contractor Summary'!$C$39,G85<'A - Contractor Summary'!$C$42),\"Yes\",IF(G85>'A - Contractor Summary'!$C$42,\"No\",\"Needs Review\")))","v":""},null,"No",0,0]
[null,73,null,null,null,null,null,null,null,null,null,null,{"$error":"#DIV/0!"},null,null,{"$f":"IF(AND(G86>='A - Contractor Summary'!$C$36,G86<='A - Contractor Summary'!$C$38),\"Yes\",IF(G86<'A - Contractor Summary'!$C$36,\"No\",IF(G86>'A - Contractor Summary'!$C$39,\"\",\"\")))","v":"No"},{"$f":"IF(OR(P86=\"Yes\",P86=\"No\")*AND(G86<'A - Contractor Summary'!$C$39),\"\",IF(AND(G86>'A - Contractor Summary'!$C$39,G86<'A - Contractor Summary'!$C$42),\"Yes\",IF(G86>'A - Contractor Summary'!$C$42,\"No\",\"Needs Review\")))","v":""},null,"No",0,0]
[null,74,null,null,null,null,null,null,null,null,null,null,{"$error":"#DIV/0!"},null,null,{"$f":"IF(AND(G87>='A - Contractor Summary'!$C$36,G87<='A - Contractor Summary'!$C$38),\"Yes\",IF(G87<'A - Contractor Summary'!$C$36,\"No\",IF(G87>'A - Contractor Summary'!$C$39,\"\",\"\")))","v":"No"},{"$f":"IF(OR(P87=\"Yes\",P87=\"No\")*AND(G87<'A - Contractor Summary'!$C$39),\"\",IF(AND(G87>'A - Contractor Summary'!$C$39,G87<'A - Contractor Summary'!$C$42),\"Yes\",IF(G87>'A - Contractor Summary'!$C$42,\"No\",\"Needs Review\")))","v":""},null,"No",0,0]
[null,75,null,null,null,null,null,null,null,null,null,null,{"$error":"#DIV/0!"},null,null,{"$f":"IF(AND(G88>='A - Contractor Summary'!$C$36,G88<='A - Contractor Summary'!$C$38),\"Yes\",IF(G88<'A - Contractor Summary'!$C$36,\"No\",IF(G88>'A - Contractor Summary'!$C$39,\"\",\"\")))","v":"No"},{"$f":"IF(OR(P88=\"Yes\",P88=\"No\")*AND(G88<'A - Contractor Summary'!$C$39),\"\",IF(AND(G88>'A - Contractor Summary'!$C$39,G88<'A - Contractor Summary'!$C$42),\"Yes\",IF(G88>'A - Contractor Summary'!$C$42,\"No\",\"Needs Review\")))","v":""},null,"No",0,71.680000000000007,{"$f":"+M88","v":{"$error":"#DIV/0!"}},null,4]
[null,76,null,null,null,null,null,null,null,null,null,null,{"$error":"#DIV/0!"},null,null,{"$f":"IF(AND(G89>='A - Contractor Summary'!$C$36,G89<='A - Contractor Summary'!$C$38),\"Yes\",IF(G89<'A - Contractor Summary'!$C$36,\"No\",IF(G89>'A - Contractor Summary'!$C$39,\"\",\"\")))","v":"No"},{"$f":"IF(OR(P89=\"Yes\",P89=\"No\")*AND(G89<'A - Contractor Summary'!$C$39),\"\",IF(AND(G89>'A - Contractor Summary'!$C$39,G89<'A - Contractor Summary'!$C$42),\"Yes\",IF(G89>'A - Contractor Summary'!$C$42,\"No\",\"Needs Review\")))","v":""},null,"No",0,71.680000000000007,{"$f":"+M89","v":{"$error":"#DIV/0!"}},null,4]
[null,77,null,null,null,null,null,null,null,null,null,null,{"$error":"#DIV/0!"},null,null,{"$f":"IF(AND(G90>='A - Contractor Summary'!$C$36,G90<='A - Contractor Summary'!$C$38),\"Yes\",IF(G90<'A - Contractor Summary'!$C$36,\"No\",IF(G90>'A - Contractor Summary'!$C$39,\"\",\"\")))","v":"No"},{"$f":"IF(OR(P90=\"Yes\",P90=\"No\")*AND(G90<'A - Contractor Summary'!$C$39),\"\",IF(AND(G90>'A - Contractor Summary'!$C$39,G90<'A - Contractor Summary'!$C$42),\"Yes\",IF(G90>'A - Contractor Summary'!$C$42,\"No\",\"Needs Review\")))","v":""},null,"No",0,0,null,null,"2,3"]
[null,78,null,null,null,null,null,null,null,null,null,null,{"$error":"#DIV/0!"},null,null,{"$f":"IF(AND(G91>='A - Contractor Summary'!$C$36,G91<='A - Contractor Summary'!$C$38),\"Yes\",IF(G91<'A - Contractor Summary'!$C$36,\"No\",IF(G91>'A - Contractor Summary'!$C$39,\"\",\"\")))","v":"No"},{"$f":"IF(OR(P91=\"Yes\",P91=\"No\")*AND(G91<'A - Contractor Summary'!$C$39),\"\",IF(AND(G91>'A - Contractor Summary'!$C$39,G91<'A - Contractor Summary'!$C$42),\"Yes\",IF(G91>'A - Contractor Summary'!$C$42,\"No\",\"Needs Review\")))","v":""},null,"No",0,0,null,null,1]
[null,79,null,null,null,null,null,null,null,null,null,null,{"$error":"#DIV/0!"},null,null,{"$f":"IF(AND(G92>='A - Contractor Summary'!$C$36,G92<='A - Contractor Summary'!$C$38),\"Yes\",IF(G92<'A - Contractor Summary'!$C$36,\"No\",IF(G92>'A - Contractor Summary'!$C$39,\"\",\"\")))","v":"No"},{"$f":"IF(OR(P92=\"Yes\",P92=\"No\")*AND(G92<'A - Contractor Summary'!$C$39),\"\",IF(AND(G92>'A - Contractor Summary'!$C$39,G92<'A - Contractor Summary'!$C$42),\"Yes\",IF(G92>'A - Contractor Summary'!$C$42,\"No\",\"Needs Review\")))","v":""},null,"No",0,0,null,null,1]
[null,null,null,null,null,null,null,null,null,null,null,{"$f":"SUM(L14:L92)","v":0},null,null,null,null,null,null,null,{"$f":"IFERROR(SUM(T14:T92),0)","v":0},{"$f":"IFERROR(SUM(U14:U92),0)","v":143.36000000000001},0,{"$f":"IFERROR(SUM(W14:W92),0)","v":0},{"$f":"U93-V93-W93","v":143.36000000000001},"check (a)"]
[]
[]
[null,"Tickmark Explanation:"]
[null,1]
[null,2]
[null,3]
[null,4]

{"sheet":"E - Fuel","index":9,"n_rows":40,"n_cols":22,"rows_kept":40,"cut":false,"hidden":false,"merged":[[1,1,1,20],[3,1,6,11],[11,12,11,20],[11,1,11,11],[4,15,6,20]]}
[]
[null,"Fuel Charges"]
[]
[null,"Test Plan: (A) Obtain support of individual charges. (B) Enter Yes/No if receipt is itemized (C) Enter Yes/No if proof of payment has been provided. (D) Ensure charges fall between the dates the vendor was mobilized and the date they arrived.  (E) Ensure charges are prior to the date the vendor arrived home or was released to another utility.  (F) Ensure the location of charge was reasonable (G) Determine the amount(s) to be reviewed, allowed  and/or disallowed.  (H)  For charges which required further review, document review (include why it was determined to be allowed/disallowed via a tickmark)."]
[null,null,null,null,null,null,null,null,null,null,null,null,null,null,null,"No Fuel Charges"]
[]
[]
[]
[null,"a","Check figure should equal $0.  Cell will appear yellow if discrepancies are noted."]
[]
[null,null,"A",null,null,null,null,null,null,null,"B","C","D","E","F","G",null,null,"H"]
[null,"Support Reviewed",null,null,null,null,null,null,null,null,null,null,"Conclusions"]
[null,"#","Type of Support","Support Identifier","Company","Date","Person","Name","Location","Total Charge","Itemized Receipt","Proof of Payment","Reasonable based on Mobilization date(s)","Reasonable based on Demobilization date(s)","Locations Reasonable","Conclusion","$ Allowable Charge","$ To Be Reviewed","Reviewed - Allowable Charge","Reviewed - Unallowable Charge","Tickmarks"]
[null,1,null,null,null,null,null,null,null,null,null,null,{"$f":"IF(AND(F14>='A - Contractor Summary'!$C$36,F14<='A - Contractor Summary'!$C$38),\"Yes\",IF(F14<'A - Contractor Summary'!$C$36,\"No\",IF(F14>'A - Contractor Summary'!$C$39,\"\",\"\")))","v":"No"},{"$f":"IF(OR(M14=\"Yes\",M14=\"No\")*AND(F14<'A - Contractor Summary'!$C$39),\"\",IF(AND(F14>'A - Contractor Summary'!$C$39,F14<'A - Contractor Summary'!$C$42),\"Yes\",IF(F14>'A - Contractor Summary'!$C$42,\"No\",\"Needs Review\")))","v":""},null,{"$f":"IF(AND(O14=\"Yes\",K14=\"Yes\",L14=\"Yes\")*OR(N14=\"Yes\",M14=\"Yes\"),\"Yes\",IF(OR(K14=\"No\",M14=\"No\",N14=\"No\",O14=\"No\",L14=\"No\"),\"No\",\"Needs Review\"))","v":"No"},{"$f":"IF(P14=\"Yes\",J14,0)","v":0},{"$f":"IF(P14=\"Needs Review\",J14,0)","v":0}]
[null,2,null,null,null,null,null,null,null,null,null,null,{"$f":"IF(AND(F15>='A - Contractor Summary'!$C$36,F15<='A - Contractor Summary'!$C$38),\"Yes\",IF(F15<'A - Contractor Summary'!$C$36,\"No\",IF(F15>'A - Contractor Summary'!$C$39,\"\",\"\")))","v":"No"},{"$f":"IF(OR(M15=\"Yes\",M15=\"No\")*AND(F15<'A - Contractor Summary'!$C$39),\"\",IF(AND(F15>'A - Contractor Summary'!$C$39,F15<'A - Contractor Summary'!$C$42),\"Yes\",IF(F15>'A - Contractor Summary'!$C$42,\"No\",\"Needs Review\")))","v":""},null,{"$f":"IF(AND(O15=\"Yes\",K15=\"Yes\",L15=\"Yes\")*OR(N15=\"Yes\",M15=\"Yes\"),\"Yes\",IF(OR(K15=\"No\",M15=\"No\",N15=\"No\",O15=\"No\",L15=\"No\"),\"No\",\"Needs Review\"))","v":"No"},0,0]
[null,3,null,null,null,null,null,null,null,null,null,null,{"$f":"IF(AND(F16>='A - Contractor Summary'!$C$36,F16<='A - Contractor Summary'!$C$38),\"Yes\",IF(F16<'A - Contractor Summary'!$C$36,\"No\",IF(F16>'A - Contractor Summary'!$C$39,\"\",\"\")))","v":"No"},{"$f":"IF(OR(M16=\"Yes\",M16=\"No\")*AND(F16<'A - Contractor Summary'!$C$39),\"\",IF(AND(F16>'A - Contractor Summary'!$C$39,F16<'A - Contractor Summary'!$C$42),\"Yes\",IF(F16>'A - Contractor Summary'!$C$42,\"No\",\"Needs Review\")))","v":""},null,"No",0,0]
[null,4,null,null,null,null,null,null,null,null,null,null,{"$f":"IF(AND(F17>='A - Contractor Summary'!$C$36,F17<='A - Contractor Summary'!$C$38),\"Yes\",IF(F17<'A - Contractor Summary'!$C$36,\"No\",IF(F17>'A - Contractor Summary'!$C$39,\"\",\"\")))","v":"No"},{"$f":"IF(OR(M17=\"Yes\",M17=\"No\")*AND(F17<'A - Contractor Summary'!$C$39),\"\",IF(AND(F17>'A - Contractor Summary'!$C$39,F17<'A - Contractor Summary'!$C$42),\"Yes\",IF(F17>'A - Contractor Summary'!$C$42,\"No\",\"Needs Review\")))","v":""},null,"No",0,0]
[null,5,null,null,null,null,null,null,null,null,null,null,{"$f":"IF(AND(F18>='A - Contractor Summary'!$C$36,F18<='A - Contractor Summary'!$C$38),\"Yes\",IF(F18<'A - Contractor Summary'!$C$36,\"No\",IF(F18>'A - Contractor Summary'!$C$39,\"\",\"\")))","v":"No"},{"$f":"IF(OR(M18=\"Yes\",M18=\"No\")*AND(F18<'A - Contractor Summary'!$C$39),\"\",IF(AND(F18>'A - Contractor Summary'!$C$39,F18<'A - Contractor Summary'!$C$42),\"Yes\",IF(F18>'A - Contractor Summary'!$C$42,\"No\",\"Needs Review\")))","v":""},null,"No",0,0]
[null,6,null,null,null,null,null,null,null,null,null,null,{"$f":"IF(AND(F19>='A - Contractor Summary'!$C$36,F19<='A - Contractor Summary'!$C$38),\"Yes\",IF(F19<'A - Contractor Summary'!$C$36,\"No\",IF(F19>'A - Contractor Summary'!$C$39,\"\",\"\")))","v":"No"},{"$f":"IF(OR(M19=\"Yes\",M19=\"No\")*AND(F19<'A - Contractor Summary'!$C$39),\"\",IF(AND(F19>'A - Contractor Summary'!$C$39,F19<'A - Contractor Summary'!$C$42),\"Yes\",IF(F19>'A - Contractor Summary'!$C$42,\"No\",\"Needs Review\")))","v":""},null,"No",0,0]
[null,7,null,null,null,null,null,null,null,null,null,null,{"$f":"IF(AND(F20>='A - Contractor Summary'!$C$36,F20<='A - Contractor Summary'!$C$38),\"Yes\",IF(F20<'A - Contractor Summary'!$C$36,\"No\",IF(F20>'A - Contractor Summary'!$C$39,\"\",\"\")))","v":"No"},{"$f":"IF(OR(M20=\"Yes\",M20=\"No\")*AND(F20<'A - Contractor Summary'!$C$39),\"\",IF(AND(F20>'A - Contractor Summary'!$C$39,F20<'A - Contractor Summary'!$C$42),\"Yes\",IF(F20>'A - Contractor Summary'!$C$42,\"No\",\"Needs Review\")))","v":""},null,"No",0,0]
[null,8,null,null,null,null,null,null,null,null,null,null,{"$f":"IF(AND(F21>='A - Contractor Summary'!$C$36,F21<='A - Contractor Summary'!$C$38),\"Yes\",IF(F21<'A - Contractor Summary'!$C$36,\"No\",IF(F21>'A - Contractor Summary'!$C$39,\"\",\"\")))","v":"No"},{"$f":"IF(OR(M21=\"Yes\",M21=\"No\")*AND(F21<'A - Contractor Summary'!$C$39),\"\",IF(AND(F21>'A - Contractor Summary'!$C$39,F21<'A - Contractor Summary'!$C$42),\"Yes\",IF(F21>'A - Contractor Summary'!$C$42,\"No\",\"Needs Review\")))","v":""},null,"No",0,0]
[null,9,null,null,null,null,null,null,null,null,null,null,{"$f":"IF(AND(F22>='A - Contractor Summary'!$C$36,F22<='A - Contractor Summary'!$C$38),\"Yes\",IF(F22<'A - Contractor Summary'!$C$36,\"No\",IF(F22>'A - Contractor Summary'!$C$39,\"\",\"\")))","v":"No"},{"$f":"IF(OR(M22=\"Yes\",M22=\"No\")*AND(F22<'A - Contractor Summary'!$C$39),\"\",IF(AND(F22>'A - Contractor Summary'!$C$39,F22<'A - Contractor Summary'!$C$42),\"Yes\",IF(F22>'A - Contractor Summary'!$C$42,\"No\",\"Needs Review\")))","v":""},null,"No",0,0]
[null,10,null,null,null,null,null,null,null,null,null,null,{"$f":"IF(AND(F23>='A - Contractor Summary'!$C$36,F23<='A - Contractor Summary'!$C$38),\"Yes\",IF(F23<'A - Contractor Summary'!$C$36,\"No\",IF(F23>'A - Contractor Summary'!$C$39,\"\",\"\")))","v":"No"},{"$f":"IF(OR(M23=\"Yes\",M23=\"No\")*AND(F23<'A - Contractor Summary'!$C$39),\"\",IF(AND(F23>'A - Contractor Summary'!$C$39,F23<'A - Contractor Summary'!$C$42),\"Yes\",IF(F23>'A - Contractor Summary'!$C$42,\"No\",\"Needs Review\")))","v":""},null,"No",0,0]
[null,11,null,null,null,null,null,null,null,null,null,null,{"$f":"IF(AND(F24>='A - Contractor Summary'!$C$36,F24<='A - Contractor Summary'!$C$38),\"Yes\",IF(F24<'A - Contractor Summary'!$C$36,\"No\",IF(F24>'A - Contractor Summary'!$C$39,\"\",\"\")))","v":"No"},{"$f":"IF(OR(M24=\"Yes\",M24=\"No\")*AND(F24<'A - Contractor Summary'!$C$39),\"\",IF(AND(F24>'A - Contractor Summary'!$C$39,F24<'A - Contractor Summary'!$C$42),\"Yes\",IF(F24>'A - Contractor Summary'!$C$42,\"No\",\"Needs Review\")))","v":""},null,"No",0,0]
[null,12,null,null,null,null,null,null,null,null,null,null,{"$f":"IF(AND(F25>='A - Contractor Summary'!$C$36,F25<='A - Contractor Summary'!$C$38),\"Yes\",IF(F25<'A - Contractor Summary'!$C$36,\"No\",IF(F25>'A - Contractor Summary'!$C$39,\"\",\"\")))","v":"No"},{"$f":"IF(OR(M25=\"Yes\",M25=\"No\")*AND(F25<'A - Contractor Summary'!$C$39),\"\",IF(AND(F25>'A - Contractor Summary'!$C$39,F25<'A - Contractor Summary'!$C$42),\"Yes\",IF(F25>'A - Contractor Summary'!$C$42,\"No\",\"Needs Review\")))","v":""},null,"No",0,0]
[null,13,null,null,null,null,null,null,null,null,null,null,{"$f":"IF(AND(F26>='A - Contractor Summary'!$C$36,F26<='A - Contractor Summary'!$C$38),\"Yes\",IF(F26<'A - Contractor Summary'!$C$36,\"No\",IF(F26>'A - Contractor Summary'!$C$39,\"\",\"\")))","v":"No"},{"$f":"IF(OR(M26=\"Yes\",M26=\"No\")*AND(F26<'A - Contractor Summary'!$C$39),\"\",IF(AND(F26>'A - Contractor Summary'!$C$39,F26<'A - Contractor Summary'!$C$42),\"Yes\",IF(F26>'A - Contractor Summary'!$C$42,\"No\",\"Needs Review\")))","v":""},null,"No",0,0]
[null,14,null,null,null,null,null,null,null,null,null,null,{"$f":"IF(AND(F27>='A - Contractor Summary'!$C$36,F27<='A - Contractor Summary'!$C$38),\"Yes\",IF(F27<'A - Contractor Summary'!$C$36,\"No\",IF(F27>'A - Contractor Summary'!$C$39,\"\",\"\")))","v":"No"},{"$f":"IF(OR(M27=\"Yes\",M27=\"No\")*AND(F27<'A - Contractor Summary'!$C$39),\"\",IF(AND(F27>'A - Contractor Summary'!$C$39,F27<'A - Contractor Summary'!$C$42),\"Yes\",IF(F27>'A - Contractor Summary'!$C$42,\"No\",\"Needs Review\")))","v":""},null,"No",0,0]
[null,15,null,null,null,null,null,null,null,null,null,null,{"$f":"IF(AND(F28>='A - Contractor Summary'!$C$36,F28<='A - Contractor Summary'!$C$38),\"Yes\",IF(F28<'A - Contractor Summary'!$C$36,\"No\",IF(F28>'A - Contractor Summary'!$C$39,\"\",\"\")))","v":"No"},{"$f":"IF(OR(M28=\"Yes\",M28=\"No\")*AND(F28<'A - Contractor Summary'!$C$39),\"\",IF(AND(F28>'A - Contractor Summary'!$C$39,F28<'A - Contractor Summary'!$C$42),\"Yes\",IF(F28>'A - Contractor Summary'!$C$42,\"No\",\"Needs Review\")))","v":""},null,"No",0,0]
[null,16,null,null,null,null,null,null,null,null,null,null,{"$f":"IF(AND(F29>='A - Contractor Summary'!$C$36,F29<='A - Contractor Summary'!$C$38),\"Yes\",IF(F29<'A - Contractor Summary'!$C$36,\"No\",IF(F29>'A - Contractor Summary'!$C$39,\"\",\"\")))","v":"No"},{"$f":"IF(OR(M29=\"Yes\",M29=\"No\")*AND(F29<'A - Contractor Summary'!$C$39),\"\",IF(AND(F29>'A - Contractor Summary'!$C$39,F29<'A - Contractor Summary'!$C$42),\"Yes\",IF(F29>'A - Contractor Summary'!$C$42,\"No\",\"Needs Review\")))","v":""},null,"No",0,0]
[null,17,null,null,null,null,null,null,null,null,null,null,{"$f":"IF(AND(F30>='A - Contractor Summary'!$C$36,F30<='A - Contractor Summary'!$C$38),\"Yes\",IF(F30<'A - Contractor Summary'!$C$36,\"No\",IF(F30>'A - Contractor Summary'!$C$39,\"\",\"\")))","v":"No"},{"$f":"IF(OR(M30=\"Yes\",M30=\"No\")*AND(F30<'A - Contractor Summary'!$C$39),\"\",IF(AND(F30>'A - Contractor Summary'!$C$39,F30<'A - Contractor Summary'!$C$42),\"Yes\",IF(F30>'A - Contractor Summary'!$C$42,\"No\",\"Needs Review\")))","v":""},null,"No",0,0]
[null,18,null,null,null,null,null,null,null,null,null,null,{"$f":"IF(AND(F31>='A - Contractor Summary'!$C$36,F31<='A - Contractor Summary'!$C$38),\"Yes\",IF(F31<'A - Contractor Summary'!$C$36,\"No\",IF(F31>'A - Contractor Summary'!$C$39,\"\",\"\")))","v":"No"},{"$f":"IF(OR(M31=\"Yes\",M31=\"No\")*AND(F31<'A - Contractor Summary'!$C$39),\"\",IF(AND(F31>'A - Contractor Summary'!$C$39,F31<'A - Contractor Summary'!$C$42),\"Yes\",IF(F31>'A - Contractor Summary'!$C$42,\"No\",\"Needs Review\")))","v":""},null,"No",{"$f":"IF(P31=\"Yes\",#REF!,0)","v":0},{"$f":"IF(P31=\"ED Review\",#REF!,0)","v":0}]
[null,19,null,null,null,null,null,null,null,null,null,null,{"$f":"IF(AND(F32>='A - Contractor Summary'!$C$36,F32<='A - Contractor Summary'!$C$38),\"Yes\",IF(F32<'A - Contractor Summary'!$C$36,\"No\",IF(F32>'A - Contractor Summary'!$C$39,\"\",\"\")))","v":"No"},{"$f":"IF(OR(M32=\"Yes\",M32=\"No\")*AND(F32<'A - Contractor Summary'!$C$39),\"\",IF(AND(F32>'A - Contractor Summary'!$C$39,F32<'A - Contractor Summary'!$C$42),\"Yes\",IF(F32>'A - Contractor Summary'!$C$42,\"No\",\"Needs Review\")))","v":""},null,"No",{"$f":"IF(P32=\"Yes\",#REF!,0)","v":0},{"$f":"IF(P32=\"ED Review\",#REF!,0)","v":0}]
[null,20,null,null,null,null,null,null,null,null,null,null,{"$f":"IF(AND(F33>='A - Contractor Summary'!$C$36,F33<='A - Contractor Summary'!$C$38),\"Yes\",IF(F33<'A - Contractor Summary'!$C$36,\"No\",IF(F33>'A - Contractor Summary'!$C$39,\"\",\"\")))","v":"No"},{"$f":"IF(OR(M33=\"Yes\",M33=\"No\")*AND(F33<'A - Contractor Summary'!$C$39),\"\",IF(AND(F33>'A - Contractor Summary'!$C$39,F33<'A - Contractor Summary'!$C$42),\"Yes\",IF(F33>'A - Contractor Summary'!$C$42,\"No\",\"Needs Review\")))","v":""},null,"No",{"$f":"IF(P33=\"Yes\",#REF!,0)","v":0},{"$f":"IF(P33=\"ED Review\",#REF!,0)","v":0}]
[null,null,null,null,null,null,null,null,null,{"$f":"SUM(J14:J33)","v":0},null,null,null,null,null,null,{"$f":"IFERROR(SUM(Q14:Q33),0)","v":0},{"$f":"IFERROR(SUM(R14:R33),0)","v":0},{"$f":"SUM(S14:S33)","v":0},{"$f":"SUM(T14:T33)","v":0},{"$f":"R34-S34-T34","v":0},"check (a)"]
[]
[]
[]
[]
[]
[null,"Tickmark Explanation:"]

{"sheet":"F - Meals","index":10,"n_rows":152,"n_cols":23,"rows_kept":152,"cut":false,"hidden":false,"merged":[[11,13,11,21],[3,1,6,12],[1,1,1,21],[11,1,11,12]]}
[]
[null,"Meal Charges"]
[]
[null,"Test Plan: (A) Obtain support of individual charges.  (B) Enter Yes/No if receipt is itemized.  (C) Enter Yes/No if proof of payment has been provided.  (D) Ensure charges fall between the dates the vendor was mobilized and the date they arrived.  (E) Ensure charges are prior to the date the vendor arrived home or was released to another utility.  (F) Ensure the location of charge was reasonable (G) Determine the amount(s) to be reviewed, allowed and/or disallowed.  (H) For charges which required further review, document review and include why it was determined to be allowed/disallowed via a tickmark. "]
[]
[]
[]
[]
[null,"a","Check figure should equal $0.  Cell will appear yellow if discrepancies are noted."]
[]
[null,null,"A",null,null,null,null,null,null,null,null,"B","C","D","E","F","G",null,null,"H"]
[null,"Support Reviewed",null,null,null,null,null,null,null,null,null,null,null,"Conclusions"]
[null,"#","Type of Support","Support Identifier","Company","Crew","Date","Person"," Restaurant Name","Location","$ Total","Itemized Receipt","Proof of Payment","Reasonable based on Mobilization date(s)","Reasonable based on Demobilization date(s)","Locations Reasonable","Conclusion","$ Allowable Charge","$ To Be Reviewed","Reviewed - Allowable Charge","Reviewed - Unallowable Charge","Tickmarks"]
[null,1,null,null,null,null,null,null,null,null,null,null,null,{"$f":"IF(AND(G14>='A - Contractor Summary'!$C$36,G14<='A - Contractor Summary'!$C$38),\"Yes\",IF(G14<'A - Contractor Summary'!$C$36,\"No\",IF(G14>'A - Contractor Summary'!$C$39,\"\",\"\")))","v":"No"},{"$f":"IF(OR(N14=\"Yes\",N14=\"No\")*AND(G14<'A - Contractor Summary'!$C$39),\"\",IF(AND(G14>'A - Contractor Summary'!$C$39,G14<'A - Contractor Summary'!$C$42),\"Yes\",IF(G14>'A - Contractor Summary'!$C$42,\"No\",\"Needs Review\")))","v":""},"Yes",{"$f":"IF(AND(P14=\"Yes\",L14=\"Yes\",M14=\"Yes\")*OR(O14=\"Yes\",N14=\"Yes\"),\"Yes\",IF(OR(L14=\"No\",N14=\"No\",O14=\"No\",P14=\"No\",M14=\"No\"),\"No\",\"Needs Review\"))","v":"No"},{"$f":"IF(Q14=\"Yes\",K14,0)","v":0},{"$f":"IF(Q14=\"Needs Review\",K14,0)","v":0},0,0]
[null,2,null,null,null,null,null,null,null,null,null,null,null,{"$f":"IF(AND(G15>='A - Contractor Summary'!$C$36,G15<='A - Contractor Summary'!$C$38),\"Yes\",IF(G15<'A - Contractor Summary'!$C$36,\"No\",IF(G15>'A - Contractor Summary'!$C$39,\"\",\"\")))","v":"No"},{"$f":"IF(OR(N15=\"Yes\",N15=\"No\")*AND(G15<'A - Contractor Summary'!$C$39),\"\",IF(AND(G15>'A - Contractor Summary'!$C$39,G15<'A - Contractor Summary'!$C$42),\"Yes\",IF(G15>'A - Contractor Summary'!$C$42,\"No\",\"Needs Review\")))","v":""},"Yes","No",0,0,0,0]
[null,3,null,null,null,null,null,null,null,null,null,null,null,{"$f":"IF(AND(G16>='A - Contractor Summary'!$C$36,G16<='A - Contractor Summary'!$C$38),\"Yes\",IF(G16<'A - Contractor Summary'!$C$36,\"No\",IF(G16>'A - Contractor Summary'!$C$39,\"\",\"\")))","v":"No"},{"$f":"IF(OR(N16=\"Yes\",N16=\"No\")*AND(G16<'A - Contractor Summary'!$C$39),\"\",IF(AND(G16>'A - Contractor Summary'!$C$39,G16<'A - Contractor Summary'!$C$42),\"Yes\",IF(G16>'A - Contractor Summary'!$C$42,\"No\",\"Needs Review\")))","v":""},"Yes","No",0,0,0,0]
[null,4,null,null,null,null,null,null,null,null,null,null,null,{"$f":"IF(AND(G17>='A - Contractor Summary'!$C$36,G17<='A - Contractor Summary'!$C$38),\"Yes\",IF(G17<'A - Contractor Summary'!$C$36,\"No\",IF(G17>'A - Contractor Summary'!$C$39,\"\",\"\")))","v":"No"},{"$f":"IF(OR(N17=\"Yes\",N17=\"No\")*AND(G17<'A - Contractor Summary'!$C$39),\"\",IF(AND(G17>'A - Contractor Summary'!$C$39,G17<'A - Contractor Summary'!$C$42),\"Yes\",IF(G17>'A - Contractor Summary'!$C$42,\"No\",\"Needs Review\")))","v":""},"Yes","No",0,0,0,0]
[null,5,null,null,null,null,null,null,null,null,null,null,null,{"$f":"IF(AND(G18>='A - Contractor Summary'!$C$36,G18<='A - Contractor Summary'!$C$38),\"Yes\",IF(G18<'A - Contractor Summary'!$C$36,\"No\",IF(G18>'A - Contractor Summary'!$C$39,\"\",\"\")))","v":"No"},{"$f":"IF(OR(N18=\"Yes\",N18=\"No\")*AND(G18<'A - Contractor Summary'!$C$39),\"\",IF(AND(G18>'A - Contractor Summary'!$C$39,G18<'A - Contractor Summary'!$C$42),\"Yes\",IF(G18>'A - Contractor Summary'!$C$42,\"No\",\"Needs Review\")))","v":""},"No","No",0,0,0,0]
[null,6,null,null,null,null,null,null,null,null,null,null,null,{"$f":"IF(AND(G19>='A - Contractor Summary'!$C$36,G19<='A - Contractor Summary'!$C$38),\"Yes\",IF(G19<'A - Contractor Summary'!$C$36,\"No\",IF(G19>'A - Contractor Summary'!$C$39,\"\",\"\")))","v":"No"},{"$f":"IF(OR(N19=\"Yes\",N19=\"No\")*AND(G19<'A - Contractor Summary'!$C$39),\"\",IF(AND(G19>'A - Contractor Summary'!$C$39,G19<'A - Contractor Summary'!$C$42),\"Yes\",IF(G19>'A - Contractor Summary'!$C$42,\"No\",\"Needs Review\")))","v":""},"Yes","No",0,0]
[null,7,null,null,null,null,null,null,null,null,null,null,null,{"$f":"IF(AND(G20>='A - Contractor Summary'!$C$36,G20<='A - Contractor Summary'!$C$38),\"Yes\",IF(G20<'A - Contractor Summary'!$C$36,\"No\",IF(G20>'A - Contractor Summary'!$C$39,\"\",\"\")))","v":"No"},{"$f":"IF(OR(N20=\"Yes\",N20=\"No\")*AND(G20<'A - Contractor Summary'!$C$39),\"\",IF(AND(G20>'A - Contractor Summary'!$C$39,G20<'A - Contractor Summary'!$C$42),\"Yes\",IF(G20>'A - Contractor Summary'!$C$42,\"No\",\"Needs Review\")))","v":""},"Yes","No",0,0]
[null,8,null,null,null,null,null,null,null,null,null,null,null,{"$f":"IF(AND(G21>='A - Contractor Summary'!$C$36,G21<='A - Contractor Summary'!$C$38),\"Yes\",IF(G21<'A - Contractor Summary'!$C$36,\"No\",IF(G21>'A - Contractor Summary'!$C$39,\"\",\"\")))","v":"No"},{"$f":"IF(OR(N21=\"Yes\",N21=\"No\")*AND(G21<'A - Contractor Summary'!$C$39),\"\",IF(AND(G21>'A - Contractor Summary'!$C$39,G21<'A - Contractor Summary'!$C$42),\"Yes\",IF(G21>'A - Contractor Summary'!$C$42,\"No\",\"Needs Review\")))","v":""},"Yes","No",0,0]
[null,9,null,null,null,null,null,null,null,null,null,null,null,{"$f":"IF(AND(G22>='A - Contractor Summary'!$C$36,G22<='A - Contractor Summary'!$C$38),\"Yes\",IF(G22<'A - Contractor Summary'!$C$36,\"No\",IF(G22>'A - Contractor Summary'!$C$39,\"\",\"\")))","v":"No"},{"$f":"IF(OR(N22=\"Yes\",N22=\"No\")*AND(G22<'A - Contractor Summary'!$C$39),\"\",IF(AND(G22>'A - Contractor Summary'!$C$39,G22<'A - Contractor Summary'!$C$42),\"Yes\",IF(G22>'A - Contractor Summary'!$C$42,\"No\",\"Needs Review\")))","v":""},"Yes","No",0,0]
[null,10,null,null,null,null,null,null,null,null,null,null,null,{"$f":"IF(AND(G23>='A - Contractor Summary'!$C$36,G23<='A - Contractor Summary'!$C$38),\"Yes\",IF(G23<'A - Contractor Summary'!$C$36,\"No\",IF(G23>'A - Contractor Summary'!$C$39,\"\",\"\")))","v":"No"},{"$f":"IF(OR(N23=\"Yes\",N23=\"No\")*AND(G23<'A - Contractor Summary'!$C$39),\"\",IF(AND(G23>'A - Contractor Summary'!$C$39,G23<'A - Contractor Summary'!$C$42),\"Yes\",IF(G23>'A - Contractor Summary'!$C$42,\"No\",\"Needs Review\")))","v":""},"Yes","No",0,0,0,0]
[null,11,null,null,null,null,null,null,null,null,null,null,null,{"$f":"IF(AND(G24>='A - Contractor Summary'!$C$36,G24<='A - Contractor Summary'!$C$38),\"Yes\",IF(G24<'A - Contractor Summary'!$C$36,\"No\",IF(G24>'A - Contractor Summary'!$C$39,\"\",\"\")))","v":"No"},{"$f":"IF(OR(N24=\"Yes\",N24=\"No\")*AND(G24<'A - Contractor Summary'!$C$39),\"\",IF(AND(G24>'A - Contractor Summary'!$C$39,G24<'A - Contractor Summary'!$C$42),\"Yes\",IF(G24>'A - Contractor Summary'!$C$42,\"No\",\"Needs Review\")))","v":""},"Yes","No",0,0,0,0]
[null,12,null,null,null,null,null,null,null,null,null,null,null,{"$f":"IF(AND(G25>='A - Contractor Summary'!$C$36,G25<='A - Contractor Summary'!$C$38),\"Yes\",IF(G25<'A - Contractor Summary'!$C$36,\"No\",IF(G25>'A - Contractor Summary'!$C$39,\"\",\"\")))","v":"No"},{"$f":"IF(OR(N25=\"Yes\",N25=\"No\")*AND(G25<'A - Contractor Summary'!$C$39),\"\",IF(AND(G25>'A - Contractor Summary'!$C$39,G25<'A - Contractor Summary'!$C$42),\"Yes\",IF(G25>'A - Contractor Summary'!$C$42,\"No\",\"Needs Review\")))","v":""},"Yes","No",0,0,0,0]
[null,13,null,null,null,null,null,null,null,null,null,null,null,{"$f":"IF(AND(G26>='A - Contractor Summary'!$C$36,G26<='A - Contractor Summary'!$C$38),\"Yes\",IF(G26<'A - Contractor Summary'!$C$36,\"No\",IF(G26>'A - Contractor Summary'!$C$39,\"\",\"\")))","v":"No"},{"$f":"IF(OR(N26=\"Yes\",N26=\"No\")*AND(G26<'A - Contractor Summary'!$C$39),\"\",IF(AND(G26>'A - Contractor Summary'!$C$39,G26<'A - Contractor Summary'!$C$42),\"Yes\",IF(G26>'A - Contractor Summary'!$C$42,\"No\",\"Needs Review\")))","v":""},"Yes","No",0,0,0,0]
[null,14,null,null,null,null,null,null,null,null,null,null,null,{"$f":"IF(AND(G27>='A - Contractor Summary'!$C$36,G27<='A - Contractor Summary'!$C$38),\"Yes\",IF(G27<'A - Contractor Summary'!$C$36,\"No\",IF(G27>'A - Contractor Summary'!$C$39,\"\",\"\")))","v":"No"},{"$f":"IF(OR(N27=\"Yes\",N27=\"No\")*AND(G27<'A - Contractor Summary'!$C$39),\"\",IF(AND(G27>'A - Contractor Summary'!$C$39,G27<'A - Contractor Summary'!$C$42),\"Yes\",IF(G27>'A - Contractor Summary'!$C$42,\"No\",\"Needs Review\")))","v":""},"Yes","No",0,0,0,0]
[null,15,null,null,null,null,null,null,null,null,null,null,null,{"$f":"IF(AND(G28>='A - Contractor Summary'!$C$36,G28<='A - Contractor Summary'!$C$38),\"Yes\",IF(G28<'A - Contractor Summary'!$C$36,\"No\",IF(G28>'A - Contractor Summary'!$C$39,\"\",\"\")))","v":"No"},{"$f":"IF(OR(N28=\"Yes\",N28=\"No\")*AND(G28<'A - Contractor Summary'!$C$39),\"\",IF(AND(G28>'A - Contractor Summary'!$C$39,G28<'A - Contractor Summary'!$C$42),\"Yes\",IF(G28>'A - Contractor Summary'!$C$42,\"No\",\"Needs Review\")))","v":""},"Yes","No",0,0,0,0]
[null,16,null,null,null,null,null,null,null,null,null,null,null,{"$f":"IF(AND(G29>='A - Contractor Summary'!$C$36,G29<='A - Contractor Summary'!$C$38),\"Yes\",IF(G29<'A - Contractor Summary'!$C$36,\"No\",IF(G29>'A - Contractor Summary'!$C$39,\"\",\"\")))","v":"No"},{"$f":"IF(OR(N29=\"Yes\",N29=\"No\")*AND(G29<'A - Contractor Summary'!$C$39),\"\",IF(AND(G29>'A - Contractor Summary'!$C$39,G29<'A - Contractor Summary'!$C$42),\"Yes\",IF(G29>'A - Contractor Summary'!$C$42,\"No\",\"Needs Review\")))","v":""},"No","No",0,0,0,0]
[null,17,null,null,null,null,null,null,null,null,null,null,null,{"$f":"IF(AND(G30>='A - Contractor Summary'!$C$36,G30<='A - Contractor Summary'!$C$38),\"Yes\",IF(G30<'A - Contractor Summary'!$C$36,\"No\",IF(G30>'A - Contractor Summary'!$C$39,\"\",\"\")))","v":"No"},{"$f":"IF(OR(N30=\"Yes\",N30=\"No\")*AND(G30<'A - Contractor Summary'!$C$39),\"\",IF(AND(G30>'A - Contractor Summary'!$C$39,G30<'A - Contractor Summary'!$C$42),\"Yes\",IF(G30>'A - Contractor Summary'!$C$42,\"No\",\"Needs Review\")))","v":""},"Yes","No",0,0]
[null,18,null,null,null,null,null,null,null,null,null,null,null,{"$f":"IF(AND(G31>='A - Contractor Summary'!$C$36,G31<='A - Contractor Summary'!$C$38),\"Yes\",IF(G31<'A - Contractor Summary'!$C$36,\"No\",IF(G31>'A - Contractor Summary'!$C$39,\"\",\"\")))","v":"No"},{"$f":"IF(OR(N31=\"Yes\",N31=\"No\")*AND(G31<'A - Contractor Summary'!$C$39),\"\",IF(AND(G31>'A - Contractor Summary'!$C$39,G31<'A - Contractor Summary'!$C$42),\"Yes\",IF(G31>'A - Contractor Summary'!$C$42,\"No\",\"Needs Review\")))","v":""},"Yes","No",0,0]
[null,19,null,null,null,null,null,null,null,null,null,null,null,{"$f":"IF(AND(G32>='A - Contractor Summary'!$C$36,G32<='A - Contractor Summary'!$C$38),\"Yes\",IF(G32<'A - Contractor Summary'!$C$36,\"No\",IF(G32>'A - Contractor Summary'!$C$39,\"\",\"\")))","v":"No"},{"$f":"IF(OR(N32=\"Yes\",N32=\"No\")*AND(G32<'A - Contractor Summary'!$C$39),\"\",IF(AND(G32>'A - Contractor Summary'!$C$39,G32<'A - Contractor Summary'!$C$42),\"Yes\",IF(G32>'A - Contractor Summary'!$C$42,\"No\",\"Needs Review\")))","v":""},"Yes","No",0,0,0,0]
[null,20,null,null,null,null,null,null,null,null,null,null,null,{"$f":"IF(AND(G33>='A - Contractor Summary'!$C$36,G33<='A - Contractor Summary'!$C$38),\"Yes\",IF(G33<'A - Contractor Summary'!$C$36,\"No\",IF(G33>'A - Contractor Summary'!$C$39,\"\",\"\")))","v":"No"},{"$f":"IF(OR(N33=\"Yes\",N33=\"No\")*AND(G33<'A - Contractor Summary'!$C$39),\"\",IF(AND(G33>'A - Contractor Summary'!$C$39,G33<'A - Contractor Summary'!$C$42),\"Yes\",IF(G33>'A - Contractor Summary'!$C$42,\"No\",\"Needs Review\")))","v":""},"Yes","No",0,0]
[null,21,null,null,null,null,null,null,null,null,null,null,null,{"$f":"IF(AND(G34>='A - Contractor Summary'!$C$36,G34<='A - Contractor Summary'!$C$38),\"Yes\",IF(G34<'A - Contractor Summary'!$C$36,\"No\",IF(G34>'A - Contractor Summary'!$C$39,\"\",\"\")))","v":"No"},{"$f":"IF(OR(N34=\"Yes\",N34=\"No\")*AND(G34<'A - Contractor Summary'!$C$39),\"\",IF(AND(G34>'A - Contractor Summary'!$C$39,G34<'A - Contractor Summary'!$C$42),\"Yes\",IF(G34>'A - Contractor Summary'!$C$42,\"No\",\"Needs Review\")))","v":""},"Yes","No",0,0]
[null,22,null,null,null,null,null,null,null,null,null,null,null,{"$f":"IF(AND(G35>='A - Contractor Summary'!$C$36,G35<='A - Contractor Summary'!$C$38),\"Yes\",IF(G35<'A - Contractor Summary'!$C$36,\"No\",IF(G35>'A - Contractor Summary'!$C$39,\"\",\"\")))","v":"No"},{"$f":"IF(OR(N35=\"Yes\",N35=\"No\")*AND(G35<'A - Contractor Summary'!$C$39),\"\",IF(AND(G35>'A - Contractor Summary'!$C$39,G35<'A - Contractor Summary'!$C$42),\"Yes\",IF(G35>'A - Contractor Summary'!$C$42,\"No\",\"Needs Review\")))","v":""},"Yes","No",0,0,0,0]
[null,23,null,null,null,null,null,null,null,null,null,null,null,{"$f":"IF(AND(G36>='A - Contractor Summary'!$C$36,G36<='A - Contractor Summary'!$C$38),\"Yes\",IF(G36<'A - Contractor Summary'!$C$36,\"No\",IF(G36>'A - Contractor Summary'!$C$39,\"\",\"\")))","v":"No"},{"$f":"IF(OR(N36=\"Yes\",N36=\"No\")*AND(G36<'A - Contractor Summary'!$C$39),\"\",IF(AND(G36>'A - Contractor Summary'!$C$39,G36<'A - Contractor Summary'!$C$42),\"Yes\",IF(G36>'A - Contractor Summary'!$C$42,\"No\",\"Needs Review\")))","v":""},"Yes","No",0,0,0,0]
[null,24,null,null,null,null,null,null,null,null,null,null,null,{"$f":"IF(AND(G37>='A - Contractor Summary'!$C$36,G37<='A - Contractor Summary'!$C$38),\"Yes\",IF(G37<'A - Contractor Summary'!$C$36,\"No\",IF(G37>'A - Contractor Summary'!$C$39,\"\",\"\")))","v":"No"},{"$f":"IF(OR(N37=\"Yes\",N37=\"No\")*AND(G37<'A - Contractor Summary'!$C$39),\"\",IF(AND(G37>'A - Contractor Summary'!$C$39,G37<'A - Contractor Summary'!$C$42),\"Yes\",IF(G37>'A - Contractor Summary'!$C$42,\"No\",\"Needs Review\")))","v":""},"Yes","No",0,0]
[null,25,null,null,null,null,null,null,null,null,null,null,null,{"$f":"IF(AND(G38>='A - Contractor Summary'!$C$36,G38<='A - Contractor Summary'!$C$38),\"Yes\",IF(G38<'A - Contractor Summary'!$C$36,\"No\",IF(G38>'A - Contractor Summary'!$C$39,\"\",\"\")))","v":"No"},{"$f":"IF(OR(N38=\"Yes\",N38=\"No\")*AND(G38<'A - Contractor Summary'!$C$39),\"\",IF(AND(G38>'A - Contractor Summary'!$C$39,G38<'A - Contractor Summary'!$C$42),\"Yes\",IF(G38>'A - Contractor Summary'!$C$42,\"No\",\"Needs Review\")))","v":""},"Yes","No",0,0]
[null,26,null,null,null,null,null,null,null,null,null,null,null,{"$f":"IF(AND(G39>='A - Contractor Summary'!$C$36,G39<='A - Contractor Summary'!$C$38),\"Yes\",IF(G39<'A - Contractor Summary'!$C$36,\"No\",IF(G39>'A - Contractor Summary'!$C$39,\"\",\"\")))","v":"No"},{"$f":"IF(OR(N39=\"Yes\",N39=\"No\")*AND(G39<'A - Contractor Summary'!$C$39),\"\",IF(AND(G39>'A - Contractor Summary'!$C$39,G39<'A - Contractor Summary'!$C$42),\"Yes\",IF(G39>'A - Contractor Summary'!$C$42,\"No\",\"Needs Review\")))","v":""},"Yes","No",0,0]
[null,27,null,null,null,null,null,null,null,null,null,null,null,{"$f":"IF(AND(G40>='A - Contractor Summary'!$C$36,G40<='A - Contractor Summary'!$C$38),\"Yes\",IF(G40<'A - Contractor Summary'!$C$36,\"No\",IF(G40>'A - Contractor Summary'!$C$39,\"\",\"\")))","v":"No"},{"$f":"IF(OR(N40=\"Yes\",N40=\"No\")*AND(G40<'A - Contractor Summary'!$C$39),\"\",IF(AND(G40>'A - Contractor Summary'!$C$39,G40<'A - Contractor Summary'!$C$42),\"Yes\",IF(G40>'A - Contractor Summary'!$C$42,\"No\",\"Needs Review\")))","v":""},"Yes","No",0,0]
[null,28,null,null,null,null,null,null,null,null,null,null,null,{"$f":"IF(AND(G41>='A - Contractor Summary'!$C$36,G41<='A - Contractor Summary'!$C$38),\"Yes\",IF(G41<'A - Contractor Summary'!$C$36,\"No\",IF(G41>'A - Contractor Summary'!$C$39,\"\",\"\")))","v":"No"},{"$f":"IF(OR(N41=\"Yes\",N41=\"No\")*AND(G41<'A - Contractor Summary'!$C$39),\"\",IF(AND(G41>'A - Contractor Summary'!$C$39,G41<'A - Contractor Summary'!$C$42),\"Yes\",IF(G41>'A - Contractor Summary'!$C$42,\"No\",\"Needs Review\")))","v":""},"Yes","No",0,0,0,0]
[null,29,null,null,null,null,null,null,null,null,null,null,null,{"$f":"IF(AND(G42>='A - Contractor Summary'!$C$36,G42<='A - Contractor Summary'!$C$38),\"Yes\",IF(G42<'A - Contractor Summary'!$C$36,\"No\",IF(G42>'A - Contractor Summary'!$C$39,\"\",\"\")))","v":"No"},{"$f":"IF(OR(N42=\"Yes\",N42=\"No\")*AND(G42<'A - Contractor Summary'!$C$39),\"\",IF(AND(G42>'A - Contractor Summary'!$C$39,G42<'A - Contractor Summary'!$C$42),\"Yes\",IF(G42>'A - Contractor Summary'!$C$42,\"No\",\"Needs Review\")))","v":""},"Yes","No",0,0]
[null,30,null,null,null,null,null,null,null,null,null,null,null,{"$f":"IF(AND(G43>='A - Contractor Summary'!$C$36,G43<='A - Contractor Summary'!$C$38),\"Yes\",IF(G43<'A - Contractor Summary'!$C$36,\"No\",IF(G43>'A - Contractor Summary'!$C$39,\"\",\"\")))","v":"No"},{"$f":"IF(OR(N43=\"Yes\",N43=\"No\")*AND(G43<'A - Contractor Summary'!$C$39),\"\",IF(AND(G43>'A - Contractor Summary'!$C$39,G43<'A - Contractor Summary'!$C$42),\"Yes\",IF(G43>'A - Contractor Summary'!$C$42,\"No\",\"Needs Review\")))","v":""},"Yes","No",0,0]
[null,31,null,null,null,null,null,null,null,null,null,null,null,{"$f":"IF(AND(G44>='A - Contractor Summary'!$C$36,G44<='A - Contractor Summary'!$C$38),\"Yes\",IF(G44<'A - Contractor Summary'!$C$36,\"No\",IF(G44>'A - Contractor Summary'!$C$39,\"\",\"\")))","v":"No"},{"$f":"IF(OR(N44=\"Yes\",N44=\"No\")*AND(G44<'A - Contractor Summary'!$C$39),\"\",IF(AND(G44>'A - Contractor Summary'!$C$39,G44<'A - Contractor Summary'!$C$42),\"Yes\",IF(G44>'A - Contractor Summary'!$C$42,\"No\",\"Needs Review\")))","v":""},"Yes","No",0,0]
[null,32,null,null,null,null,null,null,null,null,null,null,null,{"$f":"IF(AND(G45>='A - Contractor Summary'!$C$36,G45<='A - Contractor Summary'!$C$38),\"Yes\",IF(G45<'A - Contractor Summary'!$C$36,\"No\",IF(G45>'A - Contractor Summary'!$C$39,\"\",\"\")))","v":"No"},{"$f":"IF(OR(N45=\"Yes\",N45=\"No\")*AND(G45<'A - Contractor Summary'!$C$39),\"\",IF(AND(G45>'A - Contractor Summary'!$C$39,G45<'A - Contractor Summary'!$C$42),\"Yes\",IF(G45>'A - Contractor Summary'!$C$42,\"No\",\"Needs Review\")))","v":""},"Yes","No",0,0]
[null,33,null,null,null,null,null,null,null,null,null,null,null,{"$f":"IF(AND(G46>='A - Contractor Summary'!$C$36,G46<='A - Contractor Summary'!$C$38),\"Yes\",IF(G46<'A - Contractor Summary'!$C$36,\"No\",IF(G46>'A - Contractor Summary'!$C$39,\"\",\"\")))","v":"No"},{"$f":"IF(OR(N46=\"Yes\",N46=\"No\")*AND(G46<'A - Contractor Summary'!$C$39),\"\",IF(AND(G46>'A - Contractor Summary'!$C$39,G46<'A - Contractor Summary'!$C$42),\"Yes\",IF(G46>'A - Contractor Summary'!$C$42,\"No\",\"Needs Review\")))","v":""},"Yes",{"$f":"IF(AND(P46=\"Yes\",L46=\"Yes\",M46=\"Yes\")*OR(O46=\"Yes\",N46=\"Yes\"),\"Yes\",IF(OR(L46=\"No\",N46=\"No\",O46=\"No\",P46=\"No\",M46=\"No\"),\"No\",\"Needs Review\"))","v":"No"},{"$f":"IF(Q46=\"Yes\",K46,0)","v":0},{"$f":"IF(Q46=\"Needs Review\",K46,0)","v":0}]
[null,34,null,null,null,null,null,null,null,null,null,null,null,{"$f":"IF(AND(G47>='A - Contractor Summary'!$C$36,G47<='A - Contractor Summary'!$C$38),\"Yes\",IF(G47<'A - Contractor Summary'!$C$36,\"No\",IF(G47>'A - Contractor Summary'!$C$39,\"\",\"\")))","v":"No"},{"$f":"IF(OR(N47=\"Yes\",N47=\"No\")*AND(G47<'A - Contractor Summary'!$C$39),\"\",IF(AND(G47>'A - Contractor Summary'!$C$39,G47<'A - Contractor Summary'!$C$42),\"Yes\",IF(G47>'A - Contractor Summary'!$C$42,\"No\",\"Needs Review\")))","v":""},"Yes","No",0,0]
[null,35,null,null,null,null,null,null,null,null,null,null,null,{"$f":"IF(AND(G48>='A - Contractor Summary'!$C$36,G48<='A - Contractor Summary'!$C$38),\"Yes\",IF(G48<'A - Contractor Summary'!$C$36,\"No\",IF(G48>'A - Contractor Summary'!$C$39,\"\",\"\")))","v":"No"},{"$f":"IF(OR(N48=\"Yes\",N48=\"No\")*AND(G48<'A - Contractor Summary'!$C$39),\"\",IF(AND(G48>'A - Contractor Summary'!$C$39,G48<'A - Contractor Summary'!$C$42),\"Yes\",IF(G48>'A - Contractor Summary'!$C$42,\"No\",\"Needs Review\")))","v":""},"Yes","No",0,0,0,0]
[null,36,null,null,null,null,null,null,null,null,null,null,null,{"$f":"IF(AND(G49>='A - Contractor Summary'!$C$36,G49<='A - Contractor Summary'!$C$38),\"Yes\",IF(G49<'A - Contractor Summary'!$C$36,\"No\",IF(G49>'A - Contractor Summary'!$C$39,\"\",\"\")))","v":"No"},{"$f":"IF(OR(N49=\"Yes\",N49=\"No\")*AND(G49<'A - Contractor Summary'!$C$39),\"\",IF(AND(G49>'A - Contractor Summary'!$C$39,G49<'A - Contractor Summary'!$C$42),\"Yes\",IF(G49>'A - Contractor Summary'!$C$42,\"No\",\"Needs Review\")))","v":""},"Yes","No",0,0]
[null,37,null,null,null,null,null,null,null,null,null,null,null,{"$f":"IF(AND(G50>='A - Contractor Summary'!$C$36,G50<='A - Contractor Summary'!$C$38),\"Yes\",IF(G50<'A - Contractor Summary'!$C$36,\"No\",IF(G50>'A - Contractor Summary'!$C$39,\"\",\"\")))","v":"No"},{"$f":"IF(OR(N50=\"Yes\",N50=\"No\")*AND(G50<'A - Contractor Summary'!$C$39),\"\",IF(AND(G50>'A - Contractor Summary'!$C$39,G50<'A - Contractor Summary'!$C$42),\"Yes\",IF(G50>'A - Contractor Summary'!$C$42,\"No\",\"Needs Review\")))","v":""},"Yes","No",0,0]
[null,38,null,null,null,null,null,null,null,null,null,null,null,{"$f":"IF(AND(G51>='A - Contractor Summary'!$C$36,G51<='A - Contractor Summary'!$C$38),\"Yes\",IF(G51<'A - Contractor Summary'!$C$36,\"No\",IF(G51>'A - Contractor Summary'!$C$39,\"\",\"\")))","v":"No"},{"$f":"IF(OR(N51=\"Yes\",N51=\"No\")*AND(G51<'A - Contractor Summary'!$C$39),\"\",IF(AND(G51>'A - Contractor Summary'!$C$39,G51<'A - Contractor Summary'!$C$42),\"Yes\",IF(G51>'A - Contractor Summary'!$C$42,\"No\",\"Needs Review\")))","v":""},"Yes","No",0,0]
[null,39,null,null,null,null,null,null,null,null,null,null,null,{"$f":"IF(AND(G52>='A - Contractor Summary'!$C$36,G52<='A - Contractor Summary'!$C$38),\"Yes\",IF(G52<'A - Contractor Summary'!$C$36,\"No\",IF(G52>'A - Contractor Summary'!$C$39,\"\",\"\")))","v":"No"},{"$f":"IF(OR(N52=\"Yes\",N52=\"No\")*AND(G52<'A - Contractor Summary'!$C$39),\"\",IF(AND(G52>'A - Contractor Summary'!$C$39,G52<'A - Contractor Summary'!$C$42),\"Yes\",IF(G52>'A - Contractor Summary'!$C$42,\"No\",\"Needs Review\")))","v":""},"Yes","No",0,0,0,0]
[null,40,null,null,null,null,null,null,null,null,null,null,null,{"$f":"IF(AND(G53>='A - Contractor Summary'!$C$36,G53<='A - Contractor Summary'!$C$38),\"Yes\",IF(G53<'A - Contractor Summary'!$C$36,\"No\",IF(G53>'A - Contractor Summary'!$C$39,\"\",\"\")))","v":"No"},{"$f":"IF(OR(N53=\"Yes\",N53=\"No\")*AND(G53<'A - Contractor Summary'!$C$39),\"\",IF(AND(G53>'A - Contractor Summary'!$C$39,G53<'A - Contractor Summary'!$C$42),\"Yes\",IF(G53>'A - Contractor Summary'!$C$42,\"No\",\"Needs Review\")))","v":""},"Yes","No",0,0,0,0]
[null,41,null,null,null,null,null,null,null,null,null,null,null,{"$f":"IF(AND(G54>='A - Contractor Summary'!$C$36,G54<='A - Contractor Summary'!$C$38),\"Yes\",IF(G54<'A - Contractor Summary'!$C$36,\"No\",IF(G54>'A - Contractor Summary'!$C$39,\"\",\"\")))","v":"No"},{"$f":"IF(OR(N54=\"Yes\",N54=\"No\")*AND(G54<'A - Contractor Summary'!$C$39),\"\",IF(AND(G54>'A - Contractor Summary'!$C$39,G54<'A - Contractor Summary'!$C$42),\"Yes\",IF(G54>'A - Contractor Summary'!$C$42,\"No\",\"Needs Review\")))","v":""},"Yes","No",0,0]
[null,42,null,null,null,null,null,null,null,null,null,null,null,{"$f":"IF(AND(G55>='A - Contractor Summary'!$C$36,G55<='A - Contractor Summary'!$C$38),\"Yes\",IF(G55<'A - Contractor Summary'!$C$36,\"No\",IF(G55>'A - Contractor Summary'!$C$39,\"\",\"\")))","v":"No"},{"$f":"IF(OR(N55=\"Yes\",N55=\"No\")*AND(G55<'A - Contractor Summary'!$C$39),\"\",IF(AND(G55>'A - Contractor Summary'!$C$39,G55<'A - Contractor Summary'!$C$42),\"Yes\",IF(G55>'A - Contractor Summary'!$C$42,\"No\",\"Needs Review\")))","v":""},"No","No",0,0,0,0]
[null,43,null,null,null,null,null,null,null,null,null,null,null,{"$f":"IF(AND(G56>='A - Contractor Summary'!$C$36,G56<='A - Contractor Summary'!$C$38),\"Yes\",IF(G56<'A - Contractor Summary'!$C$36,\"No\",IF(G56>'A - Contractor Summary'!$C$39,\"\",\"\")))","v":"No"},{"$f":"IF(OR(N56=\"Yes\",N56=\"No\")*AND(G56<'A - Contractor Summary'!$C$39),\"\",IF(AND(G56>'A - Contractor Summary'!$C$39,G56<'A - Contractor Summary'!$C$42),\"Yes\",IF(G56>'A - Contractor Summary'!$C$42,\"No\",\"Needs Review\")))","v":""},"Yes","No",0,0,0,0]
[null,44,null,null,null,null,null,null,null,null,null,null,null,{"$f":"IF(AND(G57>='A - Contractor Summary'!$C$36,G57<='A - Contractor Summary'!$C$38),\"Yes\",IF(G57<'A - Contractor Summary'!$C$36,\"No\",IF(G57>'A - Contractor Summary'!$C$39,\"\",\"\")))","v":"No"},{"$f":"IF(OR(N57=\"Yes\",N57=\"No\")*AND(G57<'A - Contractor Summary'!$C$39),\"\",IF(AND(G57>'A - Contractor Summary'!$C$39,G57<'A - Contractor Summary'!$C$42),\"Yes\",IF(G57>'A - Contractor Summary'!$C$42,\"No\",\"Needs Review\")))","v":""},"Yes","No",0,0]
[null,46,null,null,null,null,null,null,null,null,null,null,null,{"$f":"IF(AND(G58>='A - Contractor Summary'!$C$36,G58<='A - Contractor Summary'!$C$38),\"Yes\",IF(G58<'A - Contractor Summary'!$C$36,\"No\",IF(G58>'A - Contractor Summary'!$C$39,\"\",\"\")))","v":"No"},{"$f":"IF(OR(N58=\"Yes\",N58=\"No\")*AND(G58<'A - Contractor Summary'!$C$39),\"\",IF(AND(G58>'A - Contractor Summary'!$C$39,G58<'A - Contractor Summary'!$C$42),\"Yes\",IF(G58>'A - Contractor Summary'!$C$42,\"No\",\"Needs Review\")))","v":""},"Yes","No",0,0]
[null,47,null,null,null,null,null,null,null,null,null,null,null,{"$f":"IF(AND(G59>='A - Contractor Summary'!$C$36,G59<='A - Contractor Summary'!$C$38),\"Yes\",IF(G59<'A - Contractor Summary'!$C$36,\"No\",IF(G59>'A - Contractor Summary'!$C$39,\"\",\"\")))","v":"No"},{"$f":"IF(OR(N59=\"Yes\",N59=\"No\")*AND(G59<'A - Contractor Summary'!$C$39),\"\",IF(AND(G59>'A - Contractor Summary'!$C$39,G59<'A - Contractor Summary'!$C$42),\"Yes\",IF(G59>'A - Contractor Summary'!$C$42,\"No\",\"Needs Review\")))","v":""},"Yes","No",0,0]
[null,48,null,null,null,null,null,null,null,null,null,null,null,{"$f":"IF(AND(G60>='A - Contractor Summary'!$C$36,G60<='A - Contractor Summary'!$C$38),\"Yes\",IF(G60<'A - Contractor Summary'!$C$36,\"No\",IF(G60>'A - Contractor Summary'!$C$39,\"\",\"\")))","v":"No"},{"$f":"IF(OR(N60=\"Yes\",N60=\"No\")*AND(G60<'A - Contractor Summary'!$C$39),\"\",IF(AND(G60>'A - Contractor Summary'!$C$39,G60<'A - Contractor Summary'!$C$42),\"Yes\",IF(G60>'A - Contractor Summary'!$C$42,\"No\",\"Needs Review\")))","v":""},"Yes","No",0,0]
[null,49,null,null,null,null,null,null,null,null,null,null,null,{"$f":"IF(AND(G61>='A - Contractor Summary'!$C$36,G61<='A - Contractor Summary'!$C$38),\"Yes\",IF(G61<'A - Contractor Summary'!$C$36,\"No\",IF(G61>'A - Contractor Summary'!$C$39,\"\",\"\")))","v":"No"},{"$f":"IF(OR(N61=\"Yes\",N61=\"No\")*AND(G61<'A - Contractor Summary'!$C$39),\"\",IF(AND(G61>'A - Contractor Summary'!$C$39,G61<'A - Contractor Summary'!$C$42),\"Yes\",IF(G61>'A - Contractor Summary'!$C$42,\"No\",\"Needs Review\")))","v":""},"Yes","No",0,0]
[null,50,null,null,null,null,null,null,null,null,null,null,null,{"$f":"IF(AND(G62>='A - Contractor Summary'!$C$36,G62<='A - Contractor Summary'!$C$38),\"Yes\",IF(G62<'A - Contractor Summary'!$C$36,\"No\",IF(G62>'A - Contractor Summary'!$C$39,\"\",\"\")))","v":"No"},{"$f":"IF(OR(N62=\"Yes\",N62=\"No\")*AND(G62<'A - Contractor Summary'!$C$39),\"\",IF(AND(G62>'A - Contractor Summary'!$C$39,G62<'A - Contractor Summary'!$C$42),\"Yes\",IF(G62>'A - Contractor Summary'!$C$42,\"No\",\"Needs Review\")))","v":""},"Yes","No",0,0]
[null,51,null,null,null,null,null,null,null,null,null,null,null,{"$f":"IF(AND(G63>='A - Contractor Summary'!$C$36,G63<='A - Contractor Summary'!$C$38),\"Yes\",IF(G63<'A - Contractor Summary'!$C$36,\"No\",IF(G63>'A - Contractor Summary'!$C$39,\"\",\"\")))","v":"No"},{"$f":"IF(OR(N63=\"Yes\",N63=\"No\")*AND(G63<'A - Contractor Summary'!$C$39),\"\",IF(AND(G63>'A - Contractor Summary'!$C$39,G63<'A - Contractor Summary'!$C$42),\"Yes\",IF(G63>'A - Contractor Summary'!$C$42,\"No\",\"Needs Review\")))","v":""},"Yes","No",0,0]
[null,52,null,null,null,null,null,null,null,null,null,null,null,{"$f":"IF(AND(G64>='A - Contractor Summary'!$C$36,G64<='A - Contractor Summary'!$C$38),\"Yes\",IF(G64<'A - Contractor Summary'!$C$36,\"No\",IF(G64>'A - Contractor Summary'!$C$39,\"\",\"\")))","v":"No"},{"$f":"IF(OR(N64=\"Yes\",N64=\"No\")*AND(G64<'A - Contractor Summary'!$C$39),\"\",IF(AND(G64>'A - Contractor Summary'!$C$39,G64<'A - Contractor Summary'!$C$42),\"Yes\",IF(G64>'A - Contractor Summary'!$C$42,\"No\",\"Needs Review\")))","v":""},"Yes","No",0,0]
[null,53,null,null,null,null,null,null,null,null,null,null,null,{"$f":"IF(AND(G65>='A - Contractor Summary'!$C$36,G65<='A - Contractor Summary'!$C$38),\"Yes\",IF(G65<'A - Contractor Summary'!$C$36,\"No\",IF(G65>'A - Contractor Summary'!$C$39,\"\",\"\")))","v":"No"},{"$f":"IF(OR(N65=\"Yes\",N65=\"No\")*AND(G65<'A - Contractor Summary'!$C$39),\"\",IF(AND(G65>'A - Contractor Summary'!$C$39,G65<'A - Contractor Summary'!$C$42),\"Yes\",IF(G65>'A - Contractor Summary'!$C$42,\"No\",\"Needs Review\")))","v":""},"Yes","No",0,0]
[null,54,null,null,null,null,null,null,null,null,null,null,null,{"$f":"IF(AND(G66>='A - Contractor Summary'!$C$36,G66<='A - Contractor Summary'!$C$38),\"Yes\",IF(G66<'A - Contractor Summary'!$C$36,\"No\",IF(G66>'A - Contractor Summary'!$C$39,\"\",\"\")))","v":"No"},{"$f":"IF(OR(N66=\"Yes\",N66=\"No\")*AND(G66<'A - Contractor Summary'!$C$39),\"\",IF(AND(G66>'A - Contractor Summary'!$C$39,G66<'A - Contractor Summary'!$C$42),\"Yes\",IF(G66>'A - Contractor Summary'!$C$42,\"No\",\"Needs Review\")))","v":""},"Yes","No",0,0]
[null,55,null,null,null,null,null,null,null,null,null,null,null,{"$f":"IF(AND(G67>='A - Contractor Summary'!$C$36,G67<='A - Contractor Summary'!$C$38),\"Yes\",IF(G67<'A - Contractor Summary'!$C$36,\"No\",IF(G67>'A - Contractor Summary'!$C$39,\"\",\"\")))","v":"No"},{"$f":"IF(OR(N67=\"Yes\",N67=\"No\")*AND(G67<'A - Contractor Summary'!$C$39),\"\",IF(AND(G67>'A - Contractor Summary'!$C$39,G67<'A - Contractor Summary'!$C$42),\"Yes\",IF(G67>'A - Contractor Summary'!$C$42,\"No\",\"Needs Review\")))","v":""},"Yes","No",0,0]
[null,56,null,null,null,null,null,null,null,null,null,null,null,{"$f":"IF(AND(G68>='A - Contractor Summary'!$C$36,G68<='A - Contractor Summary'!$C$38),\"Yes\",IF(G68<'A - Contractor Summary'!$C$36,\"No\",IF(G68>'A - Contractor Summary'!$C$39,\"\",\"\")))","v":"No"},{"$f":"IF(OR(N68=\"Yes\",N68=\"No\")*AND(G68<'A - Contractor Summary'!$C$39),\"\",IF(AND(G68>'A - Contractor Summary'!$C$39,G68<'A - Contractor Summary'!$C$42),\"Yes\",IF(G68>'A - Contractor Summary'!$C$42,\"No\",\"Needs Review\")))","v":""},"Yes","No",0,0]
[null,57,null,null,null,null,null,null,null,null,null,null,null,{"$f":"IF(AND(G69>='A - Contractor Summary'!$C$36,G69<='A - Contractor Summary'!$C$38),\"Yes\",IF(G69<'A - Contractor Summary'!$C$36,\"No\",IF(G69>'A - Contractor Summary'!$C$39,\"\",\"\")))","v":"No"},{"$f":"IF(OR(N69=\"Yes\",N69=\"No\")*AND(G69<'A - Contractor Summary'!$C$39),\"\",IF(AND(G69>'A - Contractor Summary'!$C$39,G69<'A - Contractor Summary'!$C$42),\"Yes\",IF(G69>'A - Contractor Summary'!$C$42,\"No\",\"Needs Review\")))","v":""},"Yes","No",0,0]
[null,58,null,null,null,null,null,null,null,null,null,null,null,{"$f":"IF(AND(G70>='A - Contractor Summary'!$C$36,G70<='A - Contractor Summary'!$C$38),\"Yes\",IF(G70<'A - Contractor Summary'!$C$36,\"No\",IF(G70>'A - Contractor Summary'!$C$39,\"\",\"\")))","v":"No"},{"$f":"IF(OR(N70=\"Yes\",N70=\"No\")*AND(G70<'A - Contractor Summary'!$C$39),\"\",IF(AND(G70>'A - Contractor Summary'!$C$39,G70<'A - Contractor Summary'!$C$42),\"Yes\",IF(G70>'A - Contractor Summary'!$C$42,\"No\",\"Needs Review\")))","v":""},"No","Needs Review",0,0]
[null,59,null,null,null,null,null,null,null,null,null,null,null,{"$f":"IF(AND(G71>='A - Contractor Summary'!$C$36,G71<='A - Contractor Summary'!$C$38),\"Yes\",IF(G71<'A - Contractor Summary'!$C$36,\"No\",IF(G71>'A - Contractor Summary'!$C$39,\"\",\"\")))","v":"No"},{"$f":"IF(OR(N71=\"Yes\",N71=\"No\")*AND(G71<'A - Contractor Summary'!$C$39),\"\",IF(AND(G71>'A - Contractor Summary'!$C$39,G71<'A - Contractor Summary'!$C$42),\"Yes\",IF(G71>'A - Contractor Summary'!$C$42,\"No\",\"Needs Review\")))","v":""},"Yes","No",0,0]
[null,61,null,null,null,null,null,null,null,null,null,null,null,{"$f":"IF(AND(G72>='A - Contractor Summary'!$C$36,G72<='A - Contractor Summary'!$C$38),\"Yes\",IF(G72<'A - Contractor Summary'!$C$36,\"No\",IF(G72>'A - Contractor Summary'!$C$39,\"\",\"\")))","v":"No"},{"$f":"IF(OR(N72=\"Yes\",N72=\"No\")*AND(G72<'A - Contractor Summary'!$C$39),\"\",IF(AND(G72>'A - Contractor Summary'!$C$39,G72<'A - Contractor Summary'!$C$42),\"Yes\",IF(G72>'A - Contractor Summary'!$C$42,\"No\",\"Needs Review\")))","v":""},"Yes","No",0,0]
[null,62,null,null,null,null,null,null,null,null,null,null,null,{"$f":"IF(AND(G73>='A - Contractor Summary'!$C$36,G73<='A - Contractor Summary'!$C$38),\"Yes\",IF(G73<'A - Contractor Summary'!$C$36,\"No\",IF(G73>'A - Contractor Summary'!$C$39,\"\",\"\")))","v":"No"},{"$f":"IF(OR(N73=\"Yes\",N73=\"No\")*AND(G73<'A - Contractor Summary'!$C$39),\"\",IF(AND(G73>'A - Contractor Summary'!$C$39,G73<'A - Contractor Summary'!$C$42),\"Yes\",IF(G73>'A - Contractor Summary'!$C$42,\"No\",\"Needs Review\")))","v":""},"Yes","No",0,0]
[null,63,null,null,null,null,null,null,null,null,null,null,null,{"$f":"IF(AND(G74>='A - Contractor Summary'!$C$36,G74<='A - Contractor Summary'!$C$38),\"Yes\",IF(G74<'A - Contractor Summary'!$C$36,\"No\",IF(G74>'A - Contractor Summary'!$C$39,\"\",\"\")))","v":"No"},{"$f":"IF(OR(N74=\"Yes\",N74=\"No\")*AND(G74<'A - Contractor Summary'!$C$39),\"\",IF(AND(G74>'A - Contractor Summary'!$C$39,G74<'A - Contractor Summary'!$C$42),\"Yes\",IF(G74>'A - Contractor Summary'!$C$42,\"No\",\"Needs Review\")))","v":""},"Yes","No",0,0]
[null,64,null,null,null,null,null,null,null,null,null,null,null,{"$f":"IF(AND(G75>='A - Contractor Summary'!$C$36,G75<='A - Contractor Summary'!$C$38),\"Yes\",IF(G75<'A - Contractor Summary'!$C$36,\"No\",IF(G75>'A - Contractor Summary'!$C$39,\"\",\"\")))","v":"No"},{"$f":"IF(OR(N75=\"Yes\",N75=\"No\")*AND(G75<'A - Contractor Summary'!$C$39),\"\",IF(AND(G75>'A - Contractor Summary'!$C$39,G75<'A - Contractor Summary'!$C$42),\"Yes\",IF(G75>'A - Contractor Summary'!$C$42,\"No\",\"Needs Review\")))","v":""},"Yes","No",0,0]
[null,65,null,null,null,null,null,null,null,null,null,null,null,{"$f":"IF(AND(G76>='A - Contractor Summary'!$C$36,G76<='A - Contractor Summary'!$C$38),\"Yes\",IF(G76<'A - Contractor Summary'!$C$36,\"No\",IF(G76>'A - Contractor Summary'!$C$39,\"\",\"\")))","v":"No"},{"$f":"IF(OR(N76=\"Yes\",N76=\"No\")*AND(G76<'A - Contractor Summary'!$C$39),\"\",IF(AND(G76>'A - Contractor Summary'!$C$39,G76<'A - Contractor Summary'!$C$42),\"Yes\",IF(G76>'A - Contractor Summary'!$C$42,\"No\",\"Needs Review\")))","v":""},"No","No",0,0]
[null,66,null,null,null,null,null,null,null,null,null,null,null,{"$f":"IF(AND(G77>='A - Contractor Summary'!$C$36,G77<='A - Contractor Summary'!$C$38),\"Yes\",IF(G77<'A - Contractor Summary'!$C$36,\"No\",IF(G77>'A - Contractor Summary'!$C$39,\"\",\"\")))","v":"No"},{"$f":"IF(OR(N77=\"Yes\",N77=\"No\")*AND(G77<'A - Contractor Summary'!$C$39),\"\",IF(AND(G77>'A - Contractor Summary'!$C$39,G77<'A - Contractor Summary'!$C$42),\"Yes\",IF(G77>'A - Contractor Summary'!$C$42,\"No\",\"Needs Review\")))","v":""},"Yes","No",0,0]
[null,67,null,null,null,null,null,null,null,null,null,null,null,{"$f":"IF(AND(G78>='A - Contractor Summary'!$C$36,G78<='A - Contractor Summary'!$C$38),\"Yes\",IF(G78<'A - Contractor Summary'!$C$36,\"No\",IF(G78>'A - Contractor Summary'!$C$39,\"\",\"\")))","v":"No"},{"$f":"IF(OR(N78=\"Yes\",N78=\"No\")*AND(G78<'A - Contractor Summary'!$C$39),\"\",IF(AND(G78>'A - Contractor Summary'!$C$39,G78<'A - Contractor Summary'!$C$42),\"Yes\",IF(G78>'A - Contractor Summary'!$C$42,\"No\",\"Needs Review\")))","v":""},"No","Needs Review",{"$f":"IF(Q78=\"Yes\",K78,0)","v":0},{"$f":"IF(Q78=\"Needs Review\",K78,0)","v":0}]
[null,68,null,null,null,null,null,null,null,null,null,null,null,{"$f":"IF(AND(G79>='A - Contractor Summary'!$C$36,G79<='A - Contractor Summary'!$C$38),\"Yes\",IF(G79<'A - Contractor Summary'!$C$36,\"No\",IF(G79>'A - Contractor Summary'!$C$39,\"\",\"\")))","v":"No"},{"$f":"IF(OR(N79=\"Yes\",N79=\"No\")*AND(G79<'A - Contractor Summary'!$C$39),\"\",IF(AND(G79>'A - Contractor Summary'!$C$39,G79<'A - Contractor Summary'!$C$42),\"Yes\",IF(G79>'A - Contractor Summary'!$C$42,\"No\",\"Needs Review\")))","v":""},"Yes",{"$f":"IF(AND(P79=\"Yes\",L79=\"Yes\",M79=\"Yes\")*OR(O79=\"Yes\",N79=\"Yes\"),\"Yes\",IF(OR(L79=\"No\",N79=\"No\",O79=\"No\",P79=\"No\",M79=\"No\"),\"No\",\"Needs Review\"))","v":"No"},0,0]
[null,69,null,null,null,null,null,null,null,null,null,null,null,{"$f":"IF(AND(G80>='A - Contractor Summary'!$C$36,G80<='A - Contractor Summary'!$C$38),\"Yes\",IF(G80<'A - Contractor Summary'!$C$36,\"No\",IF(G80>'A - Contractor Summary'!$C$39,\"\",\"\")))","v":"No"},{"$f":"IF(OR(N80=\"Yes\",N80=\"No\")*AND(G80<'A - Contractor Summary'!$C$39),\"\",IF(AND(G80>'A - Contractor Summary'!$C$39,G80<'A - Contractor Summary'!$C$42),\"Yes\",IF(G80>'A - Contractor Summary'!$C$42,\"No\",\"Needs Review\")))","v":""},"Yes","No",0,0]
[null,70,null,null,null,null,null,null,null,null,null,null,null,{"$f":"IF(AND(G81>='A - Contractor Summary'!$C$36,G81<='A - Contractor Summary'!$C$38),\"Yes\",IF(G81<'A - Contractor Summary'!$C$36,\"No\",IF(G81>'A - Contractor Summary'!$C$39,\"\",\"\")))","v":"No"},{"$f":"IF(OR(N81=\"Yes\",N81=\"No\")*AND(G81<'A - Contractor Summary'!$C$39),\"\",IF(AND(G81>'A - Contractor Summary'!$C$39,G81<'A - Contractor Summary'!$C$42),\"Yes\",IF(G81>'A - Contractor Summary'!$C$42,\"No\",\"Needs Review\")))","v":""},"Yes","No",0,0]
[null,71,null,null,null,null,null,null,null,null,null,null,null,{"$f":"IF(AND(G82>='A - Contractor Summary'!$C$36,G82<='A - Contractor Summary'!$C$38),\"Yes\",IF(G82<'A - Contractor Summary'!$C$36,\"No\",IF(G82>'A - Contractor Summary'!$C$39,\"\",\"\")))","v":"No"},{"$f":"IF(OR(N82=\"Yes\",N82=\"No\")*AND(G82<'A - Contractor Summary'!$C$39),\"\",IF(AND(G82>'A - Contractor Summary'!$C$39,G82<'A - Contractor Summary'!$C$42),\"Yes\",IF(G82>'A - Contractor Summary'!$C$42,\"No\",\"Needs Review\")))","v":""},"Yes","No",0,0]
[null,72,null,null,null,null,null,null,null,null,null,null,null,{"$f":"IF(AND(G83>='A - Contractor Summary'!$C$36,G83<='A - Contractor Summary'!$C$38),\"Yes\",IF(G83<'A - Contractor Summary'!$C$36,\"No\",IF(G83>'A - Contractor Summary'!$C$39,\"\",\"\")))","v":"No"},{"$f":"IF(OR(N83=\"Yes\",N83=\"No\")*AND(G83<'A - Contractor Summary'!$C$39),\"\",IF(AND(G83>'A - Contractor Summary'!$C$39,G83<'A - Contractor Summary'!$C$42),\"Yes\",IF(G83>'A - Contractor Summary'!$C$42,\"No\",\"Needs Review\")))","v":""},"Yes","No",0,0]
[null,73,null,null,null,null,null,null,null,null,null,null,null,{"$f":"IF(AND(G84>='A - Contractor Summary'!$C$36,G84<='A - Contractor Summary'!$C$38),\"Yes\",IF(G84<'A - Contractor Summary'!$C$36,\"No\",IF(G84>'A - Contractor Summary'!$C$39,\"\",\"\")))","v":"No"},{"$f":"IF(OR(N84=\"Yes\",N84=\"No\")*AND(G84<'A - Contractor Summary'!$C$39),\"\",IF(AND(G84>'A - Contractor Summary'!$C$39,G84<'A - Contractor Summary'!$C$42),\"Yes\",IF(G84>'A - Contractor Summary'!$C$42,\"No\",\"Needs Review\")))","v":""},"No","Needs Review",0,0]
[null,74,null,null,null,null,null,null,null,null,null,null,null,{"$f":"IF(AND(G85>='A - Contractor Summary'!$C$36,G85<='A - Contractor Summary'!$C$38),\"Yes\",IF(G85<'A - Contractor Summary'!$C$36,\"No\",IF(G85>'A - Contractor Summary'!$C$39,\"\",\"\")))","v":"No"},{"$f":"IF(OR(N85=\"Yes\",N85=\"No\")*AND(G85<'A - Contractor Summary'!$C$39),\"\",IF(AND(G85>'A - Contractor Summary'!$C$39,G85<'A - Contractor Summary'!$C$42),\"Yes\",IF(G85>'A - Contractor Summary'!$C$42,\"No\",\"Needs Review\")))","v":""},"No","No",0,0]
[null,75,null,null,null,null,null,null,null,null,null,null,null,{"$f":"IF(AND(G86>='A - Contractor Summary'!$C$36,G86<='A - Contractor Summary'!$C$38),\"Yes\",IF(G86<'A - Contractor Summary'!$C$36,\"No\",IF(G86>'A - Contractor Summary'!$C$39,\"\",\"\")))","v":"No"},{"$f":"IF(OR(N86=\"Yes\",N86=\"No\")*AND(G86<'A - Contractor Summary'!$C$39),\"\",IF(AND(G86>'A - Contractor Summary'!$C$39,G86<'A - Contractor Summary'!$C$42),\"Yes\",IF(G86>'A - Contractor Summary'!$C$42,\"No\",\"Needs Review\")))","v":""},"Yes","No",0,0]
[null,76,null,null,null,null,null,null,null,null,null,null,null,{"$f":"IF(AND(G87>='A - Contractor Summary'!$C$36,G87<='A - Contractor Summary'!$C$38),\"Yes\",IF(G87<'A - Contractor Summary'!$C$36,\"No\",IF(G87>'A - Contractor Summary'!$C$39,\"\",\"\")))","v":"No"},{"$f":"IF(OR(N87=\"Yes\",N87=\"No\")*AND(G87<'A - Contractor Summary'!$C$39),\"\",IF(AND(G87>'A - Contractor Summary'!$C$39,G87<'A - Contractor Summary'!$C$42),\"Yes\",IF(G87>'A - Contractor Summary'!$C$42,\"No\",\"Needs Review\")))","v":""},"Yes","No",0,0]
[null,77,null,null,null,null,null,null,null,null,null,null,null,{"$f":"IF(AND(G88>='A - Contractor Summary'!$C$36,G88<='A - Contractor Summary'!$C$38),\"Yes\",IF(G88<'A - Contractor Summary'!$C$36,\"No\",IF(G88>'A - Contractor Summary'!$C$39,\"\",\"\")))","v":"No"},{"$f":"IF(OR(N88=\"Yes\",N88=\"No\")*AND(G88<'A - Contractor Summary'!$C$39),\"\",IF(AND(G88>'A - Contractor Summary'!$C$39,G88<'A - Contractor Summary'!$C$42),\"Yes\",IF(G88>'A - Contractor Summary'!$C$42,\"No\",\"Needs Review\")))","v":""},"Yes","No",0,0]
[null,78,null,null,null,null,null,null,null,null,null,null,null,{"$f":"IF(AND(G89>='A - Contractor Summary'!$C$36,G89<='A - Contractor Summary'!$C$38),\"Yes\",IF(G89<'A - Contractor Summary'!$C$36,\"No\",IF(G89>'A - Contractor Summary'!$C$39,\"\",\"\")))","v":"No"},{"$f":"IF(OR(N89=\"Yes\",N89=\"No\")*AND(G89<'A - Contractor Summary'!$C$39),\"\",IF(AND(G89>'A - Contractor Summary'!$C$39,G89<'A - Contractor Summary'!$C$42),\"Yes\",IF(G89>'A - Contractor Summary'!$C$42,\"No\",\"Needs Review\")))","v":""},"Yes","No",0,0]
[null,79,null,null,null,null,null,null,null,null,null,null,null,{"$f":"IF(AND(G90>='A - Contractor Summary'!$C$36,G90<='A - Contractor Summary'!$C$38),\"Yes\",IF(G90<'A - Contractor Summary'!$C$36,\"No\",IF(G90>'A - Contractor Summary'!$C$39,\"\",\"\")))","v":"No"},{"$f":"IF(OR(N90=\"Yes\",N90=\"No\")*AND(G90<'A - Contractor Summary'!$C$39),\"\",IF(AND(G90>'A - Contractor Summary'!$C$39,G90<'A - Contractor Summary'!$C$42),\"Yes\",IF(G90>'A - Contractor Summary'!$C$42,\"No\",\"Needs Review\")))","v":""},"Yes","No",0,0]
[null,80,null,null,null,null,null,null,null,null,null,null,null,{"$f":"IF(AND(G91>='A - Contractor Summary'!$C$36,G91<='A - Contractor Summary'!$C$38),\"Yes\",IF(G91<'A - Contractor Summary'!$C$36,\"No\",IF(G91>'A - Contractor Summary'!$C$39,\"\",\"\")))","v":"No"},{"$f":"IF(OR(N91=\"Yes\",N91=\"No\")*AND(G91<'A - Contractor Summary'!$C$39),\"\",IF(AND(G91>'A - Contractor Summary'!$C$39,G91<'A - Contractor Summary'!$C$42),\"Yes\",IF(G91>'A - Contractor Summary'!$C$42,\"No\",\"Needs Review\")))","v":""},"No","No",0,0]
[null,81,null,null,null,null,null,null,null,null,null,null,null,{"$f":"IF(AND(G92>='A - Contractor Summary'!$C$36,G92<='A - Contractor Summary'!$C$38),\"Yes\",IF(G92<'A - Contractor Summary'!$C$36,\"No\",IF(G92>'A - Contractor Summary'!$C$39,\"\",\"\")))","v":"No"},{"$f":"IF(OR(N92=\"Yes\",N92=\"No\")*AND(G92<'A - Contractor Summary'!$C$39),\"\",IF(AND(G92>'A - Contractor Summary'!$C$39,G92<'A - Contractor Summary'!$C$42),\"Yes\",IF(G92>'A - Contractor Summary'!$C$42,\"No\",\"Needs Review\")))","v":""},"No","No",0,0]
[null,82,null,null,null,null,null,null,null,null,null,null,null,{"$f":"IF(AND(G93>='A - Contractor Summary'!$C$36,G93<='A - Contractor Summary'!$C$38),\"Yes\",IF(G93<'A - Contractor Summary'!$C$36,\"No\",IF(G93>'A - Contractor Summary'!$C$39,\"\",\"\")))","v":"No"},{"$f":"IF(OR(N93=\"Yes\",N93=\"No\")*AND(G93<'A - Contractor Summary'!$C$39),\"\",IF(AND(G93>'A - Contractor Summary'!$C$39,G93<'A - Contractor Summary'!$C$42),\"Yes\",IF(G93>'A - Contractor Summary'!$C$42,\"No\",\"Needs Review\")))","v":""},"No","No",0,0]
[null,83,null,null,null,null,null,null,null,null,null,null,null,{"$f":"IF(AND(G94>='A - Contractor Summary'!$C$36,G94<='A - Contractor Summary'!$C$38),\"Yes\",IF(G94<'A - Contractor Summary'!$C$36,\"No\",IF(G94>'A - Contractor Summary'!$C$39,\"\",\"\")))","v":"No"},{"$f":"IF(OR(N94=\"Yes\",N94=\"No\")*AND(G94<'A - Contractor Summary'!$C$39),\"\",IF(AND(G94>'A - Contractor Summary'!$C$39,G94<'A - Contractor Summary'!$C$42),\"Yes\",IF(G94>'A - Contractor Summary'!$C$42,\"No\",\"Needs Review\")))","v":""},"No",{"$f":"IF(AND(P94=\"Yes\",L94=\"Yes\",M94=\"Yes\")*OR(O94=\"Yes\",N94=\"Yes\"),\"Yes\",IF(OR(L94=\"No\",N94=\"No\",O94=\"No\",P94=\"No\",M94=\"No\"),\"No\",\"Needs Review\"))","v":"No"},{"$f":"IF(Q94=\"Yes\",K94,0)","v":0},{"$f":"IF(Q94=\"Needs Review\",K94,0)","v":0}]
[null,84,null,null,null,null,null,null,null,null,null,null,null,{"$f":"IF(AND(G95>='A - Contractor Summary'!$C$36,G95<='A - Contractor Summary'!$C$38),\"Yes\",IF(G95<'A - Contractor Summary'!$C$36,\"No\",IF(G95>'A - Contractor Summary'!$C$39,\"\",\"\")))","v":"No"},{"$f":"IF(OR(N95=\"Yes\",N95=\"No\")*AND(G95<'A - Contractor Summary'!$C$39),\"\",IF(AND(G95>'A - Contractor Summary'!$C$39,G95<'A - Contractor Summary'!$C$42),\"Yes\",IF(G95>'A - Contractor Summary'!$C$42,\"No\",\"Needs Review\")))","v":""},"No","No",0,0]
[null,85,null,null,null,null,null,null,null,null,null,null,null,{"$f":"IF(AND(G96>='A - Contractor Summary'!$C$36,G96<='A - Contractor Summary'!$C$38),\"Yes\",IF(G96<'A - Contractor Summary'!$C$36,\"No\",IF(G96>'A - Contractor Summary'!$C$39,\"\",\"\")))","v":"No"},{"$f":"IF(OR(N96=\"Yes\",N96=\"No\")*AND(G96<'A - Contractor Summary'!$C$39),\"\",IF(AND(G96>'A - Contractor Summary'!$C$39,G96<'A - Contractor Summary'!$C$42),\"Yes\",IF(G96>'A - Contractor Summary'!$C$42,\"No\",\"Needs Review\")))","v":""},"No","No",0,0]
[null,86,null,null,null,null,null,null,null,null,null,null,null,{"$f":"IF(AND(G97>='A - Contractor Summary'!$C$36,G97<='A - Contractor Summary'!$C$38),\"Yes\",IF(G97<'A - Contractor Summary'!$C$36,\"No\",IF(G97>'A - Contractor Summary'!$C$39,\"\",\"\")))","v":"No"},{"$f":"IF(OR(N97=\"Yes\",N97=\"No\")*AND(G97<'A - Contractor Summary'!$C$39),\"\",IF(AND(G97>'A - Contractor Summary'!$C$39,G97<'A - Contractor Summary'!$C$42),\"Yes\",IF(G97>'A - Contractor Summary'!$C$42,\"No\",\"Needs Review\")))","v":""},"Yes","No",0,0]
[null,87,null,null,null,null,null,null,null,null,null,null,null,{"$f":"IF(AND(G98>='A - Contractor Summary'!$C$36,G98<='A - Contractor Summary'!$C$38),\"Yes\",IF(G98<'A - Contractor Summary'!$C$36,\"No\",IF(G98>'A - Contractor Summary'!$C$39,\"\",\"\")))","v":"No"},{"$f":"IF(OR(N98=\"Yes\",N98=\"No\")*AND(G98<'A - Contractor Summary'!$C$39),\"\",IF(AND(G98>'A - Contractor Summary'!$C$39,G98<'A - Contractor Summary'!$C$42),\"Yes\",IF(G98>'A - Contractor Summary'!$C$42,\"No\",\"Needs Review\")))","v":""},"Yes","No",0,0]
[null,88,null,null,null,null,null,null,null,null,null,null,null,{"$f":"IF(AND(G99>='A - Contractor Summary'!$C$36,G99<='A - Contractor Summary'!$C$38),\"Yes\",IF(G99<'A - Contractor Summary'!$C$36,\"No\",IF(G99>'A - Contractor Summary'!$C$39,\"\",\"\")))","v":"No"},{"$f":"IF(OR(N99=\"Yes\",N99=\"No\")*AND(G99<'A - Contractor Summary'!$C$39),\"\",IF(AND(G99>'A - Contractor Summary'!$C$39,G99<'A - Contractor Summary'!$C$42),\"Yes\",IF(G99>'A - Contractor Summary'!$C$42,\"No\",\"Needs Review\")))","v":""},"Yes","No",0,0]
[null,89,null,null,null,null,null,null,null,null,null,null,null,{"$f":"IF(AND(G100>='A - Contractor Summary'!$C$36,G100<='A - Contractor Summary'!$C$38),\"Yes\",IF(G100<'A - Contractor Summary'!$C$36,\"No\",IF(G100>'A - Contractor Summary'!$C$39,\"\",\"\")))","v":"No"},{"$f":"IF(OR(N100=\"Yes\",N100=\"No\")*AND(G100<'A - Contractor Summary'!$C$39),\"\",IF(AND(G100>'A - Contractor Summary'!$C$39,G100<'A - Contractor Summary'!$C$42),\"Yes\",IF(G100>'A - Contractor Summary'!$C$42,\"No\",\"Needs Review\")))","v":""},"Yes","No",0,0]
[null,90,null,null,null,null,null,null,null,null,null,null,null,{"$f":"IF(AND(G101>='A - Contractor Summary'!$C$36,G101<='A - Contractor Summary'!$C$38),\"Yes\",IF(G101<'A - Contractor Summary'!$C$36,\"No\",IF(G101>'A - Contractor Summary'!$C$39,\"\",\"\")))","v":"No"},{"$f":"IF(OR(N101=\"Yes\",N101=\"No\")*AND(G101<'A - Contractor Summary'!$C$39),\"\",IF(AND(G101>'A - Contractor Summary'!$C$39,G101<'A - Contractor Summary'!$C$42),\"Yes\",IF(G101>'A - Contractor Summary'!$C$42,\"No\",\"Needs Review\")))","v":""},"Yes","No",0,0]
[null,91,null,null,null,null,null,null,null,null,null,null,null,{"$f":"IF(AND(G102>='A - Contractor Summary'!$C$36,G102<='A - Contractor Summary'!$C$38),\"Yes\",IF(G102<'A - Contractor Summary'!$C$36,\"No\",IF(G102>'A - Contractor Summary'!$C$39,\"\",\"\")))","v":"No"},{"$f":"IF(OR(N102=\"Yes\",N102=\"No\")*AND(G102<'A - Contractor Summary'!$C$39),\"\",IF(AND(G102>'A - Contractor Summary'!$C$39,G102<'A - Contractor Summary'!$C$42),\"Yes\",IF(G102>'A - Contractor Summary'!$C$42,\"No\",\"Needs Review\")))","v":""},"Yes","No",0,0]
[null,92,null,null,null,null,null,null,null,null,null,null,null,{"$f":"IF(AND(G103>='A - Contractor Summary'!$C$36,G103<='A - Contractor Summary'!$C$38),\"Yes\",IF(G103<'A - Contractor Summary'!$C$36,\"No\",IF(G103>'A - Contractor Summary'!$C$39,\"\",\"\")))","v":"No"},{"$f":"IF(OR(N103=\"Yes\",N103=\"No\")*AND(G103<'A - Contractor Summary'!$C$39),\"\",IF(AND(G103>'A - Contractor Summary'!$C$39,G103<'A - Contractor Summary'!$C$42),\"Yes\",IF(G103>'A - Contractor Summary'!$C$42,\"No\",\"Needs Review\")))","v":""},"Yes","No",0,0]
[null,93,null,null,null,null,null,null,null,null,null,null,null,{"$f":"IF(AND(G104>='A - Contractor Summary'!$C$36,G104<='A - Contractor Summary'!$C$38),\"Yes\",IF(G104<'A - Contractor Summary'!$C$36,\"No\",IF(G104>'A - Contractor Summary'!$C$39,\"\",\"\")))","v":"No"},{"$f":"IF(OR(N104=\"Yes\",N104=\"No\")*AND(G104<'A - Contractor Summary'!$C$39),\"\",IF(AND(G104>'A - Contractor Summary'!$C$39,G104<'A - Contractor Summary'!$C$42),\"Yes\",IF(G104>'A - Contractor Summary'!$C$42,\"No\",\"Needs Review\")))","v":""},"Yes","No",0,0]
[null,94,null,null,null,null,null,null,null,null,null,null,null,{"$f":"IF(AND(G105>='A - Contractor Summary'!$C$36,G105<='A - Contractor Summary'!$C$38),\"Yes\",IF(G105<'A - Contractor Summary'!$C$36,\"No\",IF(G105>'A - Contractor Summary'!$C$39,\"\",\"\")))","v":"No"},{"$f":"IF(OR(N105=\"Yes\",N105=\"No\")*AND(G105<'A - Contractor Summary'!$C$39),\"\",IF(AND(G105>'A - Contractor Summary'!$C$39,G105<'A - Contractor Summary'!$C$42),\"Yes\",IF(G105>'A - Contractor Summary'!$C$42,\"No\",\"Needs Review\")))","v":""},"Yes","No",0,0]
[null,95,null,null,null,null,null,null,null,null,null,null,null,{"$f":"IF(AND(G106>='A - Contractor Summary'!$C$36,G106<='A - Contractor Summary'!$C$38),\"Yes\",IF(G106<'A - Contractor Summary'!$C$36,\"No\",IF(G106>'A - Contractor Summary'!$C$39,\"\",\"\")))","v":"No"},{"$f":"IF(OR(N106=\"Yes\",N106=\"No\")*AND(G106<'A - Contractor Summary'!$C$39),\"\",IF(AND(G106>'A - Contractor Summary'!$C$39,G106<'A - Contractor Summary'!$C$42),\"Yes\",IF(G106>'A - Contractor Summary'!$C$42,\"No\",\"Needs Review\")))","v":""},"Yes","No",0,0]
[null,96,null,null,null,null,null,null,null,null,null,null,null,{"$f":"IF(AND(G107>='A - Contractor Summary'!$C$36,G107<='A - Contractor Summary'!$C$38),\"Yes\",IF(G107<'A - Contractor Summary'!$C$36,\"No\",IF(G107>'A - Contractor Summary'!$C$39,\"\",\"\")))","v":"No"},{"$f":"IF(OR(N107=\"Yes\",N107=\"No\")*AND(G107<'A - Contractor Summary'!$C$39),\"\",IF(AND(G107>'A - Contractor Summary'!$C$39,G107<'A - Contractor Summary'!$C$42),\"Yes\",IF(G107>'A - Contractor Summary'!$C$42,\"No\",\"Needs Review\")))","v":""},"Yes","No",0,0]
[null,97,null,null,null,null,null,null,null,null,null,null,null,{"$f":"IF(AND(G108>='A - Contractor Summary'!$C$36,G108<='A - Contractor Summary'!$C$38),\"Yes\",IF(G108<'A - Contractor Summary'!$C$36,\"No\",IF(G108>'A - Contractor Summary'!$C$39,\"\",\"\")))","v":"No"},{"$f":"IF(OR(N108=\"Yes\",N108=\"No\")*AND(G108<'A - Contractor Summary'!$C$39),\"\",IF(AND(G108>'A - Contractor Summary'!$C$39,G108<'A - Contractor Summary'!$C$42),\"Yes\",IF(G108>'A - Contractor Summary'!$C$42,\"No\",\"Needs Review\")))","v":""},"Yes","No",0,0]
[null,98,null,null,null,null,null,null,null,null,null,null,null,{"$f":"IF(AND(G109>='A - Contractor Summary'!$C$36,G109<='A - Contractor Summary'!$C$38),\"Yes\",IF(G109<'A - Contractor Summary'!$C$36,\"No\",IF(G109>'A - Contractor Summary'!$C$39,\"\",\"\")))","v":"No"},{"$f":"IF(OR(N109=\"Yes\",N109=\"No\")*AND(G109<'A - Contractor Summary'!$C$39),\"\",IF(AND(G109>'A - Contractor Summary'!$C$39,G109<'A - Contractor Summary'!$C$42),\"Yes\",IF(G109>'A - Contractor Summary'!$C$42,\"No\",\"Needs Review\")))","v":""},"Yes","No",0,0]
[null,99,null,null,null,null,null,null,null,null,null,null,null,{"$f":"IF(AND(G110>='A - Contractor Summary'!$C$36,G110<='A - Contractor Summary'!$C$38),\"Yes\",IF(G110<'A - Contractor Summary'!$C$36,\"No\",IF(G110>'A - Contractor Summary'!$C$39,\"\",\"\")))","v":"No"},{"$f":"IF(OR(N110=\"Yes\",N110=\"No\")*AND(G110<'A - Contractor Summary'!$C$39),\"\",IF(AND(G110>'A - Contractor Summary'!$C$39,G110<'A - Contractor Summary'!$C$42),\"Yes\",IF(G110>'A - Contractor Summary'!$C$42,\"No\",\"Needs Review\")))","v":""},"Yes","No",0,0]
[null,100,null,null,null,null,null,null,null,null,null,null,null,{"$f":"IF(AND(G111>='A - Contractor Summary'!$C$36,G111<='A - Contractor Summary'!$C$38),\"Yes\",IF(G111<'A - Contractor Summary'!$C$36,\"No\",IF(G111>'A - Contractor Summary'!$C$39,\"\",\"\")))","v":"No"},{"$f":"IF(OR(N111=\"Yes\",N111=\"No\")*AND(G111<'A - Contractor Summary'!$C$39),\"\",IF(AND(G111>'A - Contractor Summary'!$C$39,G111<'A - Contractor Summary'!$C$42),\"Yes\",IF(G111>'A - Contractor Summary'!$C$42,\"No\",\"Needs Review\")))","v":""},"Yes","No",0,0]
[null,101,null,null,null,null,null,null,null,null,null,null,null,{"$f":"IF(AND(G112>='A - Contractor Summary'!$C$36,G112<='A - Contractor Summary'!$C$38),\"Yes\",IF(G112<'A - Contractor Summary'!$C$36,\"No\",IF(G112>'A - Contractor Summary'!$C$39,\"\",\"\")))","v":"No"},{"$f":"IF(OR(N112=\"Yes\",N112=\"No\")*AND(G112<'A - Contractor Summary'!$C$39),\"\",IF(AND(G112>'A - Contractor Summary'!$C$39,G112<'A - Contractor Summary'!$C$42),\"Yes\",IF(G112>'A - Contractor Summary'!$C$42,\"No\",\"Needs Review\")))","v":""},"Yes","No",0,0]
[null,102,null,null,null,null,null,null,null,null,null,null,null,{"$f":"IF(AND(G113>='A - Contractor Summary'!$C$36,G113<='A - Contractor Summary'!$C$38),\"Yes\",IF(G113<'A - Contractor Summary'!$C$36,\"No\",IF(G113>'A - Contractor Summary'!$C$39,\"\",\"\")))","v":"No"},{"$f":"IF(OR(N113=\"Yes\",N113=\"No\")*AND(G113<'A - Contractor Summary'!$C$39),\"\",IF(AND(G113>'A - Contractor Summary'!$C$39,G113<'A - Contractor Summary'!$C$42),\"Yes\",IF(G113>'A - Contractor Summary'!$C$42,\"No\",\"Needs Review\")))","v":""},"Yes","No",0,0]
[null,103,null,null,null,null,null,null,null,null,null,null,null,{"$f":"IF(AND(G114>='A - Contractor Summary'!$C$36,G114<='A - Contractor Summary'!$C$38),\"Yes\",IF(G114<'A - Contractor Summary'!$C$36,\"No\",IF(G114>'A - Contractor Summary'!$C$39,\"\",\"\")))","v":"No"},{"$f":"IF(OR(N114=\"Yes\",N114=\"No\")*AND(G114<'A - Contractor Summary'!$C$39),\"\",IF(AND(G114>'A - Contractor Summary'!$C$39,G114<'A - Contractor Summary'!$C$42),\"Yes\",IF(G114>'A - Contractor Summary'!$C$42,\"No\",\"Needs Review\")))","v":""},"Yes","No",0,0]
[null,104,null,null,null,null,null,null,null,null,null,null,null,{"$f":"IF(AND(G115>='A - Contractor Summary'!$C$36,G115<='A - Contractor Summary'!$C$38),\"Yes\",IF(G115<'A - Contractor Summary'!$C$36,\"No\",IF(G115>'A - Contractor Summary'!$C$39,\"\",\"\")))","v":"No"},{"$f":"IF(OR(N115=\"Yes\",N115=\"No\")*AND(G115<'A - Contractor Summary'!$C$39),\"\",IF(AND(G115>'A - Contractor Summary'!$C$39,G115<'A - Contractor Summary'!$C$42),\"Yes\",IF(G115>'A - Contractor Summary'!$C$42,\"No\",\"Needs Review\")))","v":""},"Yes","No",0,0]
[null,105,null,null,null,null,null,null,null,null,null,null,null,{"$f":"IF(AND(G116>='A - Contractor Summary'!$C$36,G116<='A - Contractor Summary'!$C$38),\"Yes\",IF(G116<'A - Contractor Summary'!$C$36,\"No\",IF(G116>'A - Contractor Summary'!$C$39,\"\",\"\")))","v":"No"},{"$f":"IF(OR(N116=\"Yes\",N116=\"No\")*AND(G116<'A - Contractor Summary'!$C$39),\"\",IF(AND(G116>'A - Contractor Summary'!$C$39,G116<'A - Contractor Summary'!$C$42),\"Yes\",IF(G116>'A - Contractor Summary'!$C$42,\"No\",\"Needs Review\")))","v":""},"Yes","No",0,0]
[null,106,null,null,null,null,null,null,null,null,null,null,null,{"$f":"IF(AND(G117>='A - Contractor Summary'!$C$36,G117<='A - Contractor Summary'!$C$38),\"Yes\",IF(G117<'A - Contractor Summary'!$C$36,\"No\",IF(G117>'A - Contractor Summary'!$C$39,\"\",\"\")))","v":"No"},{"$f":"IF(OR(N117=\"Yes\",N117=\"No\")*AND(G117<'A - Contractor Summary'!$C$39),\"\",IF(AND(G117>'A - Contractor Summary'!$C$39,G117<'A - Contractor Summary'!$C$42),\"Yes\",IF(G117>'A - Contractor Summary'!$C$42,\"No\",\"Needs Review\")))","v":""},"Yes","No",0,0]
[null,107,null,null,null,null,null,null,null,null,null,null,null,{"$f":"IF(AND(G118>='A - Contractor Summary'!$C$36,G118<='A - Contractor Summary'!$C$38),\"Yes\",IF(G118<'A - Contractor Summary'!$C$36,\"No\",IF(G118>'A - Contractor Summary'!$C$39,\"\",\"\")))","v":"No"},{"$f":"IF(OR(N118=\"Yes\",N118=\"No\")*AND(G118<'A - Contractor Summary'!$C$39),\"\",IF(AND(G118>'A - Contractor Summary'!$C$39,G118<'A - Contractor Summary'!$C$42),\"Yes\",IF(G118>'A - Contractor Summary'!$C$42,\"No\",\"Needs Review\")))","v":""},"Yes","No",0,0]
[null,108,null,null,null,null,null,null,null,null,null,null,null,{"$f":"IF(AND(G119>='A - Contractor Summary'!$C$36,G119<='A - Contractor Summary'!$C$38),\"Yes\",IF(G119<'A - Contractor Summary'!$C$36,\"No\",IF(G119>'A - Contractor Summary'!$C$39,\"\",\"\")))","v":"No"},{"$f":"IF(OR(N119=\"Yes\",N119=\"No\")*AND(G119<'A - Contractor Summary'!$C$39),\"\",IF(AND(G119>'A - Contractor Summary'!$C$39,G119<'A - Contractor Summary'!$C$42),\"Yes\",IF(G119>'A - Contractor Summary'!$C$42,\"No\",\"Needs Review\")))","v":""},"Yes","No",0,0]
[null,109,null,null,null,null,null,null,null,null,null,null,null,{"$f":"IF(AND(G120>='A - Contractor Summary'!$C$36,G120<='A - Contractor Summary'!$C$38),\"Yes\",IF(G120<'A - Contractor Summary'!$C$36,\"No\",IF(G120>'A - Contractor Summary'!$C$39,\"\",\"\")))","v":"No"},{"$f":"IF(OR(N120=\"Yes\",N120=\"No\")*AND(G120<'A - Contractor Summary'!$C$39),\"\",IF(AND(G120>'A - Contractor Summary'!$C$39,G120<'A - Contractor Summary'!$C$42),\"Yes\",IF(G120>'A - Contractor Summary'!$C$42,\"No\",\"Needs Review\")))","v":""},"Yes","No",0,0]
[null,110,null,null,null,null,null,null,null,null,null,null,null,{"$f":"IF(AND(G121>='A - Contractor Summary'!$C$36,G121<='A - Contractor Summary'!$C$38),\"Yes\",IF(G121<'A - Contractor Summary'!$C$36,\"No\",IF(G121>'A - Contractor Summary'!$C$39,\"\",\"\")))","v":"No"},{"$f":"IF(OR(N121=\"Yes\",N121=\"No\")*AND(G121<'A - Contractor Summary'!$C$39),\"\",IF(AND(G121>'A - Contractor Summary'!$C$39,G121<'A - Contractor Summary'!$C$42),\"Yes\",IF(G121>'A - Contractor Summary'!$C$42,\"No\",\"Needs Review\")))","v":""},"Yes","No",0,0]
[null,111,null,null,null,null,null,null,null,null,null,null,null,{"$f":"IF(AND(G122>='A - Contractor Summary'!$C$36,G122<='A - Contractor Summary'!$C$38),\"Yes\",IF(G122<'A - Contractor Summary'!$C$36,\"No\",IF(G122>'A - Contractor Summary'!$C$39,\"\",\"\")))","v":"No"},{"$f":"IF(OR(N122=\"Yes\",N122=\"No\")*AND(G122<'A - Contractor Summary'!$C$39),\"\",IF(AND(G122>'A - Contractor Summary'!$C$39,G122<'A - Contractor Summary'!$C$42),\"Yes\",IF(G122>'A - Contractor Summary'!$C$42,\"No\",\"Needs Review\")))","v":""},"Yes","No",0,0]
[null,112,null,null,null,null,null,null,null,null,null,null,null,{"$f":"IF(AND(G123>='A - Contractor Summary'!$C$36,G123<='A - Contractor Summary'!$C$38),\"Yes\",IF(G123<'A - Contractor Summary'!$C$36,\"No\",IF(G123>'A - Contractor Summary'!$C$39,\"\",\"\")))","v":"No"},{"$f":"IF(OR(N123=\"Yes\",N123=\"No\")*AND(G123<'A - Contractor Summary'!$C$39),\"\",IF(AND(G123>'A - Contractor Summary'!$C$39,G123<'A - Contractor Summary'!$C$42),\"Yes\",IF(G123>'A - Contractor Summary'!$C$42,\"No\",\"Needs Review\")))","v":""},"Yes","No",0,0]
[null,113,null,null,null,null,null,null,null,null,null,null,null,{"$f":"IF(AND(G124>='A - Contractor Summary'!$C$36,G124<='A - Contractor Summary'!$C$38),\"Yes\",IF(G124<'A - Contractor Summary'!$C$36,\"No\",IF(G124>'A - Contractor Summary'!$C$39,\"\",\"\")))","v":"No"},{"$f":"IF(OR(N124=\"Yes\",N124=\"No\")*AND(G124<'A - Contractor Summary'!$C$39),\"\",IF(AND(G124>'A - Contractor Summary'!$C$39,G124<'A - Contractor Summary'!$C$42),\"Yes\",IF(G124>'A - Contractor Summary'!$C$42,\"No\",\"Needs Review\")))","v":""},"Yes","No",0,0]
[null,114,null,null,null,null,null,null,null,null,null,null,null,{"$f":"IF(AND(G125>='A - Contractor Summary'!$C$36,G125<='A - Contractor Summary'!$C$38),\"Yes\",IF(G125<'A - Contractor Summary'!$C$36,\"No\",IF(G125>'A - Contractor Summary'!$C$39,\"\",\"\")))","v":"No"},{"$f":"IF(OR(N125=\"Yes\",N125=\"No\")*AND(G125<'A - Contractor Summary'!$C$39),\"\",IF(AND(G125>'A - Contractor Summary'!$C$39,G125<'A - Contractor Summary'!$C$42),\"Yes\",IF(G125>'A - Contractor Summary'!$C$42,\"No\",\"Needs Review\")))","v":""},"Yes","No",0,0]
[null,115,null,null,null,null,null,null,null,null,null,null,null,{"$f":"IF(AND(G126>='A - Contractor Summary'!$C$36,G126<='A - Contractor Summary'!$C$38),\"Yes\",IF(G126<'A - Contractor Summary'!$C$36,\"No\",IF(G126>'A - Contractor Summary'!$C$39,\"\",\"\")))","v":"No"},{"$f":"IF(OR(N126=\"Yes\",N126=\"No\")*AND(G126<'A - Contractor Summary'!$C$39),\"\",IF(AND(G126>'A - Contractor Summary'!$C$39,G126<'A - Contractor Summary'!$C$42),\"Yes\",IF(G126>'A - Contractor Summary'!$C$42,\"No\",\"Needs Review\")))","v":""},"Yes","No",0,0]
[null,116,null,null,null,null,null,null,null,null,null,null,null,{"$f":"IF(AND(G127>='A - Contractor Summary'!$C$36,G127<='A - Contractor Summary'!$C$38),\"Yes\",IF(G127<'A - Contractor Summary'!$C$36,\"No\",IF(G127>'A - Contractor Summary'!$C$39,\"\",\"\")))","v":"No"},{"$f":"IF(OR(N127=\"Yes\",N127=\"No\")*AND(G127<'A - Contractor Summary'!$C$39),\"\",IF(AND(G127>'A - Contractor Summary'!$C$39,G127<'A - Contractor Summary'!$C$42),\"Yes\",IF(G127>'A - Contractor Summary'!$C$42,\"No\",\"Needs Review\")))","v":""},"Yes","No",0,0]
[null,117,null,null,null,null,null,null,null,null,null,null,null,{"$f":"IF(AND(G128>='A - Contractor Summary'!$C$36,G128<='A - Contractor Summary'!$C$38),\"Yes\",IF(G128<'A - Contractor Summary'!$C$36,\"No\",IF(G128>'A - Contractor Summary'!$C$39,\"\",\"\")))","v":"No"},{"$f":"IF(OR(N128=\"Yes\",N128=\"No\")*AND(G128<'A - Contractor Summary'!$C$39),\"\",IF(AND(G128>'A - Contractor Summary'!$C$39,G128<'A - Contractor Summary'!$C$42),\"Yes\",IF(G128>'A - Contractor Summary'!$C$42,\"No\",\"Needs Review\")))","v":""},"Yes","No",0,0]
[null,118,null,null,null,null,null,null,null,null,null,null,null,{"$f":"IF(AND(G129>='A - Contractor Summary'!$C$36,G129<='A - Contractor Summary'!$C$38),\"Yes\",IF(G129<'A - Contractor Summary'!$C$36,\"No\",IF(G129>'A - Contractor Summary'!$C$39,\"\",\"\")))","v":"No"},{"$f":"IF(OR(N129=\"Yes\",N129=\"No\")*AND(G129<'A - Contractor Summary'!$C$39),\"\",IF(AND(G129>'A - Contractor Summary'!$C$39,G129<'A - Contractor Summary'!$C$42),\"Yes\",IF(G129>'A - Contractor Summary'!$C$42,\"No\",\"Needs Review\")))","v":""},"Yes","No",0,0]
[null,119,null,null,null,null,null,null,null,null,null,null,null,{"$f":"IF(AND(G130>='A - Contractor Summary'!$C$36,G130<='A - Contractor Summary'!$C$38),\"Yes\",IF(G130<'A - Contractor Summary'!$C$36,\"No\",IF(G130>'A - Contractor Summary'!$C$39,\"\",\"\")))","v":"No"},{"$f":"IF(OR(N130=\"Yes\",N130=\"No\")*AND(G130<'A - Contractor Summary'!$C$39),\"\",IF(AND(G130>'A - Contractor Summary'!$C$39,G130<'A - Contractor Summary'!$C$42),\"Yes\",IF(G130>'A - Contractor Summary'!$C$42,\"No\",\"Needs Review\")))","v":""},"Yes","No",0,0]
[null,120,null,null,null,null,null,null,null,null,null,null,null,{"$f":"IF(AND(G131>='A - Contractor Summary'!$C$36,G131<='A - Contractor Summary'!$C$38),\"Yes\",IF(G131<'A - Contractor Summary'!$C$36,\"No\",IF(G131>'A - Contractor Summary'!$C$39,\"\",\"\")))","v":"No"},{"$f":"IF(OR(N131=\"Yes\",N131=\"No\")*AND(G131<'A - Contractor Summary'!$C$39),\"\",IF(AND(G131>'A - Contractor Summary'!$C$39,G131<'A - Contractor Summary'!$C$42),\"Yes\",IF(G131>'A - Contractor Summary'!$C$42,\"No\",\"Needs Review\")))","v":""},"Yes","No",0,0]
[null,121,null,null,null,null,null,null,null,null,null,null,null,{"$f":"IF(AND(G132>='A - Contractor Summary'!$C$36,G132<='A - Contractor Summary'!$C$38),\"Yes\",IF(G132<'A - Contractor Summary'!$C$36,\"No\",IF(G132>'A - Contractor Summary'!$C$39,\"\",\"\")))","v":"No"},{"$f":"IF(OR(N132=\"Yes\",N132=\"No\")*AND(G132<'A - Contractor Summary'!$C$39),\"\",IF(AND(G132>'A - Contractor Summary'!$C$39,G132<'A - Contractor Summary'!$C$42),\"Yes\",IF(G132>'A - Contractor Summary'!$C$42,\"No\",\"Needs Review\")))","v":""},"Yes","No",0,0]
[null,122,null,null,null,null,null,null,null,null,null,null,null,{"$f":"IF(AND(G133>='A - Contractor Summary'!$C$36,G133<='A - Contractor Summary'!$C$38),\"Yes\",IF(G133<'A - Contractor Summary'!$C$36,\"No\",IF(G133>'A - Contractor Summary'!$C$39,\"\",\"\")))","v":"No"},{"$f":"IF(OR(N133=\"Yes\",N133=\"No\")*AND(G133<'A - Contractor Summary'!$C$39),\"\",IF(AND(G133>'A - Contractor Summary'!$C$39,G133<'A - Contractor Summary'!$C$42),\"Yes\",IF(G133>'A - Contractor Summary'!$C$42,\"No\",\"Needs Review\")))","v":""},"Yes","No",0,0]
[null,123,null,null,null,null,null,null,null,null,null,null,null,{"$f":"IF(AND(G134>='A - Contractor Summary'!$C$36,G134<='A - Contractor Summary'!$C$38),\"Yes\",IF(G134<'A - Contractor Summary'!$C$36,\"No\",IF(G134>'A - Contractor Summary'!$C$39,\"\",\"\")))","v":"No"},{"$f":"IF(OR(N134=\"Yes\",N134=\"No\")*AND(G134<'A - Contractor Summary'!$C$39),\"\",IF(AND(G134>'A - Contractor Summary'!$C$39,G134<'A - Contractor Summary'!$C$42),\"Yes\",IF(G134>'A - Contractor Summary'!$C$42,\"No\",\"Needs Review\")))","v":""},"Yes","No",0,0]
[null,124,null,null,null,null,null,null,null,null,null,null,null,{"$f":"IF(AND(G135>='A - Contractor Summary'!$C$36,G135<='A - Contractor Summary'!$C$38),\"Yes\",IF(G135<'A - Contractor Summary'!$C$36,\"No\",IF(G135>'A - Contractor Summary'!$C$39,\"\",\"\")))","v":"No"},{"$f":"IF(OR(N135=\"Yes\",N135=\"No\")*AND(G135<'A - Contractor Summary'!$C$39),\"\",IF(AND(G135>'A - Contractor Summary'!$C$39,G135<'A - Contractor Summary'!$C$42),\"Yes\",IF(G135>'A - Contractor Summary'!$C$42,\"No\",\"Needs Review\")))","v":""},"Yes","No",0,0]
[null,125,null,null,null,null,null,null,null,null,null,null,null,{"$f":"IF(AND(G136>='A - Contractor Summary'!$C$36,G136<='A - Contractor Summary'!$C$38),\"Yes\",IF(G136<'A - Contractor Summary'!$C$36,\"No\",IF(G136>'A - Contractor Summary'!$C$39,\"\",\"\")))","v":"No"},{"$f":"IF(OR(N136=\"Yes\",N136=\"No\")*AND(G136<'A - Contractor Summary'!$C$39),\"\",IF(AND(G136>'A - Contractor Summary'!$C$39,G136<'A - Contractor Summary'!$C$42),\"Yes\",IF(G136>'A - Contractor Summary'!$C$42,\"No\",\"Needs Review\")))","v":""},"Yes","No",0,0]
[null,126,null,null,null,null,null,null,null,null,null,null,null,{"$f":"IF(AND(G137>='A - Contractor Summary'!$C$36,G137<='A - Contractor Summary'!$C$38),\"Yes\",IF(G137<'A - Contractor Summary'!$C$36,\"No\",IF(G137>'A - Contractor Summary'!$C$39,\"\",\"\")))","v":"No"},{"$f":"IF(OR(N137=\"Yes\",N137=\"No\")*AND(G137<'A - Contractor Summary'!$C$39),\"\",IF(AND(G137>'A - Contractor Summary'!$C$39,G137<'A - Contractor Summary'!$C$42),\"Yes\",IF(G137>'A - Contractor Summary'!$C$42,\"No\",\"Needs Review\")))","v":""},"Yes","No",0,0]
[null,127,null,null,null,null,null,null,null,null,null,null,null,{"$f":"IF(AND(G138>='A - Contractor Summary'!$C$36,G138<='A - Contractor Summary'!$C$38),\"Yes\",IF(G138<'A - Contractor Summary'!$C$36,\"No\",IF(G138>'A - Contractor Summary'!$C$39,\"\",\"\")))","v":"No"},{"$f":"IF(OR(N138=\"Yes\",N138=\"No\")*AND(G138<'A - Contractor Summary'!$C$39),\"\",IF(AND(G138>'A - Contractor Summary'!$C$39,G138<'A - Contractor Summary'!$C$42),\"Yes\",IF(G138>'A - Contractor Summary'!$C$42,\"No\",\"Needs Review\")))","v":""},"Yes","No",0,0]
[null,128,null,null,null,null,null,null,null,null,null,null,null,{"$f":"IF(AND(G139>='A - Contractor Summary'!$C$36,G139<='A - Contractor Summary'!$C$38),\"Yes\",IF(G139<'A - Contractor Summary'!$C$36,\"No\",IF(G139>'A - Contractor Summary'!$C$39,\"\",\"\")))","v":"No"},{"$f":"IF(OR(N139=\"Yes\",N139=\"No\")*AND(G139<'A - Contractor Summary'!$C$39),\"\",IF(AND(G139>'A - Contractor Summary'!$C$39,G139<'A - Contractor Summary'!$C$42),\"Yes\",IF(G139>'A - Contractor Summary'!$C$42,\"No\",\"Needs Review\")))","v":""},"Yes","No",0,0]
[null,129,null,null,null,null,null,null,null,null,null,null,null,{"$f":"IF(AND(G140>='A - Contractor Summary'!$C$36,G140<='A - Contractor Summary'!$C$38),\"Yes\",IF(G140<'A - Contractor Summary'!$C$36,\"No\",IF(G140>'A - Contractor Summary'!$C$39,\"\",\"\")))","v":"No"},{"$f":"IF(OR(N140=\"Yes\",N140=\"No\")*AND(G140<'A - Contractor Summary'!$C$39),\"\",IF(AND(G140>'A - Contractor Summary'!$C$39,G140<'A - Contractor Summary'!$C$42),\"Yes\",IF(G140>'A - Contractor Summary'!$C$42,\"No\",\"Needs Review\")))","v":""},"Yes",{"$f":"IF(AND(P140=\"Yes\",L140=\"Yes\",M140=\"Yes\")*OR(O140=\"Yes\",N140=\"Yes\"),\"Yes\",IF(OR(L140=\"No\",N140=\"No\",O140=\"No\",P140=\"No\",M140=\"No\"),\"No\",\"Needs Review\"))","v":"No"},{"$f":"IF(Q140=\"Yes\",K140,0)","v":0},{"$f":"IF(Q140=\"Needs Review\",K140,0)","v":0}]
[null,null,null,null,null,null,null,null,null,null,{"$f":"SUM(K14:K140)","v":0},null,null,null,null,null,null,{"$f":"IFERROR(SUM(R14:R140),0)","v":0},{"$f":"IFERROR(SUM(S14:S140),0)","v":0},{"$f":"SUM(T14:T140)","v":0},{"$f":"SUM(U14:U140)","v":0},{"$f":"S141-T141-U141","v":0},"check (a)"]
[]
[]
[]
[null,"Tickmark Explanation:"]
[null,null,1]
[null,null,2]
[null,null,3]
[null,null,4]
[null,null,5]
[null,null,6]
[null,null,7]

{"sheet":"I - Other","index":11,"n_rows":21,"n_cols":23,"rows_kept":21,"cut":false,"hidden":false,"merged":[[12,13,12,21],[12,1,12,12],[3,1,7,12],[21,3,21,21]]}
[]
[null,"Other Charges"]
[]
[null,"Test Plan: (A) Obtain support of individual charges.   (B) Enter Yes/No if receipt is itemized.  (C) Enter Yes/No if proof of payment has been provided.  (D) Ensure charges fall between the dates the vendor was mobilized and the date they arrived.  (E) Ensure charges are prior to the date the vendor arrived home or was released to another utility.  (F) Ensure the expense type is reasonable (G) Determine the amount(s) to be reviewed, allowed and/or disallowed.   (H)  For charges which required further review, document review and include why it was determined to be allowed/disallowed via a tickmark."]
[]
[]
[]
[]
[null,"a","Check figure should equal $0.  Cell will appear yellow if discrepancies are noted."]
[]
[]
[null,null,"A",null,null,null,null,null,null,null,null,"B","C","D","E","F","G",null,null,"H"]
[null,"Support Reviewed",null,null,null,null,null,null,null,null,null,null,null,"Conclusions"]
[null,"#","Type of Support","Support Identifier","Company","Crew","Date","Person","Vendor Name","Location","$ Total","Itemized Receipt","Proof of Payment","Reasonable based on Mobilization date(s)","Reasonable based on Demobilization date(s)","Expense Type Appropriate","Conclusion","$ Allowable Charge","$ To Be Reviewed","Reviewed - Allowable Charge","Reviewed - Unallowable Charge","Tickmarks"]
[null,1,null,null,null,null,null,null,null,null,null,null,null,{"$f":"IF(AND(G15>='A - Contractor Summary'!$C$36,G15<='A - Contractor Summary'!$C$38),\"Yes\",IF(G15<'A - Contractor Summary'!$C$36,\"No\",IF(G15>'A - Contractor Summary'!$C$39,\"\",\"\")))","v":"No"},{"$f":"IF(OR(N15=\"Yes\",N15=\"No\")*AND(G15<'A - Contractor Summary'!$C$39),\"\",IF(AND(G15>'A - Contractor Summary'!$C$39,G15<'A - Contractor Summary'!$C$42),\"Yes\",IF(G15>'A - Contractor Summary'!$C$42,\"No\",\"Needs Review\")))","v":""},"Needs Reviewed",{"$f":"IF(AND(P15=\"YES\",L15=\"Yes\",M15=\"yes\")*OR(N15=\"Yes\",O15=\"Yes\"),\"Yes\",IF(OR(O15=\"No\",P15=\"No\",N15=\"No\",M15=\"No\"),\"No\",\"Needs Review\"))","v":"No"},{"$f":"IF(Q15=\"Yes\",K15,0)","v":0},{"$f":"IF(Q15=\"Needs Review\",K15,0)","v":0},{"$f":"SUM('B - Summary Expenses '!E13:F15)*0.1","v":0},null,1]
[null,null,null,null,null,null,null,null,null,null,{"$f":"SUM(K15:K15)","v":0},null,null,null,null,null,null,{"$f":"IFERROR(SUM(R15:R15),0)","v":0},{"$f":"IFERROR(SUM(S15:S15),0)","v":0},{"$f":"SUM(T15:T15)","v":0},{"$f":"SUM(U15:U15)","v":0},{"$f":"S16-T16-U16","v":0},"check (a)"]
[]
[]
[]
[null,"Tickmark Explanation:"]
[null,null,1]

{"sheet":"G - Per Diem","index":12,"n_rows":39,"n_cols":19,"rows_kept":39,"cut":false,"hidden":false,"merged":[[3,1,8,9],[1,1,1,17],[14,9,14,17],[14,1,14,8],[4,11,6,16]]}
[null,null,null,null,null,null,null," "]
[null,"Per Diem Charges"]
[]
[null,"Test Plan: (A) Enter per diem charges per invoice. (B) Enter number of crew worked per timecard.  (C) Enter the Per Diem Rate charged per person per meal (D) Ensure the number of crew members being charged is appropriate (This is comparing the submitted timecards and the per diem charges invoiced).  (E) Ensure charges fall between the dates the vendor was mobilized and the date they arrived.  (F) Ensure charges are prior to the date the vendor arrived home or was released to another utility.  (G)  Determine the amount(s) to be reviewed, allowed and/or disallowed.   (H) For charges which required further review, document review and include why it was determined to be allowed/disallowed via a tickmark."]
[]
[]
[]
[]
[]
[null,"Rx","Recalculated."]
[null,"a","Check figure should equal $0.  Cell will appear yellow if discrepancies are noted."]
[]
[]
[null,"A",null,null,null,"B","Rx","C","Rx","D","E","F","G",null,null,"H"]
[null,"Support Reviewed",null,null,null,null,null,null,null,"Conclusion"]
[null,"Dates","Company","Per Diem Type","# Crew Worked (per invoice)","# Crew Worked (per timecards)","Difference","Per Diem Rate","Total Per Diem  ","# Crew Reasonable","Reasonable based on Mobilization date(s)","Reasonable based on Demobilization date(s)","Conclusion","$ Allowable Charge","$ To Be Reviewed","Reviewed - Allowable Charge","Reviewed - Unallowable Charge","Tickmarks"]
[null,null,null,null,null,null,{"$f":"E17-F17","v":0},null,{"$f":"H17*F17","v":0},{"$f":"IF(G17>0,\"No\",IF(F17=0,\"N/A\",\"Yes\"))","v":"N/A"},{"$f":"IF(AND(B17>='A - Contractor Summary'!$C$36,B17<='A - Contractor Summary'!$C$38),\"Yes\",IF(B17<'A - Contractor Summary'!$C$36,\"No\",IF(B17>'A - Contractor Summary'!$C$39,\"\",\"\")))","v":"No"},{"$f":"IF(OR(K17=\"Yes\",K17=\"No\")*AND(B17<'A - Contractor Summary'!$C$39),\"\",IF(AND(B17>'A - Contractor Summary'!$C$39,B17<'A - Contractor Summary'!$C$42),\"Yes\",IF(B17>'A - Contractor Summary'!$C$42,\"No\",\"Needs Review\")))","v":""},{"$f":"IF(AND(J17=\"Yes\")*OR(K17=\"Yes\",L17=\"Yes\"),\"Yes\",IF(OR(K17=\"No\",J17=\"No\",L17=\"No\"),\"No\",\"Needs Review\"))","v":"No"},{"$f":"IF(M17=\"Yes\",I17,0)","v":0},{"$f":"IF(M17=\"Needs Review\",I17,0)","v":0}]
[null,null,null,null,null,null,0,null,0,{"$f":"IF(G18>0,\"No\",IF(F18=0,\"N/A\",\"Yes\"))","v":"N/A"},{"$f":"IF(AND(B18>='A - Contractor Summary'!$C$36,B18<='A - Contractor Summary'!$C$38),\"Yes\",IF(B18<'A - Contractor Summary'!$C$36,\"No\",IF(B18>'A - Contractor Summary'!$C$39,\"\",\"\")))","v":"No"},{"$f":"IF(OR(K18=\"Yes\",K18=\"No\")*AND(B18<'A - Contractor Summary'!$C$39),\"\",IF(AND(B18>'A - Contractor Summary'!$C$39,B18<'A - Contractor Summary'!$C$42),\"Yes\",IF(B18>'A - Contractor Summary'!$C$42,\"No\",\"Needs Review\")))","v":""},{"$f":"IF(AND(J18=\"Yes\")*OR(K18=\"Yes\",L18=\"Yes\"),\"Yes\",IF(OR(K18=\"No\",J18=\"No\",L18=\"No\"),\"No\",\"Needs Review\"))","v":"No"},{"$f":"IF(M18=\"Yes\",I18,0)","v":0},{"$f":"IF(M18=\"Needs Review\",I18,0)","v":0}]
[null,null,null,null,null,null,0,null,0,{"$f":"IF(G19>0,\"No\",IF(F19=0,\"N/A\",\"Yes\"))","v":"N/A"},{"$f":"IF(AND(B19>='A - Contractor Summary'!$C$36,B19<='A - Contractor Summary'!$C$38),\"Yes\",IF(B19<'A - Contractor Summary'!$C$36,\"No\",IF(B19>'A - Contractor Summary'!$C$39,\"\",\"\")))","v":"No"},{"$f":"IF(OR(K19=\"Yes\",K19=\"No\")*AND(B19<'A - Contractor Summary'!$C$39),\"\",IF(AND(B19>'A - Contractor Summary'!$C$39,B19<'A - Contractor Summary'!$C$42),\"Yes\",IF(B19>'A - Contractor Summary'!$C$42,\"No\",\"Needs Review\")))","v":""},"No",0,0]
[null,null,null,null,null,null,0,null,0,"N/A",{"$f":"IF(AND(B20>='A - Contractor Summary'!$C$36,B20<='A - Contractor Summary'!$C$38),\"Yes\",IF(B20<'A - Contractor Summary'!$C$36,\"No\",IF(B20>'A - Contractor Summary'!$C$39,\"\",\"\")))","v":"No"},{"$f":"IF(OR(K20=\"Yes\",K20=\"No\")*AND(B20<'A - Contractor Summary'!$C$39),\"\",IF(AND(B20>'A - Contractor Summary'!$C$39,B20<'A - Contractor Summary'!$C$42),\"Yes\",IF(B20>'A - Contractor Summary'!$C$42,\"No\",\"Needs Review\")))","v":""},"No",0,0]
[null,null,null,null,null,null,0,null,0,"N/A",{"$f":"IF(AND(B21>='A - Contractor Summary'!$C$36,B21<='A - Contractor Summary'!$C$38),\"Yes\",IF(B21<'A - Contractor Summary'!$C$36,\"No\",IF(B21>'A - Contractor Summary'!$C$39,\"\",\"\")))","v":"No"},{"$f":"IF(OR(K21=\"Yes\",K21=\"No\")*AND(B21<'A - Contractor Summary'!$C$39),\"\",IF(AND(B21>'A - Contractor Summary'!$C$39,B21<'A - Contractor Summary'!$C$42),\"Yes\",IF(B21>'A - Contractor Summary'!$C$42,\"No\",\"Needs Review\")))","v":""},"No",0,0]
[null,null,null,null,null,null,0,null,0,"N/A",{"$f":"IF(AND(B22>='A - Contractor Summary'!$C$36,B22<='A - Contractor Summary'!$C$38),\"Yes\",IF(B22<'A - Contractor Summary'!$C$36,\"No\",IF(B22>'A - Contractor Summary'!$C$39,\"\",\"\")))","v":"No"},{"$f":"IF(OR(K22=\"Yes\",K22=\"No\")*AND(B22<'A - Contractor Summary'!$C$39),\"\",IF(AND(B22>'A - Contractor Summary'!$C$39,B22<'A - Contractor Summary'!$C$42),\"Yes\",IF(B22>'A - Contractor Summary'!$C$42,\"No\",\"Needs Review\")))","v":""},"No",0,0]
[null,null,null,null,null,null,0,null,0,"N/A",{"$f":"IF(AND(B23>='A - Contractor Summary'!$C$36,B23<='A - Contractor Summary'!$C$38),\"Yes\",IF(B23<'A - Contractor Summary'!$C$36,\"No\",IF(B23>'A - Contractor Summary'!$C$39,\"\",\"\")))","v":"No"},{"$f":"IF(OR(K23=\"Yes\",K23=\"No\")*AND(B23<'A - Contractor Summary'!$C$39),\"\",IF(AND(B23>'A - Contractor Summary'!$C$39,B23<'A - Contractor Summary'!$C$42),\"Yes\",IF(B23>'A - Contractor Summary'!$C$42,\"No\",\"Needs Review\")))","v":""},"No",0,0]
[null,null,null,null,null,null,0,null,0,"N/A",{"$f":"IF(AND(B24>='A - Contractor Summary'!$C$36,B24<='A - Contractor Summary'!$C$38),\"Yes\",IF(B24<'A - Contractor Summary'!$C$36,\"No\",IF(B24>'A - Contractor Summary'!$C$39,\"\",\"\")))","v":"No"},{"$f":"IF(OR(K24=\"Yes\",K24=\"No\")*AND(B24<'A - Contractor Summary'!$C$39),\"\",IF(AND(B24>'A - Contractor Summary'!$C$39,B24<'A - Contractor Summary'!$C$42),\"Yes\",IF(B24>'A - Contractor Summary'!$C$42,\"No\",\"Needs Review\")))","v":""},"No",0,0]
[null,null,null,null,null,null,0,null,0,"N/A",{"$f":"IF(AND(B25>='A - Contractor Summary'!$C$36,B25<='A - Contractor Summary'!$C$38),\"Yes\",IF(B25<'A - Contractor Summary'!$C$36,\"No\",IF(B25>'A - Contractor Summary'!$C$39,\"\",\"\")))","v":"No"},{"$f":"IF(OR(K25=\"Yes\",K25=\"No\")*AND(B25<'A - Contractor Summary'!$C$39),\"\",IF(AND(B25>'A - Contractor Summary'!$C$39,B25<'A - Contractor Summary'!$C$42),\"Yes\",IF(B25>'A - Contractor Summary'!$C$42,\"No\",\"Needs Review\")))","v":""},"No",0,0]
[null,null,null,null,null,null,0,null,0,"N/A",{"$f":"IF(AND(B26>='A - Contractor Summary'!$C$36,B26<='A - Contractor Summary'!$C$38),\"Yes\",IF(B26<'A - Contractor Summary'!$C$36,\"No\",IF(B26>'A - Contractor Summary'!$C$39,\"\",\"\")))","v":"No"},{"$f":"IF(OR(K26=\"Yes\",K26=\"No\")*AND(B26<'A - Contractor Summary'!$C$39),\"\",IF(AND(B26>'A - Contractor Summary'!$C$39,B26<'A - Contractor Summary'!$C$42),\"Yes\",IF(B26>'A - Contractor Summary'!$C$42,\"No\",\"Needs Review\")))","v":""},"No",0,0]
[null,null,null,null,null,null,0,null,0,"N/A",{"$f":"IF(AND(B27>='A - Contractor Summary'!$C$36,B27<='A - Contractor Summary'!$C$38),\"Yes\",IF(B27<'A - Contractor Summary'!$C$36,\"No\",IF(B27>'A - Contractor Summary'!$C$39,\"\",\"\")))","v":"No"},{"$f":"IF(OR(K27=\"Yes\",K27=\"No\")*AND(B27<'A - Contractor Summary'!$C$39),\"\",IF(AND(B27>'A - Contractor Summary'!$C$39,B27<'A - Contractor Summary'!$C$42),\"Yes\",IF(B27>'A - Contractor Summary'!$C$42,\"No\",\"Needs Review\")))","v":""},"No",0,0]
[null,null,null,null,null,null,0,null,0,"N/A",{"$f":"IF(AND(B28>='A - Contractor Summary'!$C$36,B28<='A - Contractor Summary'!$C$38),\"Yes\",IF(B28<'A - Contractor Summary'!$C$36,\"No\",IF(B28>'A - Contractor Summary'!$C$39,\"\",\"\")))","v":"No"},{"$f":"IF(OR(K28=\"Yes\",K28=\"No\")*AND(B28<'A - Contractor Summary'!$C$39),\"\",IF(AND(B28>'A - Contractor Summary'!$C$39,B28<'A - Contractor Summary'!$C$42),\"Yes\",IF(B28>'A - Contractor Summary'!$C$42,\"No\",\"Needs Review\")))","v":""},"No",0,0]
[null,null,null,null,null,null,0,null,0,"N/A",{"$f":"IF(AND(B29>='A - Contractor Summary'!$C$36,B29<='A - Contractor Summary'!$C$38),\"Yes\",IF(B29<'A - Contractor Summary'!$C$36,\"No\",IF(B29>'A - Contractor Summary'!$C$39,\"\",\"\")))","v":"No"},{"$f":"IF(OR(K29=\"Yes\",K29=\"No\")*AND(B29<'A - Contractor Summary'!$C$39),\"\",IF(AND(B29>'A - Contractor Summary'!$C$39,B29<'A - Contractor Summary'!$C$42),\"Yes\",IF(B29>'A - Contractor Summary'!$C$42,\"No\",\"Needs Review\")))","v":""},"No",0,0]
[null,null,null,null,null,null,0,null,0,"N/A",{"$f":"IF(AND(B30>='A - Contractor Summary'!$C$36,B30<='A - Contractor Summary'!$C$38),\"Yes\",IF(B30<'A - Contractor Summary'!$C$36,\"No\",IF(B30>'A - Contractor Summary'!$C$39,\"\",\"\")))","v":"No"},{"$f":"IF(OR(K30=\"Yes\",K30=\"No\")*AND(B30<'A - Contractor Summary'!$C$39),\"\",IF(AND(B30>'A - Contractor Summary'!$C$39,B30<'A - Contractor Summary'!$C$42),\"Yes\",IF(B30>'A - Contractor Summary'!$C$42,\"No\",\"Needs Review\")))","v":""},"No",0,0]
[null,null,null,null,null,null,0,null,0,"N/A",{"$f":"IF(AND(B31>='A - Contractor Summary'!$C$36,B31<='A - Contractor Summary'!$C$38),\"Yes\",IF(B31<'A - Contractor Summary'!$C$36,\"No\",IF(B31>'A - Contractor Summary'!$C$39,\"\",\"\")))","v":"No"},{"$f":"IF(OR(K31=\"Yes\",K31=\"No\")*AND(B31<'A - Contractor Summary'!$C$39),\"\",IF(AND(B31>'A - Contractor Summary'!$C$39,B31<'A - Contractor Summary'!$C$42),\"Yes\",IF(B31>'A - Contractor Summary'!$C$42,\"No\",\"Needs Review\")))","v":""},"No",0,0]
[null,null,null,null,null,null,0,null,0,"N/A",{"$f":"IF(AND(B32>='A - Contractor Summary'!$C$36,B32<='A - Contractor Summary'!$C$38),\"Yes\",IF(B32<'A - Contractor Summary'!$C$36,\"No\",IF(B32>'A - Contractor Summary'!$C$39,\"\",\"\")))","v":"No"},{"$f":"IF(OR(K32=\"Yes\",K32=\"No\")*AND(B32<'A - Contractor Summary'!$C$39),\"\",IF(AND(B32>'A - Contractor Summary'!$C$39,B32<'A - Contractor Summary'!$C$42),\"Yes\",IF(B32>'A - Contractor Summary'!$C$42,\"No\",\"Needs Review\")))","v":""},"No",0,0]
[null,null,null,null,null,null,0,null,0,"N/A",{"$f":"IF(AND(B33>='A - Contractor Summary'!$C$36,B33<='A - Contractor Summary'!$C$38),\"Yes\",IF(B33<'A - Contractor Summary'!$C$36,\"No\",IF(B33>'A - Contractor Summary'!$C$39,\"\",\"\")))","v":"No"},{"$f":"IF(OR(K33=\"Yes\",K33=\"No\")*AND(B33<'A - Contractor Summary'!$C$39),\"\",IF(AND(B33>'A - Contractor Summary'!$C$39,B33<'A - Contractor Summary'!$C$42),\"Yes\",IF(B33>'A - Contractor Summary'!$C$42,\"No\",\"Needs Review\")))","v":""},"No",0,0]
[null,null,null,null,null,null,0,null,0,"N/A",{"$f":"IF(AND(B34>='A - Contractor Summary'!$C$36,B34<='A - Contractor Summary'!$C$38),\"Yes\",IF(B34<'A - Contractor Summary'!$C$36,\"No\",IF(B34>'A - Contractor Summary'!$C$39,\"\",\"\")))","v":"No"},{"$f":"IF(OR(K34=\"Yes\",K34=\"No\")*AND(B34<'A - Contractor Summary'!$C$39),\"\",IF(AND(B34>'A - Contractor Summary'!$C$39,B34<'A - Contractor Summary'!$C$42),\"Yes\",IF(B34>'A - Contractor Summary'!$C$42,\"No\",\"Needs Review\")))","v":""},"No",0,0]
[null,null,null,null,null,null,0,null,0,"N/A",{"$f":"IF(AND(B35>='A - Contractor Summary'!$C$36,B35<='A - Contractor Summary'!$C$38),\"Yes\",IF(B35<'A - Contractor Summary'!$C$36,\"No\",IF(B35>'A - Contractor Summary'!$C$39,\"\",\"\")))","v":"No"},{"$f":"IF(OR(K35=\"Yes\",K35=\"No\")*AND(B35<'A - Contractor Summary'!$C$39),\"\",IF(AND(B35>'A - Contractor Summary'!$C$39,B35<'A - Contractor Summary'!$C$42),\"Yes\",IF(B35>'A - Contractor Summary'!$C$42,\"No\",\"Needs Review\")))","v":""},"No",0,0]
[null,null,null,null,null,null,{"$f":"SUM(G17:G35)","v":0},null,{"$f":"SUM(I17:I35)","v":0},null,null,null,null,{"$f":"IFERROR(SUM(N17:N35),0)","v":0},{"$f":"IFERROR(SUM(O17:O35),0)","v":0},{"$f":"SUM(P17:P35)","v":0},{"$f":"SUM(Q17:Q35)","v":0},{"$f":"O36-P36-Q36","v":0},"check (a)"]
[]
[]
[null,"Tickmark Explanation:"]

{"sheet":"H - Mileage","index":13,"n_rows":73,"n_cols":23,"rows_kept":73,"cut":false,"hidden":false,"merged":[[1,1,1,21],[13,1,13,11],[13,12,13,21],[3,1,7,11],[5,14,7,19]]}
[]
[null,"Mileage Charges"]
[]
[null,"Test Plan: (A) Obtain support of individual mileage charged (Typically a rate and mileage included on invoice).  (B) Ensure charges fall between the dates the vendor was mobilized and the date they arrived.  (C) Ensure charges are prior to the date the vendor arrived home or was released to another utility.  (D)  Ensure number of miles charged deemed reasonable based on vendor location (recalculated per 'A - Contractor Summary' tab).  (E) Ensure the location of charge was reasonable (If mobilizing, charges should be related to travelling to TECO Service area, and home, if demobilizing).  (F) Determine the amount(s) to be reviewed, allowed and/or disallowed.  (G) For charges which required further review, document review and include why it was determined to be allowed/disallowed via a tickmark."]
[]
[]
[]
[]
[]
[null,"Rx","Recalculated."]
[null,"a","Check figure should equal $0.  Cell will appear yellow if discrepancies are noted."]
[]
[null,null,"A",null,null,null,null,null,null,null,null,"Rx","B","C","D","E","F",null,null,"G"]
[null,"Support Reviewed",null,null,null,null,null,null,null,null,null,null,"Conclusions"]
[null,"#","Type of Support","Company","Equipment Name","Equipment ID","Crew","Date","Location","Miles Charged","$ / Mile (Rate)","Total Charge","Reasonable based on Mobilization date(s)","Reasonable based on Demobilization date(s)","Number of Miles Charged Reasonable","Locations Reasonable","Conclusion","$ Allowable Charge","$ To Be Reviewed","Reviewed - Allowable Charge","Reviewed - Unallowable Charge","Tickmarks"]
[null,1,"Spreadsheet","Vendor No. 3","Pickup Mileage","614-3521",50937,"2018-10-19","Marrianna FL",345,{"$f":"VLOOKUP(E16,'C.1 - Rate Sheets'!H15:I30,2,FALSE)","v":0.97},{"$f":"J16*K16","v":334.65},{"$f":"IF(AND(H16>='A - Contractor Summary'!$C$36,H16<='A - Contractor Summary'!$C$38),\"Yes\",IF(H16<'A - Contractor Summary'!$C$36,\"No\",IF(H16>'A - Contractor Summary'!$C$39,\"\",\"\")))","v":"Yes"},{"$f":"IF(OR(M16=\"Yes\",M16=\"No\")*AND(H16<'A - Contractor Summary'!$C$39),\"\",IF(AND(H16>'A - Contractor Summary'!$C$39,H16<'A - Contractor Summary'!$C$42),\"Yes\",IF(H16>'A - Contractor Summary'!$C$42,\"No\",\"Needs Review\")))","v":""},{"$f":"IF(AND(J16>PRODUCT('A - Contractor Summary'!$C$29,0.85),J16<PRODUCT('A - Contractor Summary'!$C$29,1.15)),\"Yes\",\"No\")","v":"Yes"},null,{"$f":"IF(AND(P16=\"Yes\",O16=\"Yes\")*OR(N16=\"Yes\",M16=\"Yes\"),\"Yes\",IF(OR(M16=\"No\",N16=\"No\",P16=\"No\",O16=\"No\"),\"No\",\"Needs Review\"))","v":"Needs Review"},{"$f":"IF(Q16=\"Yes\",L16,0)","v":0},{"$f":"IF(Q16=\"Needs Review\",L16,0)","v":334.65},{"$f":"+L16","v":334.65},null,1]
[null,2,"Spreadsheet","Vendor No. 3","Pickup Mileage","602-0501",50937,"2018-10-19","Marrianna FL",5,{"$f":"VLOOKUP(E17,'C.1 - Rate Sheets'!H16:I31,2,FALSE)","v":0.97},4.8499999999999996,{"$f":"IF(AND(H17>='A - Contractor Summary'!$C$36,H17<='A - Contractor Summary'!$C$38),\"Yes\",IF(H17<'A - Contractor Summary'!$C$36,\"No\",IF(H17>'A - Contractor Summary'!$C$39,\"\",\"\")))","v":"Yes"},{"$f":"IF(OR(M17=\"Yes\",M17=\"No\")*AND(H17<'A - Contractor Summary'!$C$39),\"\",IF(AND(H17>'A - Contractor Summary'!$C$39,H17<'A - Contractor Summary'!$C$42),\"Yes\",IF(H17>'A - Contractor Summary'!$C$42,\"No\",\"Needs Review\")))","v":""},{"$f":"IF(AND(J17>PRODUCT('A - Contractor Summary'!$C$29,0.85),J17<PRODUCT('A - Contractor Summary'!$C$29,1.15)),\"Yes\",\"No\")","v":"No"},null,"No",0,0,{"$f":"+L17","v":4.8499999999999996},null,1]
[null,3,"Spreadsheet","Vendor No. 3","Lift Mileage","896-8383",50937,"2018-10-19","Marrianna FL",345,{"$f":"VLOOKUP(E18,'C.1 - Rate Sheets'!H17:I32,2,FALSE)","v":1.98},683.1,{"$f":"IF(AND(H18>='A - Contractor Summary'!$C$36,H18<='A - Contractor Summary'!$C$38),\"Yes\",IF(H18<'A - Contractor Summary'!$C$36,\"No\",IF(H18>'A - Contractor Summary'!$C$39,\"\",\"\")))","v":"Yes"},{"$f":"IF(OR(M18=\"Yes\",M18=\"No\")*AND(H18<'A - Contractor Summary'!$C$39),\"\",IF(AND(H18>'A - Contractor Summary'!$C$39,H18<'A - Contractor Summary'!$C$42),\"Yes\",IF(H18>'A - Contractor Summary'!$C$42,\"No\",\"Needs Review\")))","v":""},{"$f":"IF(AND(J18>PRODUCT('A - Contractor Summary'!$C$29,0.85),J18<PRODUCT('A - Contractor Summary'!$C$29,1.15)),\"Yes\",\"No\")","v":"Yes"},null,"Needs Review",0,683.1,683.1,null,1]
[null,4,"Spreadsheet","Vendor No. 3","Lift Mileage","895-0743",50937,"2018-10-19","Marrianna FL",345,{"$f":"VLOOKUP(E19,'C.1 - Rate Sheets'!H18:I33,2,FALSE)","v":1.98},683.1,{"$f":"IF(AND(H19>='A - Contractor Summary'!$C$36,H19<='A - Contractor Summary'!$C$38),\"Yes\",IF(H19<'A - Contractor Summary'!$C$36,\"No\",IF(H19>'A - Contractor Summary'!$C$39,\"\",\"\")))","v":"Yes"},{"$f":"IF(OR(M19=\"Yes\",M19=\"No\")*AND(H19<'A - Contractor Summary'!$C$39),\"\",IF(AND(H19>'A - Contractor Summary'!$C$39,H19<'A - Contractor Summary'!$C$42),\"Yes\",IF(H19>'A - Contractor Summary'!$C$42,\"No\",\"Needs Review\")))","v":""},{"$f":"IF(AND(J19>PRODUCT('A - Contractor Summary'!$C$29,0.85),J19<PRODUCT('A - Contractor Summary'!$C$29,1.15)),\"Yes\",\"No\")","v":"Yes"},null,"Needs Review",0,683.1,683.1,null,1]
[null,5,"Spreadsheet","Vendor No. 3","Pickup Mileage","632-8575",50937,"2018-10-19","Marrianna FL",345,{"$f":"VLOOKUP(E20,'C.1 - Rate Sheets'!H19:I34,2,FALSE)","v":0.97},334.65,{"$f":"IF(AND(H20>='A - Contractor Summary'!$C$36,H20<='A - Contractor Summary'!$C$38),\"Yes\",IF(H20<'A - Contractor Summary'!$C$36,\"No\",IF(H20>'A - Contractor Summary'!$C$39,\"\",\"\")))","v":"Yes"},{"$f":"IF(OR(M20=\"Yes\",M20=\"No\")*AND(H20<'A - Contractor Summary'!$C$39),\"\",IF(AND(H20>'A - Contractor Summary'!$C$39,H20<'A - Contractor Summary'!$C$42),\"Yes\",IF(H20>'A - Contractor Summary'!$C$42,\"No\",\"Needs Review\")))","v":""},{"$f":"IF(AND(J20>PRODUCT('A - Contractor Summary'!$C$29,0.85),J20<PRODUCT('A - Contractor Summary'!$C$29,1.15)),\"Yes\",\"No\")","v":"Yes"},null,"Needs Review",0,334.65,334.65,null,1]
[null,6,"Spreadsheet","Vendor No. 3","Pickup Mileage","632-5524",50399,"2018-10-19","Marrianna FL",310,{"$f":"VLOOKUP(E21,'C.1 - Rate Sheets'!H20:I35,2,FALSE)","v":0.97},300.7,{"$f":"IF(AND(H21>='A - Contractor Summary'!$C$36,H21<='A - Contractor Summary'!$C$38),\"Yes\",IF(H21<'A - Contractor Summary'!$C$36,\"No\",IF(H21>'A - Contractor Summary'!$C$39,\"\",\"\")))","v":"Yes"},{"$f":"IF(OR(M21=\"Yes\",M21=\"No\")*AND(H21<'A - Contractor Summary'!$C$39),\"\",IF(AND(H21>'A - Contractor Summary'!$C$39,H21<'A - Contractor Summary'!$C$42),\"Yes\",IF(H21>'A - Contractor Summary'!$C$42,\"No\",\"Needs Review\")))","v":""},{"$f":"IF(AND(J21>PRODUCT('A - Contractor Summary'!$C$29,0.85),J21<PRODUCT('A - Contractor Summary'!$C$29,1.15)),\"Yes\",\"No\")","v":"Yes"},null,"Needs Review",0,300.7,300.7,null,1]
[null,7,"Spreadsheet","Vendor No. 3","Lift Mileage","897-3887",50900,"2018-10-19","Marrianna FL",310,{"$f":"VLOOKUP(E22,'C.1 - Rate Sheets'!H21:I36,2,FALSE)","v":1.98},613.79999999999995,{"$f":"IF(AND(H22>='A - Contractor Summary'!$C$36,H22<='A - Contractor Summary'!$C$38),\"Yes\",IF(H22<'A - Contractor Summary'!$C$36,\"No\",IF(H22>'A - Contractor Summary'!$C$39,\"\",\"\")))","v":"Yes"},{"$f":"IF(OR(M22=\"Yes\",M22=\"No\")*AND(H22<'A - Contractor Summary'!$C$39),\"\",IF(AND(H22>'A - Contractor Summary'!$C$39,H22<'A - Contractor Summary'!$C$42),\"Yes\",IF(H22>'A - Contractor Summary'!$C$42,\"No\",\"Needs Review\")))","v":""},{"$f":"IF(AND(J22>PRODUCT('A - Contractor Summary'!$C$29,0.85),J22<PRODUCT('A - Contractor Summary'!$C$29,1.15)),\"Yes\",\"No\")","v":"Yes"},null,"Needs Review",0,613.79999999999995,613.79999999999995,null,1]
[null,8,"Spreadsheet","Vendor No. 3","Lift Mileage","869-2522",50900,"2018-10-19","Marrianna FL",310,{"$f":"VLOOKUP(E23,'C.1 - Rate Sheets'!H22:I37,2,FALSE)","v":1.98},613.79999999999995,{"$f":"IF(AND(H23>='A - Contractor Summary'!$C$36,H23<='A - Contractor Summary'!$C$38),\"Yes\",IF(H23<'A - Contractor Summary'!$C$36,\"No\",IF(H23>'A - Contractor Summary'!$C$39,\"\",\"\")))","v":"Yes"},{"$f":"IF(OR(M23=\"Yes\",M23=\"No\")*AND(H23<'A - Contractor Summary'!$C$39),\"\",IF(AND(H23>'A - Contractor Summary'!$C$39,H23<'A - Contractor Summary'!$C$42),\"Yes\",IF(H23>'A - Contractor Summary'!$C$42,\"No\",\"Needs Review\")))","v":""},{"$f":"IF(AND(J23>PRODUCT('A - Contractor Summary'!$C$29,0.85),J23<PRODUCT('A - Contractor Summary'!$C$29,1.15)),\"Yes\",\"No\")","v":"Yes"},null,"Needs Review",0,613.79999999999995,613.79999999999995,null,1]
[null,9,"Spreadsheet","Vendor No. 3","Lift Mileage","865-2550",50900,"2018-10-19","Marrianna FL",310,{"$f":"VLOOKUP(E24,'C.1 - Rate Sheets'!H23:I38,2,FALSE)","v":1.98},613.79999999999995,{"$f":"IF(AND(H24>='A - Contractor Summary'!$C$36,H24<='A - Contractor Summary'!$C$38),\"Yes\",IF(H24<'A - Contractor Summary'!$C$36,\"No\",IF(H24>'A - Contractor Summary'!$C$39,\"\",\"\")))","v":"Yes"},{"$f":"IF(OR(M24=\"Yes\",M24=\"No\")*AND(H24<'A - Contractor Summary'!$C$39),\"\",IF(AND(H24>'A - Contractor Summary'!$C$39,H24<'A - Contractor Summary'!$C$42),\"Yes\",IF(H24>'A - Contractor Summary'!$C$42,\"No\",\"Needs Review\")))","v":""},{"$f":"IF(AND(J24>PRODUCT('A - Contractor Summary'!$C$29,0.85),J24<PRODUCT('A - Contractor Summary'!$C$29,1.15)),\"Yes\",\"No\")","v":"Yes"},null,"Needs Review",0,613.79999999999995,613.79999999999995,null,1]
[null,10,"Spreadsheet","Vendor No. 3","Lift Mileage","865-8219",50900,"2018-10-19","Marrianna FL",310,{"$f":"VLOOKUP(E25,'C.1 - Rate Sheets'!H:I,2,FALSE)","v":1.98},613.79999999999995,{"$f":"IF(AND(H25>='A - Contractor Summary'!$C$36,H25<='A - Contractor Summary'!$C$38),\"Yes\",IF(H25<'A - Contractor Summary'!$C$36,\"No\",IF(H25>'A - Contractor Summary'!$C$39,\"\",\"\")))","v":"Yes"},{"$f":"IF(OR(M25=\"Yes\",M25=\"No\")*AND(H25<'A - Contractor Summary'!$C$39),\"\",IF(AND(H25>'A - Contractor Summary'!$C$39,H25<'A - Contractor Summary'!$C$42),\"Yes\",IF(H25>'A - Contractor Summary'!$C$42,\"No\",\"Needs Review\")))","v":""},{"$f":"IF(AND(J25>PRODUCT('A - Contractor Summary'!$C$29,0.85),J25<PRODUCT('A - Contractor Summary'!$C$29,1.15)),\"Yes\",\"No\")","v":"Yes"},null,"Needs Review",0,613.79999999999995,613.79999999999995,null,1]
[null,11,"Spreadsheet","Vendor No. 3","Lift Mileage","865-9076",50900,"2018-10-19","Marrianna FL",310,{"$f":"VLOOKUP(E26,'C.1 - Rate Sheets'!H:I,2,FALSE)","v":1.98},613.79999999999995,{"$f":"IF(AND(H26>='A - Contractor Summary'!$C$36,H26<='A - Contractor Summary'!$C$38),\"Yes\",IF(H26<'A - Contractor Summary'!$C$36,\"No\",IF(H26>'A - Contractor Summary'!$C$39,\"\",\"\")))","v":"Yes"},{"$f":"IF(OR(M26=\"Yes\",M26=\"No\")*AND(H26<'A - Contractor Summary'!$C$39),\"\",IF(AND(H26>'A - Contractor Summary'!$C$39,H26<'A - Contractor Summary'!$C$42),\"Yes\",IF(H26>'A - Contractor Summary'!$C$42,\"No\",\"Needs Review\")))","v":""},{"$f":"IF(AND(J26>PRODUCT('A - Contractor Summary'!$C$29,0.85),J26<PRODUCT('A - Contractor Summary'!$C$29,1.15)),\"Yes\",\"No\")","v":"Yes"},null,"Needs Review",0,613.79999999999995,613.79999999999995,null,1]
[null,12,"Spreadsheet","Vendor No. 3","Lift Mileage","897-3204",50900,"2018-10-19","Marrianna FL",310,{"$f":"VLOOKUP(E27,'C.1 - Rate Sheets'!H:I,2,FALSE)","v":1.98},613.79999999999995,{"$f":"IF(AND(H27>='A - Contractor Summary'!$C$36,H27<='A - Contractor Summary'!$C$38),\"Yes\",IF(H27<'A - Contractor Summary'!$C$36,\"No\",IF(H27>'A - Contractor Summary'!$C$39,\"\",\"\")))","v":"Yes"},{"$f":"IF(OR(M27=\"Yes\",M27=\"No\")*AND(H27<'A - Contractor Summary'!$C$39),\"\",IF(AND(H27>'A - Contractor Summary'!$C$39,H27<'A - Contractor Summary'!$C$42),\"Yes\",IF(H27>'A - Contractor Summary'!$C$42,\"No\",\"Needs Review\")))","v":""},{"$f":"IF(AND(J27>PRODUCT('A - Contractor Summary'!$C$29,0.85),J27<PRODUCT('A - Contractor Summary'!$C$29,1.15)),\"Yes\",\"No\")","v":"Yes"},null,"Needs Review",0,613.79999999999995,613.79999999999995,null,1]
[null,13,"Spreadsheet","Vendor No. 3","Pickup Mileage","614-7588",55392,"2018-10-19","Marrianna FL",525,{"$f":"VLOOKUP(E28,'C.1 - Rate Sheets'!H:I,2,FALSE)","v":0.97},509.25,{"$f":"IF(AND(H28>='A - Contractor Summary'!$C$36,H28<='A - Contractor Summary'!$C$38),\"Yes\",IF(H28<'A - Contractor Summary'!$C$36,\"No\",IF(H28>'A - Contractor Summary'!$C$39,\"\",\"\")))","v":"Yes"},{"$f":"IF(OR(M28=\"Yes\",M28=\"No\")*AND(H28<'A - Contractor Summary'!$C$39),\"\",IF(AND(H28>'A - Contractor Summary'!$C$39,H28<'A - Contractor Summary'!$C$42),\"Yes\",IF(H28>'A - Contractor Summary'!$C$42,\"No\",\"Needs Review\")))","v":""},{"$f":"IF(AND(J28>PRODUCT('A - Contractor Summary'!$C$29,0.85),J28<PRODUCT('A - Contractor Summary'!$C$29,1.15)),\"Yes\",\"No\")","v":"No"},null,"No",0,0,509.25,null,1]
[null,16,"Spreadsheet","Vendor No. 3","Lift Mileage","895-8778",55921,"2018-11-03","Marrianna FL",525,{"$f":"VLOOKUP(E29,'C.1 - Rate Sheets'!H:I,2,FALSE)","v":1.98},1039.5,{"$f":"IF(AND(H29>='A - Contractor Summary'!$C$36,H29<='A - Contractor Summary'!$C$38),\"Yes\",IF(H29<'A - Contractor Summary'!$C$36,\"No\",IF(H29>'A - Contractor Summary'!$C$39,\"\",\"\")))","v":""},{"$f":"IF(OR(M29=\"Yes\",M29=\"No\")*AND(H29<'A - Contractor Summary'!$C$39),\"\",IF(AND(H29>'A - Contractor Summary'!$C$39,H29<'A - Contractor Summary'!$C$42),\"Yes\",IF(H29>'A - Contractor Summary'!$C$42,\"No\",\"Needs Review\")))","v":"No"},{"$f":"IF(AND(J29>PRODUCT('A - Contractor Summary'!$C$29,0.85),J29<PRODUCT('A - Contractor Summary'!$C$29,1.15)),\"Yes\",\"No\")","v":"No"},null,"No",0,0,1039.5,null,1]
[null,17,"Spreadsheet","Vendor No. 3","Lift Mileage","895-0736",55921,"2018-11-03","Marrianna FL",525,{"$f":"VLOOKUP(E30,'C.1 - Rate Sheets'!H:I,2,FALSE)","v":1.98},1039.5,{"$f":"IF(AND(H30>='A - Contractor Summary'!$C$36,H30<='A - Contractor Summary'!$C$38),\"Yes\",IF(H30<'A - Contractor Summary'!$C$36,\"No\",IF(H30>'A - Contractor Summary'!$C$39,\"\",\"\")))","v":""},{"$f":"IF(OR(M30=\"Yes\",M30=\"No\")*AND(H30<'A - Contractor Summary'!$C$39),\"\",IF(AND(H30>'A - Contractor Summary'!$C$39,H30<'A - Contractor Summary'!$C$42),\"Yes\",IF(H30>'A - Contractor Summary'!$C$42,\"No\",\"Needs Review\")))","v":"No"},{"$f":"IF(AND(J30>PRODUCT('A - Contractor Summary'!$C$29,0.85),J30<PRODUCT('A - Contractor Summary'!$C$29,1.15)),\"Yes\",\"No\")","v":"No"},null,"No",0,0,1039.5,null,1]
[null,18,"Spreadsheet","Vendor No. 3","Lift Mileage","897-2576",55921,"2018-11-03","Marrianna FL",525,{"$f":"VLOOKUP(E31,'C.1 - Rate Sheets'!H:I,2,FALSE)","v":1.98},1039.5,{"$f":"IF(AND(H31>='A - Contractor Summary'!$C$36,H31<='A - Contractor Summary'!$C$38),\"Yes\",IF(H31<'A - Contractor Summary'!$C$36,\"No\",IF(H31>'A - Contractor Summary'!$C$39,\"\",\"\")))","v":""},{"$f":"IF(OR(M31=\"Yes\",M31=\"No\")*AND(H31<'A - Contractor Summary'!$C$39),\"\",IF(AND(H31>'A - Contractor Summary'!$C$39,H31<'A - Contractor Summary'!$C$42),\"Yes\",IF(H31>'A - Contractor Summary'!$C$42,\"No\",\"Needs Review\")))","v":"No"},{"$f":"IF(AND(J31>PRODUCT('A - Contractor Summary'!$C$29,0.85),J31<PRODUCT('A - Contractor Summary'!$C$29,1.15)),\"Yes\",\"No\")","v":"No"},null,"No",{"$f":"IF(Q31=\"Yes\",#REF!,0)","v":0},0,1039.5,null,1]
[null,19,"Spreadsheet","Vendor No. 3","Split Dump Mileage","770-1708",55921,"2018-11-03","Marrianna FL",525,{"$f":"VLOOKUP(E32,'C.1 - Rate Sheets'!H:I,2,FALSE)","v":1.61},845.25,{"$f":"IF(AND(H32>='A - Contractor Summary'!$C$36,H32<='A - Contractor Summary'!$C$38),\"Yes\",IF(H32<'A - Contractor Summary'!$C$36,\"No\",IF(H32>'A - Contractor Summary'!$C$39,\"\",\"\")))","v":""},{"$f":"IF(OR(M32=\"Yes\",M32=\"No\")*AND(H32<'A - Contractor Summary'!$C$39),\"\",IF(AND(H32>'A - Contractor Summary'!$C$39,H32<'A - Contractor Summary'!$C$42),\"Yes\",IF(H32>'A - Contractor Summary'!$C$42,\"No\",\"Needs Review\")))","v":"No"},{"$f":"IF(AND(J32>PRODUCT('A - Contractor Summary'!$C$29,0.85),J32<PRODUCT('A - Contractor Summary'!$C$29,1.15)),\"Yes\",\"No\")","v":"No"},null,"No",{"$f":"IF(Q32=\"Yes\",#REF!,0)","v":0},0,845.25,null,1]
[null,20,"Spreadsheet","Vendor No. 3","Split Dump Mileage","770-8429",55921,"2018-11-03","Marrianna FL",525,{"$f":"VLOOKUP(E33,'C.1 - Rate Sheets'!H:I,2,FALSE)","v":1.61},845.25,{"$f":"IF(AND(H33>='A - Contractor Summary'!$C$36,H33<='A - Contractor Summary'!$C$38),\"Yes\",IF(H33<'A - Contractor Summary'!$C$36,\"No\",IF(H33>'A - Contractor Summary'!$C$39,\"\",\"\")))","v":""},{"$f":"IF(OR(M33=\"Yes\",M33=\"No\")*AND(H33<'A - Contractor Summary'!$C$39),\"\",IF(AND(H33>'A - Contractor Summary'!$C$39,H33<'A - Contractor Summary'!$C$42),\"Yes\",IF(H33>'A - Contractor Summary'!$C$42,\"No\",\"Needs Review\")))","v":"No"},{"$f":"IF(AND(J33>PRODUCT('A - Contractor Summary'!$C$29,0.85),J33<PRODUCT('A - Contractor Summary'!$C$29,1.15)),\"Yes\",\"No\")","v":"No"},null,{"$f":"IF(AND(P33=\"Yes\",O33=\"Yes\")*OR(N33=\"Yes\",M33=\"Yes\"),\"Yes\",IF(OR(M33=\"No\",N33=\"No\",P33=\"No\",O33=\"No\"),\"No\",\"Needs Review\"))","v":"No"},{"$f":"IF(Q33=\"Yes\",#REF!,0)","v":0},{"$f":"IF(Q33=\"Needs Review\",L33,0)","v":0},845.25,null,1]
[null,21,"Spreadsheet","Vendor No. 3","Split Dump Mileage","770-9359",55921,"2018-11-03","Marrianna FL",525,{"$f":"VLOOKUP(E34,'C.1 - Rate Sheets'!H:I,2,FALSE)","v":1.61},845.25,{"$f":"IF(AND(H34>='A - Contractor Summary'!$C$36,H34<='A - Contractor Summary'!$C$38),\"Yes\",IF(H34<'A - Contractor Summary'!$C$36,\"No\",IF(H34>'A - Contractor Summary'!$C$39,\"\",\"\")))","v":""},{"$f":"IF(OR(M34=\"Yes\",M34=\"No\")*AND(H34<'A - Contractor Summary'!$C$39),\"\",IF(AND(H34>'A - Contractor Summary'!$C$39,H34<'A - Contractor Summary'!$C$42),\"Yes\",IF(H34>'A - Contractor Summary'!$C$42,\"No\",\"Needs Review\")))","v":"No"},{"$f":"IF(AND(J34>PRODUCT('A - Contractor Summary'!$C$29,0.85),J34<PRODUCT('A - Contractor Summary'!$C$29,1.15)),\"Yes\",\"No\")","v":"No"},null,"No",{"$f":"IF(Q34=\"Yes\",#REF!,0)","v":0},0,845.25,null,1]
[null,22,"Spreadsheet","Vendor No. 3","Split Dump Mileage","770-1909",55921,"2018-11-03","Marrianna FL",525,{"$f":"VLOOKUP(E35,'C.1 - Rate Sheets'!H:I,2,FALSE)","v":1.61},845.25,{"$f":"IF(AND(H35>='A - Contractor Summary'!$C$36,H35<='A - Contractor Summary'!$C$38),\"Yes\",IF(H35<'A - Contractor Summary'!$C$36,\"No\",IF(H35>'A - Contractor Summary'!$C$39,\"\",\"\")))","v":""},{"$f":"IF(OR(M35=\"Yes\",M35=\"No\")*AND(H35<'A - Contractor Summary'!$C$39),\"\",IF(AND(H35>'A - Contractor Summary'!$C$39,H35<'A - Contractor Summary'!$C$42),\"Yes\",IF(H35>'A - Contractor Summary'!$C$42,\"No\",\"Needs Review\")))","v":"No"},{"$f":"IF(AND(J35>PRODUCT('A - Contractor Summary'!$C$29,0.85),J35<PRODUCT('A - Contractor Summary'!$C$29,1.15)),\"Yes\",\"No\")","v":"No"},null,"No",{"$f":"IF(Q35=\"Yes\",#REF!,0)","v":0},0,845.25,null,1]
[null,23,"Spreadsheet","Vendor No. 3","Pickup Mileage","622-2513",55921,"2018-11-03","Marrianna FL",525,{"$f":"VLOOKUP(E36,'C.1 - Rate Sheets'!H:I,2,FALSE)","v":0.97},509.25,{"$f":"IF(AND(H36>='A - Contractor Summary'!$C$36,H36<='A - Contractor Summary'!$C$38),\"Yes\",IF(H36<'A - Contractor Summary'!$C$36,\"No\",IF(H36>'A - Contractor Summary'!$C$39,\"\",\"\")))","v":""},{"$f":"IF(OR(M36=\"Yes\",M36=\"No\")*AND(H36<'A - Contractor Summary'!$C$39),\"\",IF(AND(H36>'A - Contractor Summary'!$C$39,H36<'A - Contractor Summary'!$C$42),\"Yes\",IF(H36>'A - Contractor Summary'!$C$42,\"No\",\"Needs Review\")))","v":"No"},{"$f":"IF(AND(J36>PRODUCT('A - Contractor Summary'!$C$29,0.85),J36<PRODUCT('A - Contractor Summary'!$C$29,1.15)),\"Yes\",\"No\")","v":"No"},null,"No",{"$f":"IF(Q36=\"Yes\",#REF!,0)","v":0},0,509.25,null,1]
[null,24,"Spreadsheet","Vendor No. 3","Lift Mileage","897-3692",55921,"2018-11-03","Marrianna FL",525,{"$f":"VLOOKUP(E37,'C.1 - Rate Sheets'!H:I,2,FALSE)","v":1.98},1039.5,{"$f":"IF(AND(H37>='A - Contractor Summary'!$C$36,H37<='A - Contractor Summary'!$C$38),\"Yes\",IF(H37<'A - Contractor Summary'!$C$36,\"No\",IF(H37>'A - Contractor Summary'!$C$39,\"\",\"\")))","v":""},{"$f":"IF(OR(M37=\"Yes\",M37=\"No\")*AND(H37<'A - Contractor Summary'!$C$39),\"\",IF(AND(H37>'A - Contractor Summary'!$C$39,H37<'A - Contractor Summary'!$C$42),\"Yes\",IF(H37>'A - Contractor Summary'!$C$42,\"No\",\"Needs Review\")))","v":"No"},{"$f":"IF(AND(J37>PRODUCT('A - Contractor Summary'!$C$29,0.85),J37<PRODUCT('A - Contractor Summary'!$C$29,1.15)),\"Yes\",\"No\")","v":"No"},null,"No",{"$f":"IF(Q37=\"Yes\",#REF!,0)","v":0},0,1039.5,null,1]
[null,25,"Spreadsheet","Vendor No. 3","Lift Mileage","895-8562",55921,"2018-11-03","Marrianna FL",525,{"$f":"VLOOKUP(E38,'C.1 - Rate Sheets'!H:I,2,FALSE)","v":1.98},1039.5,{"$f":"IF(AND(H38>='A - Contractor Summary'!$C$36,H38<='A - Contractor Summary'!$C$38),\"Yes\",IF(H38<'A - Contractor Summary'!$C$36,\"No\",IF(H38>'A - Contractor Summary'!$C$39,\"\",\"\")))","v":""},{"$f":"IF(OR(M38=\"Yes\",M38=\"No\")*AND(H38<'A - Contractor Summary'!$C$39),\"\",IF(AND(H38>'A - Contractor Summary'!$C$39,H38<'A - Contractor Summary'!$C$42),\"Yes\",IF(H38>'A - Contractor Summary'!$C$42,\"No\",\"Needs Review\")))","v":"No"},{"$f":"IF(AND(J38>PRODUCT('A - Contractor Summary'!$C$29,0.85),J38<PRODUCT('A - Contractor Summary'!$C$29,1.15)),\"Yes\",\"No\")","v":"No"},null,"No",{"$f":"IF(Q38=\"Yes\",#REF!,0)","v":0},0,1039.5,null,1]
[null,26,"Spreadsheet","Vendor No. 3","Pickup Mileage","832-8575",50937,"2018-11-03","New Smyrna Beach",331,{"$f":"VLOOKUP(E39,'C.1 - Rate Sheets'!H:I,2,FALSE)","v":0.97},{"$f":"J39*K39","v":321.07},{"$f":"IF(AND(H39>='A - Contractor Summary'!$C$36,H39<='A - Contractor Summary'!$C$38),\"Yes\",IF(H39<'A - Contractor Summary'!$C$36,\"No\",IF(H39>'A - Contractor Summary'!$C$39,\"\",\"\")))","v":""},{"$f":"IF(OR(M39=\"Yes\",M39=\"No\")*AND(H39<'A - Contractor Summary'!$C$39),\"\",IF(AND(H39>'A - Contractor Summary'!$C$39,H39<'A - Contractor Summary'!$C$42),\"Yes\",IF(H39>'A - Contractor Summary'!$C$42,\"No\",\"Needs Review\")))","v":"No"},{"$f":"IF(AND(J39>PRODUCT('A - Contractor Summary'!$C$29,0.85),J39<PRODUCT('A - Contractor Summary'!$C$29,1.15)),\"Yes\",\"No\")","v":"Yes"},null,"No",{"$f":"IF(Q39=\"Yes\",#REF!,0)","v":0},0,321.07,null,1]
[null,27,"Spreadsheet","Vendor No. 3","Pickup Mileage","632-5224",50399,"2018-11-03","New Smyrna Beach",322,{"$f":"VLOOKUP(E40,'C.1 - Rate Sheets'!H:I,2,FALSE)","v":0.97},{"$f":"J40*K40","v":312.33999999999997},{"$f":"IF(AND(H40>='A - Contractor Summary'!$C$36,H40<='A - Contractor Summary'!$C$38),\"Yes\",IF(H40<'A - Contractor Summary'!$C$36,\"No\",IF(H40>'A - Contractor Summary'!$C$39,\"\",\"\")))","v":""},{"$f":"IF(OR(M40=\"Yes\",M40=\"No\")*AND(H40<'A - Contractor Summary'!$C$39),\"\",IF(AND(H40>'A - Contractor Summary'!$C$39,H40<'A - Contractor Summary'!$C$42),\"Yes\",IF(H40>'A - Contractor Summary'!$C$42,\"No\",\"Needs Review\")))","v":"No"},{"$f":"IF(AND(J40>PRODUCT('A - Contractor Summary'!$C$29,0.85),J40<PRODUCT('A - Contractor Summary'!$C$29,1.15)),\"Yes\",\"No\")","v":"Yes"},null,"No",{"$f":"IF(Q40=\"Yes\",#REF!,0)","v":0},0,312.33999999999997,null,1]
[null,null,null,null,null,null,null,null,null,null,null,null,{"$f":"IF(AND(H41>='A - Contractor Summary'!$C$36,H41<='A - Contractor Summary'!$C$38),\"Yes\",IF(H41<'A - Contractor Summary'!$C$36,\"No\",IF(H41>'A - Contractor Summary'!$C$39,\"\",\"\")))","v":"No"},{"$f":"IF(OR(M41=\"Yes\",M41=\"No\")*AND(H41<'A - Contractor Summary'!$C$39),\"\",IF(AND(H41>'A - Contractor Summary'!$C$39,H41<'A - Contractor Summary'!$C$42),\"Yes\",IF(H41>'A - Contractor Summary'!$C$42,\"No\",\"Needs Review\")))","v":""},{"$f":"IF(AND(J41>PRODUCT('A - Contractor Summary'!$C$29,0.85),J41<PRODUCT('A - Contractor Summary'!$C$29,1.15)),\"Yes\",\"No\")","v":"No"},null,"No",{"$f":"IF(Q41=\"Yes\",#REF!,0)","v":0},0,0,null,1]
[null,null,"Spreadsheet","Vendor No. 3","Lift Mileage","897-3887",50900,"2018-11-03","New Smyrna Beach",322,{"$f":"VLOOKUP(E42,'C.1 - Rate Sheets'!H:I,2,FALSE)","v":1.98},{"$f":"J42*K42","v":637.55999999999995},{"$f":"IF(AND(H42>='A - Contractor Summary'!$C$36,H42<='A - Contractor Summary'!$C$38),\"Yes\",IF(H42<'A - Contractor Summary'!$C$36,\"No\",IF(H42>'A - Contractor Summary'!$C$39,\"\",\"\")))","v":""},{"$f":"IF(OR(M42=\"Yes\",M42=\"No\")*AND(H42<'A - Contractor Summary'!$C$39),\"\",IF(AND(H42>'A - Contractor Summary'!$C$39,H42<'A - Contractor Summary'!$C$42),\"Yes\",IF(H42>'A - Contractor Summary'!$C$42,\"No\",\"Needs Review\")))","v":"No"},{"$f":"IF(AND(J42>PRODUCT('A - Contractor Summary'!$C$29,0.85),J42<PRODUCT('A - Contractor Summary'!$C$29,1.15)),\"Yes\",\"No\")","v":"Yes"},null,"No",{"$f":"IF(Q42=\"Yes\",#REF!,0)","v":0},0,637.55999999999995,null,1]
[null,null,"Spreadsheet","Vendor No. 3","Lift Mileage","869-2522",50900,"2018-11-03","New Smyrna Beach",322,{"$f":"VLOOKUP(E43,'C.1 - Rate Sheets'!H:I,2,FALSE)","v":1.98},637.55999999999995,{"$f":"IF(AND(H43>='A - Contractor Summary'!$C$36,H43<='A - Contractor Summary'!$C$38),\"Yes\",IF(H43<'A - Contractor Summary'!$C$36,\"No\",IF(H43>'A - Contractor Summary'!$C$39,\"\",\"\")))","v":""},{"$f":"IF(OR(M43=\"Yes\",M43=\"No\")*AND(H43<'A - Contractor Summary'!$C$39),\"\",IF(AND(H43>'A - Contractor Summary'!$C$39,H43<'A - Contractor Summary'!$C$42),\"Yes\",IF(H43>'A - Contractor Summary'!$C$42,\"No\",\"Needs Review\")))","v":"No"},{"$f":"IF(AND(J43>PRODUCT('A - Contractor Summary'!$C$29,0.85),J43<PRODUCT('A - Contractor Summary'!$C$29,1.15)),\"Yes\",\"No\")","v":"Yes"},null,"No",{"$f":"IF(Q43=\"Yes\",#REF!,0)","v":0},0,637.55999999999995,null,1]
[null,null,"Spreadsheet","Vendor No. 3","Lift Mileage","865-2550",50900,"2018-11-03","New Smyrna Beach",322,{"$f":"VLOOKUP(E44,'C.1 - Rate Sheets'!H:I,2,FALSE)","v":1.98},637.55999999999995,{"$f":"IF(AND(H44>='A - Contractor Summary'!$C$36,H44<='A - Contractor Summary'!$C$38),\"Yes\",IF(H44<'A - Contractor Summary'!$C$36,\"No\",IF(H44>'A - Contractor Summary'!$C$39,\"\",\"\")))","v":""},{"$f":"IF(OR(M44=\"Yes\",M44=\"No\")*AND(H44<'A - Contractor Summary'!$C$39),\"\",IF(AND(H44>'A - Contractor Summary'!$C$39,H44<'A - Contractor Summary'!$C$42),\"Yes\",IF(H44>'A - Contractor Summary'!$C$42,\"No\",\"Needs Review\")))","v":"No"},{"$f":"IF(AND(J44>PRODUCT('A - Contractor Summary'!$C$29,0.85),J44<PRODUCT('A - Contractor Summary'!$C$29,1.15)),\"Yes\",\"No\")","v":"Yes"},null,"No",{"$f":"IF(Q44=\"Yes\",#REF!,0)","v":0},0,637.55999999999995,null,1]
[null,null,"Spreadsheet","Vendor No. 3","Lift Mileage","865-8219",50900,"2018-11-03","New Smyrna Beach",322,{"$f":"VLOOKUP(E45,'C.1 - Rate Sheets'!H:I,2,FALSE)","v":1.98},637.55999999999995,{"$f":"IF(AND(H45>='A - Contractor Summary'!$C$36,H45<='A - Contractor Summary'!$C$38),\"Yes\",IF(H45<'A - Contractor Summary'!$C$36,\"No\",IF(H45>'A - Contractor Summary'!$C$39,\"\",\"\")))","v":""},{"$f":"IF(OR(M45=\"Yes\",M45=\"No\")*AND(H45<'A - Contractor Summary'!$C$39),\"\",IF(AND(H45>'A - Contractor Summary'!$C$39,H45<'A - Contractor Summary'!$C$42),\"Yes\",IF(H45>'A - Contractor Summary'!$C$42,\"No\",\"Needs Review\")))","v":"No"},{"$f":"IF(AND(J45>PRODUCT('A - Contractor Summary'!$C$29,0.85),J45<PRODUCT('A - Contractor Summary'!$C$29,1.15)),\"Yes\",\"No\")","v":"Yes"},null,"No",{"$f":"IF(Q45=\"Yes\",#REF!,0)","v":0},0,637.55999999999995,null,1]
[null,null,"Spreadsheet","Vendor No. 3","Lift Mileage","865-9076",50900,"2018-11-03","New Smyrna Beach",322,{"$f":"VLOOKUP(E46,'C.1 - Rate Sheets'!H:I,2,FALSE)","v":1.98},637.55999999999995,{"$f":"IF(AND(H46>='A - Contractor Summary'!$C$36,H46<='A - Contractor Summary'!$C$38),\"Yes\",IF(H46<'A - Contractor Summary'!$C$36,\"No\",IF(H46>'A - Contractor Summary'!$C$39,\"\",\"\")))","v":""},{"$f":"IF(OR(M46=\"Yes\",M46=\"No\")*AND(H46<'A - Contractor Summary'!$C$39),\"\",IF(AND(H46>'A - Contractor Summary'!$C$39,H46<'A - Contractor Summary'!$C$42),\"Yes\",IF(H46>'A - Contractor Summary'!$C$42,\"No\",\"Needs Review\")))","v":"No"},{"$f":"IF(AND(J46>PRODUCT('A - Contractor Summary'!$C$29,0.85),J46<PRODUCT('A - Contractor Summary'!$C$29,1.15)),\"Yes\",\"No\")","v":"Yes"},null,"No",{"$f":"IF(Q46=\"Yes\",#REF!,0)","v":0},0,637.55999999999995,null,1]
[null,null,"Spreadsheet","Vendor No. 3","Lift Mileage","897-3204",50900,"2018-11-03","New Smyrna Beach",322,{"$f":"VLOOKUP(E47,'C.1 - Rate Sheets'!H:I,2,FALSE)","v":1.98},637.55999999999995,{"$f":"IF(AND(H47>='A - Contractor Summary'!$C$36,H47<='A - Contractor Summary'!$C$38),\"Yes\",IF(H47<'A - Contractor Summary'!$C$36,\"No\",IF(H47>'A - Contractor Summary'!$C$39,\"\",\"\")))","v":""},{"$f":"IF(OR(M47=\"Yes\",M47=\"No\")*AND(H47<'A - Contractor Summary'!$C$39),\"\",IF(AND(H47>'A - Contractor Summary'!$C$39,H47<'A - Contractor Summary'!$C$42),\"Yes\",IF(H47>'A - Contractor Summary'!$C$42,\"No\",\"Needs Review\")))","v":"No"},{"$f":"IF(AND(J47>PRODUCT('A - Contractor Summary'!$C$29,0.85),J47<PRODUCT('A - Contractor Summary'!$C$29,1.15)),\"Yes\",\"No\")","v":"Yes"},null,"No",{"$f":"IF(Q47=\"Yes\",#REF!,0)","v":0},0,637.55999999999995,null,1]
[null,null,null,null,null,null,null,null,null,null,null,null,{"$f":"IF(AND(H48>='A - Contractor Summary'!$C$36,H48<='A - Contractor Summary'!$C$38),\"Yes\",IF(H48<'A - Contractor Summary'!$C$36,\"No\",IF(H48>'A - Contractor Summary'!$C$39,\"\",\"\")))","v":"No"},{"$f":"IF(OR(M48=\"Yes\",M48=\"No\")*AND(H48<'A - Contractor Summary'!$C$39),\"\",IF(AND(H48>'A - Contractor Summary'!$C$39,H48<'A - Contractor Summary'!$C$42),\"Yes\",IF(H48>'A - Contractor Summary'!$C$42,\"No\",\"Needs Review\")))","v":""},{"$f":"IF(AND(J48>PRODUCT('A - Contractor Summary'!$C$29,0.85),J48<PRODUCT('A - Contractor Summary'!$C$29,1.15)),\"Yes\",\"No\")","v":"No"},null,"No",{"$f":"IF(Q48=\"Yes\",#REF!,0)","v":0},0,0,null,1]
[null,null,"Spreadsheet","Vendor No. 3","Pickup Mileage","614-7588",55392,"2018-11-03","Pompano Beach",525,{"$f":"VLOOKUP(E49,'C.1 - Rate Sheets'!H:I,2,FALSE)","v":0.97},509.25,{"$f":"IF(AND(H49>='A - Contractor Summary'!$C$36,H49<='A - Contractor Summary'!$C$38),\"Yes\",IF(H49<'A - Contractor Summary'!$C$36,\"No\",IF(H49>'A - Contractor Summary'!$C$39,\"\",\"\")))","v":""},{"$f":"IF(OR(M49=\"Yes\",M49=\"No\")*AND(H49<'A - Contractor Summary'!$C$39),\"\",IF(AND(H49>'A - Contractor Summary'!$C$39,H49<'A - Contractor Summary'!$C$42),\"Yes\",IF(H49>'A - Contractor Summary'!$C$42,\"No\",\"Needs Review\")))","v":"No"},{"$f":"IF(AND(J49>PRODUCT('A - Contractor Summary'!$C$29,0.85),J49<PRODUCT('A - Contractor Summary'!$C$29,1.15)),\"Yes\",\"No\")","v":"No"},null,"No",{"$f":"IF(Q49=\"Yes\",#REF!,0)","v":0},0,509.25,null,1]
[null,null,"Spreadsheet","Vendor No. 3","Lift Mileage","869-2526",55392,"2018-11-03","Pompano Beach",525,{"$f":"VLOOKUP(E50,'C.1 - Rate Sheets'!H:I,2,FALSE)","v":1.98},1039.5,{"$f":"IF(AND(H50>='A - Contractor Summary'!$C$36,H50<='A - Contractor Summary'!$C$38),\"Yes\",IF(H50<'A - Contractor Summary'!$C$36,\"No\",IF(H50>'A - Contractor Summary'!$C$39,\"\",\"\")))","v":""},{"$f":"IF(OR(M50=\"Yes\",M50=\"No\")*AND(H50<'A - Contractor Summary'!$C$39),\"\",IF(AND(H50>'A - Contractor Summary'!$C$39,H50<'A - Contractor Summary'!$C$42),\"Yes\",IF(H50>'A - Contractor Summary'!$C$42,\"No\",\"Needs Review\")))","v":"No"},{"$f":"IF(AND(J50>PRODUCT('A - Contractor Summary'!$C$29,0.85),J50<PRODUCT('A - Contractor Summary'!$C$29,1.15)),\"Yes\",\"No\")","v":"No"},null,"No",{"$f":"IF(Q50=\"Yes\",#REF!,0)","v":0},0,1039.5,null,1]
[null,null,"Spreadsheet","Vendor No. 3","Lift Mileage","895-0736",55392,"2018-11-03","Pompano Beach",525,{"$f":"VLOOKUP(E51,'C.1 - Rate Sheets'!H:I,2,FALSE)","v":1.98},1039.5,{"$f":"IF(AND(H51>='A - Contractor Summary'!$C$36,H51<='A - Contractor Summary'!$C$38),\"Yes\",IF(H51<'A - Contractor Summary'!$C$36,\"No\",IF(H51>'A - Contractor Summary'!$C$39,\"\",\"\")))","v":""},{"$f":"IF(OR(M51=\"Yes\",M51=\"No\")*AND(H51<'A - Contractor Summary'!$C$39),\"\",IF(AND(H51>'A - Contractor Summary'!$C$39,H51<'A - Contractor Summary'!$C$42),\"Yes\",IF(H51>'A - Contractor Summary'!$C$42,\"No\",\"Needs Review\")))","v":"No"},{"$f":"IF(AND(J51>PRODUCT('A - Contractor Summary'!$C$29,0.85),J51<PRODUCT('A - Contractor Summary'!$C$29,1.15)),\"Yes\",\"No\")","v":"No"},null,"No",{"$f":"IF(Q51=\"Yes\",#REF!,0)","v":0},0,1039.5,null,1]
[null,null,"Spreadsheet","Vendor No. 3","Lift Mileage",897.25760000000002,55392,"2018-11-03","Pompano Beach",525,{"$f":"VLOOKUP(E52,'C.1 - Rate Sheets'!H:I,2,FALSE)","v":1.98},1039.5,{"$f":"IF(AND(H52>='A - Contractor Summary'!$C$36,H52<='A - Contractor Summary'!$C$38),\"Yes\",IF(H52<'A - Contractor Summary'!$C$36,\"No\",IF(H52>'A - Contractor Summary'!$C$39,\"\",\"\")))","v":""},{"$f":"IF(OR(M52=\"Yes\",M52=\"No\")*AND(H52<'A - Contractor Summary'!$C$39),\"\",IF(AND(H52>'A - Contractor Summary'!$C$39,H52<'A - Contractor Summary'!$C$42),\"Yes\",IF(H52>'A - Contractor Summary'!$C$42,\"No\",\"Needs Review\")))","v":"No"},{"$f":"IF(AND(J52>PRODUCT('A - Contractor Summary'!$C$29,0.85),J52<PRODUCT('A - Contractor Summary'!$C$29,1.15)),\"Yes\",\"No\")","v":"No"},null,"No",{"$f":"IF(Q52=\"Yes\",#REF!,0)","v":0},0,1039.5,null,1]
[null,null,"Spreadsheet","Vendor No. 3","Lift Mileage","897-3692",55392,"2018-11-03","Pompano Beach",525,{"$f":"VLOOKUP(E53,'C.1 - Rate Sheets'!H:I,2,FALSE)","v":1.98},1039.5,{"$f":"IF(AND(H53>='A - Contractor Summary'!$C$36,H53<='A - Contractor Summary'!$C$38),\"Yes\",IF(H53<'A - Contractor Summary'!$C$36,\"No\",IF(H53>'A - Contractor Summary'!$C$39,\"\",\"\")))","v":""},{"$f":"IF(OR(M53=\"Yes\",M53=\"No\")*AND(H53<'A - Contractor Summary'!$C$39),\"\",IF(AND(H53>'A - Contractor Summary'!$C$39,H53<'A - Contractor Summary'!$C$42),\"Yes\",IF(H53>'A - Contractor Summary'!$C$42,\"No\",\"Needs Review\")))","v":"No"},{"$f":"IF(AND(J53>PRODUCT('A - Contractor Summary'!$C$29,0.85),J53<PRODUCT('A - Contractor Summary'!$C$29,1.15)),\"Yes\",\"No\")","v":"No"},null,"No",{"$f":"IF(Q53=\"Yes\",#REF!,0)","v":0},0,1039.5,null,1]
[null,null,"Spreadsheet","Vendor No. 3","Lift Mileage","895-8562",55392,"2018-11-03","Pompano Beach",525,{"$f":"VLOOKUP(E54,'C.1 - Rate Sheets'!H:I,2,FALSE)","v":1.98},1039.5,{"$f":"IF(AND(H54>='A - Contractor Summary'!$C$36,H54<='A - Contractor Summary'!$C$38),\"Yes\",IF(H54<'A - Contractor Summary'!$C$36,\"No\",IF(H54>'A - Contractor Summary'!$C$39,\"\",\"\")))","v":""},{"$f":"IF(OR(M54=\"Yes\",M54=\"No\")*AND(H54<'A - Contractor Summary'!$C$39),\"\",IF(AND(H54>'A - Contractor Summary'!$C$39,H54<'A - Contractor Summary'!$C$42),\"Yes\",IF(H54>'A - Contractor Summary'!$C$42,\"No\",\"Needs Review\")))","v":"No"},{"$f":"IF(AND(J54>PRODUCT('A - Contractor Summary'!$C$29,0.85),J54<PRODUCT('A - Contractor Summary'!$C$29,1.15)),\"Yes\",\"No\")","v":"No"},null,"No",{"$f":"IF(Q54=\"Yes\",#REF!,0)","v":0},0,1039.5,null,1]
[null,null,"Spreadsheet","Vendor No. 3","Pickup Mileage","622-2513",55392,"2018-11-03","Pompano Beach",525,{"$f":"VLOOKUP(E55,'C.1 - Rate Sheets'!H:I,2,FALSE)","v":0.97},509.25,{"$f":"IF(AND(H55>='A - Contractor Summary'!$C$36,H55<='A - Contractor Summary'!$C$38),\"Yes\",IF(H55<'A - Contractor Summary'!$C$36,\"No\",IF(H55>'A - Contractor Summary'!$C$39,\"\",\"\")))","v":""},{"$f":"IF(OR(M55=\"Yes\",M55=\"No\")*AND(H55<'A - Contractor Summary'!$C$39),\"\",IF(AND(H55>'A - Contractor Summary'!$C$39,H55<'A - Contractor Summary'!$C$42),\"Yes\",IF(H55>'A - Contractor Summary'!$C$42,\"No\",\"Needs Review\")))","v":"No"},{"$f":"IF(AND(J55>PRODUCT('A - Contractor Summary'!$C$29,0.85),J55<PRODUCT('A - Contractor Summary'!$C$29,1.15)),\"Yes\",\"No\")","v":"No"},null,"No",{"$f":"IF(Q55=\"Yes\",#REF!,0)","v":0},0,509.25,null,1]
[null,null,"Spreadsheet","Vendor No. 3","Split Dump Mileage","770-1708",55392,"2018-11-03","Pompano Beach",525,{"$f":"VLOOKUP(E56,'C.1 - Rate Sheets'!H:I,2,FALSE)","v":1.61},845.25,{"$f":"IF(AND(H56>='A - Contractor Summary'!$C$36,H56<='A - Contractor Summary'!$C$38),\"Yes\",IF(H56<'A - Contractor Summary'!$C$36,\"No\",IF(H56>'A - Contractor Summary'!$C$39,\"\",\"\")))","v":""},{"$f":"IF(OR(M56=\"Yes\",M56=\"No\")*AND(H56<'A - Contractor Summary'!$C$39),\"\",IF(AND(H56>'A - Contractor Summary'!$C$39,H56<'A - Contractor Summary'!$C$42),\"Yes\",IF(H56>'A - Contractor Summary'!$C$42,\"No\",\"Needs Review\")))","v":"No"},{"$f":"IF(AND(J56>PRODUCT('A - Contractor Summary'!$C$29,0.85),J56<PRODUCT('A - Contractor Summary'!$C$29,1.15)),\"Yes\",\"No\")","v":"No"},null,"No",{"$f":"IF(Q56=\"Yes\",#REF!,0)","v":0},0,845.25,null,1]
[null,null,"Spreadsheet","Vendor No. 3","Split Dump Mileage","770-8429",55392,"2018-11-03","Pompano Beach",525,{"$f":"VLOOKUP(E57,'C.1 - Rate Sheets'!H:I,2,FALSE)","v":1.61},845.25,{"$f":"IF(AND(H57>='A - Contractor Summary'!$C$36,H57<='A - Contractor Summary'!$C$38),\"Yes\",IF(H57<'A - Contractor Summary'!$C$36,\"No\",IF(H57>'A - Contractor Summary'!$C$39,\"\",\"\")))","v":""},{"$f":"IF(OR(M57=\"Yes\",M57=\"No\")*AND(H57<'A - Contractor Summary'!$C$39),\"\",IF(AND(H57>'A - Contractor Summary'!$C$39,H57<'A - Contractor Summary'!$C$42),\"Yes\",IF(H57>'A - Contractor Summary'!$C$42,\"No\",\"Needs Review\")))","v":"No"},{"$f":"IF(AND(J57>PRODUCT('A - Contractor Summary'!$C$29,0.85),J57<PRODUCT('A - Contractor Summary'!$C$29,1.15)),\"Yes\",\"No\")","v":"No"},null,"No",{"$f":"IF(Q57=\"Yes\",#REF!,0)","v":0},0,845.25,null,1]
[null,null,"Spreadsheet","Vendor No. 3","Split Dump Mileage","770-9359",55392,"2018-11-03","Pompano Beach",525,{"$f":"VLOOKUP(E58,'C.1 - Rate Sheets'!H:I,2,FALSE)","v":1.61},845.25,{"$f":"IF(AND(H58>='A - Contractor Summary'!$C$36,H58<='A - Contractor Summary'!$C$38),\"Yes\",IF(H58<'A - Contractor Summary'!$C$36,\"No\",IF(H58>'A - Contractor Summary'!$C$39,\"\",\"\")))","v":""},{"$f":"IF(OR(M58=\"Yes\",M58=\"No\")*AND(H58<'A - Contractor Summary'!$C$39),\"\",IF(AND(H58>'A - Contractor Summary'!$C$39,H58<'A - Contractor Summary'!$C$42),\"Yes\",IF(H58>'A - Contractor Summary'!$C$42,\"No\",\"Needs Review\")))","v":"No"},{"$f":"IF(AND(J58>PRODUCT('A - Contractor Summary'!$C$29,0.85),J58<PRODUCT('A - Contractor Summary'!$C$29,1.15)),\"Yes\",\"No\")","v":"No"},null,"No",{"$f":"IF(Q58=\"Yes\",#REF!,0)","v":0},0,845.25,null,1]
[null,null,"Spreadsheet","Vendor No. 3","Split Dump Mileage","770-1909",55392,"2018-11-03","Pompano Beach",525,{"$f":"VLOOKUP(E59,'C.1 - Rate Sheets'!H:I,2,FALSE)","v":1.61},845.25,{"$f":"IF(AND(H59>='A - Contractor Summary'!$C$36,H59<='A - Contractor Summary'!$C$38),\"Yes\",IF(H59<'A - Contractor Summary'!$C$36,\"No\",IF(H59>'A - Contractor Summary'!$C$39,\"\",\"\")))","v":""},{"$f":"IF(OR(M59=\"Yes\",M59=\"No\")*AND(H59<'A - Contractor Summary'!$C$39),\"\",IF(AND(H59>'A - Contractor Summary'!$C$39,H59<'A - Contractor Summary'!$C$42),\"Yes\",IF(H59>'A - Contractor Summary'!$C$42,\"No\",\"Needs Review\")))","v":"No"},{"$f":"IF(AND(J59>PRODUCT('A - Contractor Summary'!$C$29,0.85),J59<PRODUCT('A - Contractor Summary'!$C$29,1.15)),\"Yes\",\"No\")","v":"No"},null,"No",{"$f":"IF(Q59=\"Yes\",#REF!,0)","v":0},0,845.25,null,1]
[null,null,null,null,null,null,null,null,null,null,null,null,{"$f":"IF(AND(H60>='A - Contractor Summary'!$C$36,H60<='A - Contractor Summary'!$C$38),\"Yes\",IF(H60<'A - Contractor Summary'!$C$36,\"No\",IF(H60>'A - Contractor Summary'!$C$39,\"\",\"\")))","v":"No"},{"$f":"IF(OR(M60=\"Yes\",M60=\"No\")*AND(H60<'A - Contractor Summary'!$C$39),\"\",IF(AND(H60>'A - Contractor Summary'!$C$39,H60<'A - Contractor Summary'!$C$42),\"Yes\",IF(H60>'A - Contractor Summary'!$C$42,\"No\",\"Needs Review\")))","v":""},{"$f":"IF(AND(J60>PRODUCT('A - Contractor Summary'!$C$29,0.85),J60<PRODUCT('A - Contractor Summary'!$C$29,1.15)),\"Yes\",\"No\")","v":"No"},null,"No",{"$f":"IF(Q60=\"Yes\",#REF!,0)","v":0},0,0,null,1]
[null,null,null,null,null,null,null,null,null,null,null,null,{"$f":"IF(AND(H61>='A - Contractor Summary'!$C$36,H61<='A - Contractor Summary'!$C$38),\"Yes\",IF(H61<'A - Contractor Summary'!$C$36,\"No\",IF(H61>'A - Contractor Summary'!$C$39,\"\",\"\")))","v":"No"},{"$f":"IF(OR(M61=\"Yes\",M61=\"No\")*AND(H61<'A - Contractor Summary'!$C$39),\"\",IF(AND(H61>'A - Contractor Summary'!$C$39,H61<'A - Contractor Summary'!$C$42),\"Yes\",IF(H61>'A - Contractor Summary'!$C$42,\"No\",\"Needs Review\")))","v":""},{"$f":"IF(AND(J61>PRODUCT('A - Contractor Summary'!$C$29,0.85),J61<PRODUCT('A - Contractor Summary'!$C$29,1.15)),\"Yes\",\"No\")","v":"No"},null,"No",{"$f":"IF(Q61=\"Yes\",#REF!,0)","v":0},0,0,null,1]
[null,null,"Spreadsheet","Vendor No. 3","Pickup Mileage","614-3521",50937,"2018-11-03","New Smyrna Beach",331,{"$f":"VLOOKUP(E62,'C.1 - Rate Sheets'!H:I,2,FALSE)","v":0.97},{"$f":"J62*K62","v":321.07},{"$f":"IF(AND(H62>='A - Contractor Summary'!$C$36,H62<='A - Contractor Summary'!$C$38),\"Yes\",IF(H62<'A - Contractor Summary'!$C$36,\"No\",IF(H62>'A - Contractor Summary'!$C$39,\"\",\"\")))","v":""},{"$f":"IF(OR(M62=\"Yes\",M62=\"No\")*AND(H62<'A - Contractor Summary'!$C$39),\"\",IF(AND(H62>'A - Contractor Summary'!$C$39,H62<'A - Contractor Summary'!$C$42),\"Yes\",IF(H62>'A - Contractor Summary'!$C$42,\"No\",\"Needs Review\")))","v":"No"},{"$f":"IF(AND(J62>PRODUCT('A - Contractor Summary'!$C$29,0.85),J62<PRODUCT('A - Contractor Summary'!$C$29,1.15)),\"Yes\",\"No\")","v":"Yes"},null,"No",{"$f":"IF(Q62=\"Yes\",#REF!,0)","v":0},0,321.07,null,1]
[null,28,"Spreadsheet","Vendor No. 3","Pickup Mileage","602-0501",50937,"2018-11-03","New Smyrna Beach",331,{"$f":"VLOOKUP(E63,'C.1 - Rate Sheets'!H:I,2,FALSE)","v":0.97},321.07,{"$f":"IF(AND(H63>='A - Contractor Summary'!$C$36,H63<='A - Contractor Summary'!$C$38),\"Yes\",IF(H63<'A - Contractor Summary'!$C$36,\"No\",IF(H63>'A - Contractor Summary'!$C$39,\"\",\"\")))","v":""},{"$f":"IF(OR(M63=\"Yes\",M63=\"No\")*AND(H63<'A - Contractor Summary'!$C$39),\"\",IF(AND(H63>'A - Contractor Summary'!$C$39,H63<'A - Contractor Summary'!$C$42),\"Yes\",IF(H63>'A - Contractor Summary'!$C$42,\"No\",\"Needs Review\")))","v":"No"},{"$f":"IF(AND(J63>PRODUCT('A - Contractor Summary'!$C$29,0.85),J63<PRODUCT('A - Contractor Summary'!$C$29,1.15)),\"Yes\",\"No\")","v":"Yes"},null,"No",{"$f":"IF(Q63=\"Yes\",#REF!,0)","v":0},0,321.07,null,1]
[null,29,"Spreadsheet","Vendor No. 3","Lift Mileage","896-8383",50937,"2018-11-03","New Smyrna Beach",331,{"$f":"VLOOKUP(E64,'C.1 - Rate Sheets'!H:I,2,FALSE)","v":1.98},655.38,{"$f":"IF(AND(H64>='A - Contractor Summary'!$C$36,H64<='A - Contractor Summary'!$C$38),\"Yes\",IF(H64<'A - Contractor Summary'!$C$36,\"No\",IF(H64>'A - Contractor Summary'!$C$39,\"\",\"\")))","v":""},{"$f":"IF(OR(M64=\"Yes\",M64=\"No\")*AND(H64<'A - Contractor Summary'!$C$39),\"\",IF(AND(H64>'A - Contractor Summary'!$C$39,H64<'A - Contractor Summary'!$C$42),\"Yes\",IF(H64>'A - Contractor Summary'!$C$42,\"No\",\"Needs Review\")))","v":"No"},{"$f":"IF(AND(J64>PRODUCT('A - Contractor Summary'!$C$29,0.85),J64<PRODUCT('A - Contractor Summary'!$C$29,1.15)),\"Yes\",\"No\")","v":"Yes"},null,"No",{"$f":"IF(Q64=\"Yes\",#REF!,0)","v":0},0,655.38,null,1]
[null,30,"Spreadsheet","Vendor No. 3","Lift Mileage","895-0743",50937,"2018-11-03","New Smyrna Beach",331,{"$f":"VLOOKUP(E65,'C.1 - Rate Sheets'!H:I,2,FALSE)","v":1.98},655.38,{"$f":"IF(AND(H65>='A - Contractor Summary'!$C$36,H65<='A - Contractor Summary'!$C$38),\"Yes\",IF(H65<'A - Contractor Summary'!$C$36,\"No\",IF(H65>'A - Contractor Summary'!$C$39,\"\",\"\")))","v":""},{"$f":"IF(OR(M65=\"Yes\",M65=\"No\")*AND(H65<'A - Contractor Summary'!$C$39),\"\",IF(AND(H65>'A - Contractor Summary'!$C$39,H65<'A - Contractor Summary'!$C$42),\"Yes\",IF(H65>'A - Contractor Summary'!$C$42,\"No\",\"Needs Review\")))","v":"No"},{"$f":"IF(AND(J65>PRODUCT('A - Contractor Summary'!$C$29,0.85),J65<PRODUCT('A - Contractor Summary'!$C$29,1.15)),\"Yes\",\"No\")","v":"Yes"},null,"No",{"$f":"IF(Q65=\"Yes\",#REF!,0)","v":0},{"$f":"IF(Q65=\"ED Review\",#REF!,0)","v":0},655.38,null,1]
[null,null,null,null,null,null,null,null,null,null,null,{"$f":"SUM(L16:L65)","v":31629.520000000008},null,null,null,null,null,{"$f":"IFERROR(SUM(R16:R65),0)","v":0},{"$f":"IFERROR(SUM(S16:S65),0)","v":6019.0000000000009},{"$f":"SUM(T16:T65)","v":31629.520000000008},{"$f":"SUM(U16:U65)","v":0},{"$f":"S66-T66-U66","v":-25610.520000000008},"check (a)"]
[]
[]
[]
[]
[]
[null,"Tickmark Explanation:"]
[null,"1 Documentation provided"]